Workbook

Sheet メニュー
D4: 見積書作成、納品・受領書作成、請求書作成、領収書作成、受注内容確認時等…
C5: operation
K7: 注文データを
K8: 数年間管理する
D9: 1行1案件 該当項目に入力する
D16: 1. 見積日を入力する | K16: 3. 印刷 | R16: 1. 納品日を入力する | Y16: 3. 印刷
D17: (B列) | R17: (D列)
H19: 2. 案件をコピペ | V19: 2. 案件をコピペ
D24: 1. 請求日を入力する | K24: 3. 印刷 | R24: 1. 入金日を入力する | Y24: 3. 印刷
D25: (E列) | R25: (F列)
H27: 2. 案件をコピペ | V27: 2. 案件をコピペ

Sheet 受注台帳
C1: 販売管理台帳 | E1: 8 | K1: ←塗りつぶしセルは入力不可保護扱い | BM1: 総合計
BM2: =SUM(BM5:BM200) -> 1407800 | BO2: =SUM(BO5:BO200) -> 140780 | BP2: =SUM(BP5:BP200) -> 80 | BQ2: =SUM(BQ5:BQ200) -> 1548500
A3: 月度 | B3: 見積日 | C3: 受注日 | D3: 納品日 | E3: 請求日 | F3: 入金日 | G3: 伝票番号 | H3: 注文 | O3: １項目 | T3: ２項目 | Y3: ３項目 | AD3: ４項目 | AI3: ５項目 | AN3: ６項目 | AS3: ７項目 | AX3: ８項目 | BC3: ９項目 | BH3: １０項目 | BM3: 合計
H4: 得意先 コード | I4: 会社名 | J4: 担当者 | K4: 郵便番号 | L4: 住所1 | M4: 住所2 | O4: 商品 コード | P4: 商品名 | Q4: 数量 | R4: 単価 | S4: 金額 | T4: 商品 コード | U4: 商品名 | V4: 数量 | W4: 単価 | X4: 金額 | Y4: 商品 コード | Z4: 商品名 | AA4: 数量 | AB4: 単価 | AC4: 金額 | AD4: 商品 コード | AE4: 商品名 | AF4: 数量 | AG4: 単価 | AH4: 金額 | AI4: 商品 コード | AJ4: 商品名 | AK4: 数量 | AL4: 単価 | AM4: 金額 | AN4: 商品 コード | AO4: 商品名 | AP4: 数量 | AQ4: 単価 | AR4: 金額 | AS4: 商品 コード | AT4: 商品名 | AU4: 数量 | AV4: 単価 | AW4: 金額 | AX4: 商品 コード | AY4: 商品名 | AZ4: 数量 | BA4: 単価 | BB4: 金額 | BC4: 商品 コード | BD4: 商品名 | BE4: 数量 | BF4: 単価 | BG4: 金額 | BH4: 商品 コード | BI4: 商品名 | BJ4: 数量 | BK4: 単価 | BL4: 金額 | BM4: 合計金額 | BN4: 税率 | BO4: 消費税 | BP4: 値引き | BQ4: 合計
A5: =IF(ISBLANK(C5),"",MONTH(C5)) -> 12 | B5: 2021-12-20 | C5: 2021-12-22 | D5: 2021-12-24 | E5: 2021-12-26 | F5: 2021-12-28 | G5: 22001 | H5: 1101 | I5: =IFERROR(VLOOKUP(H5,得意先マスター!$B$7:$H$103,2,FALSE),"") -> 東京アトリエ | J5: =IFERROR(VLOOKUP(H5,得意先マスター!$B$7:$H$103,3,FALSE),"") -> 商品開発部 新庄 | K5: =IFERROR(VLOOKUP(H5,得意先マスター!$B$7:$H$103,4,FALSE),"") -> 131-0045 | L5: =IFERROR(VLOOKUP(H5,得意先マスター!$B$7:$H$103,5,FALSE),"") -> 東京都墨田区 | M5: =IFERROR(VLOOKUP(H5,得意先マスター!$B$7:$H$103,6,FALSE),"") -> 押上１丁目１−２ | O5: 11101 | P5: =IFERROR(VLOOKUP(O5,商品マスター!$B$7:$D$53,2,FALSE),"") -> ミニテーブル | Q5: 10 | R5: =IFERROR(VLOOKUP(O5,商品マスター!$B$7:$D$53,3,FALSE),"") -> 1200 | S5: =IFERROR(Q5*R5,0) -> 12000 | T5: 11201 | U5: =IFERROR(VLOOKUP(T5,商品マスター!$B$7:$D$53,2,FALSE),"") -> 隙間に便利なミニテーブル | V5: 20 | W5: =IFERROR(VLOOKUP(T5,商品マスター!$B$7:$D$53,3,FALSE),"") -> 3000 | X5: =IFERROR(V5*W5,0) -> 60000 | Y5: 12101 | Z5: =IFERROR(VLOOKUP(Y5,商品マスター!$B$7:$D$53,2,FALSE),"") -> 綺麗な歯ブラシ置き場 | AA5: 30 | AB5: =IFERROR(VLOOKUP(Y5,商品マスター!$B$7:$D$53,3,FALSE),"") -> 1200 | AC5: =IFERROR(AA5*AB5,0) -> 36000 | AD5: 12201 | AE5: =IFERROR(VLOOKUP(AD5,商品マスター!$B$7:$D$53,2,FALSE),"") -> スッキリさせるポケット収納 | AF5: 40 | AG5: =IFERROR(VLOOKUP(AD5,商品マスター!$B$7:$D$53,3,FALSE),"") -> 3000 | AH5: =IFERROR(AF5*AG5,0) -> 120000 | AI5: 13101 | AJ5: =IFERROR(VLOOKUP(AI5,商品マスター!$B$7:$D$53,2,FALSE),"") -> 紙物収納ウォールラック | AK5: 50 | AL5: =IFERROR(VLOOKUP(AI5,商品マスター!$B$7:$D$53,3,FALSE),"") -> 1500 | AM5: =IFERROR(AK5*AL5,0) -> 75000 | AN5: 13201 | AO5: =IFERROR(VLOOKUP(AN5,商品マスター!$B$7:$D$53,2,FALSE),"") -> コンパクトなマガジンラック | AP5: 60 | AQ5: =IFERROR(VLOOKUP(AN5,商品マスター!$B$7:$D$53,3,FALSE),"") -> 2500 | AR5: =IFERROR(AP5*AQ5,0) -> 150000 | AS5: 13201 | AT5: =IFERROR(VLOOKUP(AS5,商品マスター!$B$7:$D$53,2,FALSE),"") -> コンパクトなマガジンラック | AU5: 70 | AV5: =IFERROR(VLOOKUP(AS5,商品マスター!$B$7:$D$53,3,FALSE),"") -> 2500 | AW5: =IFERROR(AU5*AV5,0) -> 175000 | AX5: 13201 | AY5: =IFERROR(VLOOKUP(AX5,商品マスター!$B$7:$D$53,2,FALSE),"") -> コンパクトなマガジンラック | AZ5: 80 | BA5: =IFERROR(VLOOKUP(AX5,商品マスター!$B$7:$D$53,3,FALSE),"") -> 2500 | BB5: =IFERROR(AZ5*BA5,0) -> 200000 | BC5: 13201 | BD5: =IFERROR(VLOOKUP(BC5,商品マスター!$B$7:$D$53,2,FALSE),"") -> コンパクトなマガジンラック | BE5: 90 | BF5: =IFERROR(VLOOKUP(BC5,商品マスター!$B$7:$D$53,3,FALSE),"") -> 2500 | BG5: =IFERROR(BE5*BF5,0) -> 225000 | BH5: 13201 | BI5: =IFERROR(VLOOKUP(BH5,商品マスター!$B$7:$D$53,2,FALSE),"") -> コンパクトなマガジンラック | BJ5: 100 | BK5: =IFERROR(VLOOKUP(BH5,商品マスター!$B$7:$D$53,3,FALSE),"") -> 2500 | BL5: =IFERROR(BJ5*BK5,0) -> 250000 | BM5: =IFERROR(S5+X5+AC5+AH5+AM5+AR5+AW5+BB5+BG5+BL5, "") -> 1303000 | BN5: 0.1 | BO5: =IFERROR(BM5*BN5, "") -> 130300 | BQ5: =BM5+BO5-BP5 -> 1433300
A6: =IF(ISBLANK(C6),"",MONTH(C6)) -> 5 | B6: 2022-05-10 | C6: 2022-05-12 | G6: 22002 | H6: 1101 | I6: =IFERROR(VLOOKUP(H6,得意先マスター!$B$7:$H$103,2,FALSE),"") -> 東京アトリエ | J6: =IFERROR(VLOOKUP(H6,得意先マスター!$B$7:$H$103,3,FALSE),"") -> 商品開発部 新庄 | K6: =IFERROR(VLOOKUP(H6,得意先マスター!$B$7:$H$103,4,FALSE),"") -> 131-0045 | L6: =IFERROR(VLOOKUP(H6,得意先マスター!$B$7:$H$103,5,FALSE),"") -> 東京都墨田区 | M6: =IFERROR(VLOOKUP(H6,得意先マスター!$B$7:$H$103,6,FALSE),"") -> 押上１丁目１−２ | O6: 11101 | P6: =IFERROR(VLOOKUP(O6,商品マスター!$B$7:$D$53,2,FALSE),"") -> ミニテーブル | Q6: 1 | R6: =IFERROR(VLOOKUP(O6,商品マスター!$B$7:$D$53,3,FALSE),"") -> 1200 | S6: =IFERROR(Q6*R6,0) -> 1200 | T6: 11201 | U6: =IFERROR(VLOOKUP(T6,商品マスター!$B$7:$D$53,2,FALSE),"") -> 隙間に便利なミニテーブル | V6: 2 | W6: =IFERROR(VLOOKUP(T6,商品マスター!$B$7:$D$53,3,FALSE),"") -> 3000 | X6: =IFERROR(V6*W6,0) -> 6000 | Y6: 12101 | Z6: =IFERROR(VLOOKUP(Y6,商品マスター!$B$7:$D$53,2,FALSE),"") -> 綺麗な歯ブラシ置き場 | AA6: 3 | AB6: =IFERROR(VLOOKUP(Y6,商品マスター!$B$7:$D$53,3,FALSE),"") -> 1200 | AC6: =IFERROR(AA6*AB6,0) -> 3600 | AD6: 12201 | AE6: =IFERROR(VLOOKUP(AD6,商品マスター!$B$7:$D$53,2,FALSE),"") -> スッキリさせるポケット収納 | AF6: 4 | AG6: =IFERROR(VLOOKUP(AD6,商品マスター!$B$7:$D$53,3,FALSE),"") -> 3000 | AH6: =IFERROR(AF6*AG6,0) -> 12000 | AI6: 13101 | AJ6: =IFERROR(VLOOKUP(AI6,商品マスター!$B$7:$D$53,2,FALSE),"") -> 紙物収納ウォールラック | AK6: 5 | AL6: =IFERROR(VLOOKUP(AI6,商品マスター!$B$7:$D$53,3,FALSE),"") -> 1500 | AM6: =IFERROR(AK6*AL6,0) -> 7500 | AN6: 13201 | AO6: =IFERROR(VLOOKUP(AN6,商品マスター!$B$7:$D$53,2,FALSE),"") -> コンパクトなマガジンラック | AP6: 6 | AQ6: =IFERROR(VLOOKUP(AN6,商品マスター!$B$7:$D$53,3,FALSE),"") -> 2500 | AR6: =IFERROR(AP6*AQ6,0) -> 15000 | AT6: =IFERROR(VLOOKUP(AS6,商品マスター!$B$7:$D$53,2,FALSE),"") ->  | AV6: =IFERROR(VLOOKUP(AS6,商品マスター!$B$7:$D$53,3,FALSE),"") ->  | AW6: =IFERROR(AU6*AV6,0) -> 0 | AY6: =IFERROR(VLOOKUP(AX6,商品マスター!$B$7:$D$53,2,FALSE),"") ->  | BA6: =IFERROR(VLOOKUP(AX6,商品マスター!$B$7:$D$53,3,FALSE),"") ->  | BB6: =IFERROR(AZ6*BA6,0) -> 0 | BD6: =IFERROR(VLOOKUP(BC6,商品マスター!$B$7:$D$53,2,FALSE),"") ->  | BF6: =IFERROR(VLOOKUP(BC6,商品マスター!$B$7:$D$53,3,FALSE),"") ->  | BG6: =IFERROR(BE6*BF6,0) -> 0 | BI6: =IFERROR(VLOOKUP(BH6,商品マスター!$B$7:$D$53,2,FALSE),"") ->  | BK6: =IFERROR(VLOOKUP(BH6,商品マスター!$B$7:$D$53,3,FALSE),"") ->  | BL6: =IFERROR(BJ6*BK6,0) -> 0 | BM6: =IFERROR(S6+X6+AC6+AH6+AM6+AR6+AW6+BB6+BG6+BL6, "") -> 45300 | BN6: 0.1 | BO6: =IFERROR(BM6*BN6, "") -> 4530 | BP6: 30 | BQ6: =BM6+BO6-BP6 -> 49800
A7: =IF(ISBLANK(C7),"",MONTH(C7)) -> 6 | B7: 2022-06-01 | C7: 2022-06-03 | D7: 2022-06-05 | G7: 22003 | H7: 2101 | I7: =IFERROR(VLOOKUP(H7,得意先マスター!$B$7:$H$103,2,FALSE),"") -> 東京ヒルズ | J7: =IFERROR(VLOOKUP(H7,得意先マスター!$B$7:$H$103,3,FALSE),"") -> 営業部 山下 | K7: =IFERROR(VLOOKUP(H7,得意先マスター!$B$7:$H$103,4,FALSE),"") -> 123-4567 | L7: =IFERROR(VLOOKUP(H7,得意先マスター!$B$7:$H$103,5,FALSE),"") -> 東京都港区 | M7: =IFERROR(VLOOKUP(H7,得意先マスター!$B$7:$H$103,6,FALSE),"") -> 六本木10-20-30 | O7: 11201 | P7: =IFERROR(VLOOKUP(O7,商品マスター!$B$7:$D$53,2,FALSE),"") -> 隙間に便利なミニテーブル | Q7: 2 | R7: =IFERROR(VLOOKUP(O7,商品マスター!$B$7:$D$53,3,FALSE),"") -> 3000 | S7: =IFERROR(Q7*R7,0) -> 6000 | U7: =IFERROR(VLOOKUP(T7,商品マスター!$B$7:$D$53,2,FALSE),"") ->  | W7: =IFERROR(VLOOKUP(T7,商品マスター!$B$7:$D$53,3,FALSE),"") ->  | X7: =IFERROR(V7*W7,0) -> 0 | Z7: =IFERROR(VLOOKUP(Y7,商品マスター!$B$7:$D$53,2,FALSE),"") ->  | AB7: =IFERROR(VLOOKUP(Y7,商品マスター!$B$7:$D$53,3,FALSE),"") ->  | AC7: =IFERROR(AA7*AB7,0) -> 0 | AE7: =IFERROR(VLOOKUP(AD7,商品マスター!$B$7:$D$53,2,FALSE),"") ->  | AG7: =IFERROR(VLOOKUP(AD7,商品マスター!$B$7:$D$53,3,FALSE),"") ->  | AH7: =IFERROR(AF7*AG7,0) -> 0 | AJ7: =IFERROR(VLOOKUP(AI7,商品マスター!$B$7:$D$53,2,FALSE),"") ->  | AL7: =IFERROR(VLOOKUP(AI7,商品マスター!$B$7:$D$53,3,FALSE),"") ->  | AM7: =IFERROR(AK7*AL7,0) -> 0 | AO7: =IFERROR(VLOOKUP(AN7,商品マスター!$B$7:$D$53,2,FALSE),"") ->  | AQ7: =IFERROR(VLOOKUP(AN7,商品マスター!$B$7:$D$53,3,FALSE),"") ->  | AR7: =IFERROR(AP7*AQ7,0) -> 0 | AT7: =IFERROR(VLOOKUP(AS7,商品マスター!$B$7:$D$53,2,FALSE),"") ->  | AV7: =IFERROR(VLOOKUP(AS7,商品マスター!$B$7:$D$53,3,FALSE),"") ->  | AW7: =IFERROR(AU7*AV7,0) -> 0 | AY7: =IFERROR(VLOOKUP(AX7,商品マスター!$B$7:$D$53,2,FALSE),"") ->  | BA7: =IFERROR(VLOOKUP(AX7,商品マスター!$B$7:$D$53,3,FALSE),"") ->  | BB7: =IFERROR(AZ7*BA7,0) -> 0 | BD7: =IFERROR(VLOOKUP(BC7,商品マスター!$B$7:$D$53,2,FALSE),"") ->  | BF7: =IFERROR(VLOOKUP(BC7,商品マスター!$B$7:$D$53,3,FALSE),"") ->  | BG7: =IFERROR(BE7*BF7,0) -> 0 | BI7: =IFERROR(VLOOKUP(BH7,商品マスター!$B$7:$D$53,2,FALSE),"") ->  | BK7: =IFERROR(VLOOKUP(BH7,商品マスター!$B$7:$D$53,3,FALSE),"") ->  | BL7: =IFERROR(BJ7*BK7,0) -> 0 | BM7: =IFERROR(S7+X7+AC7+AH7+AM7+AR7+AW7+BB7+BG7+BL7, "") -> 6000 | BN7: 0.1 | BO7: =IFERROR(BM7*BN7, "") -> 600 | BQ7: =BM7+BO7-BP7 -> 6600
A8: 6 | B8: 2022-06-10 | C8: 2022-06-11 | D8: 2022-06-15 | E8: 2022-06-15 | F8: 2022-06-30 | G8: 22004 | H8: 2101 | I8: =IFERROR(VLOOKUP(H8,得意先マスター!$B$7:$H$103,2,FALSE),"") -> 東京ヒルズ | J8: =IFERROR(VLOOKUP(H8,得意先マスター!$B$7:$H$103,3,FALSE),"") -> 営業部 山下 | K8: =IFERROR(VLOOKUP(H8,得意先マスター!$B$7:$H$103,4,FALSE),"") -> 123-4567 | L8: =IFERROR(VLOOKUP(H8,得意先マスター!$B$7:$H$103,5,FALSE),"") -> 東京都港区 | M8: =IFERROR(VLOOKUP(H8,得意先マスター!$B$7:$H$103,6,FALSE),"") -> 六本木10-20-30 | O8: 12102 | P8: =IFERROR(VLOOKUP(O8,商品マスター!$B$7:$D$53,2,FALSE),"") -> バタフライチェア ネイビー | Q8: 5 | R8: =IFERROR(VLOOKUP(O8,商品マスター!$B$7:$D$53,3,FALSE),"") -> 4900 | S8: 24500 | T8: 13102 | U8: =IFERROR(VLOOKUP(T8,商品マスター!$B$7:$D$53,2,FALSE),"") -> 木製折りたたみラック | V8: 10 | W8: =IFERROR(VLOOKUP(T8,商品マスター!$B$7:$D$53,3,FALSE),"") -> 2900 | X8: 29000 | Z8: =IFERROR(VLOOKUP(Y8,商品マスター!$B$7:$D$53,2,FALSE),"") ->  | AB8: =IFERROR(VLOOKUP(Y8,商品マスター!$B$7:$D$53,3,FALSE),"") ->  | AC8: 0 | AE8: =IFERROR(VLOOKUP(AD8,商品マスター!$B$7:$D$53,2,FALSE),"") ->  | AG8: =IFERROR(VLOOKUP(AD8,商品マスター!$B$7:$D$53,3,FALSE),"") ->  | AH8: 0 | AJ8: =IFERROR(VLOOKUP(AI8,商品マスター!$B$7:$D$53,2,FALSE),"") ->  | AL8: =IFERROR(VLOOKUP(AI8,商品マスター!$B$7:$D$53,3,FALSE),"") ->  | AM8: 0 | AO8: =IFERROR(VLOOKUP(AN8,商品マスター!$B$7:$D$53,2,FALSE),"") ->  | AQ8: =IFERROR(VLOOKUP(AN8,商品マスター!$B$7:$D$53,3,FALSE),"") ->  | AR8: 0 | AT8: =IFERROR(VLOOKUP(AS8,商品マスター!$B$7:$D$53,2,FALSE),"") ->  | AV8: =IFERROR(VLOOKUP(AS8,商品マスター!$B$7:$D$53,3,FALSE),"") ->  | AW8: 0 | AY8: =IFERROR(VLOOKUP(AX8,商品マスター!$B$7:$D$53,2,FALSE),"") ->  | BA8: =IFERROR(VLOOKUP(AX8,商品マスター!$B$7:$D$53,3,FALSE),"") ->  | BB8: 0 | BD8: =IFERROR(VLOOKUP(BC8,商品マスター!$B$7:$D$53,2,FALSE),"") ->  | BF8: =IFERROR(VLOOKUP(BC8,商品マスター!$B$7:$D$53,3,FALSE),"") ->  | BG8: 0 | BI8: =IFERROR(VLOOKUP(BH8,商品マスター!$B$7:$D$53,2,FALSE),"") ->  | BK8: =IFERROR(VLOOKUP(BH8,商品マスター!$B$7:$D$53,3,FALSE),"") ->  | BL8: 0 | BM8: 53500 | BN8: 0.1 | BO8: 5350 | BP8: 50 | BQ8: 58800
I9: =IFERROR(VLOOKUP(H9,得意先マスター!$B$7:$H$103,2,FALSE),"") ->  | J9: =IFERROR(VLOOKUP(H9,得意先マスター!$B$7:$H$103,3,FALSE),"") ->  | K9: =IFERROR(VLOOKUP(H9,得意先マスター!$B$7:$H$103,4,FALSE),"") ->  | L9: =IFERROR(VLOOKUP(H9,得意先マスター!$B$7:$H$103,5,FALSE),"") ->  | M9: =IFERROR(VLOOKUP(H9,得意先マスター!$B$7:$H$103,6,FALSE),"") ->  | P9: =IFERROR(VLOOKUP(O9,商品マスター!$B$7:$D$53,2,FALSE),"") ->  | R9: =IFERROR(VLOOKUP(O9,商品マスター!$B$7:$D$53,3,FALSE),"") ->  | S9: 0 | U9: =IFERROR(VLOOKUP(T9,商品マスター!$B$7:$D$53,2,FALSE),"") ->  | W9: =IFERROR(VLOOKUP(T9,商品マスター!$B$7:$D$53,3,FALSE),"") ->  | X9: 0 | Z9: =IFERROR(VLOOKUP(Y9,商品マスター!$B$7:$D$53,2,FALSE),"") ->  | AB9: =IFERROR(VLOOKUP(Y9,商品マスター!$B$7:$D$53,3,FALSE),"") ->  | AC9: 0 | AE9: =IFERROR(VLOOKUP(AD9,商品マスター!$B$7:$D$53,2,FALSE),"") ->  | AG9: =IFERROR(VLOOKUP(AD9,商品マスター!$B$7:$D$53,3,FALSE),"") ->  | AH9: 0 | AJ9: =IFERROR(VLOOKUP(AI9,商品マスター!$B$7:$D$53,2,FALSE),"") ->  | AL9: =IFERROR(VLOOKUP(AI9,商品マスター!$B$7:$D$53,3,FALSE),"") ->  | AM9: 0 | AO9: =IFERROR(VLOOKUP(AN9,商品マスター!$B$7:$D$53,2,FALSE),"") ->  | AQ9: =IFERROR(VLOOKUP(AN9,商品マスター!$B$7:$D$53,3,FALSE),"") ->  | AR9: 0 | AT9: =IFERROR(VLOOKUP(AS9,商品マスター!$B$7:$D$53,2,FALSE),"") ->  | AV9: =IFERROR(VLOOKUP(AS9,商品マスター!$B$7:$D$53,3,FALSE),"") ->  | AW9: 0 | AY9: =IFERROR(VLOOKUP(AX9,商品マスター!$B$7:$D$53,2,FALSE),"") ->  | BA9: =IFERROR(VLOOKUP(AX9,商品マスター!$B$7:$D$53,3,FALSE),"") ->  | BB9: 0 | BD9: =IFERROR(VLOOKUP(BC9,商品マスター!$B$7:$D$53,2,FALSE),"") ->  | BF9: =IFERROR(VLOOKUP(BC9,商品マスター!$B$7:$D$53,3,FALSE),"") ->  | BG9: 0 | BI9: =IFERROR(VLOOKUP(BH9,商品マスター!$B$7:$D$53,2,FALSE),"") ->  | BK9: =IFERROR(VLOOKUP(BH9,商品マスター!$B$7:$D$53,3,FALSE),"") ->  | BL9: 0 | BM9: 0 | BN9: 0.1 | BO9: 0 | BQ9: 0
I10: =IFERROR(VLOOKUP(H10,得意先マスター!$B$7:$H$103,2,FALSE),"") ->  | J10: =IFERROR(VLOOKUP(H10,得意先マスター!$B$7:$H$103,3,FALSE),"") ->  | K10: =IFERROR(VLOOKUP(H10,得意先マスター!$B$7:$H$103,4,FALSE),"") ->  | L10: =IFERROR(VLOOKUP(H10,得意先マスター!$B$7:$H$103,5,FALSE),"") ->  | M10: =IFERROR(VLOOKUP(H10,得意先マスター!$B$7:$H$103,6,FALSE),"") ->  | P10: =IFERROR(VLOOKUP(O10,商品マスター!$B$7:$D$53,2,FALSE),"") ->  | R10: =IFERROR(VLOOKUP(O10,商品マスター!$B$7:$D$53,3,FALSE),"") ->  | S10: 0 | U10: =IFERROR(VLOOKUP(T10,商品マスター!$B$7:$D$53,2,FALSE),"") ->  | W10: =IFERROR(VLOOKUP(T10,商品マスター!$B$7:$D$53,3,FALSE),"") ->  | X10: 0 | Z10: =IFERROR(VLOOKUP(Y10,商品マスター!$B$7:$D$53,2,FALSE),"") ->  | AB10: =IFERROR(VLOOKUP(Y10,商品マスター!$B$7:$D$53,3,FALSE),"") ->  | AC10: 0 | AE10: =IFERROR(VLOOKUP(AD10,商品マスター!$B$7:$D$53,2,FALSE),"") ->  | AG10: =IFERROR(VLOOKUP(AD10,商品マスター!$B$7:$D$53,3,FALSE),"") ->  | AH10: 0 | AJ10: =IFERROR(VLOOKUP(AI10,商品マスター!$B$7:$D$53,2,FALSE),"") ->  | AL10: =IFERROR(VLOOKUP(AI10,商品マスター!$B$7:$D$53,3,FALSE),"") ->  | AM10: 0 | AO10: =IFERROR(VLOOKUP(AN10,商品マスター!$B$7:$D$53,2,FALSE),"") ->  | AQ10: =IFERROR(VLOOKUP(AN10,商品マスター!$B$7:$D$53,3,FALSE),"") ->  | AR10: 0 | AT10: =IFERROR(VLOOKUP(AS10,商品マスター!$B$7:$D$53,2,FALSE),"") ->  | AV10: =IFERROR(VLOOKUP(AS10,商品マスター!$B$7:$D$53,3,FALSE),"") ->  | AW10: 0 | AY10: =IFERROR(VLOOKUP(AX10,商品マスター!$B$7:$D$53,2,FALSE),"") ->  | BA10: =IFERROR(VLOOKUP(AX10,商品マスター!$B$7:$D$53,3,FALSE),"") ->  | BB10: 0 | BD10: =IFERROR(VLOOKUP(BC10,商品マスター!$B$7:$D$53,2,FALSE),"") ->  | BF10: =IFERROR(VLOOKUP(BC10,商品マスター!$B$7:$D$53,3,FALSE),"") ->  | BG10: 0 | BI10: =IFERROR(VLOOKUP(BH10,商品マスター!$B$7:$D$53,2,FALSE),"") ->  | BK10: =IFERROR(VLOOKUP(BH10,商品マスター!$B$7:$D$53,3,FALSE),"") ->  | BL10: 0 | BM10: 0 | BN10: 0.1 | BO10: 0 | BQ10: 0
I11: =IFERROR(VLOOKUP(H11,得意先マスター!$B$7:$H$103,2,FALSE),"") ->  | J11: =IFERROR(VLOOKUP(H11,得意先マスター!$B$7:$H$103,3,FALSE),"") ->  | K11: =IFERROR(VLOOKUP(H11,得意先マスター!$B$7:$H$103,4,FALSE),"") ->  | L11: =IFERROR(VLOOKUP(H11,得意先マスター!$B$7:$H$103,5,FALSE),"") ->  | M11: =IFERROR(VLOOKUP(H11,得意先マスター!$B$7:$H$103,6,FALSE),"") ->  | P11: =IFERROR(VLOOKUP(O11,商品マスター!$B$7:$D$53,2,FALSE),"") ->  | R11: =IFERROR(VLOOKUP(O11,商品マスター!$B$7:$D$53,3,FALSE),"") ->  | S11: 0 | U11: =IFERROR(VLOOKUP(T11,商品マスター!$B$7:$D$53,2,FALSE),"") ->  | W11: =IFERROR(VLOOKUP(T11,商品マスター!$B$7:$D$53,3,FALSE),"") ->  | X11: 0 | Z11: =IFERROR(VLOOKUP(Y11,商品マスター!$B$7:$D$53,2,FALSE),"") ->  | AB11: =IFERROR(VLOOKUP(Y11,商品マスター!$B$7:$D$53,3,FALSE),"") ->  | AC11: 0 | AE11: =IFERROR(VLOOKUP(AD11,商品マスター!$B$7:$D$53,2,FALSE),"") ->  | AG11: =IFERROR(VLOOKUP(AD11,商品マスター!$B$7:$D$53,3,FALSE),"") ->  | AH11: 0 | AJ11: =IFERROR(VLOOKUP(AI11,商品マスター!$B$7:$D$53,2,FALSE),"") ->  | AL11: =IFERROR(VLOOKUP(AI11,商品マスター!$B$7:$D$53,3,FALSE),"") ->  | AM11: 0 | AO11: =IFERROR(VLOOKUP(AN11,商品マスター!$B$7:$D$53,2,FALSE),"") ->  | AQ11: =IFERROR(VLOOKUP(AN11,商品マスター!$B$7:$D$53,3,FALSE),"") ->  | AR11: 0 | AT11: =IFERROR(VLOOKUP(AS11,商品マスター!$B$7:$D$53,2,FALSE),"") ->  | AV11: =IFERROR(VLOOKUP(AS11,商品マスター!$B$7:$D$53,3,FALSE),"") ->  | AW11: 0 | AY11: =IFERROR(VLOOKUP(AX11,商品マスター!$B$7:$D$53,2,FALSE),"") ->  | BA11: =IFERROR(VLOOKUP(AX11,商品マスター!$B$7:$D$53,3,FALSE),"") ->  | BB11: 0 | BD11: =IFERROR(VLOOKUP(BC11,商品マスター!$B$7:$D$53,2,FALSE),"") ->  | BF11: =IFERROR(VLOOKUP(BC11,商品マスター!$B$7:$D$53,3,FALSE),"") ->  | BG11: 0 | BI11: =IFERROR(VLOOKUP(BH11,商品マスター!$B$7:$D$53,2,FALSE),"") ->  | BK11: =IFERROR(VLOOKUP(BH11,商品マスター!$B$7:$D$53,3,FALSE),"") ->  | BL11: 0 | BM11: 0 | BN11: 0.1 | BO11: 0 | BQ11: 0
I12: =IFERROR(VLOOKUP(H12,得意先マスター!$B$7:$H$103,2,FALSE),"") ->  | J12: =IFERROR(VLOOKUP(H12,得意先マスター!$B$7:$H$103,3,FALSE),"") ->  | K12: =IFERROR(VLOOKUP(H12,得意先マスター!$B$7:$H$103,4,FALSE),"") ->  | L12: =IFERROR(VLOOKUP(H12,得意先マスター!$B$7:$H$103,5,FALSE),"") ->  | M12: =IFERROR(VLOOKUP(H12,得意先マスター!$B$7:$H$103,6,FALSE),"") ->  | P12: =IFERROR(VLOOKUP(O12,商品マスター!$B$7:$D$53,2,FALSE),"") ->  | R12: =IFERROR(VLOOKUP(O12,商品マスター!$B$7:$D$53,3,FALSE),"") ->  | S12: 0 | U12: =IFERROR(VLOOKUP(T12,商品マスター!$B$7:$D$53,2,FALSE),"") ->  | W12: =IFERROR(VLOOKUP(T12,商品マスター!$B$7:$D$53,3,FALSE),"") ->  | X12: 0 | Z12: =IFERROR(VLOOKUP(Y12,商品マスター!$B$7:$D$53,2,FALSE),"") ->  | AB12: =IFERROR(VLOOKUP(Y12,商品マスター!$B$7:$D$53,3,FALSE),"") ->  | AC12: 0 | AE12: =IFERROR(VLOOKUP(AD12,商品マスター!$B$7:$D$53,2,FALSE),"") ->  | AG12: =IFERROR(VLOOKUP(AD12,商品マスター!$B$7:$D$53,3,FALSE),"") ->  | AH12: 0 | AJ12: =IFERROR(VLOOKUP(AI12,商品マスター!$B$7:$D$53,2,FALSE),"") ->  | AL12: =IFERROR(VLOOKUP(AI12,商品マスター!$B$7:$D$53,3,FALSE),"") ->  | AM12: 0 | AO12: =IFERROR(VLOOKUP(AN12,商品マスター!$B$7:$D$53,2,FALSE),"") ->  | AQ12: =IFERROR(VLOOKUP(AN12,商品マスター!$B$7:$D$53,3,FALSE),"") ->  | AR12: 0 | AT12: =IFERROR(VLOOKUP(AS12,商品マスター!$B$7:$D$53,2,FALSE),"") ->  | AV12: =IFERROR(VLOOKUP(AS12,商品マスター!$B$7:$D$53,3,FALSE),"") ->  | AW12: 0 | AY12: =IFERROR(VLOOKUP(AX12,商品マスター!$B$7:$D$53,2,FALSE),"") ->  | BA12: =IFERROR(VLOOKUP(AX12,商品マスター!$B$7:$D$53,3,FALSE),"") ->  | BB12: 0 | BD12: =IFERROR(VLOOKUP(BC12,商品マスター!$B$7:$D$53,2,FALSE),"") ->  | BF12: =IFERROR(VLOOKUP(BC12,商品マスター!$B$7:$D$53,3,FALSE),"") ->  | BG12: 0 | BI12: =IFERROR(VLOOKUP(BH12,商品マスター!$B$7:$D$53,2,FALSE),"") ->  | BK12: =IFERROR(VLOOKUP(BH12,商品マスター!$B$7:$D$53,3,FALSE),"") ->  | BL12: 0 | BM12: 0 | BN12: 0.1 | BO12: 0 | BQ12: 0
I13: =IFERROR(VLOOKUP(H13,得意先マスター!$B$7:$H$103,2,FALSE),"") ->  | J13: =IFERROR(VLOOKUP(H13,得意先マスター!$B$7:$H$103,3,FALSE),"") ->  | K13: =IFERROR(VLOOKUP(H13,得意先マスター!$B$7:$H$103,4,FALSE),"") ->  | L13: =IFERROR(VLOOKUP(H13,得意先マスター!$B$7:$H$103,5,FALSE),"") ->  | M13: =IFERROR(VLOOKUP(H13,得意先マスター!$B$7:$H$103,6,FALSE),"") ->  | P13: =IFERROR(VLOOKUP(O13,商品マスター!$B$7:$D$53,2,FALSE),"") ->  | R13: =IFERROR(VLOOKUP(O13,商品マスター!$B$7:$D$53,3,FALSE),"") ->  | S13: 0 | U13: =IFERROR(VLOOKUP(T13,商品マスター!$B$7:$D$53,2,FALSE),"") ->  | W13: =IFERROR(VLOOKUP(T13,商品マスター!$B$7:$D$53,3,FALSE),"") ->  | X13: 0 | Z13: =IFERROR(VLOOKUP(Y13,商品マスター!$B$7:$D$53,2,FALSE),"") ->  | AB13: =IFERROR(VLOOKUP(Y13,商品マスター!$B$7:$D$53,3,FALSE),"") ->  | AC13: 0 | AE13: =IFERROR(VLOOKUP(AD13,商品マスター!$B$7:$D$53,2,FALSE),"") ->  | AG13: =IFERROR(VLOOKUP(AD13,商品マスター!$B$7:$D$53,3,FALSE),"") ->  | AH13: 0 | AJ13: =IFERROR(VLOOKUP(AI13,商品マスター!$B$7:$D$53,2,FALSE),"") ->  | AL13: =IFERROR(VLOOKUP(AI13,商品マスター!$B$7:$D$53,3,FALSE),"") ->  | AM13: 0 | AO13: =IFERROR(VLOOKUP(AN13,商品マスター!$B$7:$D$53,2,FALSE),"") ->  | AQ13: =IFERROR(VLOOKUP(AN13,商品マスター!$B$7:$D$53,3,FALSE),"") ->  | AR13: 0 | AT13: =IFERROR(VLOOKUP(AS13,商品マスター!$B$7:$D$53,2,FALSE),"") ->  | AV13: =IFERROR(VLOOKUP(AS13,商品マスター!$B$7:$D$53,3,FALSE),"") ->  | AW13: 0 | AY13: =IFERROR(VLOOKUP(AX13,商品マスター!$B$7:$D$53,2,FALSE),"") ->  | BA13: =IFERROR(VLOOKUP(AX13,商品マスター!$B$7:$D$53,3,FALSE),"") ->  | BB13: 0 | BD13: =IFERROR(VLOOKUP(BC13,商品マスター!$B$7:$D$53,2,FALSE),"") ->  | BF13: =IFERROR(VLOOKUP(BC13,商品マスター!$B$7:$D$53,3,FALSE),"") ->  | BG13: 0 | BI13: =IFERROR(VLOOKUP(BH13,商品マスター!$B$7:$D$53,2,FALSE),"") ->  | BK13: =IFERROR(VLOOKUP(BH13,商品マスター!$B$7:$D$53,3,FALSE),"") ->  | BL13: 0 | BM13: 0 | BN13: 0.1 | BO13: 0 | BQ13: 0
I14: =IFERROR(VLOOKUP(H14,得意先マスター!$B$7:$H$103,2,FALSE),"") ->  | J14: =IFERROR(VLOOKUP(H14,得意先マスター!$B$7:$H$103,3,FALSE),"") ->  | K14: =IFERROR(VLOOKUP(H14,得意先マスター!$B$7:$H$103,4,FALSE),"") ->  | L14: =IFERROR(VLOOKUP(H14,得意先マスター!$B$7:$H$103,5,FALSE),"") ->  | M14: =IFERROR(VLOOKUP(H14,得意先マスター!$B$7:$H$103,6,FALSE),"") ->  | P14: =IFERROR(VLOOKUP(O14,商品マスター!$B$7:$D$53,2,FALSE),"") ->  | R14: =IFERROR(VLOOKUP(O14,商品マスター!$B$7:$D$53,3,FALSE),"") ->  | S14: 0 | U14: =IFERROR(VLOOKUP(T14,商品マスター!$B$7:$D$53,2,FALSE),"") ->  | W14: =IFERROR(VLOOKUP(T14,商品マスター!$B$7:$D$53,3,FALSE),"") ->  | X14: 0 | Z14: =IFERROR(VLOOKUP(Y14,商品マスター!$B$7:$D$53,2,FALSE),"") ->  | AB14: =IFERROR(VLOOKUP(Y14,商品マスター!$B$7:$D$53,3,FALSE),"") ->  | AC14: 0 | AE14: =IFERROR(VLOOKUP(AD14,商品マスター!$B$7:$D$53,2,FALSE),"") ->  | AG14: =IFERROR(VLOOKUP(AD14,商品マスター!$B$7:$D$53,3,FALSE),"") ->  | AH14: 0 | AJ14: =IFERROR(VLOOKUP(AI14,商品マスター!$B$7:$D$53,2,FALSE),"") ->  | AL14: =IFERROR(VLOOKUP(AI14,商品マスター!$B$7:$D$53,3,FALSE),"") ->  | AM14: 0 | AO14: =IFERROR(VLOOKUP(AN14,商品マスター!$B$7:$D$53,2,FALSE),"") ->  | AQ14: =IFERROR(VLOOKUP(AN14,商品マスター!$B$7:$D$53,3,FALSE),"") ->  | AR14: 0 | AT14: =IFERROR(VLOOKUP(AS14,商品マスター!$B$7:$D$53,2,FALSE),"") ->  | AV14: =IFERROR(VLOOKUP(AS14,商品マスター!$B$7:$D$53,3,FALSE),"") ->  | AW14: 0 | AY14: =IFERROR(VLOOKUP(AX14,商品マスター!$B$7:$D$53,2,FALSE),"") ->  | BA14: =IFERROR(VLOOKUP(AX14,商品マスター!$B$7:$D$53,3,FALSE),"") ->  | BB14: 0 | BD14: =IFERROR(VLOOKUP(BC14,商品マスター!$B$7:$D$53,2,FALSE),"") ->  | BF14: =IFERROR(VLOOKUP(BC14,商品マスター!$B$7:$D$53,3,FALSE),"") ->  | BG14: 0 | BI14: =IFERROR(VLOOKUP(BH14,商品マスター!$B$7:$D$53,2,FALSE),"") ->  | BK14: =IFERROR(VLOOKUP(BH14,商品マスター!$B$7:$D$53,3,FALSE),"") ->  | BL14: 0 | BM14: 0 | BN14: 0.1 | BO14: 0 | BQ14: 0
I15: =IFERROR(VLOOKUP(H15,得意先マスター!$B$7:$H$103,2,FALSE),"") ->  | J15: =IFERROR(VLOOKUP(H15,得意先マスター!$B$7:$H$103,3,FALSE),"") ->  | K15: =IFERROR(VLOOKUP(H15,得意先マスター!$B$7:$H$103,4,FALSE),"") ->  | L15: =IFERROR(VLOOKUP(H15,得意先マスター!$B$7:$H$103,5,FALSE),"") ->  | M15: =IFERROR(VLOOKUP(H15,得意先マスター!$B$7:$H$103,6,FALSE),"") ->  | P15: =IFERROR(VLOOKUP(O15,商品マスター!$B$7:$D$53,2,FALSE),"") ->  | R15: =IFERROR(VLOOKUP(O15,商品マスター!$B$7:$D$53,3,FALSE),"") ->  | S15: 0 | U15: =IFERROR(VLOOKUP(T15,商品マスター!$B$7:$D$53,2,FALSE),"") ->  | W15: =IFERROR(VLOOKUP(T15,商品マスター!$B$7:$D$53,3,FALSE),"") ->  | X15: 0 | Z15: =IFERROR(VLOOKUP(Y15,商品マスター!$B$7:$D$53,2,FALSE),"") ->  | AB15: =IFERROR(VLOOKUP(Y15,商品マスター!$B$7:$D$53,3,FALSE),"") ->  | AC15: 0 | AE15: =IFERROR(VLOOKUP(AD15,商品マスター!$B$7:$D$53,2,FALSE),"") ->  | AG15: =IFERROR(VLOOKUP(AD15,商品マスター!$B$7:$D$53,3,FALSE),"") ->  | AH15: 0 | AJ15: =IFERROR(VLOOKUP(AI15,商品マスター!$B$7:$D$53,2,FALSE),"") ->  | AL15: =IFERROR(VLOOKUP(AI15,商品マスター!$B$7:$D$53,3,FALSE),"") ->  | AM15: 0 | AO15: =IFERROR(VLOOKUP(AN15,商品マスター!$B$7:$D$53,2,FALSE),"") ->  | AQ15: =IFERROR(VLOOKUP(AN15,商品マスター!$B$7:$D$53,3,FALSE),"") ->  | AR15: 0 | AT15: =IFERROR(VLOOKUP(AS15,商品マスター!$B$7:$D$53,2,FALSE),"") ->  | AV15: =IFERROR(VLOOKUP(AS15,商品マスター!$B$7:$D$53,3,FALSE),"") ->  | AW15: 0 | AY15: =IFERROR(VLOOKUP(AX15,商品マスター!$B$7:$D$53,2,FALSE),"") ->  | BA15: =IFERROR(VLOOKUP(AX15,商品マスター!$B$7:$D$53,3,FALSE),"") ->  | BB15: 0 | BD15: =IFERROR(VLOOKUP(BC15,商品マスター!$B$7:$D$53,2,FALSE),"") ->  | BF15: =IFERROR(VLOOKUP(BC15,商品マスター!$B$7:$D$53,3,FALSE),"") ->  | BG15: 0 | BI15: =IFERROR(VLOOKUP(BH15,商品マスター!$B$7:$D$53,2,FALSE),"") ->  | BK15: =IFERROR(VLOOKUP(BH15,商品マスター!$B$7:$D$53,3,FALSE),"") ->  | BL15: 0 | BM15: 0 | BN15: 0.1 | BO15: 0 | BQ15: 0
I16: =IFERROR(VLOOKUP(H16,得意先マスター!$B$7:$H$103,2,FALSE),"") ->  | J16: =IFERROR(VLOOKUP(H16,得意先マスター!$B$7:$H$103,3,FALSE),"") ->  | K16: =IFERROR(VLOOKUP(H16,得意先マスター!$B$7:$H$103,4,FALSE),"") ->  | L16: =IFERROR(VLOOKUP(H16,得意先マスター!$B$7:$H$103,5,FALSE),"") ->  | M16: =IFERROR(VLOOKUP(H16,得意先マスター!$B$7:$H$103,6,FALSE),"") ->  | P16: =IFERROR(VLOOKUP(O16,商品マスター!$B$7:$D$53,2,FALSE),"") ->  | R16: =IFERROR(VLOOKUP(O16,商品マスター!$B$7:$D$53,3,FALSE),"") ->  | S16: 0 | U16: =IFERROR(VLOOKUP(T16,商品マスター!$B$7:$D$53,2,FALSE),"") ->  | W16: =IFERROR(VLOOKUP(T16,商品マスター!$B$7:$D$53,3,FALSE),"") ->  | X16: 0 | Z16: =IFERROR(VLOOKUP(Y16,商品マスター!$B$7:$D$53,2,FALSE),"") ->  | AB16: =IFERROR(VLOOKUP(Y16,商品マスター!$B$7:$D$53,3,FALSE),"") ->  | AC16: 0 | AE16: =IFERROR(VLOOKUP(AD16,商品マスター!$B$7:$D$53,2,FALSE),"") ->  | AG16: =IFERROR(VLOOKUP(AD16,商品マスター!$B$7:$D$53,3,FALSE),"") ->  | AH16: 0 | AJ16: =IFERROR(VLOOKUP(AI16,商品マスター!$B$7:$D$53,2,FALSE),"") ->  | AL16: =IFERROR(VLOOKUP(AI16,商品マスター!$B$7:$D$53,3,FALSE),"") ->  | AM16: 0 | AO16: =IFERROR(VLOOKUP(AN16,商品マスター!$B$7:$D$53,2,FALSE),"") ->  | AQ16: =IFERROR(VLOOKUP(AN16,商品マスター!$B$7:$D$53,3,FALSE),"") ->  | AR16: 0 | AT16: =IFERROR(VLOOKUP(AS16,商品マスター!$B$7:$D$53,2,FALSE),"") ->  | AV16: =IFERROR(VLOOKUP(AS16,商品マスター!$B$7:$D$53,3,FALSE),"") ->  | AW16: 0 | AY16: =IFERROR(VLOOKUP(AX16,商品マスター!$B$7:$D$53,2,FALSE),"") ->  | BA16: =IFERROR(VLOOKUP(AX16,商品マスター!$B$7:$D$53,3,FALSE),"") ->  | BB16: 0 | BD16: =IFERROR(VLOOKUP(BC16,商品マスター!$B$7:$D$53,2,FALSE),"") ->  | BF16: =IFERROR(VLOOKUP(BC16,商品マスター!$B$7:$D$53,3,FALSE),"") ->  | BG16: 0 | BI16: =IFERROR(VLOOKUP(BH16,商品マスター!$B$7:$D$53,2,FALSE),"") ->  | BK16: =IFERROR(VLOOKUP(BH16,商品マスター!$B$7:$D$53,3,FALSE),"") ->  | BL16: 0 | BM16: 0 | BN16: 0.1 | BO16: 0 | BQ16: 0
I17: =IFERROR(VLOOKUP(H17,得意先マスター!$B$7:$H$103,2,FALSE),"") ->  | J17: =IFERROR(VLOOKUP(H17,得意先マスター!$B$7:$H$103,3,FALSE),"") ->  | K17: =IFERROR(VLOOKUP(H17,得意先マスター!$B$7:$H$103,4,FALSE),"") ->  | L17: =IFERROR(VLOOKUP(H17,得意先マスター!$B$7:$H$103,5,FALSE),"") ->  | M17: =IFERROR(VLOOKUP(H17,得意先マスター!$B$7:$H$103,6,FALSE),"") ->  | P17: =IFERROR(VLOOKUP(O17,商品マスター!$B$7:$D$53,2,FALSE),"") ->  | R17: =IFERROR(VLOOKUP(O17,商品マスター!$B$7:$D$53,3,FALSE),"") ->  | S17: 0 | U17: =IFERROR(VLOOKUP(T17,商品マスター!$B$7:$D$53,2,FALSE),"") ->  | W17: =IFERROR(VLOOKUP(T17,商品マスター!$B$7:$D$53,3,FALSE),"") ->  | X17: 0 | Z17: =IFERROR(VLOOKUP(Y17,商品マスター!$B$7:$D$53,2,FALSE),"") ->  | AB17: =IFERROR(VLOOKUP(Y17,商品マスター!$B$7:$D$53,3,FALSE),"") ->  | AC17: 0 | AE17: =IFERROR(VLOOKUP(AD17,商品マスター!$B$7:$D$53,2,FALSE),"") ->  | AG17: =IFERROR(VLOOKUP(AD17,商品マスター!$B$7:$D$53,3,FALSE),"") ->  | AH17: 0 | AJ17: =IFERROR(VLOOKUP(AI17,商品マスター!$B$7:$D$53,2,FALSE),"") ->  | AL17: =IFERROR(VLOOKUP(AI17,商品マスター!$B$7:$D$53,3,FALSE),"") ->  | AM17: 0 | AO17: =IFERROR(VLOOKUP(AN17,商品マスター!$B$7:$D$53,2,FALSE),"") ->  | AQ17: =IFERROR(VLOOKUP(AN17,商品マスター!$B$7:$D$53,3,FALSE),"") ->  | AR17: 0 | AT17: =IFERROR(VLOOKUP(AS17,商品マスター!$B$7:$D$53,2,FALSE),"") ->  | AV17: =IFERROR(VLOOKUP(AS17,商品マスター!$B$7:$D$53,3,FALSE),"") ->  | AW17: 0 | AY17: =IFERROR(VLOOKUP(AX17,商品マスター!$B$7:$D$53,2,FALSE),"") ->  | BA17: =IFERROR(VLOOKUP(AX17,商品マスター!$B$7:$D$53,3,FALSE),"") ->  | BB17: 0 | BD17: =IFERROR(VLOOKUP(BC17,商品マスター!$B$7:$D$53,2,FALSE),"") ->  | BF17: =IFERROR(VLOOKUP(BC17,商品マスター!$B$7:$D$53,3,FALSE),"") ->  | BG17: 0 | BI17: =IFERROR(VLOOKUP(BH17,商品マスター!$B$7:$D$53,2,FALSE),"") ->  | BK17: =IFERROR(VLOOKUP(BH17,商品マスター!$B$7:$D$53,3,FALSE),"") ->  | BL17: 0 | BM17: 0 | BN17: 0.1 | BO17: 0 | BQ17: 0
I18: =IFERROR(VLOOKUP(H18,得意先マスター!$B$7:$H$103,2,FALSE),"") ->  | J18: =IFERROR(VLOOKUP(H18,得意先マスター!$B$7:$H$103,3,FALSE),"") ->  | K18: =IFERROR(VLOOKUP(H18,得意先マスター!$B$7:$H$103,4,FALSE),"") ->  | L18: =IFERROR(VLOOKUP(H18,得意先マスター!$B$7:$H$103,5,FALSE),"") ->  | M18: =IFERROR(VLOOKUP(H18,得意先マスター!$B$7:$H$103,6,FALSE),"") ->  | P18: =IFERROR(VLOOKUP(O18,商品マスター!$B$7:$D$53,2,FALSE),"") ->  | R18: =IFERROR(VLOOKUP(O18,商品マスター!$B$7:$D$53,3,FALSE),"") ->  | S18: 0 | U18: =IFERROR(VLOOKUP(T18,商品マスター!$B$7:$D$53,2,FALSE),"") ->  | W18: =IFERROR(VLOOKUP(T18,商品マスター!$B$7:$D$53,3,FALSE),"") ->  | X18: 0 | Z18: =IFERROR(VLOOKUP(Y18,商品マスター!$B$7:$D$53,2,FALSE),"") ->  | AB18: =IFERROR(VLOOKUP(Y18,商品マスター!$B$7:$D$53,3,FALSE),"") ->  | AC18: 0 | AE18: =IFERROR(VLOOKUP(AD18,商品マスター!$B$7:$D$53,2,FALSE),"") ->  | AG18: =IFERROR(VLOOKUP(AD18,商品マスター!$B$7:$D$53,3,FALSE),"") ->  | AH18: 0 | AJ18: =IFERROR(VLOOKUP(AI18,商品マスター!$B$7:$D$53,2,FALSE),"") ->  | AL18: =IFERROR(VLOOKUP(AI18,商品マスター!$B$7:$D$53,3,FALSE),"") ->  | AM18: 0 | AO18: =IFERROR(VLOOKUP(AN18,商品マスター!$B$7:$D$53,2,FALSE),"") ->  | AQ18: =IFERROR(VLOOKUP(AN18,商品マスター!$B$7:$D$53,3,FALSE),"") ->  | AR18: 0 | AT18: =IFERROR(VLOOKUP(AS18,商品マスター!$B$7:$D$53,2,FALSE),"") ->  | AV18: =IFERROR(VLOOKUP(AS18,商品マスター!$B$7:$D$53,3,FALSE),"") ->  | AW18: 0 | AY18: =IFERROR(VLOOKUP(AX18,商品マスター!$B$7:$D$53,2,FALSE),"") ->  | BA18: =IFERROR(VLOOKUP(AX18,商品マスター!$B$7:$D$53,3,FALSE),"") ->  | BB18: 0 | BD18: =IFERROR(VLOOKUP(BC18,商品マスター!$B$7:$D$53,2,FALSE),"") ->  | BF18: =IFERROR(VLOOKUP(BC18,商品マスター!$B$7:$D$53,3,FALSE),"") ->  | BG18: 0 | BI18: =IFERROR(VLOOKUP(BH18,商品マスター!$B$7:$D$53,2,FALSE),"") ->  | BK18: =IFERROR(VLOOKUP(BH18,商品マスター!$B$7:$D$53,3,FALSE),"") ->  | BL18: 0 | BM18: 0 | BN18: 0.1 | BO18: 0 | BQ18: 0
I19: =IFERROR(VLOOKUP(H19,得意先マスター!$B$7:$H$103,2,FALSE),"") ->  | J19: =IFERROR(VLOOKUP(H19,得意先マスター!$B$7:$H$103,3,FALSE),"") ->  | K19: =IFERROR(VLOOKUP(H19,得意先マスター!$B$7:$H$103,4,FALSE),"") ->  | L19: =IFERROR(VLOOKUP(H19,得意先マスター!$B$7:$H$103,5,FALSE),"") ->  | M19: =IFERROR(VLOOKUP(H19,得意先マスター!$B$7:$H$103,6,FALSE),"") ->  | P19: =IFERROR(VLOOKUP(O19,商品マスター!$B$7:$D$53,2,FALSE),"") ->  | R19: =IFERROR(VLOOKUP(O19,商品マスター!$B$7:$D$53,3,FALSE),"") ->  | S19: 0 | U19: =IFERROR(VLOOKUP(T19,商品マスター!$B$7:$D$53,2,FALSE),"") ->  | W19: =IFERROR(VLOOKUP(T19,商品マスター!$B$7:$D$53,3,FALSE),"") ->  | X19: 0 | Z19: =IFERROR(VLOOKUP(Y19,商品マスター!$B$7:$D$53,2,FALSE),"") ->  | AB19: =IFERROR(VLOOKUP(Y19,商品マスター!$B$7:$D$53,3,FALSE),"") ->  | AC19: 0 | AE19: =IFERROR(VLOOKUP(AD19,商品マスター!$B$7:$D$53,2,FALSE),"") ->  | AG19: =IFERROR(VLOOKUP(AD19,商品マスター!$B$7:$D$53,3,FALSE),"") ->  | AH19: 0 | AJ19: =IFERROR(VLOOKUP(AI19,商品マスター!$B$7:$D$53,2,FALSE),"") ->  | AL19: =IFERROR(VLOOKUP(AI19,商品マスター!$B$7:$D$53,3,FALSE),"") ->  | AM19: 0 | AO19: =IFERROR(VLOOKUP(AN19,商品マスター!$B$7:$D$53,2,FALSE),"") ->  | AQ19: =IFERROR(VLOOKUP(AN19,商品マスター!$B$7:$D$53,3,FALSE),"") ->  | AR19: 0 | AT19: =IFERROR(VLOOKUP(AS19,商品マスター!$B$7:$D$53,2,FALSE),"") ->  | AV19: =IFERROR(VLOOKUP(AS19,商品マスター!$B$7:$D$53,3,FALSE),"") ->  | AW19: 0 | AY19: =IFERROR(VLOOKUP(AX19,商品マスター!$B$7:$D$53,2,FALSE),"") ->  | BA19: =IFERROR(VLOOKUP(AX19,商品マスター!$B$7:$D$53,3,FALSE),"") ->  | BB19: 0 | BD19: =IFERROR(VLOOKUP(BC19,商品マスター!$B$7:$D$53,2,FALSE),"") ->  | BF19: =IFERROR(VLOOKUP(BC19,商品マスター!$B$7:$D$53,3,FALSE),"") ->  | BG19: 0 | BI19: =IFERROR(VLOOKUP(BH19,商品マスター!$B$7:$D$53,2,FALSE),"") ->  | BK19: =IFERROR(VLOOKUP(BH19,商品マスター!$B$7:$D$53,3,FALSE),"") ->  | BL19: 0 | BM19: 0 | BN19: 0.1 | BO19: 0 | BQ19: 0
I20: =IFERROR(VLOOKUP(H20,得意先マスター!$B$7:$H$103,2,FALSE),"") ->  | J20: =IFERROR(VLOOKUP(H20,得意先マスター!$B$7:$H$103,3,FALSE),"") ->  | K20: =IFERROR(VLOOKUP(H20,得意先マスター!$B$7:$H$103,4,FALSE),"") ->  | L20: =IFERROR(VLOOKUP(H20,得意先マスター!$B$7:$H$103,5,FALSE),"") ->  | M20: =IFERROR(VLOOKUP(H20,得意先マスター!$B$7:$H$103,6,FALSE),"") ->  | P20: =IFERROR(VLOOKUP(O20,商品マスター!$B$7:$D$53,2,FALSE),"") ->  | R20: =IFERROR(VLOOKUP(O20,商品マスター!$B$7:$D$53,3,FALSE),"") ->  | S20: 0 | U20: =IFERROR(VLOOKUP(T20,商品マスター!$B$7:$D$53,2,FALSE),"") ->  | W20: =IFERROR(VLOOKUP(T20,商品マスター!$B$7:$D$53,3,FALSE),"") ->  | X20: 0 | Z20: =IFERROR(VLOOKUP(Y20,商品マスター!$B$7:$D$53,2,FALSE),"") ->  | AB20: =IFERROR(VLOOKUP(Y20,商品マスター!$B$7:$D$53,3,FALSE),"") ->  | AC20: 0 | AE20: =IFERROR(VLOOKUP(AD20,商品マスター!$B$7:$D$53,2,FALSE),"") ->  | AG20: =IFERROR(VLOOKUP(AD20,商品マスター!$B$7:$D$53,3,FALSE),"") ->  | AH20: 0 | AJ20: =IFERROR(VLOOKUP(AI20,商品マスター!$B$7:$D$53,2,FALSE),"") ->  | AL20: =IFERROR(VLOOKUP(AI20,商品マスター!$B$7:$D$53,3,FALSE),"") ->  | AM20: 0 | AO20: =IFERROR(VLOOKUP(AN20,商品マスター!$B$7:$D$53,2,FALSE),"") ->  | AQ20: =IFERROR(VLOOKUP(AN20,商品マスター!$B$7:$D$53,3,FALSE),"") ->  | AR20: 0 | AT20: =IFERROR(VLOOKUP(AS20,商品マスター!$B$7:$D$53,2,FALSE),"") ->  | AV20: =IFERROR(VLOOKUP(AS20,商品マスター!$B$7:$D$53,3,FALSE),"") ->  | AW20: 0 | AY20: =IFERROR(VLOOKUP(AX20,商品マスター!$B$7:$D$53,2,FALSE),"") ->  | BA20: =IFERROR(VLOOKUP(AX20,商品マスター!$B$7:$D$53,3,FALSE),"") ->  | BB20: 0 | BD20: =IFERROR(VLOOKUP(BC20,商品マスター!$B$7:$D$53,2,FALSE),"") ->  | BF20: =IFERROR(VLOOKUP(BC20,商品マスター!$B$7:$D$53,3,FALSE),"") ->  | BG20: 0 | BI20: =IFERROR(VLOOKUP(BH20,商品マスター!$B$7:$D$53,2,FALSE),"") ->  | BK20: =IFERROR(VLOOKUP(BH20,商品マスター!$B$7:$D$53,3,FALSE),"") ->  | BL20: 0 | BM20: 0 | BN20: 0.1 | BO20: 0 | BQ20: 0
I21: =IFERROR(VLOOKUP(H21,得意先マスター!$B$7:$H$103,2,FALSE),"") ->  | J21: =IFERROR(VLOOKUP(H21,得意先マスター!$B$7:$H$103,3,FALSE),"") ->  | K21: =IFERROR(VLOOKUP(H21,得意先マスター!$B$7:$H$103,4,FALSE),"") ->  | L21: =IFERROR(VLOOKUP(H21,得意先マスター!$B$7:$H$103,5,FALSE),"") ->  | M21: =IFERROR(VLOOKUP(H21,得意先マスター!$B$7:$H$103,6,FALSE),"") ->  | P21: =IFERROR(VLOOKUP(O21,商品マスター!$B$7:$D$53,2,FALSE),"") ->  | R21: =IFERROR(VLOOKUP(O21,商品マスター!$B$7:$D$53,3,FALSE),"") ->  | S21: 0 | U21: =IFERROR(VLOOKUP(T21,商品マスター!$B$7:$D$53,2,FALSE),"") ->  | W21: =IFERROR(VLOOKUP(T21,商品マスター!$B$7:$D$53,3,FALSE),"") ->  | X21: 0 | Z21: =IFERROR(VLOOKUP(Y21,商品マスター!$B$7:$D$53,2,FALSE),"") ->  | AB21: =IFERROR(VLOOKUP(Y21,商品マスター!$B$7:$D$53,3,FALSE),"") ->  | AC21: 0 | AE21: =IFERROR(VLOOKUP(AD21,商品マスター!$B$7:$D$53,2,FALSE),"") ->  | AG21: =IFERROR(VLOOKUP(AD21,商品マスター!$B$7:$D$53,3,FALSE),"") ->  | AH21: 0 | AJ21: =IFERROR(VLOOKUP(AI21,商品マスター!$B$7:$D$53,2,FALSE),"") ->  | AL21: =IFERROR(VLOOKUP(AI21,商品マスター!$B$7:$D$53,3,FALSE),"") ->  | AM21: 0 | AO21: =IFERROR(VLOOKUP(AN21,商品マスター!$B$7:$D$53,2,FALSE),"") ->  | AQ21: =IFERROR(VLOOKUP(AN21,商品マスター!$B$7:$D$53,3,FALSE),"") ->  | AR21: 0 | AT21: =IFERROR(VLOOKUP(AS21,商品マスター!$B$7:$D$53,2,FALSE),"") ->  | AV21: =IFERROR(VLOOKUP(AS21,商品マスター!$B$7:$D$53,3,FALSE),"") ->  | AW21: 0 | AY21: =IFERROR(VLOOKUP(AX21,商品マスター!$B$7:$D$53,2,FALSE),"") ->  | BA21: =IFERROR(VLOOKUP(AX21,商品マスター!$B$7:$D$53,3,FALSE),"") ->  | BB21: 0 | BD21: =IFERROR(VLOOKUP(BC21,商品マスター!$B$7:$D$53,2,FALSE),"") ->  | BF21: =IFERROR(VLOOKUP(BC21,商品マスター!$B$7:$D$53,3,FALSE),"") ->  | BG21: 0 | BI21: =IFERROR(VLOOKUP(BH21,商品マスター!$B$7:$D$53,2,FALSE),"") ->  | BK21: =IFERROR(VLOOKUP(BH21,商品マスター!$B$7:$D$53,3,FALSE),"") ->  | BL21: 0 | BM21: 0 | BN21: 0.1 | BO21: 0 | BQ21: 0
I22: =IFERROR(VLOOKUP(H22,得意先マスター!$B$7:$H$103,2,FALSE),"") ->  | J22: =IFERROR(VLOOKUP(H22,得意先マスター!$B$7:$H$103,3,FALSE),"") ->  | K22: =IFERROR(VLOOKUP(H22,得意先マスター!$B$7:$H$103,4,FALSE),"") ->  | L22: =IFERROR(VLOOKUP(H22,得意先マスター!$B$7:$H$103,5,FALSE),"") ->  | M22: =IFERROR(VLOOKUP(H22,得意先マスター!$B$7:$H$103,6,FALSE),"") ->  | P22: =IFERROR(VLOOKUP(O22,商品マスター!$B$7:$D$53,2,FALSE),"") ->  | R22: =IFERROR(VLOOKUP(O22,商品マスター!$B$7:$D$53,3,FALSE),"") ->  | S22: 0 | U22: =IFERROR(VLOOKUP(T22,商品マスター!$B$7:$D$53,2,FALSE),"") ->  | W22: =IFERROR(VLOOKUP(T22,商品マスター!$B$7:$D$53,3,FALSE),"") ->  | X22: 0 | Z22: =IFERROR(VLOOKUP(Y22,商品マスター!$B$7:$D$53,2,FALSE),"") ->  | AB22: =IFERROR(VLOOKUP(Y22,商品マスター!$B$7:$D$53,3,FALSE),"") ->  | AC22: 0 | AE22: =IFERROR(VLOOKUP(AD22,商品マスター!$B$7:$D$53,2,FALSE),"") ->  | AG22: =IFERROR(VLOOKUP(AD22,商品マスター!$B$7:$D$53,3,FALSE),"") ->  | AH22: 0 | AJ22: =IFERROR(VLOOKUP(AI22,商品マスター!$B$7:$D$53,2,FALSE),"") ->  | AL22: =IFERROR(VLOOKUP(AI22,商品マスター!$B$7:$D$53,3,FALSE),"") ->  | AM22: 0 | AO22: =IFERROR(VLOOKUP(AN22,商品マスター!$B$7:$D$53,2,FALSE),"") ->  | AQ22: =IFERROR(VLOOKUP(AN22,商品マスター!$B$7:$D$53,3,FALSE),"") ->  | AR22: 0 | AT22: =IFERROR(VLOOKUP(AS22,商品マスター!$B$7:$D$53,2,FALSE),"") ->  | AV22: =IFERROR(VLOOKUP(AS22,商品マスター!$B$7:$D$53,3,FALSE),"") ->  | AW22: 0 | AY22: =IFERROR(VLOOKUP(AX22,商品マスター!$B$7:$D$53,2,FALSE),"") ->  | BA22: =IFERROR(VLOOKUP(AX22,商品マスター!$B$7:$D$53,3,FALSE),"") ->  | BB22: 0 | BD22: =IFERROR(VLOOKUP(BC22,商品マスター!$B$7:$D$53,2,FALSE),"") ->  | BF22: =IFERROR(VLOOKUP(BC22,商品マスター!$B$7:$D$53,3,FALSE),"") ->  | BG22: 0 | BI22: =IFERROR(VLOOKUP(BH22,商品マスター!$B$7:$D$53,2,FALSE),"") ->  | BK22: =IFERROR(VLOOKUP(BH22,商品マスター!$B$7:$D$53,3,FALSE),"") ->  | BL22: 0 | BM22: 0 | BN22: 0.1 | BO22: 0 | BQ22: 0
I23: =IFERROR(VLOOKUP(H23,得意先マスター!$B$7:$H$103,2,FALSE),"") ->  | J23: =IFERROR(VLOOKUP(H23,得意先マスター!$B$7:$H$103,3,FALSE),"") ->  | K23: =IFERROR(VLOOKUP(H23,得意先マスター!$B$7:$H$103,4,FALSE),"") ->  | L23: =IFERROR(VLOOKUP(H23,得意先マスター!$B$7:$H$103,5,FALSE),"") ->  | M23: =IFERROR(VLOOKUP(H23,得意先マスター!$B$7:$H$103,6,FALSE),"") ->  | P23: =IFERROR(VLOOKUP(O23,商品マスター!$B$7:$D$53,2,FALSE),"") ->  | R23: =IFERROR(VLOOKUP(O23,商品マスター!$B$7:$D$53,3,FALSE),"") ->  | S23: 0 | U23: =IFERROR(VLOOKUP(T23,商品マスター!$B$7:$D$53,2,FALSE),"") ->  | W23: =IFERROR(VLOOKUP(T23,商品マスター!$B$7:$D$53,3,FALSE),"") ->  | X23: 0 | Z23: =IFERROR(VLOOKUP(Y23,商品マスター!$B$7:$D$53,2,FALSE),"") ->  | AB23: =IFERROR(VLOOKUP(Y23,商品マスター!$B$7:$D$53,3,FALSE),"") ->  | AC23: 0 | AE23: =IFERROR(VLOOKUP(AD23,商品マスター!$B$7:$D$53,2,FALSE),"") ->  | AG23: =IFERROR(VLOOKUP(AD23,商品マスター!$B$7:$D$53,3,FALSE),"") ->  | AH23: 0 | AJ23: =IFERROR(VLOOKUP(AI23,商品マスター!$B$7:$D$53,2,FALSE),"") ->  | AL23: =IFERROR(VLOOKUP(AI23,商品マスター!$B$7:$D$53,3,FALSE),"") ->  | AM23: 0 | AO23: =IFERROR(VLOOKUP(AN23,商品マスター!$B$7:$D$53,2,FALSE),"") ->  | AQ23: =IFERROR(VLOOKUP(AN23,商品マスター!$B$7:$D$53,3,FALSE),"") ->  | AR23: 0 | AT23: =IFERROR(VLOOKUP(AS23,商品マスター!$B$7:$D$53,2,FALSE),"") ->  | AV23: =IFERROR(VLOOKUP(AS23,商品マスター!$B$7:$D$53,3,FALSE),"") ->  | AW23: 0 | AY23: =IFERROR(VLOOKUP(AX23,商品マスター!$B$7:$D$53,2,FALSE),"") ->  | BA23: =IFERROR(VLOOKUP(AX23,商品マスター!$B$7:$D$53,3,FALSE),"") ->  | BB23: 0 | BD23: =IFERROR(VLOOKUP(BC23,商品マスター!$B$7:$D$53,2,FALSE),"") ->  | BF23: =IFERROR(VLOOKUP(BC23,商品マスター!$B$7:$D$53,3,FALSE),"") ->  | BG23: 0 | BI23: =IFERROR(VLOOKUP(BH23,商品マスター!$B$7:$D$53,2,FALSE),"") ->  | BK23: =IFERROR(VLOOKUP(BH23,商品マスター!$B$7:$D$53,3,FALSE),"") ->  | BL23: 0 | BM23: 0 | BN23: 0.1 | BO23: 0 | BQ23: 0
I24: =IFERROR(VLOOKUP(H24,得意先マスター!$B$7:$H$103,2,FALSE),"") ->  | J24: =IFERROR(VLOOKUP(H24,得意先マスター!$B$7:$H$103,3,FALSE),"") ->  | K24: =IFERROR(VLOOKUP(H24,得意先マスター!$B$7:$H$103,4,FALSE),"") ->  | L24: =IFERROR(VLOOKUP(H24,得意先マスター!$B$7:$H$103,5,FALSE),"") ->  | M24: =IFERROR(VLOOKUP(H24,得意先マスター!$B$7:$H$103,6,FALSE),"") ->  | P24: =IFERROR(VLOOKUP(O24,商品マスター!$B$7:$D$53,2,FALSE),"") ->  | R24: =IFERROR(VLOOKUP(O24,商品マスター!$B$7:$D$53,3,FALSE),"") ->  | S24: 0 | U24: =IFERROR(VLOOKUP(T24,商品マスター!$B$7:$D$53,2,FALSE),"") ->  | W24: =IFERROR(VLOOKUP(T24,商品マスター!$B$7:$D$53,3,FALSE),"") ->  | X24: 0 | Z24: =IFERROR(VLOOKUP(Y24,商品マスター!$B$7:$D$53,2,FALSE),"") ->  | AB24: =IFERROR(VLOOKUP(Y24,商品マスター!$B$7:$D$53,3,FALSE),"") ->  | AC24: 0 | AE24: =IFERROR(VLOOKUP(AD24,商品マスター!$B$7:$D$53,2,FALSE),"") ->  | AG24: =IFERROR(VLOOKUP(AD24,商品マスター!$B$7:$D$53,3,FALSE),"") ->  | AH24: 0 | AJ24: =IFERROR(VLOOKUP(AI24,商品マスター!$B$7:$D$53,2,FALSE),"") ->  | AL24: =IFERROR(VLOOKUP(AI24,商品マスター!$B$7:$D$53,3,FALSE),"") ->  | AM24: 0 | AO24: =IFERROR(VLOOKUP(AN24,商品マスター!$B$7:$D$53,2,FALSE),"") ->  | AQ24: =IFERROR(VLOOKUP(AN24,商品マスター!$B$7:$D$53,3,FALSE),"") ->  | AR24: 0 | AT24: =IFERROR(VLOOKUP(AS24,商品マスター!$B$7:$D$53,2,FALSE),"") ->  | AV24: =IFERROR(VLOOKUP(AS24,商品マスター!$B$7:$D$53,3,FALSE),"") ->  | AW24: 0 | AY24: =IFERROR(VLOOKUP(AX24,商品マスター!$B$7:$D$53,2,FALSE),"") ->  | BA24: =IFERROR(VLOOKUP(AX24,商品マスター!$B$7:$D$53,3,FALSE),"") ->  | BB24: 0 | BD24: =IFERROR(VLOOKUP(BC24,商品マスター!$B$7:$D$53,2,FALSE),"") ->  | BF24: =IFERROR(VLOOKUP(BC24,商品マスター!$B$7:$D$53,3,FALSE),"") ->  | BG24: 0 | BI24: =IFERROR(VLOOKUP(BH24,商品マスター!$B$7:$D$53,2,FALSE),"") ->  | BK24: =IFERROR(VLOOKUP(BH24,商品マスター!$B$7:$D$53,3,FALSE),"") ->  | BL24: 0 | BM24: 0 | BN24: 0.1 | BO24: 0 | BQ24: 0
I25: =IFERROR(VLOOKUP(H25,得意先マスター!$B$7:$H$103,2,FALSE),"") ->  | J25: =IFERROR(VLOOKUP(H25,得意先マスター!$B$7:$H$103,3,FALSE),"") ->  | K25: =IFERROR(VLOOKUP(H25,得意先マスター!$B$7:$H$103,4,FALSE),"") ->  | L25: =IFERROR(VLOOKUP(H25,得意先マスター!$B$7:$H$103,5,FALSE),"") ->  | M25: =IFERROR(VLOOKUP(H25,得意先マスター!$B$7:$H$103,6,FALSE),"") ->  | P25: =IFERROR(VLOOKUP(O25,商品マスター!$B$7:$D$53,2,FALSE),"") ->  | R25: =IFERROR(VLOOKUP(O25,商品マスター!$B$7:$D$53,3,FALSE),"") ->  | S25: 0 | U25: =IFERROR(VLOOKUP(T25,商品マスター!$B$7:$D$53,2,FALSE),"") ->  | W25: =IFERROR(VLOOKUP(T25,商品マスター!$B$7:$D$53,3,FALSE),"") ->  | X25: 0 | Z25: =IFERROR(VLOOKUP(Y25,商品マスター!$B$7:$D$53,2,FALSE),"") ->  | AB25: =IFERROR(VLOOKUP(Y25,商品マスター!$B$7:$D$53,3,FALSE),"") ->  | AC25: 0 | AE25: =IFERROR(VLOOKUP(AD25,商品マスター!$B$7:$D$53,2,FALSE),"") ->  | AG25: =IFERROR(VLOOKUP(AD25,商品マスター!$B$7:$D$53,3,FALSE),"") ->  | AH25: 0 | AJ25: =IFERROR(VLOOKUP(AI25,商品マスター!$B$7:$D$53,2,FALSE),"") ->  | AL25: =IFERROR(VLOOKUP(AI25,商品マスター!$B$7:$D$53,3,FALSE),"") ->  | AM25: 0 | AO25: =IFERROR(VLOOKUP(AN25,商品マスター!$B$7:$D$53,2,FALSE),"") ->  | AQ25: =IFERROR(VLOOKUP(AN25,商品マスター!$B$7:$D$53,3,FALSE),"") ->  | AR25: 0 | AT25: =IFERROR(VLOOKUP(AS25,商品マスター!$B$7:$D$53,2,FALSE),"") ->  | AV25: =IFERROR(VLOOKUP(AS25,商品マスター!$B$7:$D$53,3,FALSE),"") ->  | AW25: 0 | AY25: =IFERROR(VLOOKUP(AX25,商品マスター!$B$7:$D$53,2,FALSE),"") ->  | BA25: =IFERROR(VLOOKUP(AX25,商品マスター!$B$7:$D$53,3,FALSE),"") ->  | BB25: 0 | BD25: =IFERROR(VLOOKUP(BC25,商品マスター!$B$7:$D$53,2,FALSE),"") ->  | BF25: =IFERROR(VLOOKUP(BC25,商品マスター!$B$7:$D$53,3,FALSE),"") ->  | BG25: 0 | BI25: =IFERROR(VLOOKUP(BH25,商品マスター!$B$7:$D$53,2,FALSE),"") ->  | BK25: =IFERROR(VLOOKUP(BH25,商品マスター!$B$7:$D$53,3,FALSE),"") ->  | BL25: 0 | BM25: 0 | BN25: 0.1 | BO25: 0 | BQ25: 0
I26: =IFERROR(VLOOKUP(H26,得意先マスター!$B$7:$H$103,2,FALSE),"") ->  | J26: =IFERROR(VLOOKUP(H26,得意先マスター!$B$7:$H$103,3,FALSE),"") ->  | K26: =IFERROR(VLOOKUP(H26,得意先マスター!$B$7:$H$103,4,FALSE),"") ->  | L26: =IFERROR(VLOOKUP(H26,得意先マスター!$B$7:$H$103,5,FALSE),"") ->  | M26: =IFERROR(VLOOKUP(H26,得意先マスター!$B$7:$H$103,6,FALSE),"") ->  | P26: =IFERROR(VLOOKUP(O26,商品マスター!$B$7:$D$53,2,FALSE),"") ->  | R26: =IFERROR(VLOOKUP(O26,商品マスター!$B$7:$D$53,3,FALSE),"") ->  | S26: 0 | U26: =IFERROR(VLOOKUP(T26,商品マスター!$B$7:$D$53,2,FALSE),"") ->  | W26: =IFERROR(VLOOKUP(T26,商品マスター!$B$7:$D$53,3,FALSE),"") ->  | X26: 0 | Z26: =IFERROR(VLOOKUP(Y26,商品マスター!$B$7:$D$53,2,FALSE),"") ->  | AB26: =IFERROR(VLOOKUP(Y26,商品マスター!$B$7:$D$53,3,FALSE),"") ->  | AC26: 0 | AE26: =IFERROR(VLOOKUP(AD26,商品マスター!$B$7:$D$53,2,FALSE),"") ->  | AG26: =IFERROR(VLOOKUP(AD26,商品マスター!$B$7:$D$53,3,FALSE),"") ->  | AH26: 0 | AJ26: =IFERROR(VLOOKUP(AI26,商品マスター!$B$7:$D$53,2,FALSE),"") ->  | AL26: =IFERROR(VLOOKUP(AI26,商品マスター!$B$7:$D$53,3,FALSE),"") ->  | AM26: 0 | AO26: =IFERROR(VLOOKUP(AN26,商品マスター!$B$7:$D$53,2,FALSE),"") ->  | AQ26: =IFERROR(VLOOKUP(AN26,商品マスター!$B$7:$D$53,3,FALSE),"") ->  | AR26: 0 | AT26: =IFERROR(VLOOKUP(AS26,商品マスター!$B$7:$D$53,2,FALSE),"") ->  | AV26: =IFERROR(VLOOKUP(AS26,商品マスター!$B$7:$D$53,3,FALSE),"") ->  | AW26: 0 | AY26: =IFERROR(VLOOKUP(AX26,商品マスター!$B$7:$D$53,2,FALSE),"") ->  | BA26: =IFERROR(VLOOKUP(AX26,商品マスター!$B$7:$D$53,3,FALSE),"") ->  | BB26: 0 | BD26: =IFERROR(VLOOKUP(BC26,商品マスター!$B$7:$D$53,2,FALSE),"") ->  | BF26: =IFERROR(VLOOKUP(BC26,商品マスター!$B$7:$D$53,3,FALSE),"") ->  | BG26: 0 | BI26: =IFERROR(VLOOKUP(BH26,商品マスター!$B$7:$D$53,2,FALSE),"") ->  | BK26: =IFERROR(VLOOKUP(BH26,商品マスター!$B$7:$D$53,3,FALSE),"") ->  | BL26: 0 | BM26: 0 | BN26: 0.1 | BO26: 0 | BQ26: 0
I27: =IFERROR(VLOOKUP(H27,得意先マスター!$B$7:$H$103,2,FALSE),"") ->  | J27: =IFERROR(VLOOKUP(H27,得意先マスター!$B$7:$H$103,3,FALSE),"") ->  | K27: =IFERROR(VLOOKUP(H27,得意先マスター!$B$7:$H$103,4,FALSE),"") ->  | L27: =IFERROR(VLOOKUP(H27,得意先マスター!$B$7:$H$103,5,FALSE),"") ->  | M27: =IFERROR(VLOOKUP(H27,得意先マスター!$B$7:$H$103,6,FALSE),"") ->  | P27: =IFERROR(VLOOKUP(O27,商品マスター!$B$7:$D$53,2,FALSE),"") ->  | R27: =IFERROR(VLOOKUP(O27,商品マスター!$B$7:$D$53,3,FALSE),"") ->  | S27: 0 | U27: =IFERROR(VLOOKUP(T27,商品マスター!$B$7:$D$53,2,FALSE),"") ->  | W27: =IFERROR(VLOOKUP(T27,商品マスター!$B$7:$D$53,3,FALSE),"") ->  | X27: 0 | Z27: =IFERROR(VLOOKUP(Y27,商品マスター!$B$7:$D$53,2,FALSE),"") ->  | AB27: =IFERROR(VLOOKUP(Y27,商品マスター!$B$7:$D$53,3,FALSE),"") ->  | AC27: 0 | AE27: =IFERROR(VLOOKUP(AD27,商品マスター!$B$7:$D$53,2,FALSE),"") ->  | AG27: =IFERROR(VLOOKUP(AD27,商品マスター!$B$7:$D$53,3,FALSE),"") ->  | AH27: 0 | AJ27: =IFERROR(VLOOKUP(AI27,商品マスター!$B$7:$D$53,2,FALSE),"") ->  | AL27: =IFERROR(VLOOKUP(AI27,商品マスター!$B$7:$D$53,3,FALSE),"") ->  | AM27: 0 | AO27: =IFERROR(VLOOKUP(AN27,商品マスター!$B$7:$D$53,2,FALSE),"") ->  | AQ27: =IFERROR(VLOOKUP(AN27,商品マスター!$B$7:$D$53,3,FALSE),"") ->  | AR27: 0 | AT27: =IFERROR(VLOOKUP(AS27,商品マスター!$B$7:$D$53,2,FALSE),"") ->  | AV27: =IFERROR(VLOOKUP(AS27,商品マスター!$B$7:$D$53,3,FALSE),"") ->  | AW27: 0 | AY27: =IFERROR(VLOOKUP(AX27,商品マスター!$B$7:$D$53,2,FALSE),"") ->  | BA27: =IFERROR(VLOOKUP(AX27,商品マスター!$B$7:$D$53,3,FALSE),"") ->  | BB27: 0 | BD27: =IFERROR(VLOOKUP(BC27,商品マスター!$B$7:$D$53,2,FALSE),"") ->  | BF27: =IFERROR(VLOOKUP(BC27,商品マスター!$B$7:$D$53,3,FALSE),"") ->  | BG27: 0 | BI27: =IFERROR(VLOOKUP(BH27,商品マスター!$B$7:$D$53,2,FALSE),"") ->  | BK27: =IFERROR(VLOOKUP(BH27,商品マスター!$B$7:$D$53,3,FALSE),"") ->  | BL27: 0 | BM27: 0 | BN27: 0.1 | BO27: 0 | BQ27: 0
I28: =IFERROR(VLOOKUP(H28,得意先マスター!$B$7:$H$103,2,FALSE),"") ->  | J28: =IFERROR(VLOOKUP(H28,得意先マスター!$B$7:$H$103,3,FALSE),"") ->  | K28: =IFERROR(VLOOKUP(H28,得意先マスター!$B$7:$H$103,4,FALSE),"") ->  | L28: =IFERROR(VLOOKUP(H28,得意先マスター!$B$7:$H$103,5,FALSE),"") ->  | M28: =IFERROR(VLOOKUP(H28,得意先マスター!$B$7:$H$103,6,FALSE),"") ->  | P28: =IFERROR(VLOOKUP(O28,商品マスター!$B$7:$D$53,2,FALSE),"") ->  | R28: =IFERROR(VLOOKUP(O28,商品マスター!$B$7:$D$53,3,FALSE),"") ->  | S28: 0 | U28: =IFERROR(VLOOKUP(T28,商品マスター!$B$7:$D$53,2,FALSE),"") ->  | W28: =IFERROR(VLOOKUP(T28,商品マスター!$B$7:$D$53,3,FALSE),"") ->  | X28: 0 | Z28: =IFERROR(VLOOKUP(Y28,商品マスター!$B$7:$D$53,2,FALSE),"") ->  | AB28: =IFERROR(VLOOKUP(Y28,商品マスター!$B$7:$D$53,3,FALSE),"") ->  | AC28: 0 | AE28: =IFERROR(VLOOKUP(AD28,商品マスター!$B$7:$D$53,2,FALSE),"") ->  | AG28: =IFERROR(VLOOKUP(AD28,商品マスター!$B$7:$D$53,3,FALSE),"") ->  | AH28: 0 | AJ28: =IFERROR(VLOOKUP(AI28,商品マスター!$B$7:$D$53,2,FALSE),"") ->  | AL28: =IFERROR(VLOOKUP(AI28,商品マスター!$B$7:$D$53,3,FALSE),"") ->  | AM28: 0 | AO28: =IFERROR(VLOOKUP(AN28,商品マスター!$B$7:$D$53,2,FALSE),"") ->  | AQ28: =IFERROR(VLOOKUP(AN28,商品マスター!$B$7:$D$53,3,FALSE),"") ->  | AR28: 0 | AT28: =IFERROR(VLOOKUP(AS28,商品マスター!$B$7:$D$53,2,FALSE),"") ->  | AV28: =IFERROR(VLOOKUP(AS28,商品マスター!$B$7:$D$53,3,FALSE),"") ->  | AW28: 0 | AY28: =IFERROR(VLOOKUP(AX28,商品マスター!$B$7:$D$53,2,FALSE),"") ->  | BA28: =IFERROR(VLOOKUP(AX28,商品マスター!$B$7:$D$53,3,FALSE),"") ->  | BB28: 0 | BD28: =IFERROR(VLOOKUP(BC28,商品マスター!$B$7:$D$53,2,FALSE),"") ->  | BF28: =IFERROR(VLOOKUP(BC28,商品マスター!$B$7:$D$53,3,FALSE),"") ->  | BG28: 0 | BI28: =IFERROR(VLOOKUP(BH28,商品マスター!$B$7:$D$53,2,FALSE),"") ->  | BK28: =IFERROR(VLOOKUP(BH28,商品マスター!$B$7:$D$53,3,FALSE),"") ->  | BL28: 0 | BM28: 0 | BN28: 0.1 | BO28: 0 | BQ28: 0
I29: =IFERROR(VLOOKUP(H29,得意先マスター!$B$7:$H$103,2,FALSE),"") ->  | J29: =IFERROR(VLOOKUP(H29,得意先マスター!$B$7:$H$103,3,FALSE),"") ->  | K29: =IFERROR(VLOOKUP(H29,得意先マスター!$B$7:$H$103,4,FALSE),"") ->  | L29: =IFERROR(VLOOKUP(H29,得意先マスター!$B$7:$H$103,5,FALSE),"") ->  | M29: =IFERROR(VLOOKUP(H29,得意先マスター!$B$7:$H$103,6,FALSE),"") ->  | P29: =IFERROR(VLOOKUP(O29,商品マスター!$B$7:$D$53,2,FALSE),"") ->  | R29: =IFERROR(VLOOKUP(O29,商品マスター!$B$7:$D$53,3,FALSE),"") ->  | S29: 0 | U29: =IFERROR(VLOOKUP(T29,商品マスター!$B$7:$D$53,2,FALSE),"") ->  | W29: =IFERROR(VLOOKUP(T29,商品マスター!$B$7:$D$53,3,FALSE),"") ->  | X29: 0 | Z29: =IFERROR(VLOOKUP(Y29,商品マスター!$B$7:$D$53,2,FALSE),"") ->  | AB29: =IFERROR(VLOOKUP(Y29,商品マスター!$B$7:$D$53,3,FALSE),"") ->  | AC29: 0 | AE29: =IFERROR(VLOOKUP(AD29,商品マスター!$B$7:$D$53,2,FALSE),"") ->  | AG29: =IFERROR(VLOOKUP(AD29,商品マスター!$B$7:$D$53,3,FALSE),"") ->  | AH29: 0 | AJ29: =IFERROR(VLOOKUP(AI29,商品マスター!$B$7:$D$53,2,FALSE),"") ->  | AL29: =IFERROR(VLOOKUP(AI29,商品マスター!$B$7:$D$53,3,FALSE),"") ->  | AM29: 0 | AO29: =IFERROR(VLOOKUP(AN29,商品マスター!$B$7:$D$53,2,FALSE),"") ->  | AQ29: =IFERROR(VLOOKUP(AN29,商品マスター!$B$7:$D$53,3,FALSE),"") ->  | AR29: 0 | AT29: =IFERROR(VLOOKUP(AS29,商品マスター!$B$7:$D$53,2,FALSE),"") ->  | AV29: =IFERROR(VLOOKUP(AS29,商品マスター!$B$7:$D$53,3,FALSE),"") ->  | AW29: 0 | AY29: =IFERROR(VLOOKUP(AX29,商品マスター!$B$7:$D$53,2,FALSE),"") ->  | BA29: =IFERROR(VLOOKUP(AX29,商品マスター!$B$7:$D$53,3,FALSE),"") ->  | BB29: 0 | BD29: =IFERROR(VLOOKUP(BC29,商品マスター!$B$7:$D$53,2,FALSE),"") ->  | BF29: =IFERROR(VLOOKUP(BC29,商品マスター!$B$7:$D$53,3,FALSE),"") ->  | BG29: 0 | BI29: =IFERROR(VLOOKUP(BH29,商品マスター!$B$7:$D$53,2,FALSE),"") ->  | BK29: =IFERROR(VLOOKUP(BH29,商品マスター!$B$7:$D$53,3,FALSE),"") ->  | BL29: 0 | BM29: 0 | BN29: 0.1 | BO29: 0 | BQ29: 0
I30: =IFERROR(VLOOKUP(H30,得意先マスター!$B$7:$H$103,2,FALSE),"") ->  | J30: =IFERROR(VLOOKUP(H30,得意先マスター!$B$7:$H$103,3,FALSE),"") ->  | K30: =IFERROR(VLOOKUP(H30,得意先マスター!$B$7:$H$103,4,FALSE),"") ->  | L30: =IFERROR(VLOOKUP(H30,得意先マスター!$B$7:$H$103,5,FALSE),"") ->  | M30: =IFERROR(VLOOKUP(H30,得意先マスター!$B$7:$H$103,6,FALSE),"") ->  | P30: =IFERROR(VLOOKUP(O30,商品マスター!$B$7:$D$53,2,FALSE),"") ->  | R30: =IFERROR(VLOOKUP(O30,商品マスター!$B$7:$D$53,3,FALSE),"") ->  | S30: 0 | U30: =IFERROR(VLOOKUP(T30,商品マスター!$B$7:$D$53,2,FALSE),"") ->  | W30: =IFERROR(VLOOKUP(T30,商品マスター!$B$7:$D$53,3,FALSE),"") ->  | X30: 0 | Z30: =IFERROR(VLOOKUP(Y30,商品マスター!$B$7:$D$53,2,FALSE),"") ->  | AB30: =IFERROR(VLOOKUP(Y30,商品マスター!$B$7:$D$53,3,FALSE),"") ->  | AC30: 0 | AE30: =IFERROR(VLOOKUP(AD30,商品マスター!$B$7:$D$53,2,FALSE),"") ->  | AG30: =IFERROR(VLOOKUP(AD30,商品マスター!$B$7:$D$53,3,FALSE),"") ->  | AH30: 0 | AJ30: =IFERROR(VLOOKUP(AI30,商品マスター!$B$7:$D$53,2,FALSE),"") ->  | AL30: =IFERROR(VLOOKUP(AI30,商品マスター!$B$7:$D$53,3,FALSE),"") ->  | AM30: 0 | AO30: =IFERROR(VLOOKUP(AN30,商品マスター!$B$7:$D$53,2,FALSE),"") ->  | AQ30: =IFERROR(VLOOKUP(AN30,商品マスター!$B$7:$D$53,3,FALSE),"") ->  | AR30: 0 | AT30: =IFERROR(VLOOKUP(AS30,商品マスター!$B$7:$D$53,2,FALSE),"") ->  | AV30: =IFERROR(VLOOKUP(AS30,商品マスター!$B$7:$D$53,3,FALSE),"") ->  | AW30: 0 | AY30: =IFERROR(VLOOKUP(AX30,商品マスター!$B$7:$D$53,2,FALSE),"") ->  | BA30: =IFERROR(VLOOKUP(AX30,商品マスター!$B$7:$D$53,3,FALSE),"") ->  | BB30: 0 | BD30: =IFERROR(VLOOKUP(BC30,商品マスター!$B$7:$D$53,2,FALSE),"") ->  | BF30: =IFERROR(VLOOKUP(BC30,商品マスター!$B$7:$D$53,3,FALSE),"") ->  | BG30: 0 | BI30: =IFERROR(VLOOKUP(BH30,商品マスター!$B$7:$D$53,2,FALSE),"") ->  | BK30: =IFERROR(VLOOKUP(BH30,商品マスター!$B$7:$D$53,3,FALSE),"") ->  | BL30: 0 | BM30: 0 | BN30: 0.1 | BO30: 0 | BQ30: 0
I31: =IFERROR(VLOOKUP(H31,得意先マスター!$B$7:$H$103,2,FALSE),"") ->  | J31: =IFERROR(VLOOKUP(H31,得意先マスター!$B$7:$H$103,3,FALSE),"") ->  | K31: =IFERROR(VLOOKUP(H31,得意先マスター!$B$7:$H$103,4,FALSE),"") ->  | L31: =IFERROR(VLOOKUP(H31,得意先マスター!$B$7:$H$103,5,FALSE),"") ->  | M31: =IFERROR(VLOOKUP(H31,得意先マスター!$B$7:$H$103,6,FALSE),"") ->  | P31: =IFERROR(VLOOKUP(O31,商品マスター!$B$7:$D$53,2,FALSE),"") ->  | R31: =IFERROR(VLOOKUP(O31,商品マスター!$B$7:$D$53,3,FALSE),"") ->  | S31: 0 | U31: =IFERROR(VLOOKUP(T31,商品マスター!$B$7:$D$53,2,FALSE),"") ->  | W31: =IFERROR(VLOOKUP(T31,商品マスター!$B$7:$D$53,3,FALSE),"") ->  | X31: 0 | Z31: =IFERROR(VLOOKUP(Y31,商品マスター!$B$7:$D$53,2,FALSE),"") ->  | AB31: =IFERROR(VLOOKUP(Y31,商品マスター!$B$7:$D$53,3,FALSE),"") ->  | AC31: 0 | AE31: =IFERROR(VLOOKUP(AD31,商品マスター!$B$7:$D$53,2,FALSE),"") ->  | AG31: =IFERROR(VLOOKUP(AD31,商品マスター!$B$7:$D$53,3,FALSE),"") ->  | AH31: 0 | AJ31: =IFERROR(VLOOKUP(AI31,商品マスター!$B$7:$D$53,2,FALSE),"") ->  | AL31: =IFERROR(VLOOKUP(AI31,商品マスター!$B$7:$D$53,3,FALSE),"") ->  | AM31: 0 | AO31: =IFERROR(VLOOKUP(AN31,商品マスター!$B$7:$D$53,2,FALSE),"") ->  | AQ31: =IFERROR(VLOOKUP(AN31,商品マスター!$B$7:$D$53,3,FALSE),"") ->  | AR31: 0 | AT31: =IFERROR(VLOOKUP(AS31,商品マスター!$B$7:$D$53,2,FALSE),"") ->  | AV31: =IFERROR(VLOOKUP(AS31,商品マスター!$B$7:$D$53,3,FALSE),"") ->  | AW31: 0 | AY31: =IFERROR(VLOOKUP(AX31,商品マスター!$B$7:$D$53,2,FALSE),"") ->  | BA31: =IFERROR(VLOOKUP(AX31,商品マスター!$B$7:$D$53,3,FALSE),"") ->  | BB31: 0 | BD31: =IFERROR(VLOOKUP(BC31,商品マスター!$B$7:$D$53,2,FALSE),"") ->  | BF31: =IFERROR(VLOOKUP(BC31,商品マスター!$B$7:$D$53,3,FALSE),"") ->  | BG31: 0 | BI31: =IFERROR(VLOOKUP(BH31,商品マスター!$B$7:$D$53,2,FALSE),"") ->  | BK31: =IFERROR(VLOOKUP(BH31,商品マスター!$B$7:$D$53,3,FALSE),"") ->  | BL31: 0 | BM31: 0 | BN31: 0.1 | BO31: 0 | BQ31: 0
I32: =IFERROR(VLOOKUP(H32,得意先マスター!$B$7:$H$103,2,FALSE),"") ->  | J32: =IFERROR(VLOOKUP(H32,得意先マスター!$B$7:$H$103,3,FALSE),"") ->  | K32: =IFERROR(VLOOKUP(H32,得意先マスター!$B$7:$H$103,4,FALSE),"") ->  | L32: =IFERROR(VLOOKUP(H32,得意先マスター!$B$7:$H$103,5,FALSE),"") ->  | M32: =IFERROR(VLOOKUP(H32,得意先マスター!$B$7:$H$103,6,FALSE),"") ->  | P32: =IFERROR(VLOOKUP(O32,商品マスター!$B$7:$D$53,2,FALSE),"") ->  | R32: =IFERROR(VLOOKUP(O32,商品マスター!$B$7:$D$53,3,FALSE),"") ->  | S32: 0 | U32: =IFERROR(VLOOKUP(T32,商品マスター!$B$7:$D$53,2,FALSE),"") ->  | W32: =IFERROR(VLOOKUP(T32,商品マスター!$B$7:$D$53,3,FALSE),"") ->  | X32: 0 | Z32: =IFERROR(VLOOKUP(Y32,商品マスター!$B$7:$D$53,2,FALSE),"") ->  | AB32: =IFERROR(VLOOKUP(Y32,商品マスター!$B$7:$D$53,3,FALSE),"") ->  | AC32: 0 | AE32: =IFERROR(VLOOKUP(AD32,商品マスター!$B$7:$D$53,2,FALSE),"") ->  | AG32: =IFERROR(VLOOKUP(AD32,商品マスター!$B$7:$D$53,3,FALSE),"") ->  | AH32: 0 | AJ32: =IFERROR(VLOOKUP(AI32,商品マスター!$B$7:$D$53,2,FALSE),"") ->  | AL32: =IFERROR(VLOOKUP(AI32,商品マスター!$B$7:$D$53,3,FALSE),"") ->  | AM32: 0 | AO32: =IFERROR(VLOOKUP(AN32,商品マスター!$B$7:$D$53,2,FALSE),"") ->  | AQ32: =IFERROR(VLOOKUP(AN32,商品マスター!$B$7:$D$53,3,FALSE),"") ->  | AR32: 0 | AT32: =IFERROR(VLOOKUP(AS32,商品マスター!$B$7:$D$53,2,FALSE),"") ->  | AV32: =IFERROR(VLOOKUP(AS32,商品マスター!$B$7:$D$53,3,FALSE),"") ->  | AW32: 0 | AY32: =IFERROR(VLOOKUP(AX32,商品マスター!$B$7:$D$53,2,FALSE),"") ->  | BA32: =IFERROR(VLOOKUP(AX32,商品マスター!$B$7:$D$53,3,FALSE),"") ->  | BB32: 0 | BD32: =IFERROR(VLOOKUP(BC32,商品マスター!$B$7:$D$53,2,FALSE),"") ->  | BF32: =IFERROR(VLOOKUP(BC32,商品マスター!$B$7:$D$53,3,FALSE),"") ->  | BG32: 0 | BI32: =IFERROR(VLOOKUP(BH32,商品マスター!$B$7:$D$53,2,FALSE),"") ->  | BK32: =IFERROR(VLOOKUP(BH32,商品マスター!$B$7:$D$53,3,FALSE),"") ->  | BL32: 0 | BM32: 0 | BN32: 0.1 | BO32: 0 | BQ32: 0
I33: =IFERROR(VLOOKUP(H33,得意先マスター!$B$7:$H$103,2,FALSE),"") ->  | J33: =IFERROR(VLOOKUP(H33,得意先マスター!$B$7:$H$103,3,FALSE),"") ->  | K33: =IFERROR(VLOOKUP(H33,得意先マスター!$B$7:$H$103,4,FALSE),"") ->  | L33: =IFERROR(VLOOKUP(H33,得意先マスター!$B$7:$H$103,5,FALSE),"") ->  | M33: =IFERROR(VLOOKUP(H33,得意先マスター!$B$7:$H$103,6,FALSE),"") ->  | P33: =IFERROR(VLOOKUP(O33,商品マスター!$B$7:$D$53,2,FALSE),"") ->  | R33: =IFERROR(VLOOKUP(O33,商品マスター!$B$7:$D$53,3,FALSE),"") ->  | S33: 0 | U33: =IFERROR(VLOOKUP(T33,商品マスター!$B$7:$D$53,2,FALSE),"") ->  | W33: =IFERROR(VLOOKUP(T33,商品マスター!$B$7:$D$53,3,FALSE),"") ->  | X33: 0 | Z33: =IFERROR(VLOOKUP(Y33,商品マスター!$B$7:$D$53,2,FALSE),"") ->  | AB33: =IFERROR(VLOOKUP(Y33,商品マスター!$B$7:$D$53,3,FALSE),"") ->  | AC33: 0 | AE33: =IFERROR(VLOOKUP(AD33,商品マスター!$B$7:$D$53,2,FALSE),"") ->  | AG33: =IFERROR(VLOOKUP(AD33,商品マスター!$B$7:$D$53,3,FALSE),"") ->  | AH33: 0 | AJ33: =IFERROR(VLOOKUP(AI33,商品マスター!$B$7:$D$53,2,FALSE),"") ->  | AL33: =IFERROR(VLOOKUP(AI33,商品マスター!$B$7:$D$53,3,FALSE),"") ->  | AM33: 0 | AO33: =IFERROR(VLOOKUP(AN33,商品マスター!$B$7:$D$53,2,FALSE),"") ->  | AQ33: =IFERROR(VLOOKUP(AN33,商品マスター!$B$7:$D$53,3,FALSE),"") ->  | AR33: 0 | AT33: =IFERROR(VLOOKUP(AS33,商品マスター!$B$7:$D$53,2,FALSE),"") ->  | AV33: =IFERROR(VLOOKUP(AS33,商品マスター!$B$7:$D$53,3,FALSE),"") ->  | AW33: 0 | AY33: =IFERROR(VLOOKUP(AX33,商品マスター!$B$7:$D$53,2,FALSE),"") ->  | BA33: =IFERROR(VLOOKUP(AX33,商品マスター!$B$7:$D$53,3,FALSE),"") ->  | BB33: 0 | BD33: =IFERROR(VLOOKUP(BC33,商品マスター!$B$7:$D$53,2,FALSE),"") ->  | BF33: =IFERROR(VLOOKUP(BC33,商品マスター!$B$7:$D$53,3,FALSE),"") ->  | BG33: 0 | BI33: =IFERROR(VLOOKUP(BH33,商品マスター!$B$7:$D$53,2,FALSE),"") ->  | BK33: =IFERROR(VLOOKUP(BH33,商品マスター!$B$7:$D$53,3,FALSE),"") ->  | BL33: 0 | BM33: 0 | BN33: 0.1 | BO33: 0 | BQ33: 0
I34: =IFERROR(VLOOKUP(H34,得意先マスター!$B$7:$H$103,2,FALSE),"") ->  | J34: =IFERROR(VLOOKUP(H34,得意先マスター!$B$7:$H$103,3,FALSE),"") ->  | K34: =IFERROR(VLOOKUP(H34,得意先マスター!$B$7:$H$103,4,FALSE),"") ->  | L34: =IFERROR(VLOOKUP(H34,得意先マスター!$B$7:$H$103,5,FALSE),"") ->  | M34: =IFERROR(VLOOKUP(H34,得意先マスター!$B$7:$H$103,6,FALSE),"") ->  | P34: =IFERROR(VLOOKUP(O34,商品マスター!$B$7:$D$53,2,FALSE),"") ->  | R34: =IFERROR(VLOOKUP(O34,商品マスター!$B$7:$D$53,3,FALSE),"") ->  | S34: 0 | U34: =IFERROR(VLOOKUP(T34,商品マスター!$B$7:$D$53,2,FALSE),"") ->  | W34: =IFERROR(VLOOKUP(T34,商品マスター!$B$7:$D$53,3,FALSE),"") ->  | X34: 0 | Z34: =IFERROR(VLOOKUP(Y34,商品マスター!$B$7:$D$53,2,FALSE),"") ->  | AB34: =IFERROR(VLOOKUP(Y34,商品マスター!$B$7:$D$53,3,FALSE),"") ->  | AC34: 0 | AE34: =IFERROR(VLOOKUP(AD34,商品マスター!$B$7:$D$53,2,FALSE),"") ->  | AG34: =IFERROR(VLOOKUP(AD34,商品マスター!$B$7:$D$53,3,FALSE),"") ->  | AH34: 0 | AJ34: =IFERROR(VLOOKUP(AI34,商品マスター!$B$7:$D$53,2,FALSE),"") ->  | AL34: =IFERROR(VLOOKUP(AI34,商品マスター!$B$7:$D$53,3,FALSE),"") ->  | AM34: 0 | AO34: =IFERROR(VLOOKUP(AN34,商品マスター!$B$7:$D$53,2,FALSE),"") ->  | AQ34: =IFERROR(VLOOKUP(AN34,商品マスター!$B$7:$D$53,3,FALSE),"") ->  | AR34: 0 | AT34: =IFERROR(VLOOKUP(AS34,商品マスター!$B$7:$D$53,2,FALSE),"") ->  | AV34: =IFERROR(VLOOKUP(AS34,商品マスター!$B$7:$D$53,3,FALSE),"") ->  | AW34: 0 | AY34: =IFERROR(VLOOKUP(AX34,商品マスター!$B$7:$D$53,2,FALSE),"") ->  | BA34: =IFERROR(VLOOKUP(AX34,商品マスター!$B$7:$D$53,3,FALSE),"") ->  | BB34: 0 | BD34: =IFERROR(VLOOKUP(BC34,商品マスター!$B$7:$D$53,2,FALSE),"") ->  | BF34: =IFERROR(VLOOKUP(BC34,商品マスター!$B$7:$D$53,3,FALSE),"") ->  | BG34: 0 | BI34: =IFERROR(VLOOKUP(BH34,商品マスター!$B$7:$D$53,2,FALSE),"") ->  | BK34: =IFERROR(VLOOKUP(BH34,商品マスター!$B$7:$D$53,3,FALSE),"") ->  | BL34: 0 | BM34: 0 | BN34: 0.1 | BO34: 0 | BQ34: 0
I35: =IFERROR(VLOOKUP(H35,得意先マスター!$B$7:$H$103,2,FALSE),"") ->  | J35: =IFERROR(VLOOKUP(H35,得意先マスター!$B$7:$H$103,3,FALSE),"") ->  | K35: =IFERROR(VLOOKUP(H35,得意先マスター!$B$7:$H$103,4,FALSE),"") ->  | L35: =IFERROR(VLOOKUP(H35,得意先マスター!$B$7:$H$103,5,FALSE),"") ->  | M35: =IFERROR(VLOOKUP(H35,得意先マスター!$B$7:$H$103,6,FALSE),"") ->  | P35: =IFERROR(VLOOKUP(O35,商品マスター!$B$7:$D$53,2,FALSE),"") ->  | R35: =IFERROR(VLOOKUP(O35,商品マスター!$B$7:$D$53,3,FALSE),"") ->  | S35: 0 | U35: =IFERROR(VLOOKUP(T35,商品マスター!$B$7:$D$53,2,FALSE),"") ->  | W35: =IFERROR(VLOOKUP(T35,商品マスター!$B$7:$D$53,3,FALSE),"") ->  | X35: 0 | Z35: =IFERROR(VLOOKUP(Y35,商品マスター!$B$7:$D$53,2,FALSE),"") ->  | AB35: =IFERROR(VLOOKUP(Y35,商品マスター!$B$7:$D$53,3,FALSE),"") ->  | AC35: 0 | AE35: =IFERROR(VLOOKUP(AD35,商品マスター!$B$7:$D$53,2,FALSE),"") ->  | AG35: =IFERROR(VLOOKUP(AD35,商品マスター!$B$7:$D$53,3,FALSE),"") ->  | AH35: 0 | AJ35: =IFERROR(VLOOKUP(AI35,商品マスター!$B$7:$D$53,2,FALSE),"") ->  | AL35: =IFERROR(VLOOKUP(AI35,商品マスター!$B$7:$D$53,3,FALSE),"") ->  | AM35: 0 | AO35: =IFERROR(VLOOKUP(AN35,商品マスター!$B$7:$D$53,2,FALSE),"") ->  | AQ35: =IFERROR(VLOOKUP(AN35,商品マスター!$B$7:$D$53,3,FALSE),"") ->  | AR35: 0 | AT35: =IFERROR(VLOOKUP(AS35,商品マスター!$B$7:$D$53,2,FALSE),"") ->  | AV35: =IFERROR(VLOOKUP(AS35,商品マスター!$B$7:$D$53,3,FALSE),"") ->  | AW35: 0 | AY35: =IFERROR(VLOOKUP(AX35,商品マスター!$B$7:$D$53,2,FALSE),"") ->  | BA35: =IFERROR(VLOOKUP(AX35,商品マスター!$B$7:$D$53,3,FALSE),"") ->  | BB35: 0 | BD35: =IFERROR(VLOOKUP(BC35,商品マスター!$B$7:$D$53,2,FALSE),"") ->  | BF35: =IFERROR(VLOOKUP(BC35,商品マスター!$B$7:$D$53,3,FALSE),"") ->  | BG35: 0 | BI35: =IFERROR(VLOOKUP(BH35,商品マスター!$B$7:$D$53,2,FALSE),"") ->  | BK35: =IFERROR(VLOOKUP(BH35,商品マスター!$B$7:$D$53,3,FALSE),"") ->  | BL35: 0 | BM35: 0 | BN35: 0.1 | BO35: 0 | BQ35: 0
I36: =IFERROR(VLOOKUP(H36,得意先マスター!$B$7:$H$103,2,FALSE),"") ->  | J36: =IFERROR(VLOOKUP(H36,得意先マスター!$B$7:$H$103,3,FALSE),"") ->  | K36: =IFERROR(VLOOKUP(H36,得意先マスター!$B$7:$H$103,4,FALSE),"") ->  | L36: =IFERROR(VLOOKUP(H36,得意先マスター!$B$7:$H$103,5,FALSE),"") ->  | M36: =IFERROR(VLOOKUP(H36,得意先マスター!$B$7:$H$103,6,FALSE),"") ->  | P36: =IFERROR(VLOOKUP(O36,商品マスター!$B$7:$D$53,2,FALSE),"") ->  | R36: =IFERROR(VLOOKUP(O36,商品マスター!$B$7:$D$53,3,FALSE),"") ->  | S36: 0 | U36: =IFERROR(VLOOKUP(T36,商品マスター!$B$7:$D$53,2,FALSE),"") ->  | W36: =IFERROR(VLOOKUP(T36,商品マスター!$B$7:$D$53,3,FALSE),"") ->  | X36: 0 | Z36: =IFERROR(VLOOKUP(Y36,商品マスター!$B$7:$D$53,2,FALSE),"") ->  | AB36: =IFERROR(VLOOKUP(Y36,商品マスター!$B$7:$D$53,3,FALSE),"") ->  | AC36: 0 | AE36: =IFERROR(VLOOKUP(AD36,商品マスター!$B$7:$D$53,2,FALSE),"") ->  | AG36: =IFERROR(VLOOKUP(AD36,商品マスター!$B$7:$D$53,3,FALSE),"") ->  | AH36: 0 | AJ36: =IFERROR(VLOOKUP(AI36,商品マスター!$B$7:$D$53,2,FALSE),"") ->  | AL36: =IFERROR(VLOOKUP(AI36,商品マスター!$B$7:$D$53,3,FALSE),"") ->  | AM36: 0 | AO36: =IFERROR(VLOOKUP(AN36,商品マスター!$B$7:$D$53,2,FALSE),"") ->  | AQ36: =IFERROR(VLOOKUP(AN36,商品マスター!$B$7:$D$53,3,FALSE),"") ->  | AR36: 0 | AT36: =IFERROR(VLOOKUP(AS36,商品マスター!$B$7:$D$53,2,FALSE),"") ->  | AV36: =IFERROR(VLOOKUP(AS36,商品マスター!$B$7:$D$53,3,FALSE),"") ->  | AW36: 0 | AY36: =IFERROR(VLOOKUP(AX36,商品マスター!$B$7:$D$53,2,FALSE),"") ->  | BA36: =IFERROR(VLOOKUP(AX36,商品マスター!$B$7:$D$53,3,FALSE),"") ->  | BB36: 0 | BD36: =IFERROR(VLOOKUP(BC36,商品マスター!$B$7:$D$53,2,FALSE),"") ->  | BF36: =IFERROR(VLOOKUP(BC36,商品マスター!$B$7:$D$53,3,FALSE),"") ->  | BG36: 0 | BI36: =IFERROR(VLOOKUP(BH36,商品マスター!$B$7:$D$53,2,FALSE),"") ->  | BK36: =IFERROR(VLOOKUP(BH36,商品マスター!$B$7:$D$53,3,FALSE),"") ->  | BL36: 0 | BM36: 0 | BN36: 0.1 | BO36: 0 | BQ36: 0
I37: =IFERROR(VLOOKUP(H37,得意先マスター!$B$7:$H$103,2,FALSE),"") ->  | J37: =IFERROR(VLOOKUP(H37,得意先マスター!$B$7:$H$103,3,FALSE),"") ->  | K37: =IFERROR(VLOOKUP(H37,得意先マスター!$B$7:$H$103,4,FALSE),"") ->  | L37: =IFERROR(VLOOKUP(H37,得意先マスター!$B$7:$H$103,5,FALSE),"") ->  | M37: =IFERROR(VLOOKUP(H37,得意先マスター!$B$7:$H$103,6,FALSE),"") ->  | P37: =IFERROR(VLOOKUP(O37,商品マスター!$B$7:$D$53,2,FALSE),"") ->  | R37: =IFERROR(VLOOKUP(O37,商品マスター!$B$7:$D$53,3,FALSE),"") ->  | S37: 0 | U37: =IFERROR(VLOOKUP(T37,商品マスター!$B$7:$D$53,2,FALSE),"") ->  | W37: =IFERROR(VLOOKUP(T37,商品マスター!$B$7:$D$53,3,FALSE),"") ->  | X37: 0 | Z37: =IFERROR(VLOOKUP(Y37,商品マスター!$B$7:$D$53,2,FALSE),"") ->  | AB37: =IFERROR(VLOOKUP(Y37,商品マスター!$B$7:$D$53,3,FALSE),"") ->  | AC37: 0 | AE37: =IFERROR(VLOOKUP(AD37,商品マスター!$B$7:$D$53,2,FALSE),"") ->  | AG37: =IFERROR(VLOOKUP(AD37,商品マスター!$B$7:$D$53,3,FALSE),"") ->  | AH37: 0 | AJ37: =IFERROR(VLOOKUP(AI37,商品マスター!$B$7:$D$53,2,FALSE),"") ->  | AL37: =IFERROR(VLOOKUP(AI37,商品マスター!$B$7:$D$53,3,FALSE),"") ->  | AM37: 0 | AO37: =IFERROR(VLOOKUP(AN37,商品マスター!$B$7:$D$53,2,FALSE),"") ->  | AQ37: =IFERROR(VLOOKUP(AN37,商品マスター!$B$7:$D$53,3,FALSE),"") ->  | AR37: 0 | AT37: =IFERROR(VLOOKUP(AS37,商品マスター!$B$7:$D$53,2,FALSE),"") ->  | AV37: =IFERROR(VLOOKUP(AS37,商品マスター!$B$7:$D$53,3,FALSE),"") ->  | AW37: 0 | AY37: =IFERROR(VLOOKUP(AX37,商品マスター!$B$7:$D$53,2,FALSE),"") ->  | BA37: =IFERROR(VLOOKUP(AX37,商品マスター!$B$7:$D$53,3,FALSE),"") ->  | BB37: 0 | BD37: =IFERROR(VLOOKUP(BC37,商品マスター!$B$7:$D$53,2,FALSE),"") ->  | BF37: =IFERROR(VLOOKUP(BC37,商品マスター!$B$7:$D$53,3,FALSE),"") ->  | BG37: 0 | BI37: =IFERROR(VLOOKUP(BH37,商品マスター!$B$7:$D$53,2,FALSE),"") ->  | BK37: =IFERROR(VLOOKUP(BH37,商品マスター!$B$7:$D$53,3,FALSE),"") ->  | BL37: 0 | BM37: 0 | BN37: 0.1 | BO37: 0 | BQ37: 0
I38: =IFERROR(VLOOKUP(H38,得意先マスター!$B$7:$H$103,2,FALSE),"") ->  | J38: =IFERROR(VLOOKUP(H38,得意先マスター!$B$7:$H$103,3,FALSE),"") ->  | K38: =IFERROR(VLOOKUP(H38,得意先マスター!$B$7:$H$103,4,FALSE),"") ->  | L38: =IFERROR(VLOOKUP(H38,得意先マスター!$B$7:$H$103,5,FALSE),"") ->  | M38: =IFERROR(VLOOKUP(H38,得意先マスター!$B$7:$H$103,6,FALSE),"") ->  | P38: =IFERROR(VLOOKUP(O38,商品マスター!$B$7:$D$53,2,FALSE),"") ->  | R38: =IFERROR(VLOOKUP(O38,商品マスター!$B$7:$D$53,3,FALSE),"") ->  | S38: 0 | U38: =IFERROR(VLOOKUP(T38,商品マスター!$B$7:$D$53,2,FALSE),"") ->  | W38: =IFERROR(VLOOKUP(T38,商品マスター!$B$7:$D$53,3,FALSE),"") ->  | X38: 0 | Z38: =IFERROR(VLOOKUP(Y38,商品マスター!$B$7:$D$53,2,FALSE),"") ->  | AB38: =IFERROR(VLOOKUP(Y38,商品マスター!$B$7:$D$53,3,FALSE),"") ->  | AC38: 0 | AE38: =IFERROR(VLOOKUP(AD38,商品マスター!$B$7:$D$53,2,FALSE),"") ->  | AG38: =IFERROR(VLOOKUP(AD38,商品マスター!$B$7:$D$53,3,FALSE),"") ->  | AH38: 0 | AJ38: =IFERROR(VLOOKUP(AI38,商品マスター!$B$7:$D$53,2,FALSE),"") ->  | AL38: =IFERROR(VLOOKUP(AI38,商品マスター!$B$7:$D$53,3,FALSE),"") ->  | AM38: 0 | AO38: =IFERROR(VLOOKUP(AN38,商品マスター!$B$7:$D$53,2,FALSE),"") ->  | AQ38: =IFERROR(VLOOKUP(AN38,商品マスター!$B$7:$D$53,3,FALSE),"") ->  | AR38: 0 | AT38: =IFERROR(VLOOKUP(AS38,商品マスター!$B$7:$D$53,2,FALSE),"") ->  | AV38: =IFERROR(VLOOKUP(AS38,商品マスター!$B$7:$D$53,3,FALSE),"") ->  | AW38: 0 | AY38: =IFERROR(VLOOKUP(AX38,商品マスター!$B$7:$D$53,2,FALSE),"") ->  | BA38: =IFERROR(VLOOKUP(AX38,商品マスター!$B$7:$D$53,3,FALSE),"") ->  | BB38: 0 | BD38: =IFERROR(VLOOKUP(BC38,商品マスター!$B$7:$D$53,2,FALSE),"") ->  | BF38: =IFERROR(VLOOKUP(BC38,商品マスター!$B$7:$D$53,3,FALSE),"") ->  | BG38: 0 | BI38: =IFERROR(VLOOKUP(BH38,商品マスター!$B$7:$D$53,2,FALSE),"") ->  | BK38: =IFERROR(VLOOKUP(BH38,商品マスター!$B$7:$D$53,3,FALSE),"") ->  | BL38: 0 | BM38: 0 | BN38: 0.1 | BO38: 0 | BQ38: 0
I39: =IFERROR(VLOOKUP(H39,得意先マスター!$B$7:$H$103,2,FALSE),"") ->  | J39: =IFERROR(VLOOKUP(H39,得意先マスター!$B$7:$H$103,3,FALSE),"") ->  | K39: =IFERROR(VLOOKUP(H39,得意先マスター!$B$7:$H$103,4,FALSE),"") ->  | L39: =IFERROR(VLOOKUP(H39,得意先マスター!$B$7:$H$103,5,FALSE),"") ->  | M39: =IFERROR(VLOOKUP(H39,得意先マスター!$B$7:$H$103,6,FALSE),"") ->  | P39: =IFERROR(VLOOKUP(O39,商品マスター!$B$7:$D$53,2,FALSE),"") ->  | R39: =IFERROR(VLOOKUP(O39,商品マスター!$B$7:$D$53,3,FALSE),"") ->  | S39: 0 | U39: =IFERROR(VLOOKUP(T39,商品マスター!$B$7:$D$53,2,FALSE),"") ->  | W39: =IFERROR(VLOOKUP(T39,商品マスター!$B$7:$D$53,3,FALSE),"") ->  | X39: 0 | Z39: =IFERROR(VLOOKUP(Y39,商品マスター!$B$7:$D$53,2,FALSE),"") ->  | AB39: =IFERROR(VLOOKUP(Y39,商品マスター!$B$7:$D$53,3,FALSE),"") ->  | AC39: 0 | AE39: =IFERROR(VLOOKUP(AD39,商品マスター!$B$7:$D$53,2,FALSE),"") ->  | AG39: =IFERROR(VLOOKUP(AD39,商品マスター!$B$7:$D$53,3,FALSE),"") ->  | AH39: 0 | AJ39: =IFERROR(VLOOKUP(AI39,商品マスター!$B$7:$D$53,2,FALSE),"") ->  | AL39: =IFERROR(VLOOKUP(AI39,商品マスター!$B$7:$D$53,3,FALSE),"") ->  | AM39: 0 | AO39: =IFERROR(VLOOKUP(AN39,商品マスター!$B$7:$D$53,2,FALSE),"") ->  | AQ39: =IFERROR(VLOOKUP(AN39,商品マスター!$B$7:$D$53,3,FALSE),"") ->  | AR39: 0 | AT39: =IFERROR(VLOOKUP(AS39,商品マスター!$B$7:$D$53,2,FALSE),"") ->  | AV39: =IFERROR(VLOOKUP(AS39,商品マスター!$B$7:$D$53,3,FALSE),"") ->  | AW39: 0 | AY39: =IFERROR(VLOOKUP(AX39,商品マスター!$B$7:$D$53,2,FALSE),"") ->  | BA39: =IFERROR(VLOOKUP(AX39,商品マスター!$B$7:$D$53,3,FALSE),"") ->  | BB39: 0 | BD39: =IFERROR(VLOOKUP(BC39,商品マスター!$B$7:$D$53,2,FALSE),"") ->  | BF39: =IFERROR(VLOOKUP(BC39,商品マスター!$B$7:$D$53,3,FALSE),"") ->  | BG39: 0 | BI39: =IFERROR(VLOOKUP(BH39,商品マスター!$B$7:$D$53,2,FALSE),"") ->  | BK39: =IFERROR(VLOOKUP(BH39,商品マスター!$B$7:$D$53,3,FALSE),"") ->  | BL39: 0 | BM39: 0 | BN39: 0.1 | BO39: 0 | BQ39: 0
I40: =IFERROR(VLOOKUP(H40,得意先マスター!$B$7:$H$103,2,FALSE),"") ->  | J40: =IFERROR(VLOOKUP(H40,得意先マスター!$B$7:$H$103,3,FALSE),"") ->  | K40: =IFERROR(VLOOKUP(H40,得意先マスター!$B$7:$H$103,4,FALSE),"") ->  | L40: =IFERROR(VLOOKUP(H40,得意先マスター!$B$7:$H$103,5,FALSE),"") ->  | M40: =IFERROR(VLOOKUP(H40,得意先マスター!$B$7:$H$103,6,FALSE),"") ->  | P40: =IFERROR(VLOOKUP(O40,商品マスター!$B$7:$D$53,2,FALSE),"") ->  | R40: =IFERROR(VLOOKUP(O40,商品マスター!$B$7:$D$53,3,FALSE),"") ->  | S40: 0 | U40: =IFERROR(VLOOKUP(T40,商品マスター!$B$7:$D$53,2,FALSE),"") ->  | W40: =IFERROR(VLOOKUP(T40,商品マスター!$B$7:$D$53,3,FALSE),"") ->  | X40: 0 | Z40: =IFERROR(VLOOKUP(Y40,商品マスター!$B$7:$D$53,2,FALSE),"") ->  | AB40: =IFERROR(VLOOKUP(Y40,商品マスター!$B$7:$D$53,3,FALSE),"") ->  | AC40: 0 | AE40: =IFERROR(VLOOKUP(AD40,商品マスター!$B$7:$D$53,2,FALSE),"") ->  | AG40: =IFERROR(VLOOKUP(AD40,商品マスター!$B$7:$D$53,3,FALSE),"") ->  | AH40: 0 | AJ40: =IFERROR(VLOOKUP(AI40,商品マスター!$B$7:$D$53,2,FALSE),"") ->  | AL40: =IFERROR(VLOOKUP(AI40,商品マスター!$B$7:$D$53,3,FALSE),"") ->  | AM40: 0 | AO40: =IFERROR(VLOOKUP(AN40,商品マスター!$B$7:$D$53,2,FALSE),"") ->  | AQ40: =IFERROR(VLOOKUP(AN40,商品マスター!$B$7:$D$53,3,FALSE),"") ->  | AR40: 0 | AT40: =IFERROR(VLOOKUP(AS40,商品マスター!$B$7:$D$53,2,FALSE),"") ->  | AV40: =IFERROR(VLOOKUP(AS40,商品マスター!$B$7:$D$53,3,FALSE),"") ->  | AW40: 0 | AY40: =IFERROR(VLOOKUP(AX40,商品マスター!$B$7:$D$53,2,FALSE),"") ->  | BA40: =IFERROR(VLOOKUP(AX40,商品マスター!$B$7:$D$53,3,FALSE),"") ->  | BB40: 0 | BD40: =IFERROR(VLOOKUP(BC40,商品マスター!$B$7:$D$53,2,FALSE),"") ->  | BF40: =IFERROR(VLOOKUP(BC40,商品マスター!$B$7:$D$53,3,FALSE),"") ->  | BG40: 0 | BI40: =IFERROR(VLOOKUP(BH40,商品マスター!$B$7:$D$53,2,FALSE),"") ->  | BK40: =IFERROR(VLOOKUP(BH40,商品マスター!$B$7:$D$53,3,FALSE),"") ->  | BL40: 0 | BM40: 0 | BN40: 0.1 | BO40: 0 | BQ40: 0
I41: =IFERROR(VLOOKUP(H41,得意先マスター!$B$7:$H$103,2,FALSE),"") ->  | J41: =IFERROR(VLOOKUP(H41,得意先マスター!$B$7:$H$103,3,FALSE),"") ->  | K41: =IFERROR(VLOOKUP(H41,得意先マスター!$B$7:$H$103,4,FALSE),"") ->  | L41: =IFERROR(VLOOKUP(H41,得意先マスター!$B$7:$H$103,5,FALSE),"") ->  | M41: =IFERROR(VLOOKUP(H41,得意先マスター!$B$7:$H$103,6,FALSE),"") ->  | P41: =IFERROR(VLOOKUP(O41,商品マスター!$B$7:$D$53,2,FALSE),"") ->  | R41: =IFERROR(VLOOKUP(O41,商品マスター!$B$7:$D$53,3,FALSE),"") ->  | S41: 0 | U41: =IFERROR(VLOOKUP(T41,商品マスター!$B$7:$D$53,2,FALSE),"") ->  | W41: =IFERROR(VLOOKUP(T41,商品マスター!$B$7:$D$53,3,FALSE),"") ->  | X41: 0 | Z41: =IFERROR(VLOOKUP(Y41,商品マスター!$B$7:$D$53,2,FALSE),"") ->  | AB41: =IFERROR(VLOOKUP(Y41,商品マスター!$B$7:$D$53,3,FALSE),"") ->  | AC41: 0 | AE41: =IFERROR(VLOOKUP(AD41,商品マスター!$B$7:$D$53,2,FALSE),"") ->  | AG41: =IFERROR(VLOOKUP(AD41,商品マスター!$B$7:$D$53,3,FALSE),"") ->  | AH41: 0 | AJ41: =IFERROR(VLOOKUP(AI41,商品マスター!$B$7:$D$53,2,FALSE),"") ->  | AL41: =IFERROR(VLOOKUP(AI41,商品マスター!$B$7:$D$53,3,FALSE),"") ->  | AM41: 0 | AO41: =IFERROR(VLOOKUP(AN41,商品マスター!$B$7:$D$53,2,FALSE),"") ->  | AQ41: =IFERROR(VLOOKUP(AN41,商品マスター!$B$7:$D$53,3,FALSE),"") ->  | AR41: 0 | AT41: =IFERROR(VLOOKUP(AS41,商品マスター!$B$7:$D$53,2,FALSE),"") ->  | AV41: =IFERROR(VLOOKUP(AS41,商品マスター!$B$7:$D$53,3,FALSE),"") ->  | AW41: 0 | AY41: =IFERROR(VLOOKUP(AX41,商品マスター!$B$7:$D$53,2,FALSE),"") ->  | BA41: =IFERROR(VLOOKUP(AX41,商品マスター!$B$7:$D$53,3,FALSE),"") ->  | BB41: 0 | BD41: =IFERROR(VLOOKUP(BC41,商品マスター!$B$7:$D$53,2,FALSE),"") ->  | BF41: =IFERROR(VLOOKUP(BC41,商品マスター!$B$7:$D$53,3,FALSE),"") ->  | BG41: 0 | BI41: =IFERROR(VLOOKUP(BH41,商品マスター!$B$7:$D$53,2,FALSE),"") ->  | BK41: =IFERROR(VLOOKUP(BH41,商品マスター!$B$7:$D$53,3,FALSE),"") ->  | BL41: 0 | BM41: 0 | BN41: 0.1 | BO41: 0 | BQ41: 0
I42: =IFERROR(VLOOKUP(H42,得意先マスター!$B$7:$H$103,2,FALSE),"") ->  | J42: =IFERROR(VLOOKUP(H42,得意先マスター!$B$7:$H$103,3,FALSE),"") ->  | K42: =IFERROR(VLOOKUP(H42,得意先マスター!$B$7:$H$103,4,FALSE),"") ->  | L42: =IFERROR(VLOOKUP(H42,得意先マスター!$B$7:$H$103,5,FALSE),"") ->  | M42: =IFERROR(VLOOKUP(H42,得意先マスター!$B$7:$H$103,6,FALSE),"") ->  | P42: =IFERROR(VLOOKUP(O42,商品マスター!$B$7:$D$53,2,FALSE),"") ->  | R42: =IFERROR(VLOOKUP(O42,商品マスター!$B$7:$D$53,3,FALSE),"") ->  | S42: 0 | U42: =IFERROR(VLOOKUP(T42,商品マスター!$B$7:$D$53,2,FALSE),"") ->  | W42: =IFERROR(VLOOKUP(T42,商品マスター!$B$7:$D$53,3,FALSE),"") ->  | X42: 0 | Z42: =IFERROR(VLOOKUP(Y42,商品マスター!$B$7:$D$53,2,FALSE),"") ->  | AB42: =IFERROR(VLOOKUP(Y42,商品マスター!$B$7:$D$53,3,FALSE),"") ->  | AC42: 0 | AE42: =IFERROR(VLOOKUP(AD42,商品マスター!$B$7:$D$53,2,FALSE),"") ->  | AG42: =IFERROR(VLOOKUP(AD42,商品マスター!$B$7:$D$53,3,FALSE),"") ->  | AH42: 0 | AJ42: =IFERROR(VLOOKUP(AI42,商品マスター!$B$7:$D$53,2,FALSE),"") ->  | AL42: =IFERROR(VLOOKUP(AI42,商品マスター!$B$7:$D$53,3,FALSE),"") ->  | AM42: 0 | AO42: =IFERROR(VLOOKUP(AN42,商品マスター!$B$7:$D$53,2,FALSE),"") ->  | AQ42: =IFERROR(VLOOKUP(AN42,商品マスター!$B$7:$D$53,3,FALSE),"") ->  | AR42: 0 | AT42: =IFERROR(VLOOKUP(AS42,商品マスター!$B$7:$D$53,2,FALSE),"") ->  | AV42: =IFERROR(VLOOKUP(AS42,商品マスター!$B$7:$D$53,3,FALSE),"") ->  | AW42: 0 | AY42: =IFERROR(VLOOKUP(AX42,商品マスター!$B$7:$D$53,2,FALSE),"") ->  | BA42: =IFERROR(VLOOKUP(AX42,商品マスター!$B$7:$D$53,3,FALSE),"") ->  | BB42: 0 | BD42: =IFERROR(VLOOKUP(BC42,商品マスター!$B$7:$D$53,2,FALSE),"") ->  | BF42: =IFERROR(VLOOKUP(BC42,商品マスター!$B$7:$D$53,3,FALSE),"") ->  | BG42: 0 | BI42: =IFERROR(VLOOKUP(BH42,商品マスター!$B$7:$D$53,2,FALSE),"") ->  | BK42: =IFERROR(VLOOKUP(BH42,商品マスター!$B$7:$D$53,3,FALSE),"") ->  | BL42: 0 | BM42: 0 | BN42: 0.1 | BO42: 0 | BQ42: 0
I43: =IFERROR(VLOOKUP(H43,得意先マスター!$B$7:$H$103,2,FALSE),"") ->  | J43: =IFERROR(VLOOKUP(H43,得意先マスター!$B$7:$H$103,3,FALSE),"") ->  | K43: =IFERROR(VLOOKUP(H43,得意先マスター!$B$7:$H$103,4,FALSE),"") ->  | L43: =IFERROR(VLOOKUP(H43,得意先マスター!$B$7:$H$103,5,FALSE),"") ->  | M43: =IFERROR(VLOOKUP(H43,得意先マスター!$B$7:$H$103,6,FALSE),"") ->  | P43: =IFERROR(VLOOKUP(O43,商品マスター!$B$7:$D$53,2,FALSE),"") ->  | R43: =IFERROR(VLOOKUP(O43,商品マスター!$B$7:$D$53,3,FALSE),"") ->  | S43: 0 | U43: =IFERROR(VLOOKUP(T43,商品マスター!$B$7:$D$53,2,FALSE),"") ->  | W43: =IFERROR(VLOOKUP(T43,商品マスター!$B$7:$D$53,3,FALSE),"") ->  | X43: 0 | Z43: =IFERROR(VLOOKUP(Y43,商品マスター!$B$7:$D$53,2,FALSE),"") ->  | AB43: =IFERROR(VLOOKUP(Y43,商品マスター!$B$7:$D$53,3,FALSE),"") ->  | AC43: 0 | AE43: =IFERROR(VLOOKUP(AD43,商品マスター!$B$7:$D$53,2,FALSE),"") ->  | AG43: =IFERROR(VLOOKUP(AD43,商品マスター!$B$7:$D$53,3,FALSE),"") ->  | AH43: 0 | AJ43: =IFERROR(VLOOKUP(AI43,商品マスター!$B$7:$D$53,2,FALSE),"") ->  | AL43: =IFERROR(VLOOKUP(AI43,商品マスター!$B$7:$D$53,3,FALSE),"") ->  | AM43: 0 | AO43: =IFERROR(VLOOKUP(AN43,商品マスター!$B$7:$D$53,2,FALSE),"") ->  | AQ43: =IFERROR(VLOOKUP(AN43,商品マスター!$B$7:$D$53,3,FALSE),"") ->  | AR43: 0 | AT43: =IFERROR(VLOOKUP(AS43,商品マスター!$B$7:$D$53,2,FALSE),"") ->  | AV43: =IFERROR(VLOOKUP(AS43,商品マスター!$B$7:$D$53,3,FALSE),"") ->  | AW43: 0 | AY43: =IFERROR(VLOOKUP(AX43,商品マスター!$B$7:$D$53,2,FALSE),"") ->  | BA43: =IFERROR(VLOOKUP(AX43,商品マスター!$B$7:$D$53,3,FALSE),"") ->  | BB43: 0 | BD43: =IFERROR(VLOOKUP(BC43,商品マスター!$B$7:$D$53,2,FALSE),"") ->  | BF43: =IFERROR(VLOOKUP(BC43,商品マスター!$B$7:$D$53,3,FALSE),"") ->  | BG43: 0 | BI43: =IFERROR(VLOOKUP(BH43,商品マスター!$B$7:$D$53,2,FALSE),"") ->  | BK43: =IFERROR(VLOOKUP(BH43,商品マスター!$B$7:$D$53,3,FALSE),"") ->  | BL43: 0 | BM43: 0 | BN43: 0.1 | BO43: 0 | BQ43: 0
I44: =IFERROR(VLOOKUP(H44,得意先マスター!$B$7:$H$103,2,FALSE),"") ->  | J44: =IFERROR(VLOOKUP(H44,得意先マスター!$B$7:$H$103,3,FALSE),"") ->  | K44: =IFERROR(VLOOKUP(H44,得意先マスター!$B$7:$H$103,4,FALSE),"") ->  | L44: =IFERROR(VLOOKUP(H44,得意先マスター!$B$7:$H$103,5,FALSE),"") ->  | M44: =IFERROR(VLOOKUP(H44,得意先マスター!$B$7:$H$103,6,FALSE),"") ->  | P44: =IFERROR(VLOOKUP(O44,商品マスター!$B$7:$D$53,2,FALSE),"") ->  | R44: =IFERROR(VLOOKUP(O44,商品マスター!$B$7:$D$53,3,FALSE),"") ->  | S44: 0 | U44: =IFERROR(VLOOKUP(T44,商品マスター!$B$7:$D$53,2,FALSE),"") ->  | W44: =IFERROR(VLOOKUP(T44,商品マスター!$B$7:$D$53,3,FALSE),"") ->  | X44: 0 | Z44: =IFERROR(VLOOKUP(Y44,商品マスター!$B$7:$D$53,2,FALSE),"") ->  | AB44: =IFERROR(VLOOKUP(Y44,商品マスター!$B$7:$D$53,3,FALSE),"") ->  | AC44: 0 | AE44: =IFERROR(VLOOKUP(AD44,商品マスター!$B$7:$D$53,2,FALSE),"") ->  | AG44: =IFERROR(VLOOKUP(AD44,商品マスター!$B$7:$D$53,3,FALSE),"") ->  | AH44: 0 | AJ44: =IFERROR(VLOOKUP(AI44,商品マスター!$B$7:$D$53,2,FALSE),"") ->  | AL44: =IFERROR(VLOOKUP(AI44,商品マスター!$B$7:$D$53,3,FALSE),"") ->  | AM44: 0 | AO44: =IFERROR(VLOOKUP(AN44,商品マスター!$B$7:$D$53,2,FALSE),"") ->  | AQ44: =IFERROR(VLOOKUP(AN44,商品マスター!$B$7:$D$53,3,FALSE),"") ->  | AR44: 0 | AT44: =IFERROR(VLOOKUP(AS44,商品マスター!$B$7:$D$53,2,FALSE),"") ->  | AV44: =IFERROR(VLOOKUP(AS44,商品マスター!$B$7:$D$53,3,FALSE),"") ->  | AW44: 0 | AY44: =IFERROR(VLOOKUP(AX44,商品マスター!$B$7:$D$53,2,FALSE),"") ->  | BA44: =IFERROR(VLOOKUP(AX44,商品マスター!$B$7:$D$53,3,FALSE),"") ->  | BB44: 0 | BD44: =IFERROR(VLOOKUP(BC44,商品マスター!$B$7:$D$53,2,FALSE),"") ->  | BF44: =IFERROR(VLOOKUP(BC44,商品マスター!$B$7:$D$53,3,FALSE),"") ->  | BG44: 0 | BI44: =IFERROR(VLOOKUP(BH44,商品マスター!$B$7:$D$53,2,FALSE),"") ->  | BK44: =IFERROR(VLOOKUP(BH44,商品マスター!$B$7:$D$53,3,FALSE),"") ->  | BL44: 0 | BM44: 0 | BN44: 0.1 | BO44: 0 | BQ44: 0
I45: =IFERROR(VLOOKUP(H45,得意先マスター!$B$7:$H$103,2,FALSE),"") ->  | J45: =IFERROR(VLOOKUP(H45,得意先マスター!$B$7:$H$103,3,FALSE),"") ->  | K45: =IFERROR(VLOOKUP(H45,得意先マスター!$B$7:$H$103,4,FALSE),"") ->  | L45: =IFERROR(VLOOKUP(H45,得意先マスター!$B$7:$H$103,5,FALSE),"") ->  | M45: =IFERROR(VLOOKUP(H45,得意先マスター!$B$7:$H$103,6,FALSE),"") ->  | P45: =IFERROR(VLOOKUP(O45,商品マスター!$B$7:$D$53,2,FALSE),"") ->  | R45: =IFERROR(VLOOKUP(O45,商品マスター!$B$7:$D$53,3,FALSE),"") ->  | S45: 0 | U45: =IFERROR(VLOOKUP(T45,商品マスター!$B$7:$D$53,2,FALSE),"") ->  | W45: =IFERROR(VLOOKUP(T45,商品マスター!$B$7:$D$53,3,FALSE),"") ->  | X45: 0 | Z45: =IFERROR(VLOOKUP(Y45,商品マスター!$B$7:$D$53,2,FALSE),"") ->  | AB45: =IFERROR(VLOOKUP(Y45,商品マスター!$B$7:$D$53,3,FALSE),"") ->  | AC45: 0 | AE45: =IFERROR(VLOOKUP(AD45,商品マスター!$B$7:$D$53,2,FALSE),"") ->  | AG45: =IFERROR(VLOOKUP(AD45,商品マスター!$B$7:$D$53,3,FALSE),"") ->  | AH45: 0 | AJ45: =IFERROR(VLOOKUP(AI45,商品マスター!$B$7:$D$53,2,FALSE),"") ->  | AL45: =IFERROR(VLOOKUP(AI45,商品マスター!$B$7:$D$53,3,FALSE),"") ->  | AM45: 0 | AO45: =IFERROR(VLOOKUP(AN45,商品マスター!$B$7:$D$53,2,FALSE),"") ->  | AQ45: =IFERROR(VLOOKUP(AN45,商品マスター!$B$7:$D$53,3,FALSE),"") ->  | AR45: 0 | AT45: =IFERROR(VLOOKUP(AS45,商品マスター!$B$7:$D$53,2,FALSE),"") ->  | AV45: =IFERROR(VLOOKUP(AS45,商品マスター!$B$7:$D$53,3,FALSE),"") ->  | AW45: 0 | AY45: =IFERROR(VLOOKUP(AX45,商品マスター!$B$7:$D$53,2,FALSE),"") ->  | BA45: =IFERROR(VLOOKUP(AX45,商品マスター!$B$7:$D$53,3,FALSE),"") ->  | BB45: 0 | BD45: =IFERROR(VLOOKUP(BC45,商品マスター!$B$7:$D$53,2,FALSE),"") ->  | BF45: =IFERROR(VLOOKUP(BC45,商品マスター!$B$7:$D$53,3,FALSE),"") ->  | BG45: 0 | BI45: =IFERROR(VLOOKUP(BH45,商品マスター!$B$7:$D$53,2,FALSE),"") ->  | BK45: =IFERROR(VLOOKUP(BH45,商品マスター!$B$7:$D$53,3,FALSE),"") ->  | BL45: 0 | BM45: 0 | BN45: 0.1 | BO45: 0 | BQ45: 0
I46: =IFERROR(VLOOKUP(H46,得意先マスター!$B$7:$H$103,2,FALSE),"") ->  | J46: =IFERROR(VLOOKUP(H46,得意先マスター!$B$7:$H$103,3,FALSE),"") ->  | K46: =IFERROR(VLOOKUP(H46,得意先マスター!$B$7:$H$103,4,FALSE),"") ->  | L46: =IFERROR(VLOOKUP(H46,得意先マスター!$B$7:$H$103,5,FALSE),"") ->  | M46: =IFERROR(VLOOKUP(H46,得意先マスター!$B$7:$H$103,6,FALSE),"") ->  | P46: =IFERROR(VLOOKUP(O46,商品マスター!$B$7:$D$53,2,FALSE),"") ->  | R46: =IFERROR(VLOOKUP(O46,商品マスター!$B$7:$D$53,3,FALSE),"") ->  | S46: 0 | U46: =IFERROR(VLOOKUP(T46,商品マスター!$B$7:$D$53,2,FALSE),"") ->  | W46: =IFERROR(VLOOKUP(T46,商品マスター!$B$7:$D$53,3,FALSE),"") ->  | X46: 0 | Z46: =IFERROR(VLOOKUP(Y46,商品マスター!$B$7:$D$53,2,FALSE),"") ->  | AB46: =IFERROR(VLOOKUP(Y46,商品マスター!$B$7:$D$53,3,FALSE),"") ->  | AC46: 0 | AE46: =IFERROR(VLOOKUP(AD46,商品マスター!$B$7:$D$53,2,FALSE),"") ->  | AG46: =IFERROR(VLOOKUP(AD46,商品マスター!$B$7:$D$53,3,FALSE),"") ->  | AH46: 0 | AJ46: =IFERROR(VLOOKUP(AI46,商品マスター!$B$7:$D$53,2,FALSE),"") ->  | AL46: =IFERROR(VLOOKUP(AI46,商品マスター!$B$7:$D$53,3,FALSE),"") ->  | AM46: 0 | AO46: =IFERROR(VLOOKUP(AN46,商品マスター!$B$7:$D$53,2,FALSE),"") ->  | AQ46: =IFERROR(VLOOKUP(AN46,商品マスター!$B$7:$D$53,3,FALSE),"") ->  | AR46: 0 | AT46: =IFERROR(VLOOKUP(AS46,商品マスター!$B$7:$D$53,2,FALSE),"") ->  | AV46: =IFERROR(VLOOKUP(AS46,商品マスター!$B$7:$D$53,3,FALSE),"") ->  | AW46: 0 | AY46: =IFERROR(VLOOKUP(AX46,商品マスター!$B$7:$D$53,2,FALSE),"") ->  | BA46: =IFERROR(VLOOKUP(AX46,商品マスター!$B$7:$D$53,3,FALSE),"") ->  | BB46: 0 | BD46: =IFERROR(VLOOKUP(BC46,商品マスター!$B$7:$D$53,2,FALSE),"") ->  | BF46: =IFERROR(VLOOKUP(BC46,商品マスター!$B$7:$D$53,3,FALSE),"") ->  | BG46: 0 | BI46: =IFERROR(VLOOKUP(BH46,商品マスター!$B$7:$D$53,2,FALSE),"") ->  | BK46: =IFERROR(VLOOKUP(BH46,商品マスター!$B$7:$D$53,3,FALSE),"") ->  | BL46: 0 | BM46: 0 | BN46: 0.1 | BO46: 0 | BQ46: 0
I47: =IFERROR(VLOOKUP(H47,得意先マスター!$B$7:$H$103,2,FALSE),"") ->  | J47: =IFERROR(VLOOKUP(H47,得意先マスター!$B$7:$H$103,3,FALSE),"") ->  | K47: =IFERROR(VLOOKUP(H47,得意先マスター!$B$7:$H$103,4,FALSE),"") ->  | L47: =IFERROR(VLOOKUP(H47,得意先マスター!$B$7:$H$103,5,FALSE),"") ->  | M47: =IFERROR(VLOOKUP(H47,得意先マスター!$B$7:$H$103,6,FALSE),"") ->  | P47: =IFERROR(VLOOKUP(O47,商品マスター!$B$7:$D$53,2,FALSE),"") ->  | R47: =IFERROR(VLOOKUP(O47,商品マスター!$B$7:$D$53,3,FALSE),"") ->  | S47: 0 | U47: =IFERROR(VLOOKUP(T47,商品マスター!$B$7:$D$53,2,FALSE),"") ->  | W47: =IFERROR(VLOOKUP(T47,商品マスター!$B$7:$D$53,3,FALSE),"") ->  | X47: 0 | Z47: =IFERROR(VLOOKUP(Y47,商品マスター!$B$7:$D$53,2,FALSE),"") ->  | AB47: =IFERROR(VLOOKUP(Y47,商品マスター!$B$7:$D$53,3,FALSE),"") ->  | AC47: 0 | AE47: =IFERROR(VLOOKUP(AD47,商品マスター!$B$7:$D$53,2,FALSE),"") ->  | AG47: =IFERROR(VLOOKUP(AD47,商品マスター!$B$7:$D$53,3,FALSE),"") ->  | AH47: 0 | AJ47: =IFERROR(VLOOKUP(AI47,商品マスター!$B$7:$D$53,2,FALSE),"") ->  | AL47: =IFERROR(VLOOKUP(AI47,商品マスター!$B$7:$D$53,3,FALSE),"") ->  | AM47: 0 | AO47: =IFERROR(VLOOKUP(AN47,商品マスター!$B$7:$D$53,2,FALSE),"") ->  | AQ47: =IFERROR(VLOOKUP(AN47,商品マスター!$B$7:$D$53,3,FALSE),"") ->  | AR47: 0 | AT47: =IFERROR(VLOOKUP(AS47,商品マスター!$B$7:$D$53,2,FALSE),"") ->  | AV47: =IFERROR(VLOOKUP(AS47,商品マスター!$B$7:$D$53,3,FALSE),"") ->  | AW47: 0 | AY47: =IFERROR(VLOOKUP(AX47,商品マスター!$B$7:$D$53,2,FALSE),"") ->  | BA47: =IFERROR(VLOOKUP(AX47,商品マスター!$B$7:$D$53,3,FALSE),"") ->  | BB47: 0 | BD47: =IFERROR(VLOOKUP(BC47,商品マスター!$B$7:$D$53,2,FALSE),"") ->  | BF47: =IFERROR(VLOOKUP(BC47,商品マスター!$B$7:$D$53,3,FALSE),"") ->  | BG47: 0 | BI47: =IFERROR(VLOOKUP(BH47,商品マスター!$B$7:$D$53,2,FALSE),"") ->  | BK47: =IFERROR(VLOOKUP(BH47,商品マスター!$B$7:$D$53,3,FALSE),"") ->  | BL47: 0 | BM47: 0 | BN47: 0.1 | BO47: 0 | BQ47: 0
I48: =IFERROR(VLOOKUP(H48,得意先マスター!$B$7:$H$103,2,FALSE),"") ->  | J48: =IFERROR(VLOOKUP(H48,得意先マスター!$B$7:$H$103,3,FALSE),"") ->  | K48: =IFERROR(VLOOKUP(H48,得意先マスター!$B$7:$H$103,4,FALSE),"") ->  | L48: =IFERROR(VLOOKUP(H48,得意先マスター!$B$7:$H$103,5,FALSE),"") ->  | M48: =IFERROR(VLOOKUP(H48,得意先マスター!$B$7:$H$103,6,FALSE),"") ->  | P48: =IFERROR(VLOOKUP(O48,商品マスター!$B$7:$D$53,2,FALSE),"") ->  | R48: =IFERROR(VLOOKUP(O48,商品マスター!$B$7:$D$53,3,FALSE),"") ->  | S48: 0 | U48: =IFERROR(VLOOKUP(T48,商品マスター!$B$7:$D$53,2,FALSE),"") ->  | W48: =IFERROR(VLOOKUP(T48,商品マスター!$B$7:$D$53,3,FALSE),"") ->  | X48: 0 | Z48: =IFERROR(VLOOKUP(Y48,商品マスター!$B$7:$D$53,2,FALSE),"") ->  | AB48: =IFERROR(VLOOKUP(Y48,商品マスター!$B$7:$D$53,3,FALSE),"") ->  | AC48: 0 | AE48: =IFERROR(VLOOKUP(AD48,商品マスター!$B$7:$D$53,2,FALSE),"") ->  | AG48: =IFERROR(VLOOKUP(AD48,商品マスター!$B$7:$D$53,3,FALSE),"") ->  | AH48: 0 | AJ48: =IFERROR(VLOOKUP(AI48,商品マスター!$B$7:$D$53,2,FALSE),"") ->  | AL48: =IFERROR(VLOOKUP(AI48,商品マスター!$B$7:$D$53,3,FALSE),"") ->  | AM48: 0 | AO48: =IFERROR(VLOOKUP(AN48,商品マスター!$B$7:$D$53,2,FALSE),"") ->  | AQ48: =IFERROR(VLOOKUP(AN48,商品マスター!$B$7:$D$53,3,FALSE),"") ->  | AR48: 0 | AT48: =IFERROR(VLOOKUP(AS48,商品マスター!$B$7:$D$53,2,FALSE),"") ->  | AV48: =IFERROR(VLOOKUP(AS48,商品マスター!$B$7:$D$53,3,FALSE),"") ->  | AW48: 0 | AY48: =IFERROR(VLOOKUP(AX48,商品マスター!$B$7:$D$53,2,FALSE),"") ->  | BA48: =IFERROR(VLOOKUP(AX48,商品マスター!$B$7:$D$53,3,FALSE),"") ->  | BB48: 0 | BD48: =IFERROR(VLOOKUP(BC48,商品マスター!$B$7:$D$53,2,FALSE),"") ->  | BF48: =IFERROR(VLOOKUP(BC48,商品マスター!$B$7:$D$53,3,FALSE),"") ->  | BG48: 0 | BI48: =IFERROR(VLOOKUP(BH48,商品マスター!$B$7:$D$53,2,FALSE),"") ->  | BK48: =IFERROR(VLOOKUP(BH48,商品マスター!$B$7:$D$53,3,FALSE),"") ->  | BL48: 0 | BM48: 0 | BN48: 0.1 | BO48: 0 | BQ48: 0
I49: =IFERROR(VLOOKUP(H49,得意先マスター!$B$7:$H$103,2,FALSE),"") ->  | J49: =IFERROR(VLOOKUP(H49,得意先マスター!$B$7:$H$103,3,FALSE),"") ->  | K49: =IFERROR(VLOOKUP(H49,得意先マスター!$B$7:$H$103,4,FALSE),"") ->  | L49: =IFERROR(VLOOKUP(H49,得意先マスター!$B$7:$H$103,5,FALSE),"") ->  | M49: =IFERROR(VLOOKUP(H49,得意先マスター!$B$7:$H$103,6,FALSE),"") ->  | P49: =IFERROR(VLOOKUP(O49,商品マスター!$B$7:$D$53,2,FALSE),"") ->  | R49: =IFERROR(VLOOKUP(O49,商品マスター!$B$7:$D$53,3,FALSE),"") ->  | S49: 0 | U49: =IFERROR(VLOOKUP(T49,商品マスター!$B$7:$D$53,2,FALSE),"") ->  | W49: =IFERROR(VLOOKUP(T49,商品マスター!$B$7:$D$53,3,FALSE),"") ->  | X49: 0 | Z49: =IFERROR(VLOOKUP(Y49,商品マスター!$B$7:$D$53,2,FALSE),"") ->  | AB49: =IFERROR(VLOOKUP(Y49,商品マスター!$B$7:$D$53,3,FALSE),"") ->  | AC49: 0 | AE49: =IFERROR(VLOOKUP(AD49,商品マスター!$B$7:$D$53,2,FALSE),"") ->  | AG49: =IFERROR(VLOOKUP(AD49,商品マスター!$B$7:$D$53,3,FALSE),"") ->  | AH49: 0 | AJ49: =IFERROR(VLOOKUP(AI49,商品マスター!$B$7:$D$53,2,FALSE),"") ->  | AL49: =IFERROR(VLOOKUP(AI49,商品マスター!$B$7:$D$53,3,FALSE),"") ->  | AM49: 0 | AO49: =IFERROR(VLOOKUP(AN49,商品マスター!$B$7:$D$53,2,FALSE),"") ->  | AQ49: =IFERROR(VLOOKUP(AN49,商品マスター!$B$7:$D$53,3,FALSE),"") ->  | AR49: 0 | AT49: =IFERROR(VLOOKUP(AS49,商品マスター!$B$7:$D$53,2,FALSE),"") ->  | AV49: =IFERROR(VLOOKUP(AS49,商品マスター!$B$7:$D$53,3,FALSE),"") ->  | AW49: 0 | AY49: =IFERROR(VLOOKUP(AX49,商品マスター!$B$7:$D$53,2,FALSE),"") ->  | BA49: =IFERROR(VLOOKUP(AX49,商品マスター!$B$7:$D$53,3,FALSE),"") ->  | BB49: 0 | BD49: =IFERROR(VLOOKUP(BC49,商品マスター!$B$7:$D$53,2,FALSE),"") ->  | BF49: =IFERROR(VLOOKUP(BC49,商品マスター!$B$7:$D$53,3,FALSE),"") ->  | BG49: 0 | BI49: =IFERROR(VLOOKUP(BH49,商品マスター!$B$7:$D$53,2,FALSE),"") ->  | BK49: =IFERROR(VLOOKUP(BH49,商品マスター!$B$7:$D$53,3,FALSE),"") ->  | BL49: 0 | BM49: 0 | BN49: 0.1 | BO49: 0 | BQ49: 0
I50: =IFERROR(VLOOKUP(H50,得意先マスター!$B$7:$H$103,2,FALSE),"") ->  | J50: =IFERROR(VLOOKUP(H50,得意先マスター!$B$7:$H$103,3,FALSE),"") ->  | K50: =IFERROR(VLOOKUP(H50,得意先マスター!$B$7:$H$103,4,FALSE),"") ->  | L50: =IFERROR(VLOOKUP(H50,得意先マスター!$B$7:$H$103,5,FALSE),"") ->  | M50: =IFERROR(VLOOKUP(H50,得意先マスター!$B$7:$H$103,6,FALSE),"") ->  | P50: =IFERROR(VLOOKUP(O50,商品マスター!$B$7:$D$53,2,FALSE),"") ->  | R50: =IFERROR(VLOOKUP(O50,商品マスター!$B$7:$D$53,3,FALSE),"") ->  | S50: 0 | U50: =IFERROR(VLOOKUP(T50,商品マスター!$B$7:$D$53,2,FALSE),"") ->  | W50: =IFERROR(VLOOKUP(T50,商品マスター!$B$7:$D$53,3,FALSE),"") ->  | X50: 0 | Z50: =IFERROR(VLOOKUP(Y50,商品マスター!$B$7:$D$53,2,FALSE),"") ->  | AB50: =IFERROR(VLOOKUP(Y50,商品マスター!$B$7:$D$53,3,FALSE),"") ->  | AC50: 0 | AE50: =IFERROR(VLOOKUP(AD50,商品マスター!$B$7:$D$53,2,FALSE),"") ->  | AG50: =IFERROR(VLOOKUP(AD50,商品マスター!$B$7:$D$53,3,FALSE),"") ->  | AH50: 0 | AJ50: =IFERROR(VLOOKUP(AI50,商品マスター!$B$7:$D$53,2,FALSE),"") ->  | AL50: =IFERROR(VLOOKUP(AI50,商品マスター!$B$7:$D$53,3,FALSE),"") ->  | AM50: 0 | AO50: =IFERROR(VLOOKUP(AN50,商品マスター!$B$7:$D$53,2,FALSE),"") ->  | AQ50: =IFERROR(VLOOKUP(AN50,商品マスター!$B$7:$D$53,3,FALSE),"") ->  | AR50: 0 | AT50: =IFERROR(VLOOKUP(AS50,商品マスター!$B$7:$D$53,2,FALSE),"") ->  | AV50: =IFERROR(VLOOKUP(AS50,商品マスター!$B$7:$D$53,3,FALSE),"") ->  | AW50: 0 | AY50: =IFERROR(VLOOKUP(AX50,商品マスター!$B$7:$D$53,2,FALSE),"") ->  | BA50: =IFERROR(VLOOKUP(AX50,商品マスター!$B$7:$D$53,3,FALSE),"") ->  | BB50: 0 | BD50: =IFERROR(VLOOKUP(BC50,商品マスター!$B$7:$D$53,2,FALSE),"") ->  | BF50: =IFERROR(VLOOKUP(BC50,商品マスター!$B$7:$D$53,3,FALSE),"") ->  | BG50: 0 | BI50: =IFERROR(VLOOKUP(BH50,商品マスター!$B$7:$D$53,2,FALSE),"") ->  | BK50: =IFERROR(VLOOKUP(BH50,商品マスター!$B$7:$D$53,3,FALSE),"") ->  | BL50: 0 | BM50: 0 | BN50: 0.1 | BO50: 0 | BQ50: 0
I51: =IFERROR(VLOOKUP(H51,得意先マスター!$B$7:$H$103,2,FALSE),"") ->  | J51: =IFERROR(VLOOKUP(H51,得意先マスター!$B$7:$H$103,3,FALSE),"") ->  | K51: =IFERROR(VLOOKUP(H51,得意先マスター!$B$7:$H$103,4,FALSE),"") ->  | L51: =IFERROR(VLOOKUP(H51,得意先マスター!$B$7:$H$103,5,FALSE),"") ->  | M51: =IFERROR(VLOOKUP(H51,得意先マスター!$B$7:$H$103,6,FALSE),"") ->  | P51: =IFERROR(VLOOKUP(O51,商品マスター!$B$7:$D$53,2,FALSE),"") ->  | R51: =IFERROR(VLOOKUP(O51,商品マスター!$B$7:$D$53,3,FALSE),"") ->  | S51: 0 | U51: =IFERROR(VLOOKUP(T51,商品マスター!$B$7:$D$53,2,FALSE),"") ->  | W51: =IFERROR(VLOOKUP(T51,商品マスター!$B$7:$D$53,3,FALSE),"") ->  | X51: 0 | Z51: =IFERROR(VLOOKUP(Y51,商品マスター!$B$7:$D$53,2,FALSE),"") ->  | AB51: =IFERROR(VLOOKUP(Y51,商品マスター!$B$7:$D$53,3,FALSE),"") ->  | AC51: 0 | AE51: =IFERROR(VLOOKUP(AD51,商品マスター!$B$7:$D$53,2,FALSE),"") ->  | AG51: =IFERROR(VLOOKUP(AD51,商品マスター!$B$7:$D$53,3,FALSE),"") ->  | AH51: 0 | AJ51: =IFERROR(VLOOKUP(AI51,商品マスター!$B$7:$D$53,2,FALSE),"") ->  | AL51: =IFERROR(VLOOKUP(AI51,商品マスター!$B$7:$D$53,3,FALSE),"") ->  | AM51: 0 | AO51: =IFERROR(VLOOKUP(AN51,商品マスター!$B$7:$D$53,2,FALSE),"") ->  | AQ51: =IFERROR(VLOOKUP(AN51,商品マスター!$B$7:$D$53,3,FALSE),"") ->  | AR51: 0 | AT51: =IFERROR(VLOOKUP(AS51,商品マスター!$B$7:$D$53,2,FALSE),"") ->  | AV51: =IFERROR(VLOOKUP(AS51,商品マスター!$B$7:$D$53,3,FALSE),"") ->  | AW51: 0 | AY51: =IFERROR(VLOOKUP(AX51,商品マスター!$B$7:$D$53,2,FALSE),"") ->  | BA51: =IFERROR(VLOOKUP(AX51,商品マスター!$B$7:$D$53,3,FALSE),"") ->  | BB51: 0 | BD51: =IFERROR(VLOOKUP(BC51,商品マスター!$B$7:$D$53,2,FALSE),"") ->  | BF51: =IFERROR(VLOOKUP(BC51,商品マスター!$B$7:$D$53,3,FALSE),"") ->  | BG51: 0 | BI51: =IFERROR(VLOOKUP(BH51,商品マスター!$B$7:$D$53,2,FALSE),"") ->  | BK51: =IFERROR(VLOOKUP(BH51,商品マスター!$B$7:$D$53,3,FALSE),"") ->  | BL51: 0 | BM51: 0 | BN51: 0.1 | BO51: 0 | BQ51: 0
I52: =IFERROR(VLOOKUP(H52,得意先マスター!$B$7:$H$103,2,FALSE),"") ->  | J52: =IFERROR(VLOOKUP(H52,得意先マスター!$B$7:$H$103,3,FALSE),"") ->  | K52: =IFERROR(VLOOKUP(H52,得意先マスター!$B$7:$H$103,4,FALSE),"") ->  | L52: =IFERROR(VLOOKUP(H52,得意先マスター!$B$7:$H$103,5,FALSE),"") ->  | M52: =IFERROR(VLOOKUP(H52,得意先マスター!$B$7:$H$103,6,FALSE),"") ->  | P52: =IFERROR(VLOOKUP(O52,商品マスター!$B$7:$D$53,2,FALSE),"") ->  | R52: =IFERROR(VLOOKUP(O52,商品マスター!$B$7:$D$53,3,FALSE),"") ->  | S52: 0 | U52: =IFERROR(VLOOKUP(T52,商品マスター!$B$7:$D$53,2,FALSE),"") ->  | W52: =IFERROR(VLOOKUP(T52,商品マスター!$B$7:$D$53,3,FALSE),"") ->  | X52: 0 | Z52: =IFERROR(VLOOKUP(Y52,商品マスター!$B$7:$D$53,2,FALSE),"") ->  | AB52: =IFERROR(VLOOKUP(Y52,商品マスター!$B$7:$D$53,3,FALSE),"") ->  | AC52: 0 | AE52: =IFERROR(VLOOKUP(AD52,商品マスター!$B$7:$D$53,2,FALSE),"") ->  | AG52: =IFERROR(VLOOKUP(AD52,商品マスター!$B$7:$D$53,3,FALSE),"") ->  | AH52: 0 | AJ52: =IFERROR(VLOOKUP(AI52,商品マスター!$B$7:$D$53,2,FALSE),"") ->  | AL52: =IFERROR(VLOOKUP(AI52,商品マスター!$B$7:$D$53,3,FALSE),"") ->  | AM52: 0 | AO52: =IFERROR(VLOOKUP(AN52,商品マスター!$B$7:$D$53,2,FALSE),"") ->  | AQ52: =IFERROR(VLOOKUP(AN52,商品マスター!$B$7:$D$53,3,FALSE),"") ->  | AR52: 0 | AT52: =IFERROR(VLOOKUP(AS52,商品マスター!$B$7:$D$53,2,FALSE),"") ->  | AV52: =IFERROR(VLOOKUP(AS52,商品マスター!$B$7:$D$53,3,FALSE),"") ->  | AW52: 0 | AY52: =IFERROR(VLOOKUP(AX52,商品マスター!$B$7:$D$53,2,FALSE),"") ->  | BA52: =IFERROR(VLOOKUP(AX52,商品マスター!$B$7:$D$53,3,FALSE),"") ->  | BB52: 0 | BD52: =IFERROR(VLOOKUP(BC52,商品マスター!$B$7:$D$53,2,FALSE),"") ->  | BF52: =IFERROR(VLOOKUP(BC52,商品マスター!$B$7:$D$53,3,FALSE),"") ->  | BG52: 0 | BI52: =IFERROR(VLOOKUP(BH52,商品マスター!$B$7:$D$53,2,FALSE),"") ->  | BK52: =IFERROR(VLOOKUP(BH52,商品マスター!$B$7:$D$53,3,FALSE),"") ->  | BL52: 0 | BM52: 0 | BN52: 0.1 | BO52: 0 | BQ52: 0
I53: =IFERROR(VLOOKUP(H53,得意先マスター!$B$7:$H$103,2,FALSE),"") ->  | J53: =IFERROR(VLOOKUP(H53,得意先マスター!$B$7:$H$103,3,FALSE),"") ->  | K53: =IFERROR(VLOOKUP(H53,得意先マスター!$B$7:$H$103,4,FALSE),"") ->  | L53: =IFERROR(VLOOKUP(H53,得意先マスター!$B$7:$H$103,5,FALSE),"") ->  | M53: =IFERROR(VLOOKUP(H53,得意先マスター!$B$7:$H$103,6,FALSE),"") ->  | P53: =IFERROR(VLOOKUP(O53,商品マスター!$B$7:$D$53,2,FALSE),"") ->  | R53: =IFERROR(VLOOKUP(O53,商品マスター!$B$7:$D$53,3,FALSE),"") ->  | S53: 0 | U53: =IFERROR(VLOOKUP(T53,商品マスター!$B$7:$D$53,2,FALSE),"") ->  | W53: =IFERROR(VLOOKUP(T53,商品マスター!$B$7:$D$53,3,FALSE),"") ->  | X53: 0 | Z53: =IFERROR(VLOOKUP(Y53,商品マスター!$B$7:$D$53,2,FALSE),"") ->  | AB53: =IFERROR(VLOOKUP(Y53,商品マスター!$B$7:$D$53,3,FALSE),"") ->  | AC53: 0 | AE53: =IFERROR(VLOOKUP(AD53,商品マスター!$B$7:$D$53,2,FALSE),"") ->  | AG53: =IFERROR(VLOOKUP(AD53,商品マスター!$B$7:$D$53,3,FALSE),"") ->  | AH53: 0 | AJ53: =IFERROR(VLOOKUP(AI53,商品マスター!$B$7:$D$53,2,FALSE),"") ->  | AL53: =IFERROR(VLOOKUP(AI53,商品マスター!$B$7:$D$53,3,FALSE),"") ->  | AM53: 0 | AO53: =IFERROR(VLOOKUP(AN53,商品マスター!$B$7:$D$53,2,FALSE),"") ->  | AQ53: =IFERROR(VLOOKUP(AN53,商品マスター!$B$7:$D$53,3,FALSE),"") ->  | AR53: 0 | AT53: =IFERROR(VLOOKUP(AS53,商品マスター!$B$7:$D$53,2,FALSE),"") ->  | AV53: =IFERROR(VLOOKUP(AS53,商品マスター!$B$7:$D$53,3,FALSE),"") ->  | AW53: 0 | AY53: =IFERROR(VLOOKUP(AX53,商品マスター!$B$7:$D$53,2,FALSE),"") ->  | BA53: =IFERROR(VLOOKUP(AX53,商品マスター!$B$7:$D$53,3,FALSE),"") ->  | BB53: 0 | BD53: =IFERROR(VLOOKUP(BC53,商品マスター!$B$7:$D$53,2,FALSE),"") ->  | BF53: =IFERROR(VLOOKUP(BC53,商品マスター!$B$7:$D$53,3,FALSE),"") ->  | BG53: 0 | BI53: =IFERROR(VLOOKUP(BH53,商品マスター!$B$7:$D$53,2,FALSE),"") ->  | BK53: =IFERROR(VLOOKUP(BH53,商品マスター!$B$7:$D$53,3,FALSE),"") ->  | BL53: 0 | BM53: 0 | BN53: 0.1 | BO53: 0 | BQ53: 0
I54: =IFERROR(VLOOKUP(H54,得意先マスター!$B$7:$H$103,2,FALSE),"") ->  | J54: =IFERROR(VLOOKUP(H54,得意先マスター!$B$7:$H$103,3,FALSE),"") ->  | K54: =IFERROR(VLOOKUP(H54,得意先マスター!$B$7:$H$103,4,FALSE),"") ->  | L54: =IFERROR(VLOOKUP(H54,得意先マスター!$B$7:$H$103,5,FALSE),"") ->  | M54: =IFERROR(VLOOKUP(H54,得意先マスター!$B$7:$H$103,6,FALSE),"") ->  | P54: =IFERROR(VLOOKUP(O54,商品マスター!$B$7:$D$53,2,FALSE),"") ->  | R54: =IFERROR(VLOOKUP(O54,商品マスター!$B$7:$D$53,3,FALSE),"") ->  | S54: 0 | U54: =IFERROR(VLOOKUP(T54,商品マスター!$B$7:$D$53,2,FALSE),"") ->  | W54: =IFERROR(VLOOKUP(T54,商品マスター!$B$7:$D$53,3,FALSE),"") ->  | X54: 0 | Z54: =IFERROR(VLOOKUP(Y54,商品マスター!$B$7:$D$53,2,FALSE),"") ->  | AB54: =IFERROR(VLOOKUP(Y54,商品マスター!$B$7:$D$53,3,FALSE),"") ->  | AC54: 0 | AE54: =IFERROR(VLOOKUP(AD54,商品マスター!$B$7:$D$53,2,FALSE),"") ->  | AG54: =IFERROR(VLOOKUP(AD54,商品マスター!$B$7:$D$53,3,FALSE),"") ->  | AH54: 0 | AJ54: =IFERROR(VLOOKUP(AI54,商品マスター!$B$7:$D$53,2,FALSE),"") ->  | AL54: =IFERROR(VLOOKUP(AI54,商品マスター!$B$7:$D$53,3,FALSE),"") ->  | AM54: 0 | AO54: =IFERROR(VLOOKUP(AN54,商品マスター!$B$7:$D$53,2,FALSE),"") ->  | AQ54: =IFERROR(VLOOKUP(AN54,商品マスター!$B$7:$D$53,3,FALSE),"") ->  | AR54: 0 | AT54: =IFERROR(VLOOKUP(AS54,商品マスター!$B$7:$D$53,2,FALSE),"") ->  | AV54: =IFERROR(VLOOKUP(AS54,商品マスター!$B$7:$D$53,3,FALSE),"") ->  | AW54: 0 | AY54: =IFERROR(VLOOKUP(AX54,商品マスター!$B$7:$D$53,2,FALSE),"") ->  | BA54: =IFERROR(VLOOKUP(AX54,商品マスター!$B$7:$D$53,3,FALSE),"") ->  | BB54: 0 | BD54: =IFERROR(VLOOKUP(BC54,商品マスター!$B$7:$D$53,2,FALSE),"") ->  | BF54: =IFERROR(VLOOKUP(BC54,商品マスター!$B$7:$D$53,3,FALSE),"") ->  | BG54: 0 | BI54: =IFERROR(VLOOKUP(BH54,商品マスター!$B$7:$D$53,2,FALSE),"") ->  | BK54: =IFERROR(VLOOKUP(BH54,商品マスター!$B$7:$D$53,3,FALSE),"") ->  | BL54: 0 | BM54: 0 | BN54: 0.1 | BO54: 0 | BQ54: 0
I55: =IFERROR(VLOOKUP(H55,得意先マスター!$B$7:$H$103,2,FALSE),"") ->  | J55: =IFERROR(VLOOKUP(H55,得意先マスター!$B$7:$H$103,3,FALSE),"") ->  | K55: =IFERROR(VLOOKUP(H55,得意先マスター!$B$7:$H$103,4,FALSE),"") ->  | L55: =IFERROR(VLOOKUP(H55,得意先マスター!$B$7:$H$103,5,FALSE),"") ->  | M55: =IFERROR(VLOOKUP(H55,得意先マスター!$B$7:$H$103,6,FALSE),"") ->  | P55: =IFERROR(VLOOKUP(O55,商品マスター!$B$7:$D$53,2,FALSE),"") ->  | R55: =IFERROR(VLOOKUP(O55,商品マスター!$B$7:$D$53,3,FALSE),"") ->  | S55: 0 | U55: =IFERROR(VLOOKUP(T55,商品マスター!$B$7:$D$53,2,FALSE),"") ->  | W55: =IFERROR(VLOOKUP(T55,商品マスター!$B$7:$D$53,3,FALSE),"") ->  | X55: 0 | Z55: =IFERROR(VLOOKUP(Y55,商品マスター!$B$7:$D$53,2,FALSE),"") ->  | AB55: =IFERROR(VLOOKUP(Y55,商品マスター!$B$7:$D$53,3,FALSE),"") ->  | AC55: 0 | AE55: =IFERROR(VLOOKUP(AD55,商品マスター!$B$7:$D$53,2,FALSE),"") ->  | AG55: =IFERROR(VLOOKUP(AD55,商品マスター!$B$7:$D$53,3,FALSE),"") ->  | AH55: 0 | AJ55: =IFERROR(VLOOKUP(AI55,商品マスター!$B$7:$D$53,2,FALSE),"") ->  | AL55: =IFERROR(VLOOKUP(AI55,商品マスター!$B$7:$D$53,3,FALSE),"") ->  | AM55: 0 | AO55: =IFERROR(VLOOKUP(AN55,商品マスター!$B$7:$D$53,2,FALSE),"") ->  | AQ55: =IFERROR(VLOOKUP(AN55,商品マスター!$B$7:$D$53,3,FALSE),"") ->  | AR55: 0 | AT55: =IFERROR(VLOOKUP(AS55,商品マスター!$B$7:$D$53,2,FALSE),"") ->  | AV55: =IFERROR(VLOOKUP(AS55,商品マスター!$B$7:$D$53,3,FALSE),"") ->  | AW55: 0 | AY55: =IFERROR(VLOOKUP(AX55,商品マスター!$B$7:$D$53,2,FALSE),"") ->  | BA55: =IFERROR(VLOOKUP(AX55,商品マスター!$B$7:$D$53,3,FALSE),"") ->  | BB55: 0 | BD55: =IFERROR(VLOOKUP(BC55,商品マスター!$B$7:$D$53,2,FALSE),"") ->  | BF55: =IFERROR(VLOOKUP(BC55,商品マスター!$B$7:$D$53,3,FALSE),"") ->  | BG55: 0 | BI55: =IFERROR(VLOOKUP(BH55,商品マスター!$B$7:$D$53,2,FALSE),"") ->  | BK55: =IFERROR(VLOOKUP(BH55,商品マスター!$B$7:$D$53,3,FALSE),"") ->  | BL55: 0 | BM55: 0 | BN55: 0.1 | BO55: 0 | BQ55: 0
I56: =IFERROR(VLOOKUP(H56,得意先マスター!$B$7:$H$103,2,FALSE),"") ->  | J56: =IFERROR(VLOOKUP(H56,得意先マスター!$B$7:$H$103,3,FALSE),"") ->  | K56: =IFERROR(VLOOKUP(H56,得意先マスター!$B$7:$H$103,4,FALSE),"") ->  | L56: =IFERROR(VLOOKUP(H56,得意先マスター!$B$7:$H$103,5,FALSE),"") ->  | M56: =IFERROR(VLOOKUP(H56,得意先マスター!$B$7:$H$103,6,FALSE),"") ->  | P56: =IFERROR(VLOOKUP(O56,商品マスター!$B$7:$D$53,2,FALSE),"") ->  | R56: =IFERROR(VLOOKUP(O56,商品マスター!$B$7:$D$53,3,FALSE),"") ->  | S56: 0 | U56: =IFERROR(VLOOKUP(T56,商品マスター!$B$7:$D$53,2,FALSE),"") ->  | W56: =IFERROR(VLOOKUP(T56,商品マスター!$B$7:$D$53,3,FALSE),"") ->  | X56: 0 | Z56: =IFERROR(VLOOKUP(Y56,商品マスター!$B$7:$D$53,2,FALSE),"") ->  | AB56: =IFERROR(VLOOKUP(Y56,商品マスター!$B$7:$D$53,3,FALSE),"") ->  | AC56: 0 | AE56: =IFERROR(VLOOKUP(AD56,商品マスター!$B$7:$D$53,2,FALSE),"") ->  | AG56: =IFERROR(VLOOKUP(AD56,商品マスター!$B$7:$D$53,3,FALSE),"") ->  | AH56: 0 | AJ56: =IFERROR(VLOOKUP(AI56,商品マスター!$B$7:$D$53,2,FALSE),"") ->  | AL56: =IFERROR(VLOOKUP(AI56,商品マスター!$B$7:$D$53,3,FALSE),"") ->  | AM56: 0 | AO56: =IFERROR(VLOOKUP(AN56,商品マスター!$B$7:$D$53,2,FALSE),"") ->  | AQ56: =IFERROR(VLOOKUP(AN56,商品マスター!$B$7:$D$53,3,FALSE),"") ->  | AR56: 0 | AT56: =IFERROR(VLOOKUP(AS56,商品マスター!$B$7:$D$53,2,FALSE),"") ->  | AV56: =IFERROR(VLOOKUP(AS56,商品マスター!$B$7:$D$53,3,FALSE),"") ->  | AW56: 0 | AY56: =IFERROR(VLOOKUP(AX56,商品マスター!$B$7:$D$53,2,FALSE),"") ->  | BA56: =IFERROR(VLOOKUP(AX56,商品マスター!$B$7:$D$53,3,FALSE),"") ->  | BB56: 0 | BD56: =IFERROR(VLOOKUP(BC56,商品マスター!$B$7:$D$53,2,FALSE),"") ->  | BF56: =IFERROR(VLOOKUP(BC56,商品マスター!$B$7:$D$53,3,FALSE),"") ->  | BG56: 0 | BI56: =IFERROR(VLOOKUP(BH56,商品マスター!$B$7:$D$53,2,FALSE),"") ->  | BK56: =IFERROR(VLOOKUP(BH56,商品マスター!$B$7:$D$53,3,FALSE),"") ->  | BL56: 0 | BM56: 0 | BN56: 0.1 | BO56: 0 | BQ56: 0
I57: =IFERROR(VLOOKUP(H57,得意先マスター!$B$7:$H$103,2,FALSE),"") ->  | J57: =IFERROR(VLOOKUP(H57,得意先マスター!$B$7:$H$103,3,FALSE),"") ->  | K57: =IFERROR(VLOOKUP(H57,得意先マスター!$B$7:$H$103,4,FALSE),"") ->  | L57: =IFERROR(VLOOKUP(H57,得意先マスター!$B$7:$H$103,5,FALSE),"") ->  | M57: =IFERROR(VLOOKUP(H57,得意先マスター!$B$7:$H$103,6,FALSE),"") ->  | P57: =IFERROR(VLOOKUP(O57,商品マスター!$B$7:$D$53,2,FALSE),"") ->  | R57: =IFERROR(VLOOKUP(O57,商品マスター!$B$7:$D$53,3,FALSE),"") ->  | S57: 0 | U57: =IFERROR(VLOOKUP(T57,商品マスター!$B$7:$D$53,2,FALSE),"") ->  | W57: =IFERROR(VLOOKUP(T57,商品マスター!$B$7:$D$53,3,FALSE),"") ->  | X57: 0 | Z57: =IFERROR(VLOOKUP(Y57,商品マスター!$B$7:$D$53,2,FALSE),"") ->  | AB57: =IFERROR(VLOOKUP(Y57,商品マスター!$B$7:$D$53,3,FALSE),"") ->  | AC57: 0 | AE57: =IFERROR(VLOOKUP(AD57,商品マスター!$B$7:$D$53,2,FALSE),"") ->  | AG57: =IFERROR(VLOOKUP(AD57,商品マスター!$B$7:$D$53,3,FALSE),"") ->  | AH57: 0 | AJ57: =IFERROR(VLOOKUP(AI57,商品マスター!$B$7:$D$53,2,FALSE),"") ->  | AL57: =IFERROR(VLOOKUP(AI57,商品マスター!$B$7:$D$53,3,FALSE),"") ->  | AM57: 0 | AO57: =IFERROR(VLOOKUP(AN57,商品マスター!$B$7:$D$53,2,FALSE),"") ->  | AQ57: =IFERROR(VLOOKUP(AN57,商品マスター!$B$7:$D$53,3,FALSE),"") ->  | AR57: 0 | AT57: =IFERROR(VLOOKUP(AS57,商品マスター!$B$7:$D$53,2,FALSE),"") ->  | AV57: =IFERROR(VLOOKUP(AS57,商品マスター!$B$7:$D$53,3,FALSE),"") ->  | AW57: 0 | AY57: =IFERROR(VLOOKUP(AX57,商品マスター!$B$7:$D$53,2,FALSE),"") ->  | BA57: =IFERROR(VLOOKUP(AX57,商品マスター!$B$7:$D$53,3,FALSE),"") ->  | BB57: 0 | BD57: =IFERROR(VLOOKUP(BC57,商品マスター!$B$7:$D$53,2,FALSE),"") ->  | BF57: =IFERROR(VLOOKUP(BC57,商品マスター!$B$7:$D$53,3,FALSE),"") ->  | BG57: 0 | BI57: =IFERROR(VLOOKUP(BH57,商品マスター!$B$7:$D$53,2,FALSE),"") ->  | BK57: =IFERROR(VLOOKUP(BH57,商品マスター!$B$7:$D$53,3,FALSE),"") ->  | BL57: 0 | BM57: 0 | BN57: 0.1 | BO57: 0 | BQ57: 0
I58: =IFERROR(VLOOKUP(H58,得意先マスター!$B$7:$H$103,2,FALSE),"") ->  | J58: =IFERROR(VLOOKUP(H58,得意先マスター!$B$7:$H$103,3,FALSE),"") ->  | K58: =IFERROR(VLOOKUP(H58,得意先マスター!$B$7:$H$103,4,FALSE),"") ->  | L58: =IFERROR(VLOOKUP(H58,得意先マスター!$B$7:$H$103,5,FALSE),"") ->  | M58: =IFERROR(VLOOKUP(H58,得意先マスター!$B$7:$H$103,6,FALSE),"") ->  | P58: =IFERROR(VLOOKUP(O58,商品マスター!$B$7:$D$53,2,FALSE),"") ->  | R58: =IFERROR(VLOOKUP(O58,商品マスター!$B$7:$D$53,3,FALSE),"") ->  | S58: 0 | U58: =IFERROR(VLOOKUP(T58,商品マスター!$B$7:$D$53,2,FALSE),"") ->  | W58: =IFERROR(VLOOKUP(T58,商品マスター!$B$7:$D$53,3,FALSE),"") ->  | X58: 0 | Z58: =IFERROR(VLOOKUP(Y58,商品マスター!$B$7:$D$53,2,FALSE),"") ->  | AB58: =IFERROR(VLOOKUP(Y58,商品マスター!$B$7:$D$53,3,FALSE),"") ->  | AC58: 0 | AE58: =IFERROR(VLOOKUP(AD58,商品マスター!$B$7:$D$53,2,FALSE),"") ->  | AG58: =IFERROR(VLOOKUP(AD58,商品マスター!$B$7:$D$53,3,FALSE),"") ->  | AH58: 0 | AJ58: =IFERROR(VLOOKUP(AI58,商品マスター!$B$7:$D$53,2,FALSE),"") ->  | AL58: =IFERROR(VLOOKUP(AI58,商品マスター!$B$7:$D$53,3,FALSE),"") ->  | AM58: 0 | AO58: =IFERROR(VLOOKUP(AN58,商品マスター!$B$7:$D$53,2,FALSE),"") ->  | AQ58: =IFERROR(VLOOKUP(AN58,商品マスター!$B$7:$D$53,3,FALSE),"") ->  | AR58: 0 | AT58: =IFERROR(VLOOKUP(AS58,商品マスター!$B$7:$D$53,2,FALSE),"") ->  | AV58: =IFERROR(VLOOKUP(AS58,商品マスター!$B$7:$D$53,3,FALSE),"") ->  | AW58: 0 | AY58: =IFERROR(VLOOKUP(AX58,商品マスター!$B$7:$D$53,2,FALSE),"") ->  | BA58: =IFERROR(VLOOKUP(AX58,商品マスター!$B$7:$D$53,3,FALSE),"") ->  | BB58: 0 | BD58: =IFERROR(VLOOKUP(BC58,商品マスター!$B$7:$D$53,2,FALSE),"") ->  | BF58: =IFERROR(VLOOKUP(BC58,商品マスター!$B$7:$D$53,3,FALSE),"") ->  | BG58: 0 | BI58: =IFERROR(VLOOKUP(BH58,商品マスター!$B$7:$D$53,2,FALSE),"") ->  | BK58: =IFERROR(VLOOKUP(BH58,商品マスター!$B$7:$D$53,3,FALSE),"") ->  | BL58: 0 | BM58: 0 | BN58: 0.1 | BO58: 0 | BQ58: 0
I59: =IFERROR(VLOOKUP(H59,得意先マスター!$B$7:$H$103,2,FALSE),"") ->  | J59: =IFERROR(VLOOKUP(H59,得意先マスター!$B$7:$H$103,3,FALSE),"") ->  | K59: =IFERROR(VLOOKUP(H59,得意先マスター!$B$7:$H$103,4,FALSE),"") ->  | L59: =IFERROR(VLOOKUP(H59,得意先マスター!$B$7:$H$103,5,FALSE),"") ->  | M59: =IFERROR(VLOOKUP(H59,得意先マスター!$B$7:$H$103,6,FALSE),"") ->  | P59: =IFERROR(VLOOKUP(O59,商品マスター!$B$7:$D$53,2,FALSE),"") ->  | R59: =IFERROR(VLOOKUP(O59,商品マスター!$B$7:$D$53,3,FALSE),"") ->  | S59: 0 | U59: =IFERROR(VLOOKUP(T59,商品マスター!$B$7:$D$53,2,FALSE),"") ->  | W59: =IFERROR(VLOOKUP(T59,商品マスター!$B$7:$D$53,3,FALSE),"") ->  | X59: 0 | Z59: =IFERROR(VLOOKUP(Y59,商品マスター!$B$7:$D$53,2,FALSE),"") ->  | AB59: =IFERROR(VLOOKUP(Y59,商品マスター!$B$7:$D$53,3,FALSE),"") ->  | AC59: 0 | AE59: =IFERROR(VLOOKUP(AD59,商品マスター!$B$7:$D$53,2,FALSE),"") ->  | AG59: =IFERROR(VLOOKUP(AD59,商品マスター!$B$7:$D$53,3,FALSE),"") ->  | AH59: 0 | AJ59: =IFERROR(VLOOKUP(AI59,商品マスター!$B$7:$D$53,2,FALSE),"") ->  | AL59: =IFERROR(VLOOKUP(AI59,商品マスター!$B$7:$D$53,3,FALSE),"") ->  | AM59: 0 | AO59: =IFERROR(VLOOKUP(AN59,商品マスター!$B$7:$D$53,2,FALSE),"") ->  | AQ59: =IFERROR(VLOOKUP(AN59,商品マスター!$B$7:$D$53,3,FALSE),"") ->  | AR59: 0 | AT59: =IFERROR(VLOOKUP(AS59,商品マスター!$B$7:$D$53,2,FALSE),"") ->  | AV59: =IFERROR(VLOOKUP(AS59,商品マスター!$B$7:$D$53,3,FALSE),"") ->  | AW59: 0 | AY59: =IFERROR(VLOOKUP(AX59,商品マスター!$B$7:$D$53,2,FALSE),"") ->  | BA59: =IFERROR(VLOOKUP(AX59,商品マスター!$B$7:$D$53,3,FALSE),"") ->  | BB59: 0 | BD59: =IFERROR(VLOOKUP(BC59,商品マスター!$B$7:$D$53,2,FALSE),"") ->  | BF59: =IFERROR(VLOOKUP(BC59,商品マスター!$B$7:$D$53,3,FALSE),"") ->  | BG59: 0 | BI59: =IFERROR(VLOOKUP(BH59,商品マスター!$B$7:$D$53,2,FALSE),"") ->  | BK59: =IFERROR(VLOOKUP(BH59,商品マスター!$B$7:$D$53,3,FALSE),"") ->  | BL59: 0 | BM59: 0 | BN59: 0.1 | BO59: 0 | BQ59: 0
I60: =IFERROR(VLOOKUP(H60,得意先マスター!$B$7:$H$103,2,FALSE),"") ->  | J60: =IFERROR(VLOOKUP(H60,得意先マスター!$B$7:$H$103,3,FALSE),"") ->  | K60: =IFERROR(VLOOKUP(H60,得意先マスター!$B$7:$H$103,4,FALSE),"") ->  | L60: =IFERROR(VLOOKUP(H60,得意先マスター!$B$7:$H$103,5,FALSE),"") ->  | M60: =IFERROR(VLOOKUP(H60,得意先マスター!$B$7:$H$103,6,FALSE),"") ->  | P60: =IFERROR(VLOOKUP(O60,商品マスター!$B$7:$D$53,2,FALSE),"") ->  | R60: =IFERROR(VLOOKUP(O60,商品マスター!$B$7:$D$53,3,FALSE),"") ->  | S60: 0 | U60: =IFERROR(VLOOKUP(T60,商品マスター!$B$7:$D$53,2,FALSE),"") ->  | W60: =IFERROR(VLOOKUP(T60,商品マスター!$B$7:$D$53,3,FALSE),"") ->  | X60: 0 | Z60: =IFERROR(VLOOKUP(Y60,商品マスター!$B$7:$D$53,2,FALSE),"") ->  | AB60: =IFERROR(VLOOKUP(Y60,商品マスター!$B$7:$D$53,3,FALSE),"") ->  | AC60: 0 | AE60: =IFERROR(VLOOKUP(AD60,商品マスター!$B$7:$D$53,2,FALSE),"") ->  | AG60: =IFERROR(VLOOKUP(AD60,商品マスター!$B$7:$D$53,3,FALSE),"") ->  | AH60: 0 | AJ60: =IFERROR(VLOOKUP(AI60,商品マスター!$B$7:$D$53,2,FALSE),"") ->  | AL60: =IFERROR(VLOOKUP(AI60,商品マスター!$B$7:$D$53,3,FALSE),"") ->  | AM60: 0 | AO60: =IFERROR(VLOOKUP(AN60,商品マスター!$B$7:$D$53,2,FALSE),"") ->  | AQ60: =IFERROR(VLOOKUP(AN60,商品マスター!$B$7:$D$53,3,FALSE),"") ->  | AR60: 0 | AT60: =IFERROR(VLOOKUP(AS60,商品マスター!$B$7:$D$53,2,FALSE),"") ->  | AV60: =IFERROR(VLOOKUP(AS60,商品マスター!$B$7:$D$53,3,FALSE),"") ->  | AW60: 0 | AY60: =IFERROR(VLOOKUP(AX60,商品マスター!$B$7:$D$53,2,FALSE),"") ->  | BA60: =IFERROR(VLOOKUP(AX60,商品マスター!$B$7:$D$53,3,FALSE),"") ->  | BB60: 0 | BD60: =IFERROR(VLOOKUP(BC60,商品マスター!$B$7:$D$53,2,FALSE),"") ->  | BF60: =IFERROR(VLOOKUP(BC60,商品マスター!$B$7:$D$53,3,FALSE),"") ->  | BG60: 0 | BI60: =IFERROR(VLOOKUP(BH60,商品マスター!$B$7:$D$53,2,FALSE),"") ->  | BK60: =IFERROR(VLOOKUP(BH60,商品マスター!$B$7:$D$53,3,FALSE),"") ->  | BL60: 0 | BM60: 0 | BN60: 0.1 | BO60: 0 | BQ60: 0
I61: =IFERROR(VLOOKUP(H61,得意先マスター!$B$7:$H$103,2,FALSE),"") ->  | J61: =IFERROR(VLOOKUP(H61,得意先マスター!$B$7:$H$103,3,FALSE),"") ->  | K61: =IFERROR(VLOOKUP(H61,得意先マスター!$B$7:$H$103,4,FALSE),"") ->  | L61: =IFERROR(VLOOKUP(H61,得意先マスター!$B$7:$H$103,5,FALSE),"") ->  | M61: =IFERROR(VLOOKUP(H61,得意先マスター!$B$7:$H$103,6,FALSE),"") ->  | P61: =IFERROR(VLOOKUP(O61,商品マスター!$B$7:$D$53,2,FALSE),"") ->  | R61: =IFERROR(VLOOKUP(O61,商品マスター!$B$7:$D$53,3,FALSE),"") ->  | S61: 0 | U61: =IFERROR(VLOOKUP(T61,商品マスター!$B$7:$D$53,2,FALSE),"") ->  | W61: =IFERROR(VLOOKUP(T61,商品マスター!$B$7:$D$53,3,FALSE),"") ->  | X61: 0 | Z61: =IFERROR(VLOOKUP(Y61,商品マスター!$B$7:$D$53,2,FALSE),"") ->  | AB61: =IFERROR(VLOOKUP(Y61,商品マスター!$B$7:$D$53,3,FALSE),"") ->  | AC61: 0 | AE61: =IFERROR(VLOOKUP(AD61,商品マスター!$B$7:$D$53,2,FALSE),"") ->  | AG61: =IFERROR(VLOOKUP(AD61,商品マスター!$B$7:$D$53,3,FALSE),"") ->  | AH61: 0 | AJ61: =IFERROR(VLOOKUP(AI61,商品マスター!$B$7:$D$53,2,FALSE),"") ->  | AL61: =IFERROR(VLOOKUP(AI61,商品マスター!$B$7:$D$53,3,FALSE),"") ->  | AM61: 0 | AO61: =IFERROR(VLOOKUP(AN61,商品マスター!$B$7:$D$53,2,FALSE),"") ->  | AQ61: =IFERROR(VLOOKUP(AN61,商品マスター!$B$7:$D$53,3,FALSE),"") ->  | AR61: 0 | AT61: =IFERROR(VLOOKUP(AS61,商品マスター!$B$7:$D$53,2,FALSE),"") ->  | AV61: =IFERROR(VLOOKUP(AS61,商品マスター!$B$7:$D$53,3,FALSE),"") ->  | AW61: 0 | AY61: =IFERROR(VLOOKUP(AX61,商品マスター!$B$7:$D$53,2,FALSE),"") ->  | BA61: =IFERROR(VLOOKUP(AX61,商品マスター!$B$7:$D$53,3,FALSE),"") ->  | BB61: 0 | BD61: =IFERROR(VLOOKUP(BC61,商品マスター!$B$7:$D$53,2,FALSE),"") ->  | BF61: =IFERROR(VLOOKUP(BC61,商品マスター!$B$7:$D$53,3,FALSE),"") ->  | BG61: 0 | BI61: =IFERROR(VLOOKUP(BH61,商品マスター!$B$7:$D$53,2,FALSE),"") ->  | BK61: =IFERROR(VLOOKUP(BH61,商品マスター!$B$7:$D$53,3,FALSE),"") ->  | BL61: 0 | BM61: 0 | BN61: 0.1 | BO61: 0 | BQ61: 0
I62: =IFERROR(VLOOKUP(H62,得意先マスター!$B$7:$H$103,2,FALSE),"") ->  | J62: =IFERROR(VLOOKUP(H62,得意先マスター!$B$7:$H$103,3,FALSE),"") ->  | K62: =IFERROR(VLOOKUP(H62,得意先マスター!$B$7:$H$103,4,FALSE),"") ->  | L62: =IFERROR(VLOOKUP(H62,得意先マスター!$B$7:$H$103,5,FALSE),"") ->  | M62: =IFERROR(VLOOKUP(H62,得意先マスター!$B$7:$H$103,6,FALSE),"") ->  | P62: =IFERROR(VLOOKUP(O62,商品マスター!$B$7:$D$53,2,FALSE),"") ->  | R62: =IFERROR(VLOOKUP(O62,商品マスター!$B$7:$D$53,3,FALSE),"") ->  | S62: 0 | U62: =IFERROR(VLOOKUP(T62,商品マスター!$B$7:$D$53,2,FALSE),"") ->  | W62: =IFERROR(VLOOKUP(T62,商品マスター!$B$7:$D$53,3,FALSE),"") ->  | X62: 0 | Z62: =IFERROR(VLOOKUP(Y62,商品マスター!$B$7:$D$53,2,FALSE),"") ->  | AB62: =IFERROR(VLOOKUP(Y62,商品マスター!$B$7:$D$53,3,FALSE),"") ->  | AC62: 0 | AE62: =IFERROR(VLOOKUP(AD62,商品マスター!$B$7:$D$53,2,FALSE),"") ->  | AG62: =IFERROR(VLOOKUP(AD62,商品マスター!$B$7:$D$53,3,FALSE),"") ->  | AH62: 0 | AJ62: =IFERROR(VLOOKUP(AI62,商品マスター!$B$7:$D$53,2,FALSE),"") ->  | AL62: =IFERROR(VLOOKUP(AI62,商品マスター!$B$7:$D$53,3,FALSE),"") ->  | AM62: 0 | AO62: =IFERROR(VLOOKUP(AN62,商品マスター!$B$7:$D$53,2,FALSE),"") ->  | AQ62: =IFERROR(VLOOKUP(AN62,商品マスター!$B$7:$D$53,3,FALSE),"") ->  | AR62: 0 | AT62: =IFERROR(VLOOKUP(AS62,商品マスター!$B$7:$D$53,2,FALSE),"") ->  | AV62: =IFERROR(VLOOKUP(AS62,商品マスター!$B$7:$D$53,3,FALSE),"") ->  | AW62: 0 | AY62: =IFERROR(VLOOKUP(AX62,商品マスター!$B$7:$D$53,2,FALSE),"") ->  | BA62: =IFERROR(VLOOKUP(AX62,商品マスター!$B$7:$D$53,3,FALSE),"") ->  | BB62: 0 | BD62: =IFERROR(VLOOKUP(BC62,商品マスター!$B$7:$D$53,2,FALSE),"") ->  | BF62: =IFERROR(VLOOKUP(BC62,商品マスター!$B$7:$D$53,3,FALSE),"") ->  | BG62: 0 | BI62: =IFERROR(VLOOKUP(BH62,商品マスター!$B$7:$D$53,2,FALSE),"") ->  | BK62: =IFERROR(VLOOKUP(BH62,商品マスター!$B$7:$D$53,3,FALSE),"") ->  | BL62: 0 | BM62: 0 | BN62: 0.1 | BO62: 0 | BQ62: 0
I63: =IFERROR(VLOOKUP(H63,得意先マスター!$B$7:$H$103,2,FALSE),"") ->  | J63: =IFERROR(VLOOKUP(H63,得意先マスター!$B$7:$H$103,3,FALSE),"") ->  | K63: =IFERROR(VLOOKUP(H63,得意先マスター!$B$7:$H$103,4,FALSE),"") ->  | L63: =IFERROR(VLOOKUP(H63,得意先マスター!$B$7:$H$103,5,FALSE),"") ->  | M63: =IFERROR(VLOOKUP(H63,得意先マスター!$B$7:$H$103,6,FALSE),"") ->  | P63: =IFERROR(VLOOKUP(O63,商品マスター!$B$7:$D$53,2,FALSE),"") ->  | R63: =IFERROR(VLOOKUP(O63,商品マスター!$B$7:$D$53,3,FALSE),"") ->  | S63: 0 | U63: =IFERROR(VLOOKUP(T63,商品マスター!$B$7:$D$53,2,FALSE),"") ->  | W63: =IFERROR(VLOOKUP(T63,商品マスター!$B$7:$D$53,3,FALSE),"") ->  | X63: 0 | Z63: =IFERROR(VLOOKUP(Y63,商品マスター!$B$7:$D$53,2,FALSE),"") ->  | AB63: =IFERROR(VLOOKUP(Y63,商品マスター!$B$7:$D$53,3,FALSE),"") ->  | AC63: 0 | AE63: =IFERROR(VLOOKUP(AD63,商品マスター!$B$7:$D$53,2,FALSE),"") ->  | AG63: =IFERROR(VLOOKUP(AD63,商品マスター!$B$7:$D$53,3,FALSE),"") ->  | AH63: 0 | AJ63: =IFERROR(VLOOKUP(AI63,商品マスター!$B$7:$D$53,2,FALSE),"") ->  | AL63: =IFERROR(VLOOKUP(AI63,商品マスター!$B$7:$D$53,3,FALSE),"") ->  | AM63: 0 | AO63: =IFERROR(VLOOKUP(AN63,商品マスター!$B$7:$D$53,2,FALSE),"") ->  | AQ63: =IFERROR(VLOOKUP(AN63,商品マスター!$B$7:$D$53,3,FALSE),"") ->  | AR63: 0 | AT63: =IFERROR(VLOOKUP(AS63,商品マスター!$B$7:$D$53,2,FALSE),"") ->  | AV63: =IFERROR(VLOOKUP(AS63,商品マスター!$B$7:$D$53,3,FALSE),"") ->  | AW63: 0 | AY63: =IFERROR(VLOOKUP(AX63,商品マスター!$B$7:$D$53,2,FALSE),"") ->  | BA63: =IFERROR(VLOOKUP(AX63,商品マスター!$B$7:$D$53,3,FALSE),"") ->  | BB63: 0 | BD63: =IFERROR(VLOOKUP(BC63,商品マスター!$B$7:$D$53,2,FALSE),"") ->  | BF63: =IFERROR(VLOOKUP(BC63,商品マスター!$B$7:$D$53,3,FALSE),"") ->  | BG63: 0 | BI63: =IFERROR(VLOOKUP(BH63,商品マスター!$B$7:$D$53,2,FALSE),"") ->  | BK63: =IFERROR(VLOOKUP(BH63,商品マスター!$B$7:$D$53,3,FALSE),"") ->  | BL63: 0 | BM63: 0 | BN63: 0.1 | BO63: 0 | BQ63: 0
I64: =IFERROR(VLOOKUP(H64,得意先マスター!$B$7:$H$103,2,FALSE),"") ->  | J64: =IFERROR(VLOOKUP(H64,得意先マスター!$B$7:$H$103,3,FALSE),"") ->  | K64: =IFERROR(VLOOKUP(H64,得意先マスター!$B$7:$H$103,4,FALSE),"") ->  | L64: =IFERROR(VLOOKUP(H64,得意先マスター!$B$7:$H$103,5,FALSE),"") ->  | M64: =IFERROR(VLOOKUP(H64,得意先マスター!$B$7:$H$103,6,FALSE),"") ->  | P64: =IFERROR(VLOOKUP(O64,商品マスター!$B$7:$D$53,2,FALSE),"") ->  | R64: =IFERROR(VLOOKUP(O64,商品マスター!$B$7:$D$53,3,FALSE),"") ->  | S64: 0 | U64: =IFERROR(VLOOKUP(T64,商品マスター!$B$7:$D$53,2,FALSE),"") ->  | W64: =IFERROR(VLOOKUP(T64,商品マスター!$B$7:$D$53,3,FALSE),"") ->  | X64: 0 | Z64: =IFERROR(VLOOKUP(Y64,商品マスター!$B$7:$D$53,2,FALSE),"") ->  | AB64: =IFERROR(VLOOKUP(Y64,商品マスター!$B$7:$D$53,3,FALSE),"") ->  | AC64: 0 | AE64: =IFERROR(VLOOKUP(AD64,商品マスター!$B$7:$D$53,2,FALSE),"") ->  | AG64: =IFERROR(VLOOKUP(AD64,商品マスター!$B$7:$D$53,3,FALSE),"") ->  | AH64: 0 | AJ64: =IFERROR(VLOOKUP(AI64,商品マスター!$B$7:$D$53,2,FALSE),"") ->  | AL64: =IFERROR(VLOOKUP(AI64,商品マスター!$B$7:$D$53,3,FALSE),"") ->  | AM64: 0 | AO64: =IFERROR(VLOOKUP(AN64,商品マスター!$B$7:$D$53,2,FALSE),"") ->  | AQ64: =IFERROR(VLOOKUP(AN64,商品マスター!$B$7:$D$53,3,FALSE),"") ->  | AR64: 0 | AT64: =IFERROR(VLOOKUP(AS64,商品マスター!$B$7:$D$53,2,FALSE),"") ->  | AV64: =IFERROR(VLOOKUP(AS64,商品マスター!$B$7:$D$53,3,FALSE),"") ->  | AW64: 0 | AY64: =IFERROR(VLOOKUP(AX64,商品マスター!$B$7:$D$53,2,FALSE),"") ->  | BA64: =IFERROR(VLOOKUP(AX64,商品マスター!$B$7:$D$53,3,FALSE),"") ->  | BB64: 0 | BD64: =IFERROR(VLOOKUP(BC64,商品マスター!$B$7:$D$53,2,FALSE),"") ->  | BF64: =IFERROR(VLOOKUP(BC64,商品マスター!$B$7:$D$53,3,FALSE),"") ->  | BG64: 0 | BI64: =IFERROR(VLOOKUP(BH64,商品マスター!$B$7:$D$53,2,FALSE),"") ->  | BK64: =IFERROR(VLOOKUP(BH64,商品マスター!$B$7:$D$53,3,FALSE),"") ->  | BL64: 0 | BM64: 0 | BN64: 0.1 | BO64: 0 | BQ64: 0
I65: =IFERROR(VLOOKUP(H65,得意先マスター!$B$7:$H$103,2,FALSE),"") ->  | J65: =IFERROR(VLOOKUP(H65,得意先マスター!$B$7:$H$103,3,FALSE),"") ->  | K65: =IFERROR(VLOOKUP(H65,得意先マスター!$B$7:$H$103,4,FALSE),"") ->  | L65: =IFERROR(VLOOKUP(H65,得意先マスター!$B$7:$H$103,5,FALSE),"") ->  | M65: =IFERROR(VLOOKUP(H65,得意先マスター!$B$7:$H$103,6,FALSE),"") ->  | P65: =IFERROR(VLOOKUP(O65,商品マスター!$B$7:$D$53,2,FALSE),"") ->  | R65: =IFERROR(VLOOKUP(O65,商品マスター!$B$7:$D$53,3,FALSE),"") ->  | S65: 0 | U65: =IFERROR(VLOOKUP(T65,商品マスター!$B$7:$D$53,2,FALSE),"") ->  | W65: =IFERROR(VLOOKUP(T65,商品マスター!$B$7:$D$53,3,FALSE),"") ->  | X65: 0 | Z65: =IFERROR(VLOOKUP(Y65,商品マスター!$B$7:$D$53,2,FALSE),"") ->  | AB65: =IFERROR(VLOOKUP(Y65,商品マスター!$B$7:$D$53,3,FALSE),"") ->  | AC65: 0 | AE65: =IFERROR(VLOOKUP(AD65,商品マスター!$B$7:$D$53,2,FALSE),"") ->  | AG65: =IFERROR(VLOOKUP(AD65,商品マスター!$B$7:$D$53,3,FALSE),"") ->  | AH65: 0 | AJ65: =IFERROR(VLOOKUP(AI65,商品マスター!$B$7:$D$53,2,FALSE),"") ->  | AL65: =IFERROR(VLOOKUP(AI65,商品マスター!$B$7:$D$53,3,FALSE),"") ->  | AM65: 0 | AO65: =IFERROR(VLOOKUP(AN65,商品マスター!$B$7:$D$53,2,FALSE),"") ->  | AQ65: =IFERROR(VLOOKUP(AN65,商品マスター!$B$7:$D$53,3,FALSE),"") ->  | AR65: 0 | AT65: =IFERROR(VLOOKUP(AS65,商品マスター!$B$7:$D$53,2,FALSE),"") ->  | AV65: =IFERROR(VLOOKUP(AS65,商品マスター!$B$7:$D$53,3,FALSE),"") ->  | AW65: 0 | AY65: =IFERROR(VLOOKUP(AX65,商品マスター!$B$7:$D$53,2,FALSE),"") ->  | BA65: =IFERROR(VLOOKUP(AX65,商品マスター!$B$7:$D$53,3,FALSE),"") ->  | BB65: 0 | BD65: =IFERROR(VLOOKUP(BC65,商品マスター!$B$7:$D$53,2,FALSE),"") ->  | BF65: =IFERROR(VLOOKUP(BC65,商品マスター!$B$7:$D$53,3,FALSE),"") ->  | BG65: 0 | BI65: =IFERROR(VLOOKUP(BH65,商品マスター!$B$7:$D$53,2,FALSE),"") ->  | BK65: =IFERROR(VLOOKUP(BH65,商品マスター!$B$7:$D$53,3,FALSE),"") ->  | BL65: 0 | BM65: 0 | BN65: 0.1 | BO65: 0 | BQ65: 0
I66: =IFERROR(VLOOKUP(H66,得意先マスター!$B$7:$H$103,2,FALSE),"") ->  | J66: =IFERROR(VLOOKUP(H66,得意先マスター!$B$7:$H$103,3,FALSE),"") ->  | K66: =IFERROR(VLOOKUP(H66,得意先マスター!$B$7:$H$103,4,FALSE),"") ->  | L66: =IFERROR(VLOOKUP(H66,得意先マスター!$B$7:$H$103,5,FALSE),"") ->  | M66: =IFERROR(VLOOKUP(H66,得意先マスター!$B$7:$H$103,6,FALSE),"") ->  | P66: =IFERROR(VLOOKUP(O66,商品マスター!$B$7:$D$53,2,FALSE),"") ->  | R66: =IFERROR(VLOOKUP(O66,商品マスター!$B$7:$D$53,3,FALSE),"") ->  | S66: 0 | U66: =IFERROR(VLOOKUP(T66,商品マスター!$B$7:$D$53,2,FALSE),"") ->  | W66: =IFERROR(VLOOKUP(T66,商品マスター!$B$7:$D$53,3,FALSE),"") ->  | X66: 0 | Z66: =IFERROR(VLOOKUP(Y66,商品マスター!$B$7:$D$53,2,FALSE),"") ->  | AB66: =IFERROR(VLOOKUP(Y66,商品マスター!$B$7:$D$53,3,FALSE),"") ->  | AC66: 0 | AE66: =IFERROR(VLOOKUP(AD66,商品マスター!$B$7:$D$53,2,FALSE),"") ->  | AG66: =IFERROR(VLOOKUP(AD66,商品マスター!$B$7:$D$53,3,FALSE),"") ->  | AH66: 0 | AJ66: =IFERROR(VLOOKUP(AI66,商品マスター!$B$7:$D$53,2,FALSE),"") ->  | AL66: =IFERROR(VLOOKUP(AI66,商品マスター!$B$7:$D$53,3,FALSE),"") ->  | AM66: 0 | AO66: =IFERROR(VLOOKUP(AN66,商品マスター!$B$7:$D$53,2,FALSE),"") ->  | AQ66: =IFERROR(VLOOKUP(AN66,商品マスター!$B$7:$D$53,3,FALSE),"") ->  | AR66: 0 | AT66: =IFERROR(VLOOKUP(AS66,商品マスター!$B$7:$D$53,2,FALSE),"") ->  | AV66: =IFERROR(VLOOKUP(AS66,商品マスター!$B$7:$D$53,3,FALSE),"") ->  | AW66: 0 | AY66: =IFERROR(VLOOKUP(AX66,商品マスター!$B$7:$D$53,2,FALSE),"") ->  | BA66: =IFERROR(VLOOKUP(AX66,商品マスター!$B$7:$D$53,3,FALSE),"") ->  | BB66: 0 | BD66: =IFERROR(VLOOKUP(BC66,商品マスター!$B$7:$D$53,2,FALSE),"") ->  | BF66: =IFERROR(VLOOKUP(BC66,商品マスター!$B$7:$D$53,3,FALSE),"") ->  | BG66: 0 | BI66: =IFERROR(VLOOKUP(BH66,商品マスター!$B$7:$D$53,2,FALSE),"") ->  | BK66: =IFERROR(VLOOKUP(BH66,商品マスター!$B$7:$D$53,3,FALSE),"") ->  | BL66: 0 | BM66: 0 | BN66: 0.1 | BO66: 0 | BQ66: 0
I67: =IFERROR(VLOOKUP(H67,得意先マスター!$B$7:$H$103,2,FALSE),"") ->  | J67: =IFERROR(VLOOKUP(H67,得意先マスター!$B$7:$H$103,3,FALSE),"") ->  | K67: =IFERROR(VLOOKUP(H67,得意先マスター!$B$7:$H$103,4,FALSE),"") ->  | L67: =IFERROR(VLOOKUP(H67,得意先マスター!$B$7:$H$103,5,FALSE),"") ->  | M67: =IFERROR(VLOOKUP(H67,得意先マスター!$B$7:$H$103,6,FALSE),"") ->  | P67: =IFERROR(VLOOKUP(O67,商品マスター!$B$7:$D$53,2,FALSE),"") ->  | R67: =IFERROR(VLOOKUP(O67,商品マスター!$B$7:$D$53,3,FALSE),"") ->  | S67: 0 | U67: =IFERROR(VLOOKUP(T67,商品マスター!$B$7:$D$53,2,FALSE),"") ->  | W67: =IFERROR(VLOOKUP(T67,商品マスター!$B$7:$D$53,3,FALSE),"") ->  | X67: 0 | Z67: =IFERROR(VLOOKUP(Y67,商品マスター!$B$7:$D$53,2,FALSE),"") ->  | AB67: =IFERROR(VLOOKUP(Y67,商品マスター!$B$7:$D$53,3,FALSE),"") ->  | AC67: 0 | AE67: =IFERROR(VLOOKUP(AD67,商品マスター!$B$7:$D$53,2,FALSE),"") ->  | AG67: =IFERROR(VLOOKUP(AD67,商品マスター!$B$7:$D$53,3,FALSE),"") ->  | AH67: 0 | AJ67: =IFERROR(VLOOKUP(AI67,商品マスター!$B$7:$D$53,2,FALSE),"") ->  | AL67: =IFERROR(VLOOKUP(AI67,商品マスター!$B$7:$D$53,3,FALSE),"") ->  | AM67: 0 | AO67: =IFERROR(VLOOKUP(AN67,商品マスター!$B$7:$D$53,2,FALSE),"") ->  | AQ67: =IFERROR(VLOOKUP(AN67,商品マスター!$B$7:$D$53,3,FALSE),"") ->  | AR67: 0 | AT67: =IFERROR(VLOOKUP(AS67,商品マスター!$B$7:$D$53,2,FALSE),"") ->  | AV67: =IFERROR(VLOOKUP(AS67,商品マスター!$B$7:$D$53,3,FALSE),"") ->  | AW67: 0 | AY67: =IFERROR(VLOOKUP(AX67,商品マスター!$B$7:$D$53,2,FALSE),"") ->  | BA67: =IFERROR(VLOOKUP(AX67,商品マスター!$B$7:$D$53,3,FALSE),"") ->  | BB67: 0 | BD67: =IFERROR(VLOOKUP(BC67,商品マスター!$B$7:$D$53,2,FALSE),"") ->  | BF67: =IFERROR(VLOOKUP(BC67,商品マスター!$B$7:$D$53,3,FALSE),"") ->  | BG67: 0 | BI67: =IFERROR(VLOOKUP(BH67,商品マスター!$B$7:$D$53,2,FALSE),"") ->  | BK67: =IFERROR(VLOOKUP(BH67,商品マスター!$B$7:$D$53,3,FALSE),"") ->  | BL67: 0 | BM67: 0 | BN67: 0.1 | BO67: 0 | BQ67: 0
I68: =IFERROR(VLOOKUP(H68,得意先マスター!$B$7:$H$103,2,FALSE),"") ->  | J68: =IFERROR(VLOOKUP(H68,得意先マスター!$B$7:$H$103,3,FALSE),"") ->  | K68: =IFERROR(VLOOKUP(H68,得意先マスター!$B$7:$H$103,4,FALSE),"") ->  | L68: =IFERROR(VLOOKUP(H68,得意先マスター!$B$7:$H$103,5,FALSE),"") ->  | M68: =IFERROR(VLOOKUP(H68,得意先マスター!$B$7:$H$103,6,FALSE),"") ->  | P68: =IFERROR(VLOOKUP(O68,商品マスター!$B$7:$D$53,2,FALSE),"") ->  | R68: =IFERROR(VLOOKUP(O68,商品マスター!$B$7:$D$53,3,FALSE),"") ->  | S68: 0 | U68: =IFERROR(VLOOKUP(T68,商品マスター!$B$7:$D$53,2,FALSE),"") ->  | W68: =IFERROR(VLOOKUP(T68,商品マスター!$B$7:$D$53,3,FALSE),"") ->  | X68: 0 | Z68: =IFERROR(VLOOKUP(Y68,商品マスター!$B$7:$D$53,2,FALSE),"") ->  | AB68: =IFERROR(VLOOKUP(Y68,商品マスター!$B$7:$D$53,3,FALSE),"") ->  | AC68: 0 | AE68: =IFERROR(VLOOKUP(AD68,商品マスター!$B$7:$D$53,2,FALSE),"") ->  | AG68: =IFERROR(VLOOKUP(AD68,商品マスター!$B$7:$D$53,3,FALSE),"") ->  | AH68: 0 | AJ68: =IFERROR(VLOOKUP(AI68,商品マスター!$B$7:$D$53,2,FALSE),"") ->  | AL68: =IFERROR(VLOOKUP(AI68,商品マスター!$B$7:$D$53,3,FALSE),"") ->  | AM68: 0 | AO68: =IFERROR(VLOOKUP(AN68,商品マスター!$B$7:$D$53,2,FALSE),"") ->  | AQ68: =IFERROR(VLOOKUP(AN68,商品マスター!$B$7:$D$53,3,FALSE),"") ->  | AR68: 0 | AT68: =IFERROR(VLOOKUP(AS68,商品マスター!$B$7:$D$53,2,FALSE),"") ->  | AV68: =IFERROR(VLOOKUP(AS68,商品マスター!$B$7:$D$53,3,FALSE),"") ->  | AW68: 0 | AY68: =IFERROR(VLOOKUP(AX68,商品マスター!$B$7:$D$53,2,FALSE),"") ->  | BA68: =IFERROR(VLOOKUP(AX68,商品マスター!$B$7:$D$53,3,FALSE),"") ->  | BB68: 0 | BD68: =IFERROR(VLOOKUP(BC68,商品マスター!$B$7:$D$53,2,FALSE),"") ->  | BF68: =IFERROR(VLOOKUP(BC68,商品マスター!$B$7:$D$53,3,FALSE),"") ->  | BG68: 0 | BI68: =IFERROR(VLOOKUP(BH68,商品マスター!$B$7:$D$53,2,FALSE),"") ->  | BK68: =IFERROR(VLOOKUP(BH68,商品マスター!$B$7:$D$53,3,FALSE),"") ->  | BL68: 0 | BM68: 0 | BN68: 0.1 | BO68: 0 | BQ68: 0
I69: =IFERROR(VLOOKUP(H69,得意先マスター!$B$7:$H$103,2,FALSE),"") ->  | J69: =IFERROR(VLOOKUP(H69,得意先マスター!$B$7:$H$103,3,FALSE),"") ->  | K69: =IFERROR(VLOOKUP(H69,得意先マスター!$B$7:$H$103,4,FALSE),"") ->  | L69: =IFERROR(VLOOKUP(H69,得意先マスター!$B$7:$H$103,5,FALSE),"") ->  | M69: =IFERROR(VLOOKUP(H69,得意先マスター!$B$7:$H$103,6,FALSE),"") ->  | P69: =IFERROR(VLOOKUP(O69,商品マスター!$B$7:$D$53,2,FALSE),"") ->  | R69: =IFERROR(VLOOKUP(O69,商品マスター!$B$7:$D$53,3,FALSE),"") ->  | S69: 0 | U69: =IFERROR(VLOOKUP(T69,商品マスター!$B$7:$D$53,2,FALSE),"") ->  | W69: =IFERROR(VLOOKUP(T69,商品マスター!$B$7:$D$53,3,FALSE),"") ->  | X69: 0 | Z69: =IFERROR(VLOOKUP(Y69,商品マスター!$B$7:$D$53,2,FALSE),"") ->  | AB69: =IFERROR(VLOOKUP(Y69,商品マスター!$B$7:$D$53,3,FALSE),"") ->  | AC69: 0 | AE69: =IFERROR(VLOOKUP(AD69,商品マスター!$B$7:$D$53,2,FALSE),"") ->  | AG69: =IFERROR(VLOOKUP(AD69,商品マスター!$B$7:$D$53,3,FALSE),"") ->  | AH69: 0 | AJ69: =IFERROR(VLOOKUP(AI69,商品マスター!$B$7:$D$53,2,FALSE),"") ->  | AL69: =IFERROR(VLOOKUP(AI69,商品マスター!$B$7:$D$53,3,FALSE),"") ->  | AM69: 0 | AO69: =IFERROR(VLOOKUP(AN69,商品マスター!$B$7:$D$53,2,FALSE),"") ->  | AQ69: =IFERROR(VLOOKUP(AN69,商品マスター!$B$7:$D$53,3,FALSE),"") ->  | AR69: 0 | AT69: =IFERROR(VLOOKUP(AS69,商品マスター!$B$7:$D$53,2,FALSE),"") ->  | AV69: =IFERROR(VLOOKUP(AS69,商品マスター!$B$7:$D$53,3,FALSE),"") ->  | AW69: 0 | AY69: =IFERROR(VLOOKUP(AX69,商品マスター!$B$7:$D$53,2,FALSE),"") ->  | BA69: =IFERROR(VLOOKUP(AX69,商品マスター!$B$7:$D$53,3,FALSE),"") ->  | BB69: 0 | BD69: =IFERROR(VLOOKUP(BC69,商品マスター!$B$7:$D$53,2,FALSE),"") ->  | BF69: =IFERROR(VLOOKUP(BC69,商品マスター!$B$7:$D$53,3,FALSE),"") ->  | BG69: 0 | BI69: =IFERROR(VLOOKUP(BH69,商品マスター!$B$7:$D$53,2,FALSE),"") ->  | BK69: =IFERROR(VLOOKUP(BH69,商品マスター!$B$7:$D$53,3,FALSE),"") ->  | BL69: 0 | BM69: 0 | BN69: 0.1 | BO69: 0 | BQ69: 0
A70: =IF(ISBLANK(C70),"",MONTH(C70)) ->  | I70: =IFERROR(VLOOKUP(H70,得意先マスター!$B$7:$H$103,2,FALSE),"") ->  | J70: =IFERROR(VLOOKUP(H70,得意先マスター!$B$7:$H$103,3,FALSE),"") ->  | K70: =IFERROR(VLOOKUP(H70,得意先マスター!$B$7:$H$103,4,FALSE),"") ->  | L70: =IFERROR(VLOOKUP(H70,得意先マスター!$B$7:$H$103,5,FALSE),"") ->  | M70: =IFERROR(VLOOKUP(H70,得意先マスター!$B$7:$H$103,6,FALSE),"") ->  | P70: =IFERROR(VLOOKUP(O70,商品マスター!$B$7:$D$53,2,FALSE),"") ->  | R70: =IFERROR(VLOOKUP(O70,商品マスター!$B$7:$D$53,3,FALSE),"") ->  | S70: 0 | U70: =IFERROR(VLOOKUP(T70,商品マスター!$B$7:$D$53,2,FALSE),"") ->  | W70: =IFERROR(VLOOKUP(T70,商品マスター!$B$7:$D$53,3,FALSE),"") ->  | X70: 0 | Z70: =IFERROR(VLOOKUP(Y70,商品マスター!$B$7:$D$53,2,FALSE),"") ->  | AB70: =IFERROR(VLOOKUP(Y70,商品マスター!$B$7:$D$53,3,FALSE),"") ->  | AC70: 0 | AE70: =IFERROR(VLOOKUP(AD70,商品マスター!$B$7:$D$53,2,FALSE),"") ->  | AG70: =IFERROR(VLOOKUP(AD70,商品マスター!$B$7:$D$53,3,FALSE),"") ->  | AH70: 0 | AJ70: =IFERROR(VLOOKUP(AI70,商品マスター!$B$7:$D$53,2,FALSE),"") ->  | AL70: =IFERROR(VLOOKUP(AI70,商品マスター!$B$7:$D$53,3,FALSE),"") ->  | AM70: 0 | AO70: =IFERROR(VLOOKUP(AN70,商品マスター!$B$7:$D$53,2,FALSE),"") ->  | AQ70: =IFERROR(VLOOKUP(AN70,商品マスター!$B$7:$D$53,3,FALSE),"") ->  | AR70: 0 | AT70: =IFERROR(VLOOKUP(AS70,商品マスター!$B$7:$D$53,2,FALSE),"") ->  | AV70: =IFERROR(VLOOKUP(AS70,商品マスター!$B$7:$D$53,3,FALSE),"") ->  | AW70: 0 | AY70: =IFERROR(VLOOKUP(AX70,商品マスター!$B$7:$D$53,2,FALSE),"") ->  | BA70: =IFERROR(VLOOKUP(AX70,商品マスター!$B$7:$D$53,3,FALSE),"") ->  | BB70: 0 | BD70: =IFERROR(VLOOKUP(BC70,商品マスター!$B$7:$D$53,2,FALSE),"") ->  | BF70: =IFERROR(VLOOKUP(BC70,商品マスター!$B$7:$D$53,3,FALSE),"") ->  | BG70: 0 | BI70: =IFERROR(VLOOKUP(BH70,商品マスター!$B$7:$D$53,2,FALSE),"") ->  | BK70: =IFERROR(VLOOKUP(BH70,商品マスター!$B$7:$D$53,3,FALSE),"") ->  | BL70: 0 | BM70: 0 | BN70: 0.1 | BO70: 0 | BQ70: =BM70+BO70-BP70 -> 0
I71: =IFERROR(VLOOKUP(H71,得意先マスター!$B$7:$H$103,2,FALSE),"") ->  | J71: =IFERROR(VLOOKUP(H71,得意先マスター!$B$7:$H$103,3,FALSE),"") ->  | K71: =IFERROR(VLOOKUP(H71,得意先マスター!$B$7:$H$103,4,FALSE),"") ->  | L71: =IFERROR(VLOOKUP(H71,得意先マスター!$B$7:$H$103,5,FALSE),"") ->  | M71: =IFERROR(VLOOKUP(H71,得意先マスター!$B$7:$H$103,6,FALSE),"") ->  | P71: =IFERROR(VLOOKUP(O71,商品マスター!$B$7:$D$53,2,FALSE),"") ->  | R71: =IFERROR(VLOOKUP(O71,商品マスター!$B$7:$D$53,3,FALSE),"") ->  | S71: =IFERROR(Q71*R71,0) -> 0 | U71: =IFERROR(VLOOKUP(T71,商品マスター!$B$7:$D$53,2,FALSE),"") ->  | W71: =IFERROR(VLOOKUP(T71,商品マスター!$B$7:$D$53,3,FALSE),"") ->  | X71: =IFERROR(V71*W71,0) -> 0 | Z71: =IFERROR(VLOOKUP(Y71,商品マスター!$B$7:$D$53,2,FALSE),"") ->  | AB71: =IFERROR(VLOOKUP(Y71,商品マスター!$B$7:$D$53,3,FALSE),"") ->  | AC71: =IFERROR(AA71*AB71,0) -> 0 | AE71: =IFERROR(VLOOKUP(AD71,商品マスター!$B$7:$D$53,2,FALSE),"") ->  | AG71: =IFERROR(VLOOKUP(AD71,商品マスター!$B$7:$D$53,3,FALSE),"") ->  | AH71: =IFERROR(AF71*AG71,0) -> 0 | AJ71: =IFERROR(VLOOKUP(AI71,商品マスター!$B$7:$D$53,2,FALSE),"") ->  | AL71: =IFERROR(VLOOKUP(AI71,商品マスター!$B$7:$D$53,3,FALSE),"") ->  | AM71: =IFERROR(AK71*AL71,0) -> 0 | AO71: =IFERROR(VLOOKUP(AN71,商品マスター!$B$7:$D$53,2,FALSE),"") ->  | AQ71: =IFERROR(VLOOKUP(AN71,商品マスター!$B$7:$D$53,3,FALSE),"") ->  | AR71: =IFERROR(AP71*AQ71,0) -> 0 | AT71: =IFERROR(VLOOKUP(AS71,商品マスター!$B$7:$D$53,2,FALSE),"") ->  | AV71: =IFERROR(VLOOKUP(AS71,商品マスター!$B$7:$D$53,3,FALSE),"") ->  | AW71: =IFERROR(AU71*AV71,0) -> 0 | AY71: =IFERROR(VLOOKUP(AX71,商品マスター!$B$7:$D$53,2,FALSE),"") ->  | BA71: =IFERROR(VLOOKUP(AX71,商品マスター!$B$7:$D$53,3,FALSE),"") ->  | BB71: =IFERROR(AZ71*BA71,0) -> 0 | BD71: =IFERROR(VLOOKUP(BC71,商品マスター!$B$7:$D$53,2,FALSE),"") ->  | BF71: =IFERROR(VLOOKUP(BC71,商品マスター!$B$7:$D$53,3,FALSE),"") ->  | BG71: =IFERROR(BE71*BF71,0) -> 0 | BI71: =IFERROR(VLOOKUP(BH71,商品マスター!$B$7:$D$53,2,FALSE),"") ->  | BK71: =IFERROR(VLOOKUP(BH71,商品マスター!$B$7:$D$53,3,FALSE),"") ->  | BL71: =IFERROR(BJ71*BK71,0) -> 0 | BM71: =IFERROR(S71+X71+AC71+AH71+AM71+AR71+AW71+BB71+BG71+BL71, "") -> 0 | BN71: 0.1 | BO71: =IFERROR(BM71*BN71, "") -> 0 | BQ71: 0
I72: =IFERROR(VLOOKUP(H72,得意先マスター!$B$7:$H$103,2,FALSE),"") ->  | J72: =IFERROR(VLOOKUP(H72,得意先マスター!$B$7:$H$103,3,FALSE),"") ->  | K72: =IFERROR(VLOOKUP(H72,得意先マスター!$B$7:$H$103,4,FALSE),"") ->  | L72: =IFERROR(VLOOKUP(H72,得意先マスター!$B$7:$H$103,5,FALSE),"") ->  | M72: =IFERROR(VLOOKUP(H72,得意先マスター!$B$7:$H$103,6,FALSE),"") ->  | P72: =IFERROR(VLOOKUP(O72,商品マスター!$B$7:$D$53,2,FALSE),"") ->  | R72: =IFERROR(VLOOKUP(O72,商品マスター!$B$7:$D$53,3,FALSE),"") ->  | S72: 0 | U72: =IFERROR(VLOOKUP(T72,商品マスター!$B$7:$D$53,2,FALSE),"") ->  | W72: =IFERROR(VLOOKUP(T72,商品マスター!$B$7:$D$53,3,FALSE),"") ->  | X72: 0 | Z72: =IFERROR(VLOOKUP(Y72,商品マスター!$B$7:$D$53,2,FALSE),"") ->  | AB72: =IFERROR(VLOOKUP(Y72,商品マスター!$B$7:$D$53,3,FALSE),"") ->  | AC72: 0 | AE72: =IFERROR(VLOOKUP(AD72,商品マスター!$B$7:$D$53,2,FALSE),"") ->  | AG72: =IFERROR(VLOOKUP(AD72,商品マスター!$B$7:$D$53,3,FALSE),"") ->  | AH72: 0 | AJ72: =IFERROR(VLOOKUP(AI72,商品マスター!$B$7:$D$53,2,FALSE),"") ->  | AL72: =IFERROR(VLOOKUP(AI72,商品マスター!$B$7:$D$53,3,FALSE),"") ->  | AM72: 0 | AO72: =IFERROR(VLOOKUP(AN72,商品マスター!$B$7:$D$53,2,FALSE),"") ->  | AQ72: =IFERROR(VLOOKUP(AN72,商品マスター!$B$7:$D$53,3,FALSE),"") ->  | AR72: 0 | AT72: =IFERROR(VLOOKUP(AS72,商品マスター!$B$7:$D$53,2,FALSE),"") ->  | AV72: =IFERROR(VLOOKUP(AS72,商品マスター!$B$7:$D$53,3,FALSE),"") ->  | AW72: 0 | AY72: =IFERROR(VLOOKUP(AX72,商品マスター!$B$7:$D$53,2,FALSE),"") ->  | BA72: =IFERROR(VLOOKUP(AX72,商品マスター!$B$7:$D$53,3,FALSE),"") ->  | BB72: 0 | BD72: =IFERROR(VLOOKUP(BC72,商品マスター!$B$7:$D$53,2,FALSE),"") ->  | BF72: =IFERROR(VLOOKUP(BC72,商品マスター!$B$7:$D$53,3,FALSE),"") ->  | BG72: 0 | BI72: =IFERROR(VLOOKUP(BH72,商品マスター!$B$7:$D$53,2,FALSE),"") ->  | BK72: =IFERROR(VLOOKUP(BH72,商品マスター!$B$7:$D$53,3,FALSE),"") ->  | BL72: 0 | BM72: 0 | BN72: 0.1 | BO72: 0 | BQ72: 0
I73: =IFERROR(VLOOKUP(H73,得意先マスター!$B$7:$H$103,2,FALSE),"") ->  | J73: =IFERROR(VLOOKUP(H73,得意先マスター!$B$7:$H$103,3,FALSE),"") ->  | K73: =IFERROR(VLOOKUP(H73,得意先マスター!$B$7:$H$103,4,FALSE),"") ->  | L73: =IFERROR(VLOOKUP(H73,得意先マスター!$B$7:$H$103,5,FALSE),"") ->  | M73: =IFERROR(VLOOKUP(H73,得意先マスター!$B$7:$H$103,6,FALSE),"") ->  | P73: =IFERROR(VLOOKUP(O73,商品マスター!$B$7:$D$53,2,FALSE),"") ->  | R73: =IFERROR(VLOOKUP(O73,商品マスター!$B$7:$D$53,3,FALSE),"") ->  | S73: 0 | U73: =IFERROR(VLOOKUP(T73,商品マスター!$B$7:$D$53,2,FALSE),"") ->  | W73: =IFERROR(VLOOKUP(T73,商品マスター!$B$7:$D$53,3,FALSE),"") ->  | X73: 0 | Z73: =IFERROR(VLOOKUP(Y73,商品マスター!$B$7:$D$53,2,FALSE),"") ->  | AB73: =IFERROR(VLOOKUP(Y73,商品マスター!$B$7:$D$53,3,FALSE),"") ->  | AC73: 0 | AE73: =IFERROR(VLOOKUP(AD73,商品マスター!$B$7:$D$53,2,FALSE),"") ->  | AG73: =IFERROR(VLOOKUP(AD73,商品マスター!$B$7:$D$53,3,FALSE),"") ->  | AH73: 0 | AJ73: =IFERROR(VLOOKUP(AI73,商品マスター!$B$7:$D$53,2,FALSE),"") ->  | AL73: =IFERROR(VLOOKUP(AI73,商品マスター!$B$7:$D$53,3,FALSE),"") ->  | AM73: 0 | AO73: =IFERROR(VLOOKUP(AN73,商品マスター!$B$7:$D$53,2,FALSE),"") ->  | AQ73: =IFERROR(VLOOKUP(AN73,商品マスター!$B$7:$D$53,3,FALSE),"") ->  | AR73: 0 | AT73: =IFERROR(VLOOKUP(AS73,商品マスター!$B$7:$D$53,2,FALSE),"") ->  | AV73: =IFERROR(VLOOKUP(AS73,商品マスター!$B$7:$D$53,3,FALSE),"") ->  | AW73: 0 | AY73: =IFERROR(VLOOKUP(AX73,商品マスター!$B$7:$D$53,2,FALSE),"") ->  | BA73: =IFERROR(VLOOKUP(AX73,商品マスター!$B$7:$D$53,3,FALSE),"") ->  | BB73: 0 | BD73: =IFERROR(VLOOKUP(BC73,商品マスター!$B$7:$D$53,2,FALSE),"") ->  | BF73: =IFERROR(VLOOKUP(BC73,商品マスター!$B$7:$D$53,3,FALSE),"") ->  | BG73: 0 | BI73: =IFERROR(VLOOKUP(BH73,商品マスター!$B$7:$D$53,2,FALSE),"") ->  | BK73: =IFERROR(VLOOKUP(BH73,商品マスター!$B$7:$D$53,3,FALSE),"") ->  | BL73: 0 | BM73: 0 | BN73: 0.1 | BO73: 0 | BQ73: 0
I74: =IFERROR(VLOOKUP(H74,得意先マスター!$B$7:$H$103,2,FALSE),"") ->  | J74: =IFERROR(VLOOKUP(H74,得意先マスター!$B$7:$H$103,3,FALSE),"") ->  | K74: =IFERROR(VLOOKUP(H74,得意先マスター!$B$7:$H$103,4,FALSE),"") ->  | L74: =IFERROR(VLOOKUP(H74,得意先マスター!$B$7:$H$103,5,FALSE),"") ->  | M74: =IFERROR(VLOOKUP(H74,得意先マスター!$B$7:$H$103,6,FALSE),"") ->  | P74: =IFERROR(VLOOKUP(O74,商品マスター!$B$7:$D$53,2,FALSE),"") ->  | R74: =IFERROR(VLOOKUP(O74,商品マスター!$B$7:$D$53,3,FALSE),"") ->  | S74: 0 | U74: =IFERROR(VLOOKUP(T74,商品マスター!$B$7:$D$53,2,FALSE),"") ->  | W74: =IFERROR(VLOOKUP(T74,商品マスター!$B$7:$D$53,3,FALSE),"") ->  | X74: 0 | Z74: =IFERROR(VLOOKUP(Y74,商品マスター!$B$7:$D$53,2,FALSE),"") ->  | AB74: =IFERROR(VLOOKUP(Y74,商品マスター!$B$7:$D$53,3,FALSE),"") ->  | AC74: 0 | AE74: =IFERROR(VLOOKUP(AD74,商品マスター!$B$7:$D$53,2,FALSE),"") ->  | AG74: =IFERROR(VLOOKUP(AD74,商品マスター!$B$7:$D$53,3,FALSE),"") ->  | AH74: 0 | AJ74: =IFERROR(VLOOKUP(AI74,商品マスター!$B$7:$D$53,2,FALSE),"") ->  | AL74: =IFERROR(VLOOKUP(AI74,商品マスター!$B$7:$D$53,3,FALSE),"") ->  | AM74: 0 | AO74: =IFERROR(VLOOKUP(AN74,商品マスター!$B$7:$D$53,2,FALSE),"") ->  | AQ74: =IFERROR(VLOOKUP(AN74,商品マスター!$B$7:$D$53,3,FALSE),"") ->  | AR74: 0 | AT74: =IFERROR(VLOOKUP(AS74,商品マスター!$B$7:$D$53,2,FALSE),"") ->  | AV74: =IFERROR(VLOOKUP(AS74,商品マスター!$B$7:$D$53,3,FALSE),"") ->  | AW74: 0 | AY74: =IFERROR(VLOOKUP(AX74,商品マスター!$B$7:$D$53,2,FALSE),"") ->  | BA74: =IFERROR(VLOOKUP(AX74,商品マスター!$B$7:$D$53,3,FALSE),"") ->  | BB74: 0 | BD74: =IFERROR(VLOOKUP(BC74,商品マスター!$B$7:$D$53,2,FALSE),"") ->  | BF74: =IFERROR(VLOOKUP(BC74,商品マスター!$B$7:$D$53,3,FALSE),"") ->  | BG74: 0 | BI74: =IFERROR(VLOOKUP(BH74,商品マスター!$B$7:$D$53,2,FALSE),"") ->  | BK74: =IFERROR(VLOOKUP(BH74,商品マスター!$B$7:$D$53,3,FALSE),"") ->  | BL74: 0 | BM74: 0 | BN74: 0.1 | BO74: 0 | BQ74: 0
I75: =IFERROR(VLOOKUP(H75,得意先マスター!$B$7:$H$103,2,FALSE),"") ->  | J75: =IFERROR(VLOOKUP(H75,得意先マスター!$B$7:$H$103,3,FALSE),"") ->  | K75: =IFERROR(VLOOKUP(H75,得意先マスター!$B$7:$H$103,4,FALSE),"") ->  | L75: =IFERROR(VLOOKUP(H75,得意先マスター!$B$7:$H$103,5,FALSE),"") ->  | M75: =IFERROR(VLOOKUP(H75,得意先マスター!$B$7:$H$103,6,FALSE),"") ->  | P75: =IFERROR(VLOOKUP(O75,商品マスター!$B$7:$D$53,2,FALSE),"") ->  | R75: =IFERROR(VLOOKUP(O75,商品マスター!$B$7:$D$53,3,FALSE),"") ->  | S75: 0 | U75: =IFERROR(VLOOKUP(T75,商品マスター!$B$7:$D$53,2,FALSE),"") ->  | W75: =IFERROR(VLOOKUP(T75,商品マスター!$B$7:$D$53,3,FALSE),"") ->  | X75: 0 | Z75: =IFERROR(VLOOKUP(Y75,商品マスター!$B$7:$D$53,2,FALSE),"") ->  | AB75: =IFERROR(VLOOKUP(Y75,商品マスター!$B$7:$D$53,3,FALSE),"") ->  | AC75: 0 | AE75: =IFERROR(VLOOKUP(AD75,商品マスター!$B$7:$D$53,2,FALSE),"") ->  | AG75: =IFERROR(VLOOKUP(AD75,商品マスター!$B$7:$D$53,3,FALSE),"") ->  | AH75: 0 | AJ75: =IFERROR(VLOOKUP(AI75,商品マスター!$B$7:$D$53,2,FALSE),"") ->  | AL75: =IFERROR(VLOOKUP(AI75,商品マスター!$B$7:$D$53,3,FALSE),"") ->  | AM75: 0 | AO75: =IFERROR(VLOOKUP(AN75,商品マスター!$B$7:$D$53,2,FALSE),"") ->  | AQ75: =IFERROR(VLOOKUP(AN75,商品マスター!$B$7:$D$53,3,FALSE),"") ->  | AR75: 0 | AT75: =IFERROR(VLOOKUP(AS75,商品マスター!$B$7:$D$53,2,FALSE),"") ->  | AV75: =IFERROR(VLOOKUP(AS75,商品マスター!$B$7:$D$53,3,FALSE),"") ->  | AW75: 0 | AY75: =IFERROR(VLOOKUP(AX75,商品マスター!$B$7:$D$53,2,FALSE),"") ->  | BA75: =IFERROR(VLOOKUP(AX75,商品マスター!$B$7:$D$53,3,FALSE),"") ->  | BB75: 0 | BD75: =IFERROR(VLOOKUP(BC75,商品マスター!$B$7:$D$53,2,FALSE),"") ->  | BF75: =IFERROR(VLOOKUP(BC75,商品マスター!$B$7:$D$53,3,FALSE),"") ->  | BG75: 0 | BI75: =IFERROR(VLOOKUP(BH75,商品マスター!$B$7:$D$53,2,FALSE),"") ->  | BK75: =IFERROR(VLOOKUP(BH75,商品マスター!$B$7:$D$53,3,FALSE),"") ->  | BL75: 0 | BM75: 0 | BN75: 0.1 | BO75: 0 | BQ75: 0
I76: =IFERROR(VLOOKUP(H76,得意先マスター!$B$7:$H$103,2,FALSE),"") ->  | J76: =IFERROR(VLOOKUP(H76,得意先マスター!$B$7:$H$103,3,FALSE),"") ->  | K76: =IFERROR(VLOOKUP(H76,得意先マスター!$B$7:$H$103,4,FALSE),"") ->  | L76: =IFERROR(VLOOKUP(H76,得意先マスター!$B$7:$H$103,5,FALSE),"") ->  | M76: =IFERROR(VLOOKUP(H76,得意先マスター!$B$7:$H$103,6,FALSE),"") ->  | P76: =IFERROR(VLOOKUP(O76,商品マスター!$B$7:$D$53,2,FALSE),"") ->  | R76: =IFERROR(VLOOKUP(O76,商品マスター!$B$7:$D$53,3,FALSE),"") ->  | S76: 0 | U76: =IFERROR(VLOOKUP(T76,商品マスター!$B$7:$D$53,2,FALSE),"") ->  | W76: =IFERROR(VLOOKUP(T76,商品マスター!$B$7:$D$53,3,FALSE),"") ->  | X76: 0 | Z76: =IFERROR(VLOOKUP(Y76,商品マスター!$B$7:$D$53,2,FALSE),"") ->  | AB76: =IFERROR(VLOOKUP(Y76,商品マスター!$B$7:$D$53,3,FALSE),"") ->  | AC76: 0 | AE76: =IFERROR(VLOOKUP(AD76,商品マスター!$B$7:$D$53,2,FALSE),"") ->  | AG76: =IFERROR(VLOOKUP(AD76,商品マスター!$B$7:$D$53,3,FALSE),"") ->  | AH76: 0 | AJ76: =IFERROR(VLOOKUP(AI76,商品マスター!$B$7:$D$53,2,FALSE),"") ->  | AL76: =IFERROR(VLOOKUP(AI76,商品マスター!$B$7:$D$53,3,FALSE),"") ->  | AM76: 0 | AO76: =IFERROR(VLOOKUP(AN76,商品マスター!$B$7:$D$53,2,FALSE),"") ->  | AQ76: =IFERROR(VLOOKUP(AN76,商品マスター!$B$7:$D$53,3,FALSE),"") ->  | AR76: 0 | AT76: =IFERROR(VLOOKUP(AS76,商品マスター!$B$7:$D$53,2,FALSE),"") ->  | AV76: =IFERROR(VLOOKUP(AS76,商品マスター!$B$7:$D$53,3,FALSE),"") ->  | AW76: 0 | AY76: =IFERROR(VLOOKUP(AX76,商品マスター!$B$7:$D$53,2,FALSE),"") ->  | BA76: =IFERROR(VLOOKUP(AX76,商品マスター!$B$7:$D$53,3,FALSE),"") ->  | BB76: 0 | BD76: =IFERROR(VLOOKUP(BC76,商品マスター!$B$7:$D$53,2,FALSE),"") ->  | BF76: =IFERROR(VLOOKUP(BC76,商品マスター!$B$7:$D$53,3,FALSE),"") ->  | BG76: 0 | BI76: =IFERROR(VLOOKUP(BH76,商品マスター!$B$7:$D$53,2,FALSE),"") ->  | BK76: =IFERROR(VLOOKUP(BH76,商品マスター!$B$7:$D$53,3,FALSE),"") ->  | BL76: 0 | BM76: 0 | BN76: 0.1 | BO76: 0 | BQ76: 0
I77: =IFERROR(VLOOKUP(H77,得意先マスター!$B$7:$H$103,2,FALSE),"") ->  | J77: =IFERROR(VLOOKUP(H77,得意先マスター!$B$7:$H$103,3,FALSE),"") ->  | K77: =IFERROR(VLOOKUP(H77,得意先マスター!$B$7:$H$103,4,FALSE),"") ->  | L77: =IFERROR(VLOOKUP(H77,得意先マスター!$B$7:$H$103,5,FALSE),"") ->  | M77: =IFERROR(VLOOKUP(H77,得意先マスター!$B$7:$H$103,6,FALSE),"") ->  | P77: =IFERROR(VLOOKUP(O77,商品マスター!$B$7:$D$53,2,FALSE),"") ->  | R77: =IFERROR(VLOOKUP(O77,商品マスター!$B$7:$D$53,3,FALSE),"") ->  | S77: 0 | U77: =IFERROR(VLOOKUP(T77,商品マスター!$B$7:$D$53,2,FALSE),"") ->  | W77: =IFERROR(VLOOKUP(T77,商品マスター!$B$7:$D$53,3,FALSE),"") ->  | X77: 0 | Z77: =IFERROR(VLOOKUP(Y77,商品マスター!$B$7:$D$53,2,FALSE),"") ->  | AB77: =IFERROR(VLOOKUP(Y77,商品マスター!$B$7:$D$53,3,FALSE),"") ->  | AC77: 0 | AE77: =IFERROR(VLOOKUP(AD77,商品マスター!$B$7:$D$53,2,FALSE),"") ->  | AG77: =IFERROR(VLOOKUP(AD77,商品マスター!$B$7:$D$53,3,FALSE),"") ->  | AH77: 0 | AJ77: =IFERROR(VLOOKUP(AI77,商品マスター!$B$7:$D$53,2,FALSE),"") ->  | AL77: =IFERROR(VLOOKUP(AI77,商品マスター!$B$7:$D$53,3,FALSE),"") ->  | AM77: 0 | AO77: =IFERROR(VLOOKUP(AN77,商品マスター!$B$7:$D$53,2,FALSE),"") ->  | AQ77: =IFERROR(VLOOKUP(AN77,商品マスター!$B$7:$D$53,3,FALSE),"") ->  | AR77: 0 | AT77: =IFERROR(VLOOKUP(AS77,商品マスター!$B$7:$D$53,2,FALSE),"") ->  | AV77: =IFERROR(VLOOKUP(AS77,商品マスター!$B$7:$D$53,3,FALSE),"") ->  | AW77: 0 | AY77: =IFERROR(VLOOKUP(AX77,商品マスター!$B$7:$D$53,2,FALSE),"") ->  | BA77: =IFERROR(VLOOKUP(AX77,商品マスター!$B$7:$D$53,3,FALSE),"") ->  | BB77: 0 | BD77: =IFERROR(VLOOKUP(BC77,商品マスター!$B$7:$D$53,2,FALSE),"") ->  | BF77: =IFERROR(VLOOKUP(BC77,商品マスター!$B$7:$D$53,3,FALSE),"") ->  | BG77: 0 | BI77: =IFERROR(VLOOKUP(BH77,商品マスター!$B$7:$D$53,2,FALSE),"") ->  | BK77: =IFERROR(VLOOKUP(BH77,商品マスター!$B$7:$D$53,3,FALSE),"") ->  | BL77: 0 | BM77: 0 | BN77: 0.1 | BO77: 0 | BQ77: 0
I78: =IFERROR(VLOOKUP(H78,得意先マスター!$B$7:$H$103,2,FALSE),"") ->  | J78: =IFERROR(VLOOKUP(H78,得意先マスター!$B$7:$H$103,3,FALSE),"") ->  | K78: =IFERROR(VLOOKUP(H78,得意先マスター!$B$7:$H$103,4,FALSE),"") ->  | L78: =IFERROR(VLOOKUP(H78,得意先マスター!$B$7:$H$103,5,FALSE),"") ->  | M78: =IFERROR(VLOOKUP(H78,得意先マスター!$B$7:$H$103,6,FALSE),"") ->  | P78: =IFERROR(VLOOKUP(O78,商品マスター!$B$7:$D$53,2,FALSE),"") ->  | R78: =IFERROR(VLOOKUP(O78,商品マスター!$B$7:$D$53,3,FALSE),"") ->  | S78: 0 | U78: =IFERROR(VLOOKUP(T78,商品マスター!$B$7:$D$53,2,FALSE),"") ->  | W78: =IFERROR(VLOOKUP(T78,商品マスター!$B$7:$D$53,3,FALSE),"") ->  | X78: 0 | Z78: =IFERROR(VLOOKUP(Y78,商品マスター!$B$7:$D$53,2,FALSE),"") ->  | AB78: =IFERROR(VLOOKUP(Y78,商品マスター!$B$7:$D$53,3,FALSE),"") ->  | AC78: 0 | AE78: =IFERROR(VLOOKUP(AD78,商品マスター!$B$7:$D$53,2,FALSE),"") ->  | AG78: =IFERROR(VLOOKUP(AD78,商品マスター!$B$7:$D$53,3,FALSE),"") ->  | AH78: 0 | AJ78: =IFERROR(VLOOKUP(AI78,商品マスター!$B$7:$D$53,2,FALSE),"") ->  | AL78: =IFERROR(VLOOKUP(AI78,商品マスター!$B$7:$D$53,3,FALSE),"") ->  | AM78: 0 | AO78: =IFERROR(VLOOKUP(AN78,商品マスター!$B$7:$D$53,2,FALSE),"") ->  | AQ78: =IFERROR(VLOOKUP(AN78,商品マスター!$B$7:$D$53,3,FALSE),"") ->  | AR78: 0 | AT78: =IFERROR(VLOOKUP(AS78,商品マスター!$B$7:$D$53,2,FALSE),"") ->  | AV78: =IFERROR(VLOOKUP(AS78,商品マスター!$B$7:$D$53,3,FALSE),"") ->  | AW78: 0 | AY78: =IFERROR(VLOOKUP(AX78,商品マスター!$B$7:$D$53,2,FALSE),"") ->  | BA78: =IFERROR(VLOOKUP(AX78,商品マスター!$B$7:$D$53,3,FALSE),"") ->  | BB78: 0 | BD78: =IFERROR(VLOOKUP(BC78,商品マスター!$B$7:$D$53,2,FALSE),"") ->  | BF78: =IFERROR(VLOOKUP(BC78,商品マスター!$B$7:$D$53,3,FALSE),"") ->  | BG78: 0 | BI78: =IFERROR(VLOOKUP(BH78,商品マスター!$B$7:$D$53,2,FALSE),"") ->  | BK78: =IFERROR(VLOOKUP(BH78,商品マスター!$B$7:$D$53,3,FALSE),"") ->  | BL78: 0 | BM78: 0 | BN78: 0.1 | BO78: 0 | BQ78: 0
I79: =IFERROR(VLOOKUP(H79,得意先マスター!$B$7:$H$103,2,FALSE),"") ->  | J79: =IFERROR(VLOOKUP(H79,得意先マスター!$B$7:$H$103,3,FALSE),"") ->  | K79: =IFERROR(VLOOKUP(H79,得意先マスター!$B$7:$H$103,4,FALSE),"") ->  | L79: =IFERROR(VLOOKUP(H79,得意先マスター!$B$7:$H$103,5,FALSE),"") ->  | M79: =IFERROR(VLOOKUP(H79,得意先マスター!$B$7:$H$103,6,FALSE),"") ->  | P79: =IFERROR(VLOOKUP(O79,商品マスター!$B$7:$D$53,2,FALSE),"") ->  | R79: =IFERROR(VLOOKUP(O79,商品マスター!$B$7:$D$53,3,FALSE),"") ->  | S79: 0 | U79: =IFERROR(VLOOKUP(T79,商品マスター!$B$7:$D$53,2,FALSE),"") ->  | W79: =IFERROR(VLOOKUP(T79,商品マスター!$B$7:$D$53,3,FALSE),"") ->  | X79: 0 | Z79: =IFERROR(VLOOKUP(Y79,商品マスター!$B$7:$D$53,2,FALSE),"") ->  | AB79: =IFERROR(VLOOKUP(Y79,商品マスター!$B$7:$D$53,3,FALSE),"") ->  | AC79: 0 | AE79: =IFERROR(VLOOKUP(AD79,商品マスター!$B$7:$D$53,2,FALSE),"") ->  | AG79: =IFERROR(VLOOKUP(AD79,商品マスター!$B$7:$D$53,3,FALSE),"") ->  | AH79: 0 | AJ79: =IFERROR(VLOOKUP(AI79,商品マスター!$B$7:$D$53,2,FALSE),"") ->  | AL79: =IFERROR(VLOOKUP(AI79,商品マスター!$B$7:$D$53,3,FALSE),"") ->  | AM79: 0 | AO79: =IFERROR(VLOOKUP(AN79,商品マスター!$B$7:$D$53,2,FALSE),"") ->  | AQ79: =IFERROR(VLOOKUP(AN79,商品マスター!$B$7:$D$53,3,FALSE),"") ->  | AR79: 0 | AT79: =IFERROR(VLOOKUP(AS79,商品マスター!$B$7:$D$53,2,FALSE),"") ->  | AV79: =IFERROR(VLOOKUP(AS79,商品マスター!$B$7:$D$53,3,FALSE),"") ->  | AW79: 0 | AY79: =IFERROR(VLOOKUP(AX79,商品マスター!$B$7:$D$53,2,FALSE),"") ->  | BA79: =IFERROR(VLOOKUP(AX79,商品マスター!$B$7:$D$53,3,FALSE),"") ->  | BB79: 0 | BD79: =IFERROR(VLOOKUP(BC79,商品マスター!$B$7:$D$53,2,FALSE),"") ->  | BF79: =IFERROR(VLOOKUP(BC79,商品マスター!$B$7:$D$53,3,FALSE),"") ->  | BG79: 0 | BI79: =IFERROR(VLOOKUP(BH79,商品マスター!$B$7:$D$53,2,FALSE),"") ->  | BK79: =IFERROR(VLOOKUP(BH79,商品マスター!$B$7:$D$53,3,FALSE),"") ->  | BL79: 0 | BM79: 0 | BN79: 0.1 | BO79: 0 | BQ79: 0
I80: =IFERROR(VLOOKUP(H80,得意先マスター!$B$7:$H$103,2,FALSE),"") ->  | J80: =IFERROR(VLOOKUP(H80,得意先マスター!$B$7:$H$103,3,FALSE),"") ->  | K80: =IFERROR(VLOOKUP(H80,得意先マスター!$B$7:$H$103,4,FALSE),"") ->  | L80: =IFERROR(VLOOKUP(H80,得意先マスター!$B$7:$H$103,5,FALSE),"") ->  | M80: =IFERROR(VLOOKUP(H80,得意先マスター!$B$7:$H$103,6,FALSE),"") ->  | P80: =IFERROR(VLOOKUP(O80,商品マスター!$B$7:$D$53,2,FALSE),"") ->  | R80: =IFERROR(VLOOKUP(O80,商品マスター!$B$7:$D$53,3,FALSE),"") ->  | S80: 0 | U80: =IFERROR(VLOOKUP(T80,商品マスター!$B$7:$D$53,2,FALSE),"") ->  | W80: =IFERROR(VLOOKUP(T80,商品マスター!$B$7:$D$53,3,FALSE),"") ->  | X80: 0 | Z80: =IFERROR(VLOOKUP(Y80,商品マスター!$B$7:$D$53,2,FALSE),"") ->  | AB80: =IFERROR(VLOOKUP(Y80,商品マスター!$B$7:$D$53,3,FALSE),"") ->  | AC80: 0 | AE80: =IFERROR(VLOOKUP(AD80,商品マスター!$B$7:$D$53,2,FALSE),"") ->  | AG80: =IFERROR(VLOOKUP(AD80,商品マスター!$B$7:$D$53,3,FALSE),"") ->  | AH80: 0 | AJ80: =IFERROR(VLOOKUP(AI80,商品マスター!$B$7:$D$53,2,FALSE),"") ->  | AL80: =IFERROR(VLOOKUP(AI80,商品マスター!$B$7:$D$53,3,FALSE),"") ->  | AM80: 0 | AO80: =IFERROR(VLOOKUP(AN80,商品マスター!$B$7:$D$53,2,FALSE),"") ->  | AQ80: =IFERROR(VLOOKUP(AN80,商品マスター!$B$7:$D$53,3,FALSE),"") ->  | AR80: 0 | AT80: =IFERROR(VLOOKUP(AS80,商品マスター!$B$7:$D$53,2,FALSE),"") ->  | AV80: =IFERROR(VLOOKUP(AS80,商品マスター!$B$7:$D$53,3,FALSE),"") ->  | AW80: 0 | AY80: =IFERROR(VLOOKUP(AX80,商品マスター!$B$7:$D$53,2,FALSE),"") ->  | BA80: =IFERROR(VLOOKUP(AX80,商品マスター!$B$7:$D$53,3,FALSE),"") ->  | BB80: 0 | BD80: =IFERROR(VLOOKUP(BC80,商品マスター!$B$7:$D$53,2,FALSE),"") ->  | BF80: =IFERROR(VLOOKUP(BC80,商品マスター!$B$7:$D$53,3,FALSE),"") ->  | BG80: 0 | BI80: =IFERROR(VLOOKUP(BH80,商品マスター!$B$7:$D$53,2,FALSE),"") ->  | BK80: =IFERROR(VLOOKUP(BH80,商品マスター!$B$7:$D$53,3,FALSE),"") ->  | BL80: 0 | BM80: 0 | BN80: 0.1 | BO80: 0 | BQ80: 0
I81: =IFERROR(VLOOKUP(H81,得意先マスター!$B$7:$H$103,2,FALSE),"") ->  | J81: =IFERROR(VLOOKUP(H81,得意先マスター!$B$7:$H$103,3,FALSE),"") ->  | K81: =IFERROR(VLOOKUP(H81,得意先マスター!$B$7:$H$103,4,FALSE),"") ->  | L81: =IFERROR(VLOOKUP(H81,得意先マスター!$B$7:$H$103,5,FALSE),"") ->  | M81: =IFERROR(VLOOKUP(H81,得意先マスター!$B$7:$H$103,6,FALSE),"") ->  | P81: =IFERROR(VLOOKUP(O81,商品マスター!$B$7:$D$53,2,FALSE),"") ->  | R81: =IFERROR(VLOOKUP(O81,商品マスター!$B$7:$D$53,3,FALSE),"") ->  | S81: 0 | U81: =IFERROR(VLOOKUP(T81,商品マスター!$B$7:$D$53,2,FALSE),"") ->  | W81: =IFERROR(VLOOKUP(T81,商品マスター!$B$7:$D$53,3,FALSE),"") ->  | X81: 0 | Z81: =IFERROR(VLOOKUP(Y81,商品マスター!$B$7:$D$53,2,FALSE),"") ->  | AB81: =IFERROR(VLOOKUP(Y81,商品マスター!$B$7:$D$53,3,FALSE),"") ->  | AC81: 0 | AE81: =IFERROR(VLOOKUP(AD81,商品マスター!$B$7:$D$53,2,FALSE),"") ->  | AG81: =IFERROR(VLOOKUP(AD81,商品マスター!$B$7:$D$53,3,FALSE),"") ->  | AH81: 0 | AJ81: =IFERROR(VLOOKUP(AI81,商品マスター!$B$7:$D$53,2,FALSE),"") ->  | AL81: =IFERROR(VLOOKUP(AI81,商品マスター!$B$7:$D$53,3,FALSE),"") ->  | AM81: 0 | AO81: =IFERROR(VLOOKUP(AN81,商品マスター!$B$7:$D$53,2,FALSE),"") ->  | AQ81: =IFERROR(VLOOKUP(AN81,商品マスター!$B$7:$D$53,3,FALSE),"") ->  | AR81: 0 | AT81: =IFERROR(VLOOKUP(AS81,商品マスター!$B$7:$D$53,2,FALSE),"") ->  | AV81: =IFERROR(VLOOKUP(AS81,商品マスター!$B$7:$D$53,3,FALSE),"") ->  | AW81: 0 | AY81: =IFERROR(VLOOKUP(AX81,商品マスター!$B$7:$D$53,2,FALSE),"") ->  | BA81: =IFERROR(VLOOKUP(AX81,商品マスター!$B$7:$D$53,3,FALSE),"") ->  | BB81: 0 | BD81: =IFERROR(VLOOKUP(BC81,商品マスター!$B$7:$D$53,2,FALSE),"") ->  | BF81: =IFERROR(VLOOKUP(BC81,商品マスター!$B$7:$D$53,3,FALSE),"") ->  | BG81: 0 | BI81: =IFERROR(VLOOKUP(BH81,商品マスター!$B$7:$D$53,2,FALSE),"") ->  | BK81: =IFERROR(VLOOKUP(BH81,商品マスター!$B$7:$D$53,3,FALSE),"") ->  | BL81: 0 | BM81: 0 | BN81: 0.1 | BO81: 0 | BQ81: 0
I82: =IFERROR(VLOOKUP(H82,得意先マスター!$B$7:$H$103,2,FALSE),"") ->  | J82: =IFERROR(VLOOKUP(H82,得意先マスター!$B$7:$H$103,3,FALSE),"") ->  | K82: =IFERROR(VLOOKUP(H82,得意先マスター!$B$7:$H$103,4,FALSE),"") ->  | L82: =IFERROR(VLOOKUP(H82,得意先マスター!$B$7:$H$103,5,FALSE),"") ->  | M82: =IFERROR(VLOOKUP(H82,得意先マスター!$B$7:$H$103,6,FALSE),"") ->  | P82: =IFERROR(VLOOKUP(O82,商品マスター!$B$7:$D$53,2,FALSE),"") ->  | R82: =IFERROR(VLOOKUP(O82,商品マスター!$B$7:$D$53,3,FALSE),"") ->  | S82: 0 | U82: =IFERROR(VLOOKUP(T82,商品マスター!$B$7:$D$53,2,FALSE),"") ->  | W82: =IFERROR(VLOOKUP(T82,商品マスター!$B$7:$D$53,3,FALSE),"") ->  | X82: 0 | Z82: =IFERROR(VLOOKUP(Y82,商品マスター!$B$7:$D$53,2,FALSE),"") ->  | AB82: =IFERROR(VLOOKUP(Y82,商品マスター!$B$7:$D$53,3,FALSE),"") ->  | AC82: 0 | AE82: =IFERROR(VLOOKUP(AD82,商品マスター!$B$7:$D$53,2,FALSE),"") ->  | AG82: =IFERROR(VLOOKUP(AD82,商品マスター!$B$7:$D$53,3,FALSE),"") ->  | AH82: 0 | AJ82: =IFERROR(VLOOKUP(AI82,商品マスター!$B$7:$D$53,2,FALSE),"") ->  | AL82: =IFERROR(VLOOKUP(AI82,商品マスター!$B$7:$D$53,3,FALSE),"") ->  | AM82: 0 | AO82: =IFERROR(VLOOKUP(AN82,商品マスター!$B$7:$D$53,2,FALSE),"") ->  | AQ82: =IFERROR(VLOOKUP(AN82,商品マスター!$B$7:$D$53,3,FALSE),"") ->  | AR82: 0 | AT82: =IFERROR(VLOOKUP(AS82,商品マスター!$B$7:$D$53,2,FALSE),"") ->  | AV82: =IFERROR(VLOOKUP(AS82,商品マスター!$B$7:$D$53,3,FALSE),"") ->  | AW82: 0 | AY82: =IFERROR(VLOOKUP(AX82,商品マスター!$B$7:$D$53,2,FALSE),"") ->  | BA82: =IFERROR(VLOOKUP(AX82,商品マスター!$B$7:$D$53,3,FALSE),"") ->  | BB82: 0 | BD82: =IFERROR(VLOOKUP(BC82,商品マスター!$B$7:$D$53,2,FALSE),"") ->  | BF82: =IFERROR(VLOOKUP(BC82,商品マスター!$B$7:$D$53,3,FALSE),"") ->  | BG82: 0 | BI82: =IFERROR(VLOOKUP(BH82,商品マスター!$B$7:$D$53,2,FALSE),"") ->  | BK82: =IFERROR(VLOOKUP(BH82,商品マスター!$B$7:$D$53,3,FALSE),"") ->  | BL82: 0 | BM82: 0 | BN82: 0.1 | BO82: 0 | BQ82: 0
I83: =IFERROR(VLOOKUP(H83,得意先マスター!$B$7:$H$103,2,FALSE),"") ->  | J83: =IFERROR(VLOOKUP(H83,得意先マスター!$B$7:$H$103,3,FALSE),"") ->  | K83: =IFERROR(VLOOKUP(H83,得意先マスター!$B$7:$H$103,4,FALSE),"") ->  | L83: =IFERROR(VLOOKUP(H83,得意先マスター!$B$7:$H$103,5,FALSE),"") ->  | M83: =IFERROR(VLOOKUP(H83,得意先マスター!$B$7:$H$103,6,FALSE),"") ->  | P83: =IFERROR(VLOOKUP(O83,商品マスター!$B$7:$D$53,2,FALSE),"") ->  | R83: =IFERROR(VLOOKUP(O83,商品マスター!$B$7:$D$53,3,FALSE),"") ->  | S83: 0 | U83: =IFERROR(VLOOKUP(T83,商品マスター!$B$7:$D$53,2,FALSE),"") ->  | W83: =IFERROR(VLOOKUP(T83,商品マスター!$B$7:$D$53,3,FALSE),"") ->  | X83: 0 | Z83: =IFERROR(VLOOKUP(Y83,商品マスター!$B$7:$D$53,2,FALSE),"") ->  | AB83: =IFERROR(VLOOKUP(Y83,商品マスター!$B$7:$D$53,3,FALSE),"") ->  | AC83: 0 | AE83: =IFERROR(VLOOKUP(AD83,商品マスター!$B$7:$D$53,2,FALSE),"") ->  | AG83: =IFERROR(VLOOKUP(AD83,商品マスター!$B$7:$D$53,3,FALSE),"") ->  | AH83: 0 | AJ83: =IFERROR(VLOOKUP(AI83,商品マスター!$B$7:$D$53,2,FALSE),"") ->  | AL83: =IFERROR(VLOOKUP(AI83,商品マスター!$B$7:$D$53,3,FALSE),"") ->  | AM83: 0 | AO83: =IFERROR(VLOOKUP(AN83,商品マスター!$B$7:$D$53,2,FALSE),"") ->  | AQ83: =IFERROR(VLOOKUP(AN83,商品マスター!$B$7:$D$53,3,FALSE),"") ->  | AR83: 0 | AT83: =IFERROR(VLOOKUP(AS83,商品マスター!$B$7:$D$53,2,FALSE),"") ->  | AV83: =IFERROR(VLOOKUP(AS83,商品マスター!$B$7:$D$53,3,FALSE),"") ->  | AW83: 0 | AY83: =IFERROR(VLOOKUP(AX83,商品マスター!$B$7:$D$53,2,FALSE),"") ->  | BA83: =IFERROR(VLOOKUP(AX83,商品マスター!$B$7:$D$53,3,FALSE),"") ->  | BB83: 0 | BD83: =IFERROR(VLOOKUP(BC83,商品マスター!$B$7:$D$53,2,FALSE),"") ->  | BF83: =IFERROR(VLOOKUP(BC83,商品マスター!$B$7:$D$53,3,FALSE),"") ->  | BG83: 0 | BI83: =IFERROR(VLOOKUP(BH83,商品マスター!$B$7:$D$53,2,FALSE),"") ->  | BK83: =IFERROR(VLOOKUP(BH83,商品マスター!$B$7:$D$53,3,FALSE),"") ->  | BL83: 0 | BM83: 0 | BN83: 0.1 | BO83: 0 | BQ83: 0
I84: =IFERROR(VLOOKUP(H84,得意先マスター!$B$7:$H$103,2,FALSE),"") ->  | J84: =IFERROR(VLOOKUP(H84,得意先マスター!$B$7:$H$103,3,FALSE),"") ->  | K84: =IFERROR(VLOOKUP(H84,得意先マスター!$B$7:$H$103,4,FALSE),"") ->  | L84: =IFERROR(VLOOKUP(H84,得意先マスター!$B$7:$H$103,5,FALSE),"") ->  | M84: =IFERROR(VLOOKUP(H84,得意先マスター!$B$7:$H$103,6,FALSE),"") ->  | P84: =IFERROR(VLOOKUP(O84,商品マスター!$B$7:$D$53,2,FALSE),"") ->  | R84: =IFERROR(VLOOKUP(O84,商品マスター!$B$7:$D$53,3,FALSE),"") ->  | S84: 0 | U84: =IFERROR(VLOOKUP(T84,商品マスター!$B$7:$D$53,2,FALSE),"") ->  | W84: =IFERROR(VLOOKUP(T84,商品マスター!$B$7:$D$53,3,FALSE),"") ->  | X84: 0 | Z84: =IFERROR(VLOOKUP(Y84,商品マスター!$B$7:$D$53,2,FALSE),"") ->  | AB84: =IFERROR(VLOOKUP(Y84,商品マスター!$B$7:$D$53,3,FALSE),"") ->  | AC84: 0 | AE84: =IFERROR(VLOOKUP(AD84,商品マスター!$B$7:$D$53,2,FALSE),"") ->  | AG84: =IFERROR(VLOOKUP(AD84,商品マスター!$B$7:$D$53,3,FALSE),"") ->  | AH84: 0 | AJ84: =IFERROR(VLOOKUP(AI84,商品マスター!$B$7:$D$53,2,FALSE),"") ->  | AL84: =IFERROR(VLOOKUP(AI84,商品マスター!$B$7:$D$53,3,FALSE),"") ->  | AM84: 0 | AO84: =IFERROR(VLOOKUP(AN84,商品マスター!$B$7:$D$53,2,FALSE),"") ->  | AQ84: =IFERROR(VLOOKUP(AN84,商品マスター!$B$7:$D$53,3,FALSE),"") ->  | AR84: 0 | AT84: =IFERROR(VLOOKUP(AS84,商品マスター!$B$7:$D$53,2,FALSE),"") ->  | AV84: =IFERROR(VLOOKUP(AS84,商品マスター!$B$7:$D$53,3,FALSE),"") ->  | AW84: 0 | AY84: =IFERROR(VLOOKUP(AX84,商品マスター!$B$7:$D$53,2,FALSE),"") ->  | BA84: =IFERROR(VLOOKUP(AX84,商品マスター!$B$7:$D$53,3,FALSE),"") ->  | BB84: 0 | BD84: =IFERROR(VLOOKUP(BC84,商品マスター!$B$7:$D$53,2,FALSE),"") ->  | BF84: =IFERROR(VLOOKUP(BC84,商品マスター!$B$7:$D$53,3,FALSE),"") ->  | BG84: 0 | BI84: =IFERROR(VLOOKUP(BH84,商品マスター!$B$7:$D$53,2,FALSE),"") ->  | BK84: =IFERROR(VLOOKUP(BH84,商品マスター!$B$7:$D$53,3,FALSE),"") ->  | BL84: 0 | BM84: 0 | BN84: 0.1 | BO84: 0 | BQ84: 0
I85: =IFERROR(VLOOKUP(H85,得意先マスター!$B$7:$H$103,2,FALSE),"") ->  | J85: =IFERROR(VLOOKUP(H85,得意先マスター!$B$7:$H$103,3,FALSE),"") ->  | K85: =IFERROR(VLOOKUP(H85,得意先マスター!$B$7:$H$103,4,FALSE),"") ->  | L85: =IFERROR(VLOOKUP(H85,得意先マスター!$B$7:$H$103,5,FALSE),"") ->  | M85: =IFERROR(VLOOKUP(H85,得意先マスター!$B$7:$H$103,6,FALSE),"") ->  | P85: =IFERROR(VLOOKUP(O85,商品マスター!$B$7:$D$53,2,FALSE),"") ->  | R85: =IFERROR(VLOOKUP(O85,商品マスター!$B$7:$D$53,3,FALSE),"") ->  | S85: 0 | U85: =IFERROR(VLOOKUP(T85,商品マスター!$B$7:$D$53,2,FALSE),"") ->  | W85: =IFERROR(VLOOKUP(T85,商品マスター!$B$7:$D$53,3,FALSE),"") ->  | X85: 0 | Z85: =IFERROR(VLOOKUP(Y85,商品マスター!$B$7:$D$53,2,FALSE),"") ->  | AB85: =IFERROR(VLOOKUP(Y85,商品マスター!$B$7:$D$53,3,FALSE),"") ->  | AC85: 0 | AE85: =IFERROR(VLOOKUP(AD85,商品マスター!$B$7:$D$53,2,FALSE),"") ->  | AG85: =IFERROR(VLOOKUP(AD85,商品マスター!$B$7:$D$53,3,FALSE),"") ->  | AH85: 0 | AJ85: =IFERROR(VLOOKUP(AI85,商品マスター!$B$7:$D$53,2,FALSE),"") ->  | AL85: =IFERROR(VLOOKUP(AI85,商品マスター!$B$7:$D$53,3,FALSE),"") ->  | AM85: 0 | AO85: =IFERROR(VLOOKUP(AN85,商品マスター!$B$7:$D$53,2,FALSE),"") ->  | AQ85: =IFERROR(VLOOKUP(AN85,商品マスター!$B$7:$D$53,3,FALSE),"") ->  | AR85: 0 | AT85: =IFERROR(VLOOKUP(AS85,商品マスター!$B$7:$D$53,2,FALSE),"") ->  | AV85: =IFERROR(VLOOKUP(AS85,商品マスター!$B$7:$D$53,3,FALSE),"") ->  | AW85: 0 | AY85: =IFERROR(VLOOKUP(AX85,商品マスター!$B$7:$D$53,2,FALSE),"") ->  | BA85: =IFERROR(VLOOKUP(AX85,商品マスター!$B$7:$D$53,3,FALSE),"") ->  | BB85: 0 | BD85: =IFERROR(VLOOKUP(BC85,商品マスター!$B$7:$D$53,2,FALSE),"") ->  | BF85: =IFERROR(VLOOKUP(BC85,商品マスター!$B$7:$D$53,3,FALSE),"") ->  | BG85: 0 | BI85: =IFERROR(VLOOKUP(BH85,商品マスター!$B$7:$D$53,2,FALSE),"") ->  | BK85: =IFERROR(VLOOKUP(BH85,商品マスター!$B$7:$D$53,3,FALSE),"") ->  | BL85: 0 | BM85: 0 | BN85: 0.1 | BO85: 0 | BQ85: 0
I86: =IFERROR(VLOOKUP(H86,得意先マスター!$B$7:$H$103,2,FALSE),"") ->  | J86: =IFERROR(VLOOKUP(H86,得意先マスター!$B$7:$H$103,3,FALSE),"") ->  | K86: =IFERROR(VLOOKUP(H86,得意先マスター!$B$7:$H$103,4,FALSE),"") ->  | L86: =IFERROR(VLOOKUP(H86,得意先マスター!$B$7:$H$103,5,FALSE),"") ->  | M86: =IFERROR(VLOOKUP(H86,得意先マスター!$B$7:$H$103,6,FALSE),"") ->  | P86: =IFERROR(VLOOKUP(O86,商品マスター!$B$7:$D$53,2,FALSE),"") ->  | R86: =IFERROR(VLOOKUP(O86,商品マスター!$B$7:$D$53,3,FALSE),"") ->  | S86: 0 | U86: =IFERROR(VLOOKUP(T86,商品マスター!$B$7:$D$53,2,FALSE),"") ->  | W86: =IFERROR(VLOOKUP(T86,商品マスター!$B$7:$D$53,3,FALSE),"") ->  | X86: 0 | Z86: =IFERROR(VLOOKUP(Y86,商品マスター!$B$7:$D$53,2,FALSE),"") ->  | AB86: =IFERROR(VLOOKUP(Y86,商品マスター!$B$7:$D$53,3,FALSE),"") ->  | AC86: 0 | AE86: =IFERROR(VLOOKUP(AD86,商品マスター!$B$7:$D$53,2,FALSE),"") ->  | AG86: =IFERROR(VLOOKUP(AD86,商品マスター!$B$7:$D$53,3,FALSE),"") ->  | AH86: 0 | AJ86: =IFERROR(VLOOKUP(AI86,商品マスター!$B$7:$D$53,2,FALSE),"") ->  | AL86: =IFERROR(VLOOKUP(AI86,商品マスター!$B$7:$D$53,3,FALSE),"") ->  | AM86: 0 | AO86: =IFERROR(VLOOKUP(AN86,商品マスター!$B$7:$D$53,2,FALSE),"") ->  | AQ86: =IFERROR(VLOOKUP(AN86,商品マスター!$B$7:$D$53,3,FALSE),"") ->  | AR86: 0 | AT86: =IFERROR(VLOOKUP(AS86,商品マスター!$B$7:$D$53,2,FALSE),"") ->  | AV86: =IFERROR(VLOOKUP(AS86,商品マスター!$B$7:$D$53,3,FALSE),"") ->  | AW86: 0 | AY86: =IFERROR(VLOOKUP(AX86,商品マスター!$B$7:$D$53,2,FALSE),"") ->  | BA86: =IFERROR(VLOOKUP(AX86,商品マスター!$B$7:$D$53,3,FALSE),"") ->  | BB86: 0 | BD86: =IFERROR(VLOOKUP(BC86,商品マスター!$B$7:$D$53,2,FALSE),"") ->  | BF86: =IFERROR(VLOOKUP(BC86,商品マスター!$B$7:$D$53,3,FALSE),"") ->  | BG86: 0 | BI86: =IFERROR(VLOOKUP(BH86,商品マスター!$B$7:$D$53,2,FALSE),"") ->  | BK86: =IFERROR(VLOOKUP(BH86,商品マスター!$B$7:$D$53,3,FALSE),"") ->  | BL86: 0 | BM86: 0 | BN86: 0.1 | BO86: 0 | BQ86: 0
I87: =IFERROR(VLOOKUP(H87,得意先マスター!$B$7:$H$103,2,FALSE),"") ->  | J87: =IFERROR(VLOOKUP(H87,得意先マスター!$B$7:$H$103,3,FALSE),"") ->  | K87: =IFERROR(VLOOKUP(H87,得意先マスター!$B$7:$H$103,4,FALSE),"") ->  | L87: =IFERROR(VLOOKUP(H87,得意先マスター!$B$7:$H$103,5,FALSE),"") ->  | M87: =IFERROR(VLOOKUP(H87,得意先マスター!$B$7:$H$103,6,FALSE),"") ->  | P87: =IFERROR(VLOOKUP(O87,商品マスター!$B$7:$D$53,2,FALSE),"") ->  | R87: =IFERROR(VLOOKUP(O87,商品マスター!$B$7:$D$53,3,FALSE),"") ->  | S87: 0 | U87: =IFERROR(VLOOKUP(T87,商品マスター!$B$7:$D$53,2,FALSE),"") ->  | W87: =IFERROR(VLOOKUP(T87,商品マスター!$B$7:$D$53,3,FALSE),"") ->  | X87: 0 | Z87: =IFERROR(VLOOKUP(Y87,商品マスター!$B$7:$D$53,2,FALSE),"") ->  | AB87: =IFERROR(VLOOKUP(Y87,商品マスター!$B$7:$D$53,3,FALSE),"") ->  | AC87: 0 | AE87: =IFERROR(VLOOKUP(AD87,商品マスター!$B$7:$D$53,2,FALSE),"") ->  | AG87: =IFERROR(VLOOKUP(AD87,商品マスター!$B$7:$D$53,3,FALSE),"") ->  | AH87: 0 | AJ87: =IFERROR(VLOOKUP(AI87,商品マスター!$B$7:$D$53,2,FALSE),"") ->  | AL87: =IFERROR(VLOOKUP(AI87,商品マスター!$B$7:$D$53,3,FALSE),"") ->  | AM87: 0 | AO87: =IFERROR(VLOOKUP(AN87,商品マスター!$B$7:$D$53,2,FALSE),"") ->  | AQ87: =IFERROR(VLOOKUP(AN87,商品マスター!$B$7:$D$53,3,FALSE),"") ->  | AR87: 0 | AT87: =IFERROR(VLOOKUP(AS87,商品マスター!$B$7:$D$53,2,FALSE),"") ->  | AV87: =IFERROR(VLOOKUP(AS87,商品マスター!$B$7:$D$53,3,FALSE),"") ->  | AW87: 0 | AY87: =IFERROR(VLOOKUP(AX87,商品マスター!$B$7:$D$53,2,FALSE),"") ->  | BA87: =IFERROR(VLOOKUP(AX87,商品マスター!$B$7:$D$53,3,FALSE),"") ->  | BB87: 0 | BD87: =IFERROR(VLOOKUP(BC87,商品マスター!$B$7:$D$53,2,FALSE),"") ->  | BF87: =IFERROR(VLOOKUP(BC87,商品マスター!$B$7:$D$53,3,FALSE),"") ->  | BG87: 0 | BI87: =IFERROR(VLOOKUP(BH87,商品マスター!$B$7:$D$53,2,FALSE),"") ->  | BK87: =IFERROR(VLOOKUP(BH87,商品マスター!$B$7:$D$53,3,FALSE),"") ->  | BL87: 0 | BM87: 0 | BN87: 0.1 | BO87: 0 | BQ87: 0
I88: =IFERROR(VLOOKUP(H88,得意先マスター!$B$7:$H$103,2,FALSE),"") ->  | J88: =IFERROR(VLOOKUP(H88,得意先マスター!$B$7:$H$103,3,FALSE),"") ->  | K88: =IFERROR(VLOOKUP(H88,得意先マスター!$B$7:$H$103,4,FALSE),"") ->  | L88: =IFERROR(VLOOKUP(H88,得意先マスター!$B$7:$H$103,5,FALSE),"") ->  | M88: =IFERROR(VLOOKUP(H88,得意先マスター!$B$7:$H$103,6,FALSE),"") ->  | P88: =IFERROR(VLOOKUP(O88,商品マスター!$B$7:$D$53,2,FALSE),"") ->  | R88: =IFERROR(VLOOKUP(O88,商品マスター!$B$7:$D$53,3,FALSE),"") ->  | S88: 0 | U88: =IFERROR(VLOOKUP(T88,商品マスター!$B$7:$D$53,2,FALSE),"") ->  | W88: =IFERROR(VLOOKUP(T88,商品マスター!$B$7:$D$53,3,FALSE),"") ->  | X88: 0 | Z88: =IFERROR(VLOOKUP(Y88,商品マスター!$B$7:$D$53,2,FALSE),"") ->  | AB88: =IFERROR(VLOOKUP(Y88,商品マスター!$B$7:$D$53,3,FALSE),"") ->  | AC88: 0 | AE88: =IFERROR(VLOOKUP(AD88,商品マスター!$B$7:$D$53,2,FALSE),"") ->  | AG88: =IFERROR(VLOOKUP(AD88,商品マスター!$B$7:$D$53,3,FALSE),"") ->  | AH88: 0 | AJ88: =IFERROR(VLOOKUP(AI88,商品マスター!$B$7:$D$53,2,FALSE),"") ->  | AL88: =IFERROR(VLOOKUP(AI88,商品マスター!$B$7:$D$53,3,FALSE),"") ->  | AM88: 0 | AO88: =IFERROR(VLOOKUP(AN88,商品マスター!$B$7:$D$53,2,FALSE),"") ->  | AQ88: =IFERROR(VLOOKUP(AN88,商品マスター!$B$7:$D$53,3,FALSE),"") ->  | AR88: 0 | AT88: =IFERROR(VLOOKUP(AS88,商品マスター!$B$7:$D$53,2,FALSE),"") ->  | AV88: =IFERROR(VLOOKUP(AS88,商品マスター!$B$7:$D$53,3,FALSE),"") ->  | AW88: 0 | AY88: =IFERROR(VLOOKUP(AX88,商品マスター!$B$7:$D$53,2,FALSE),"") ->  | BA88: =IFERROR(VLOOKUP(AX88,商品マスター!$B$7:$D$53,3,FALSE),"") ->  | BB88: 0 | BD88: =IFERROR(VLOOKUP(BC88,商品マスター!$B$7:$D$53,2,FALSE),"") ->  | BF88: =IFERROR(VLOOKUP(BC88,商品マスター!$B$7:$D$53,3,FALSE),"") ->  | BG88: 0 | BI88: =IFERROR(VLOOKUP(BH88,商品マスター!$B$7:$D$53,2,FALSE),"") ->  | BK88: =IFERROR(VLOOKUP(BH88,商品マスター!$B$7:$D$53,3,FALSE),"") ->  | BL88: 0 | BM88: 0 | BN88: 0.1 | BO88: 0 | BQ88: 0
I89: =IFERROR(VLOOKUP(H89,得意先マスター!$B$7:$H$103,2,FALSE),"") ->  | J89: =IFERROR(VLOOKUP(H89,得意先マスター!$B$7:$H$103,3,FALSE),"") ->  | K89: =IFERROR(VLOOKUP(H89,得意先マスター!$B$7:$H$103,4,FALSE),"") ->  | L89: =IFERROR(VLOOKUP(H89,得意先マスター!$B$7:$H$103,5,FALSE),"") ->  | M89: =IFERROR(VLOOKUP(H89,得意先マスター!$B$7:$H$103,6,FALSE),"") ->  | P89: =IFERROR(VLOOKUP(O89,商品マスター!$B$7:$D$53,2,FALSE),"") ->  | R89: =IFERROR(VLOOKUP(O89,商品マスター!$B$7:$D$53,3,FALSE),"") ->  | S89: 0 | U89: =IFERROR(VLOOKUP(T89,商品マスター!$B$7:$D$53,2,FALSE),"") ->  | W89: =IFERROR(VLOOKUP(T89,商品マスター!$B$7:$D$53,3,FALSE),"") ->  | X89: 0 | Z89: =IFERROR(VLOOKUP(Y89,商品マスター!$B$7:$D$53,2,FALSE),"") ->  | AB89: =IFERROR(VLOOKUP(Y89,商品マスター!$B$7:$D$53,3,FALSE),"") ->  | AC89: 0 | AE89: =IFERROR(VLOOKUP(AD89,商品マスター!$B$7:$D$53,2,FALSE),"") ->  | AG89: =IFERROR(VLOOKUP(AD89,商品マスター!$B$7:$D$53,3,FALSE),"") ->  | AH89: 0 | AJ89: =IFERROR(VLOOKUP(AI89,商品マスター!$B$7:$D$53,2,FALSE),"") ->  | AL89: =IFERROR(VLOOKUP(AI89,商品マスター!$B$7:$D$53,3,FALSE),"") ->  | AM89: 0 | AO89: =IFERROR(VLOOKUP(AN89,商品マスター!$B$7:$D$53,2,FALSE),"") ->  | AQ89: =IFERROR(VLOOKUP(AN89,商品マスター!$B$7:$D$53,3,FALSE),"") ->  | AR89: 0 | AT89: =IFERROR(VLOOKUP(AS89,商品マスター!$B$7:$D$53,2,FALSE),"") ->  | AV89: =IFERROR(VLOOKUP(AS89,商品マスター!$B$7:$D$53,3,FALSE),"") ->  | AW89: 0 | AY89: =IFERROR(VLOOKUP(AX89,商品マスター!$B$7:$D$53,2,FALSE),"") ->  | BA89: =IFERROR(VLOOKUP(AX89,商品マスター!$B$7:$D$53,3,FALSE),"") ->  | BB89: 0 | BD89: =IFERROR(VLOOKUP(BC89,商品マスター!$B$7:$D$53,2,FALSE),"") ->  | BF89: =IFERROR(VLOOKUP(BC89,商品マスター!$B$7:$D$53,3,FALSE),"") ->  | BG89: 0 | BI89: =IFERROR(VLOOKUP(BH89,商品マスター!$B$7:$D$53,2,FALSE),"") ->  | BK89: =IFERROR(VLOOKUP(BH89,商品マスター!$B$7:$D$53,3,FALSE),"") ->  | BL89: 0 | BM89: 0 | BN89: 0.1 | BO89: 0 | BQ89: 0
I90: =IFERROR(VLOOKUP(H90,得意先マスター!$B$7:$H$103,2,FALSE),"") ->  | J90: =IFERROR(VLOOKUP(H90,得意先マスター!$B$7:$H$103,3,FALSE),"") ->  | K90: =IFERROR(VLOOKUP(H90,得意先マスター!$B$7:$H$103,4,FALSE),"") ->  | L90: =IFERROR(VLOOKUP(H90,得意先マスター!$B$7:$H$103,5,FALSE),"") ->  | M90: =IFERROR(VLOOKUP(H90,得意先マスター!$B$7:$H$103,6,FALSE),"") ->  | P90: =IFERROR(VLOOKUP(O90,商品マスター!$B$7:$D$53,2,FALSE),"") ->  | R90: =IFERROR(VLOOKUP(O90,商品マスター!$B$7:$D$53,3,FALSE),"") ->  | S90: 0 | U90: =IFERROR(VLOOKUP(T90,商品マスター!$B$7:$D$53,2,FALSE),"") ->  | W90: =IFERROR(VLOOKUP(T90,商品マスター!$B$7:$D$53,3,FALSE),"") ->  | X90: 0 | Z90: =IFERROR(VLOOKUP(Y90,商品マスター!$B$7:$D$53,2,FALSE),"") ->  | AB90: =IFERROR(VLOOKUP(Y90,商品マスター!$B$7:$D$53,3,FALSE),"") ->  | AC90: 0 | AE90: =IFERROR(VLOOKUP(AD90,商品マスター!$B$7:$D$53,2,FALSE),"") ->  | AG90: =IFERROR(VLOOKUP(AD90,商品マスター!$B$7:$D$53,3,FALSE),"") ->  | AH90: 0 | AJ90: =IFERROR(VLOOKUP(AI90,商品マスター!$B$7:$D$53,2,FALSE),"") ->  | AL90: =IFERROR(VLOOKUP(AI90,商品マスター!$B$7:$D$53,3,FALSE),"") ->  | AM90: 0 | AO90: =IFERROR(VLOOKUP(AN90,商品マスター!$B$7:$D$53,2,FALSE),"") ->  | AQ90: =IFERROR(VLOOKUP(AN90,商品マスター!$B$7:$D$53,3,FALSE),"") ->  | AR90: 0 | AT90: =IFERROR(VLOOKUP(AS90,商品マスター!$B$7:$D$53,2,FALSE),"") ->  | AV90: =IFERROR(VLOOKUP(AS90,商品マスター!$B$7:$D$53,3,FALSE),"") ->  | AW90: 0 | AY90: =IFERROR(VLOOKUP(AX90,商品マスター!$B$7:$D$53,2,FALSE),"") ->  | BA90: =IFERROR(VLOOKUP(AX90,商品マスター!$B$7:$D$53,3,FALSE),"") ->  | BB90: 0 | BD90: =IFERROR(VLOOKUP(BC90,商品マスター!$B$7:$D$53,2,FALSE),"") ->  | BF90: =IFERROR(VLOOKUP(BC90,商品マスター!$B$7:$D$53,3,FALSE),"") ->  | BG90: 0 | BI90: =IFERROR(VLOOKUP(BH90,商品マスター!$B$7:$D$53,2,FALSE),"") ->  | BK90: =IFERROR(VLOOKUP(BH90,商品マスター!$B$7:$D$53,3,FALSE),"") ->  | BL90: 0 | BM90: 0 | BN90: 0.1 | BO90: 0 | BQ90: 0
I91: =IFERROR(VLOOKUP(H91,得意先マスター!$B$7:$H$103,2,FALSE),"") ->  | J91: =IFERROR(VLOOKUP(H91,得意先マスター!$B$7:$H$103,3,FALSE),"") ->  | K91: =IFERROR(VLOOKUP(H91,得意先マスター!$B$7:$H$103,4,FALSE),"") ->  | L91: =IFERROR(VLOOKUP(H91,得意先マスター!$B$7:$H$103,5,FALSE),"") ->  | M91: =IFERROR(VLOOKUP(H91,得意先マスター!$B$7:$H$103,6,FALSE),"") ->  | P91: =IFERROR(VLOOKUP(O91,商品マスター!$B$7:$D$53,2,FALSE),"") ->  | R91: =IFERROR(VLOOKUP(O91,商品マスター!$B$7:$D$53,3,FALSE),"") ->  | S91: 0 | U91: =IFERROR(VLOOKUP(T91,商品マスター!$B$7:$D$53,2,FALSE),"") ->  | W91: =IFERROR(VLOOKUP(T91,商品マスター!$B$7:$D$53,3,FALSE),"") ->  | X91: 0 | Z91: =IFERROR(VLOOKUP(Y91,商品マスター!$B$7:$D$53,2,FALSE),"") ->  | AB91: =IFERROR(VLOOKUP(Y91,商品マスター!$B$7:$D$53,3,FALSE),"") ->  | AC91: 0 | AE91: =IFERROR(VLOOKUP(AD91,商品マスター!$B$7:$D$53,2,FALSE),"") ->  | AG91: =IFERROR(VLOOKUP(AD91,商品マスター!$B$7:$D$53,3,FALSE),"") ->  | AH91: 0 | AJ91: =IFERROR(VLOOKUP(AI91,商品マスター!$B$7:$D$53,2,FALSE),"") ->  | AL91: =IFERROR(VLOOKUP(AI91,商品マスター!$B$7:$D$53,3,FALSE),"") ->  | AM91: 0 | AO91: =IFERROR(VLOOKUP(AN91,商品マスター!$B$7:$D$53,2,FALSE),"") ->  | AQ91: =IFERROR(VLOOKUP(AN91,商品マスター!$B$7:$D$53,3,FALSE),"") ->  | AR91: 0 | AT91: =IFERROR(VLOOKUP(AS91,商品マスター!$B$7:$D$53,2,FALSE),"") ->  | AV91: =IFERROR(VLOOKUP(AS91,商品マスター!$B$7:$D$53,3,FALSE),"") ->  | AW91: 0 | AY91: =IFERROR(VLOOKUP(AX91,商品マスター!$B$7:$D$53,2,FALSE),"") ->  | BA91: =IFERROR(VLOOKUP(AX91,商品マスター!$B$7:$D$53,3,FALSE),"") ->  | BB91: 0 | BD91: =IFERROR(VLOOKUP(BC91,商品マスター!$B$7:$D$53,2,FALSE),"") ->  | BF91: =IFERROR(VLOOKUP(BC91,商品マスター!$B$7:$D$53,3,FALSE),"") ->  | BG91: 0 | BI91: =IFERROR(VLOOKUP(BH91,商品マスター!$B$7:$D$53,2,FALSE),"") ->  | BK91: =IFERROR(VLOOKUP(BH91,商品マスター!$B$7:$D$53,3,FALSE),"") ->  | BL91: 0 | BM91: 0 | BN91: 0.1 | BO91: 0 | BQ91: 0
I92: =IFERROR(VLOOKUP(H92,得意先マスター!$B$7:$H$103,2,FALSE),"") ->  | J92: =IFERROR(VLOOKUP(H92,得意先マスター!$B$7:$H$103,3,FALSE),"") ->  | K92: =IFERROR(VLOOKUP(H92,得意先マスター!$B$7:$H$103,4,FALSE),"") ->  | L92: =IFERROR(VLOOKUP(H92,得意先マスター!$B$7:$H$103,5,FALSE),"") ->  | M92: =IFERROR(VLOOKUP(H92,得意先マスター!$B$7:$H$103,6,FALSE),"") ->  | P92: =IFERROR(VLOOKUP(O92,商品マスター!$B$7:$D$53,2,FALSE),"") ->  | R92: =IFERROR(VLOOKUP(O92,商品マスター!$B$7:$D$53,3,FALSE),"") ->  | S92: 0 | U92: =IFERROR(VLOOKUP(T92,商品マスター!$B$7:$D$53,2,FALSE),"") ->  | W92: =IFERROR(VLOOKUP(T92,商品マスター!$B$7:$D$53,3,FALSE),"") ->  | X92: 0 | Z92: =IFERROR(VLOOKUP(Y92,商品マスター!$B$7:$D$53,2,FALSE),"") ->  | AB92: =IFERROR(VLOOKUP(Y92,商品マスター!$B$7:$D$53,3,FALSE),"") ->  | AC92: 0 | AE92: =IFERROR(VLOOKUP(AD92,商品マスター!$B$7:$D$53,2,FALSE),"") ->  | AG92: =IFERROR(VLOOKUP(AD92,商品マスター!$B$7:$D$53,3,FALSE),"") ->  | AH92: 0 | AJ92: =IFERROR(VLOOKUP(AI92,商品マスター!$B$7:$D$53,2,FALSE),"") ->  | AL92: =IFERROR(VLOOKUP(AI92,商品マスター!$B$7:$D$53,3,FALSE),"") ->  | AM92: 0 | AO92: =IFERROR(VLOOKUP(AN92,商品マスター!$B$7:$D$53,2,FALSE),"") ->  | AQ92: =IFERROR(VLOOKUP(AN92,商品マスター!$B$7:$D$53,3,FALSE),"") ->  | AR92: 0 | AT92: =IFERROR(VLOOKUP(AS92,商品マスター!$B$7:$D$53,2,FALSE),"") ->  | AV92: =IFERROR(VLOOKUP(AS92,商品マスター!$B$7:$D$53,3,FALSE),"") ->  | AW92: 0 | AY92: =IFERROR(VLOOKUP(AX92,商品マスター!$B$7:$D$53,2,FALSE),"") ->  | BA92: =IFERROR(VLOOKUP(AX92,商品マスター!$B$7:$D$53,3,FALSE),"") ->  | BB92: 0 | BD92: =IFERROR(VLOOKUP(BC92,商品マスター!$B$7:$D$53,2,FALSE),"") ->  | BF92: =IFERROR(VLOOKUP(BC92,商品マスター!$B$7:$D$53,3,FALSE),"") ->  | BG92: 0 | BI92: =IFERROR(VLOOKUP(BH92,商品マスター!$B$7:$D$53,2,FALSE),"") ->  | BK92: =IFERROR(VLOOKUP(BH92,商品マスター!$B$7:$D$53,3,FALSE),"") ->  | BL92: 0 | BM92: 0 | BN92: 0.1 | BO92: 0 | BQ92: 0
I93: =IFERROR(VLOOKUP(H93,得意先マスター!$B$7:$H$103,2,FALSE),"") ->  | J93: =IFERROR(VLOOKUP(H93,得意先マスター!$B$7:$H$103,3,FALSE),"") ->  | K93: =IFERROR(VLOOKUP(H93,得意先マスター!$B$7:$H$103,4,FALSE),"") ->  | L93: =IFERROR(VLOOKUP(H93,得意先マスター!$B$7:$H$103,5,FALSE),"") ->  | M93: =IFERROR(VLOOKUP(H93,得意先マスター!$B$7:$H$103,6,FALSE),"") ->  | P93: =IFERROR(VLOOKUP(O93,商品マスター!$B$7:$D$53,2,FALSE),"") ->  | R93: =IFERROR(VLOOKUP(O93,商品マスター!$B$7:$D$53,3,FALSE),"") ->  | S93: 0 | U93: =IFERROR(VLOOKUP(T93,商品マスター!$B$7:$D$53,2,FALSE),"") ->  | W93: =IFERROR(VLOOKUP(T93,商品マスター!$B$7:$D$53,3,FALSE),"") ->  | X93: 0 | Z93: =IFERROR(VLOOKUP(Y93,商品マスター!$B$7:$D$53,2,FALSE),"") ->  | AB93: =IFERROR(VLOOKUP(Y93,商品マスター!$B$7:$D$53,3,FALSE),"") ->  | AC93: 0 | AE93: =IFERROR(VLOOKUP(AD93,商品マスター!$B$7:$D$53,2,FALSE),"") ->  | AG93: =IFERROR(VLOOKUP(AD93,商品マスター!$B$7:$D$53,3,FALSE),"") ->  | AH93: 0 | AJ93: =IFERROR(VLOOKUP(AI93,商品マスター!$B$7:$D$53,2,FALSE),"") ->  | AL93: =IFERROR(VLOOKUP(AI93,商品マスター!$B$7:$D$53,3,FALSE),"") ->  | AM93: 0 | AO93: =IFERROR(VLOOKUP(AN93,商品マスター!$B$7:$D$53,2,FALSE),"") ->  | AQ93: =IFERROR(VLOOKUP(AN93,商品マスター!$B$7:$D$53,3,FALSE),"") ->  | AR93: 0 | AT93: =IFERROR(VLOOKUP(AS93,商品マスター!$B$7:$D$53,2,FALSE),"") ->  | AV93: =IFERROR(VLOOKUP(AS93,商品マスター!$B$7:$D$53,3,FALSE),"") ->  | AW93: 0 | AY93: =IFERROR(VLOOKUP(AX93,商品マスター!$B$7:$D$53,2,FALSE),"") ->  | BA93: =IFERROR(VLOOKUP(AX93,商品マスター!$B$7:$D$53,3,FALSE),"") ->  | BB93: 0 | BD93: =IFERROR(VLOOKUP(BC93,商品マスター!$B$7:$D$53,2,FALSE),"") ->  | BF93: =IFERROR(VLOOKUP(BC93,商品マスター!$B$7:$D$53,3,FALSE),"") ->  | BG93: 0 | BI93: =IFERROR(VLOOKUP(BH93,商品マスター!$B$7:$D$53,2,FALSE),"") ->  | BK93: =IFERROR(VLOOKUP(BH93,商品マスター!$B$7:$D$53,3,FALSE),"") ->  | BL93: 0 | BM93: 0 | BN93: 0.1 | BO93: 0 | BQ93: 0
I94: =IFERROR(VLOOKUP(H94,得意先マスター!$B$7:$H$103,2,FALSE),"") ->  | J94: =IFERROR(VLOOKUP(H94,得意先マスター!$B$7:$H$103,3,FALSE),"") ->  | K94: =IFERROR(VLOOKUP(H94,得意先マスター!$B$7:$H$103,4,FALSE),"") ->  | L94: =IFERROR(VLOOKUP(H94,得意先マスター!$B$7:$H$103,5,FALSE),"") ->  | M94: =IFERROR(VLOOKUP(H94,得意先マスター!$B$7:$H$103,6,FALSE),"") ->  | P94: =IFERROR(VLOOKUP(O94,商品マスター!$B$7:$D$53,2,FALSE),"") ->  | R94: =IFERROR(VLOOKUP(O94,商品マスター!$B$7:$D$53,3,FALSE),"") ->  | S94: 0 | U94: =IFERROR(VLOOKUP(T94,商品マスター!$B$7:$D$53,2,FALSE),"") ->  | W94: =IFERROR(VLOOKUP(T94,商品マスター!$B$7:$D$53,3,FALSE),"") ->  | X94: 0 | Z94: =IFERROR(VLOOKUP(Y94,商品マスター!$B$7:$D$53,2,FALSE),"") ->  | AB94: =IFERROR(VLOOKUP(Y94,商品マスター!$B$7:$D$53,3,FALSE),"") ->  | AC94: 0 | AE94: =IFERROR(VLOOKUP(AD94,商品マスター!$B$7:$D$53,2,FALSE),"") ->  | AG94: =IFERROR(VLOOKUP(AD94,商品マスター!$B$7:$D$53,3,FALSE),"") ->  | AH94: 0 | AJ94: =IFERROR(VLOOKUP(AI94,商品マスター!$B$7:$D$53,2,FALSE),"") ->  | AL94: =IFERROR(VLOOKUP(AI94,商品マスター!$B$7:$D$53,3,FALSE),"") ->  | AM94: 0 | AO94: =IFERROR(VLOOKUP(AN94,商品マスター!$B$7:$D$53,2,FALSE),"") ->  | AQ94: =IFERROR(VLOOKUP(AN94,商品マスター!$B$7:$D$53,3,FALSE),"") ->  | AR94: 0 | AT94: =IFERROR(VLOOKUP(AS94,商品マスター!$B$7:$D$53,2,FALSE),"") ->  | AV94: =IFERROR(VLOOKUP(AS94,商品マスター!$B$7:$D$53,3,FALSE),"") ->  | AW94: 0 | AY94: =IFERROR(VLOOKUP(AX94,商品マスター!$B$7:$D$53,2,FALSE),"") ->  | BA94: =IFERROR(VLOOKUP(AX94,商品マスター!$B$7:$D$53,3,FALSE),"") ->  | BB94: 0 | BD94: =IFERROR(VLOOKUP(BC94,商品マスター!$B$7:$D$53,2,FALSE),"") ->  | BF94: =IFERROR(VLOOKUP(BC94,商品マスター!$B$7:$D$53,3,FALSE),"") ->  | BG94: 0 | BI94: =IFERROR(VLOOKUP(BH94,商品マスター!$B$7:$D$53,2,FALSE),"") ->  | BK94: =IFERROR(VLOOKUP(BH94,商品マスター!$B$7:$D$53,3,FALSE),"") ->  | BL94: 0 | BM94: 0 | BN94: 0.1 | BO94: 0 | BQ94: 0
I95: =IFERROR(VLOOKUP(H95,得意先マスター!$B$7:$H$103,2,FALSE),"") ->  | J95: =IFERROR(VLOOKUP(H95,得意先マスター!$B$7:$H$103,3,FALSE),"") ->  | K95: =IFERROR(VLOOKUP(H95,得意先マスター!$B$7:$H$103,4,FALSE),"") ->  | L95: =IFERROR(VLOOKUP(H95,得意先マスター!$B$7:$H$103,5,FALSE),"") ->  | M95: =IFERROR(VLOOKUP(H95,得意先マスター!$B$7:$H$103,6,FALSE),"") ->  | P95: =IFERROR(VLOOKUP(O95,商品マスター!$B$7:$D$53,2,FALSE),"") ->  | R95: =IFERROR(VLOOKUP(O95,商品マスター!$B$7:$D$53,3,FALSE),"") ->  | S95: 0 | U95: =IFERROR(VLOOKUP(T95,商品マスター!$B$7:$D$53,2,FALSE),"") ->  | W95: =IFERROR(VLOOKUP(T95,商品マスター!$B$7:$D$53,3,FALSE),"") ->  | X95: 0 | Z95: =IFERROR(VLOOKUP(Y95,商品マスター!$B$7:$D$53,2,FALSE),"") ->  | AB95: =IFERROR(VLOOKUP(Y95,商品マスター!$B$7:$D$53,3,FALSE),"") ->  | AC95: 0 | AE95: =IFERROR(VLOOKUP(AD95,商品マスター!$B$7:$D$53,2,FALSE),"") ->  | AG95: =IFERROR(VLOOKUP(AD95,商品マスター!$B$7:$D$53,3,FALSE),"") ->  | AH95: 0 | AJ95: =IFERROR(VLOOKUP(AI95,商品マスター!$B$7:$D$53,2,FALSE),"") ->  | AL95: =IFERROR(VLOOKUP(AI95,商品マスター!$B$7:$D$53,3,FALSE),"") ->  | AM95: 0 | AO95: =IFERROR(VLOOKUP(AN95,商品マスター!$B$7:$D$53,2,FALSE),"") ->  | AQ95: =IFERROR(VLOOKUP(AN95,商品マスター!$B$7:$D$53,3,FALSE),"") ->  | AR95: 0 | AT95: =IFERROR(VLOOKUP(AS95,商品マスター!$B$7:$D$53,2,FALSE),"") ->  | AV95: =IFERROR(VLOOKUP(AS95,商品マスター!$B$7:$D$53,3,FALSE),"") ->  | AW95: 0 | AY95: =IFERROR(VLOOKUP(AX95,商品マスター!$B$7:$D$53,2,FALSE),"") ->  | BA95: =IFERROR(VLOOKUP(AX95,商品マスター!$B$7:$D$53,3,FALSE),"") ->  | BB95: 0 | BD95: =IFERROR(VLOOKUP(BC95,商品マスター!$B$7:$D$53,2,FALSE),"") ->  | BF95: =IFERROR(VLOOKUP(BC95,商品マスター!$B$7:$D$53,3,FALSE),"") ->  | BG95: 0 | BI95: =IFERROR(VLOOKUP(BH95,商品マスター!$B$7:$D$53,2,FALSE),"") ->  | BK95: =IFERROR(VLOOKUP(BH95,商品マスター!$B$7:$D$53,3,FALSE),"") ->  | BL95: 0 | BM95: 0 | BN95: 0.1 | BO95: 0 | BQ95: 0
I96: =IFERROR(VLOOKUP(H96,得意先マスター!$B$7:$H$103,2,FALSE),"") ->  | J96: =IFERROR(VLOOKUP(H96,得意先マスター!$B$7:$H$103,3,FALSE),"") ->  | K96: =IFERROR(VLOOKUP(H96,得意先マスター!$B$7:$H$103,4,FALSE),"") ->  | L96: =IFERROR(VLOOKUP(H96,得意先マスター!$B$7:$H$103,5,FALSE),"") ->  | M96: =IFERROR(VLOOKUP(H96,得意先マスター!$B$7:$H$103,6,FALSE),"") ->  | P96: =IFERROR(VLOOKUP(O96,商品マスター!$B$7:$D$53,2,FALSE),"") ->  | R96: =IFERROR(VLOOKUP(O96,商品マスター!$B$7:$D$53,3,FALSE),"") ->  | S96: 0 | U96: =IFERROR(VLOOKUP(T96,商品マスター!$B$7:$D$53,2,FALSE),"") ->  | W96: =IFERROR(VLOOKUP(T96,商品マスター!$B$7:$D$53,3,FALSE),"") ->  | X96: 0 | Z96: =IFERROR(VLOOKUP(Y96,商品マスター!$B$7:$D$53,2,FALSE),"") ->  | AB96: =IFERROR(VLOOKUP(Y96,商品マスター!$B$7:$D$53,3,FALSE),"") ->  | AC96: 0 | AE96: =IFERROR(VLOOKUP(AD96,商品マスター!$B$7:$D$53,2,FALSE),"") ->  | AG96: =IFERROR(VLOOKUP(AD96,商品マスター!$B$7:$D$53,3,FALSE),"") ->  | AH96: 0 | AJ96: =IFERROR(VLOOKUP(AI96,商品マスター!$B$7:$D$53,2,FALSE),"") ->  | AL96: =IFERROR(VLOOKUP(AI96,商品マスター!$B$7:$D$53,3,FALSE),"") ->  | AM96: 0 | AO96: =IFERROR(VLOOKUP(AN96,商品マスター!$B$7:$D$53,2,FALSE),"") ->  | AQ96: =IFERROR(VLOOKUP(AN96,商品マスター!$B$7:$D$53,3,FALSE),"") ->  | AR96: 0 | AT96: =IFERROR(VLOOKUP(AS96,商品マスター!$B$7:$D$53,2,FALSE),"") ->  | AV96: =IFERROR(VLOOKUP(AS96,商品マスター!$B$7:$D$53,3,FALSE),"") ->  | AW96: 0 | AY96: =IFERROR(VLOOKUP(AX96,商品マスター!$B$7:$D$53,2,FALSE),"") ->  | BA96: =IFERROR(VLOOKUP(AX96,商品マスター!$B$7:$D$53,3,FALSE),"") ->  | BB96: 0 | BD96: =IFERROR(VLOOKUP(BC96,商品マスター!$B$7:$D$53,2,FALSE),"") ->  | BF96: =IFERROR(VLOOKUP(BC96,商品マスター!$B$7:$D$53,3,FALSE),"") ->  | BG96: 0 | BI96: =IFERROR(VLOOKUP(BH96,商品マスター!$B$7:$D$53,2,FALSE),"") ->  | BK96: =IFERROR(VLOOKUP(BH96,商品マスター!$B$7:$D$53,3,FALSE),"") ->  | BL96: 0 | BM96: 0 | BN96: 0.1 | BO96: 0 | BQ96: 0
I97: =IFERROR(VLOOKUP(H97,得意先マスター!$B$7:$H$103,2,FALSE),"") ->  | J97: =IFERROR(VLOOKUP(H97,得意先マスター!$B$7:$H$103,3,FALSE),"") ->  | K97: =IFERROR(VLOOKUP(H97,得意先マスター!$B$7:$H$103,4,FALSE),"") ->  | L97: =IFERROR(VLOOKUP(H97,得意先マスター!$B$7:$H$103,5,FALSE),"") ->  | M97: =IFERROR(VLOOKUP(H97,得意先マスター!$B$7:$H$103,6,FALSE),"") ->  | P97: =IFERROR(VLOOKUP(O97,商品マスター!$B$7:$D$53,2,FALSE),"") ->  | R97: =IFERROR(VLOOKUP(O97,商品マスター!$B$7:$D$53,3,FALSE),"") ->  | S97: 0 | U97: =IFERROR(VLOOKUP(T97,商品マスター!$B$7:$D$53,2,FALSE),"") ->  | W97: =IFERROR(VLOOKUP(T97,商品マスター!$B$7:$D$53,3,FALSE),"") ->  | X97: 0 | Z97: =IFERROR(VLOOKUP(Y97,商品マスター!$B$7:$D$53,2,FALSE),"") ->  | AB97: =IFERROR(VLOOKUP(Y97,商品マスター!$B$7:$D$53,3,FALSE),"") ->  | AC97: 0 | AE97: =IFERROR(VLOOKUP(AD97,商品マスター!$B$7:$D$53,2,FALSE),"") ->  | AG97: =IFERROR(VLOOKUP(AD97,商品マスター!$B$7:$D$53,3,FALSE),"") ->  | AH97: 0 | AJ97: =IFERROR(VLOOKUP(AI97,商品マスター!$B$7:$D$53,2,FALSE),"") ->  | AL97: =IFERROR(VLOOKUP(AI97,商品マスター!$B$7:$D$53,3,FALSE),"") ->  | AM97: 0 | AO97: =IFERROR(VLOOKUP(AN97,商品マスター!$B$7:$D$53,2,FALSE),"") ->  | AQ97: =IFERROR(VLOOKUP(AN97,商品マスター!$B$7:$D$53,3,FALSE),"") ->  | AR97: 0 | AT97: =IFERROR(VLOOKUP(AS97,商品マスター!$B$7:$D$53,2,FALSE),"") ->  | AV97: =IFERROR(VLOOKUP(AS97,商品マスター!$B$7:$D$53,3,FALSE),"") ->  | AW97: 0 | AY97: =IFERROR(VLOOKUP(AX97,商品マスター!$B$7:$D$53,2,FALSE),"") ->  | BA97: =IFERROR(VLOOKUP(AX97,商品マスター!$B$7:$D$53,3,FALSE),"") ->  | BB97: 0 | BD97: =IFERROR(VLOOKUP(BC97,商品マスター!$B$7:$D$53,2,FALSE),"") ->  | BF97: =IFERROR(VLOOKUP(BC97,商品マスター!$B$7:$D$53,3,FALSE),"") ->  | BG97: 0 | BI97: =IFERROR(VLOOKUP(BH97,商品マスター!$B$7:$D$53,2,FALSE),"") ->  | BK97: =IFERROR(VLOOKUP(BH97,商品マスター!$B$7:$D$53,3,FALSE),"") ->  | BL97: 0 | BM97: 0 | BN97: 0.1 | BO97: 0 | BQ97: 0
I98: =IFERROR(VLOOKUP(H98,得意先マスター!$B$7:$H$103,2,FALSE),"") ->  | J98: =IFERROR(VLOOKUP(H98,得意先マスター!$B$7:$H$103,3,FALSE),"") ->  | K98: =IFERROR(VLOOKUP(H98,得意先マスター!$B$7:$H$103,4,FALSE),"") ->  | L98: =IFERROR(VLOOKUP(H98,得意先マスター!$B$7:$H$103,5,FALSE),"") ->  | M98: =IFERROR(VLOOKUP(H98,得意先マスター!$B$7:$H$103,6,FALSE),"") ->  | P98: =IFERROR(VLOOKUP(O98,商品マスター!$B$7:$D$53,2,FALSE),"") ->  | R98: =IFERROR(VLOOKUP(O98,商品マスター!$B$7:$D$53,3,FALSE),"") ->  | S98: 0 | U98: =IFERROR(VLOOKUP(T98,商品マスター!$B$7:$D$53,2,FALSE),"") ->  | W98: =IFERROR(VLOOKUP(T98,商品マスター!$B$7:$D$53,3,FALSE),"") ->  | X98: 0 | Z98: =IFERROR(VLOOKUP(Y98,商品マスター!$B$7:$D$53,2,FALSE),"") ->  | AB98: =IFERROR(VLOOKUP(Y98,商品マスター!$B$7:$D$53,3,FALSE),"") ->  | AC98: 0 | AE98: =IFERROR(VLOOKUP(AD98,商品マスター!$B$7:$D$53,2,FALSE),"") ->  | AG98: =IFERROR(VLOOKUP(AD98,商品マスター!$B$7:$D$53,3,FALSE),"") ->  | AH98: 0 | AJ98: =IFERROR(VLOOKUP(AI98,商品マスター!$B$7:$D$53,2,FALSE),"") ->  | AL98: =IFERROR(VLOOKUP(AI98,商品マスター!$B$7:$D$53,3,FALSE),"") ->  | AM98: 0 | AO98: =IFERROR(VLOOKUP(AN98,商品マスター!$B$7:$D$53,2,FALSE),"") ->  | AQ98: =IFERROR(VLOOKUP(AN98,商品マスター!$B$7:$D$53,3,FALSE),"") ->  | AR98: 0 | AT98: =IFERROR(VLOOKUP(AS98,商品マスター!$B$7:$D$53,2,FALSE),"") ->  | AV98: =IFERROR(VLOOKUP(AS98,商品マスター!$B$7:$D$53,3,FALSE),"") ->  | AW98: 0 | AY98: =IFERROR(VLOOKUP(AX98,商品マスター!$B$7:$D$53,2,FALSE),"") ->  | BA98: =IFERROR(VLOOKUP(AX98,商品マスター!$B$7:$D$53,3,FALSE),"") ->  | BB98: 0 | BD98: =IFERROR(VLOOKUP(BC98,商品マスター!$B$7:$D$53,2,FALSE),"") ->  | BF98: =IFERROR(VLOOKUP(BC98,商品マスター!$B$7:$D$53,3,FALSE),"") ->  | BG98: 0 | BI98: =IFERROR(VLOOKUP(BH98,商品マスター!$B$7:$D$53,2,FALSE),"") ->  | BK98: =IFERROR(VLOOKUP(BH98,商品マスター!$B$7:$D$53,3,FALSE),"") ->  | BL98: 0 | BM98: 0 | BN98: 0.1 | BO98: 0 | BQ98: 0
I99: =IFERROR(VLOOKUP(H99,得意先マスター!$B$7:$H$103,2,FALSE),"") ->  | J99: =IFERROR(VLOOKUP(H99,得意先マスター!$B$7:$H$103,3,FALSE),"") ->  | K99: =IFERROR(VLOOKUP(H99,得意先マスター!$B$7:$H$103,4,FALSE),"") ->  | L99: =IFERROR(VLOOKUP(H99,得意先マスター!$B$7:$H$103,5,FALSE),"") ->  | M99: =IFERROR(VLOOKUP(H99,得意先マスター!$B$7:$H$103,6,FALSE),"") ->  | P99: =IFERROR(VLOOKUP(O99,商品マスター!$B$7:$D$53,2,FALSE),"") ->  | R99: =IFERROR(VLOOKUP(O99,商品マスター!$B$7:$D$53,3,FALSE),"") ->  | S99: 0 | U99: =IFERROR(VLOOKUP(T99,商品マスター!$B$7:$D$53,2,FALSE),"") ->  | W99: =IFERROR(VLOOKUP(T99,商品マスター!$B$7:$D$53,3,FALSE),"") ->  | X99: 0 | Z99: =IFERROR(VLOOKUP(Y99,商品マスター!$B$7:$D$53,2,FALSE),"") ->  | AB99: =IFERROR(VLOOKUP(Y99,商品マスター!$B$7:$D$53,3,FALSE),"") ->  | AC99: 0 | AE99: =IFERROR(VLOOKUP(AD99,商品マスター!$B$7:$D$53,2,FALSE),"") ->  | AG99: =IFERROR(VLOOKUP(AD99,商品マスター!$B$7:$D$53,3,FALSE),"") ->  | AH99: 0 | AJ99: =IFERROR(VLOOKUP(AI99,商品マスター!$B$7:$D$53,2,FALSE),"") ->  | AL99: =IFERROR(VLOOKUP(AI99,商品マスター!$B$7:$D$53,3,FALSE),"") ->  | AM99: 0 | AO99: =IFERROR(VLOOKUP(AN99,商品マスター!$B$7:$D$53,2,FALSE),"") ->  | AQ99: =IFERROR(VLOOKUP(AN99,商品マスター!$B$7:$D$53,3,FALSE),"") ->  | AR99: 0 | AT99: =IFERROR(VLOOKUP(AS99,商品マスター!$B$7:$D$53,2,FALSE),"") ->  | AV99: =IFERROR(VLOOKUP(AS99,商品マスター!$B$7:$D$53,3,FALSE),"") ->  | AW99: 0 | AY99: =IFERROR(VLOOKUP(AX99,商品マスター!$B$7:$D$53,2,FALSE),"") ->  | BA99: =IFERROR(VLOOKUP(AX99,商品マスター!$B$7:$D$53,3,FALSE),"") ->  | BB99: 0 | BD99: =IFERROR(VLOOKUP(BC99,商品マスター!$B$7:$D$53,2,FALSE),"") ->  | BF99: =IFERROR(VLOOKUP(BC99,商品マスター!$B$7:$D$53,3,FALSE),"") ->  | BG99: 0 | BI99: =IFERROR(VLOOKUP(BH99,商品マスター!$B$7:$D$53,2,FALSE),"") ->  | BK99: =IFERROR(VLOOKUP(BH99,商品マスター!$B$7:$D$53,3,FALSE),"") ->  | BL99: 0 | BM99: 0 | BN99: 0.1 | BO99: 0 | BQ99: 0
I100: =IFERROR(VLOOKUP(H100,得意先マスター!$B$7:$H$103,2,FALSE),"") ->  | J100: =IFERROR(VLOOKUP(H100,得意先マスター!$B$7:$H$103,3,FALSE),"") ->  | K100: =IFERROR(VLOOKUP(H100,得意先マスター!$B$7:$H$103,4,FALSE),"") ->  | L100: =IFERROR(VLOOKUP(H100,得意先マスター!$B$7:$H$103,5,FALSE),"") ->  | M100: =IFERROR(VLOOKUP(H100,得意先マスター!$B$7:$H$103,6,FALSE),"") ->  | P100: =IFERROR(VLOOKUP(O100,商品マスター!$B$7:$D$53,2,FALSE),"") ->  | R100: =IFERROR(VLOOKUP(O100,商品マスター!$B$7:$D$53,3,FALSE),"") ->  | S100: 0 | U100: =IFERROR(VLOOKUP(T100,商品マスター!$B$7:$D$53,2,FALSE),"") ->  | W100: =IFERROR(VLOOKUP(T100,商品マスター!$B$7:$D$53,3,FALSE),"") ->  | X100: 0 | Z100: =IFERROR(VLOOKUP(Y100,商品マスター!$B$7:$D$53,2,FALSE),"") ->  | AB100: =IFERROR(VLOOKUP(Y100,商品マスター!$B$7:$D$53,3,FALSE),"") ->  | AC100: 0 | AE100: =IFERROR(VLOOKUP(AD100,商品マスター!$B$7:$D$53,2,FALSE),"") ->  | AG100: =IFERROR(VLOOKUP(AD100,商品マスター!$B$7:$D$53,3,FALSE),"") ->  | AH100: 0 | AJ100: =IFERROR(VLOOKUP(AI100,商品マスター!$B$7:$D$53,2,FALSE),"") ->  | AL100: =IFERROR(VLOOKUP(AI100,商品マスター!$B$7:$D$53,3,FALSE),"") ->  | AM100: 0 | AO100: =IFERROR(VLOOKUP(AN100,商品マスター!$B$7:$D$53,2,FALSE),"") ->  | AQ100: =IFERROR(VLOOKUP(AN100,商品マスター!$B$7:$D$53,3,FALSE),"") ->  | AR100: 0 | AT100: =IFERROR(VLOOKUP(AS100,商品マスター!$B$7:$D$53,2,FALSE),"") ->  | AV100: =IFERROR(VLOOKUP(AS100,商品マスター!$B$7:$D$53,3,FALSE),"") ->  | AW100: 0 | AY100: =IFERROR(VLOOKUP(AX100,商品マスター!$B$7:$D$53,2,FALSE),"") ->  | BA100: =IFERROR(VLOOKUP(AX100,商品マスター!$B$7:$D$53,3,FALSE),"") ->  | BB100: 0 | BD100: =IFERROR(VLOOKUP(BC100,商品マスター!$B$7:$D$53,2,FALSE),"") ->  | BF100: =IFERROR(VLOOKUP(BC100,商品マスター!$B$7:$D$53,3,FALSE),"") ->  | BG100: 0 | BI100: =IFERROR(VLOOKUP(BH100,商品マスター!$B$7:$D$53,2,FALSE),"") ->  | BK100: =IFERROR(VLOOKUP(BH100,商品マスター!$B$7:$D$53,3,FALSE),"") ->  | BL100: 0 | BM100: 0 | BN100: 0.1 | BO100: 0 | BQ100: 0
I101: =IFERROR(VLOOKUP(H101,得意先マスター!$B$7:$H$103,2,FALSE),"") ->  | J101: =IFERROR(VLOOKUP(H101,得意先マスター!$B$7:$H$103,3,FALSE),"") ->  | K101: =IFERROR(VLOOKUP(H101,得意先マスター!$B$7:$H$103,4,FALSE),"") ->  | L101: =IFERROR(VLOOKUP(H101,得意先マスター!$B$7:$H$103,5,FALSE),"") ->  | M101: =IFERROR(VLOOKUP(H101,得意先マスター!$B$7:$H$103,6,FALSE),"") ->  | P101: =IFERROR(VLOOKUP(O101,商品マスター!$B$7:$D$53,2,FALSE),"") ->  | R101: =IFERROR(VLOOKUP(O101,商品マスター!$B$7:$D$53,3,FALSE),"") ->  | S101: 0 | U101: =IFERROR(VLOOKUP(T101,商品マスター!$B$7:$D$53,2,FALSE),"") ->  | W101: =IFERROR(VLOOKUP(T101,商品マスター!$B$7:$D$53,3,FALSE),"") ->  | X101: 0 | Z101: =IFERROR(VLOOKUP(Y101,商品マスター!$B$7:$D$53,2,FALSE),"") ->  | AB101: =IFERROR(VLOOKUP(Y101,商品マスター!$B$7:$D$53,3,FALSE),"") ->  | AC101: 0 | AE101: =IFERROR(VLOOKUP(AD101,商品マスター!$B$7:$D$53,2,FALSE),"") ->  | AG101: =IFERROR(VLOOKUP(AD101,商品マスター!$B$7:$D$53,3,FALSE),"") ->  | AH101: 0 | AJ101: =IFERROR(VLOOKUP(AI101,商品マスター!$B$7:$D$53,2,FALSE),"") ->  | AL101: =IFERROR(VLOOKUP(AI101,商品マスター!$B$7:$D$53,3,FALSE),"") ->  | AM101: 0 | AO101: =IFERROR(VLOOKUP(AN101,商品マスター!$B$7:$D$53,2,FALSE),"") ->  | AQ101: =IFERROR(VLOOKUP(AN101,商品マスター!$B$7:$D$53,3,FALSE),"") ->  | AR101: 0 | AT101: =IFERROR(VLOOKUP(AS101,商品マスター!$B$7:$D$53,2,FALSE),"") ->  | AV101: =IFERROR(VLOOKUP(AS101,商品マスター!$B$7:$D$53,3,FALSE),"") ->  | AW101: 0 | AY101: =IFERROR(VLOOKUP(AX101,商品マスター!$B$7:$D$53,2,FALSE),"") ->  | BA101: =IFERROR(VLOOKUP(AX101,商品マスター!$B$7:$D$53,3,FALSE),"") ->  | BB101: 0 | BD101: =IFERROR(VLOOKUP(BC101,商品マスター!$B$7:$D$53,2,FALSE),"") ->  | BF101: =IFERROR(VLOOKUP(BC101,商品マスター!$B$7:$D$53,3,FALSE),"") ->  | BG101: 0 | BI101: =IFERROR(VLOOKUP(BH101,商品マスター!$B$7:$D$53,2,FALSE),"") ->  | BK101: =IFERROR(VLOOKUP(BH101,商品マスター!$B$7:$D$53,3,FALSE),"") ->  | BL101: 0 | BM101: 0 | BN101: 0.1 | BO101: 0 | BQ101: 0
I102: =IFERROR(VLOOKUP(H102,得意先マスター!$B$7:$H$103,2,FALSE),"") ->  | J102: =IFERROR(VLOOKUP(H102,得意先マスター!$B$7:$H$103,3,FALSE),"") ->  | K102: =IFERROR(VLOOKUP(H102,得意先マスター!$B$7:$H$103,4,FALSE),"") ->  | L102: =IFERROR(VLOOKUP(H102,得意先マスター!$B$7:$H$103,5,FALSE),"") ->  | M102: =IFERROR(VLOOKUP(H102,得意先マスター!$B$7:$H$103,6,FALSE),"") ->  | P102: =IFERROR(VLOOKUP(O102,商品マスター!$B$7:$D$53,2,FALSE),"") ->  | R102: =IFERROR(VLOOKUP(O102,商品マスター!$B$7:$D$53,3,FALSE),"") ->  | S102: 0 | U102: =IFERROR(VLOOKUP(T102,商品マスター!$B$7:$D$53,2,FALSE),"") ->  | W102: =IFERROR(VLOOKUP(T102,商品マスター!$B$7:$D$53,3,FALSE),"") ->  | X102: 0 | Z102: =IFERROR(VLOOKUP(Y102,商品マスター!$B$7:$D$53,2,FALSE),"") ->  | AB102: =IFERROR(VLOOKUP(Y102,商品マスター!$B$7:$D$53,3,FALSE),"") ->  | AC102: 0 | AE102: =IFERROR(VLOOKUP(AD102,商品マスター!$B$7:$D$53,2,FALSE),"") ->  | AG102: =IFERROR(VLOOKUP(AD102,商品マスター!$B$7:$D$53,3,FALSE),"") ->  | AH102: 0 | AJ102: =IFERROR(VLOOKUP(AI102,商品マスター!$B$7:$D$53,2,FALSE),"") ->  | AL102: =IFERROR(VLOOKUP(AI102,商品マスター!$B$7:$D$53,3,FALSE),"") ->  | AM102: 0 | AO102: =IFERROR(VLOOKUP(AN102,商品マスター!$B$7:$D$53,2,FALSE),"") ->  | AQ102: =IFERROR(VLOOKUP(AN102,商品マスター!$B$7:$D$53,3,FALSE),"") ->  | AR102: 0 | AT102: =IFERROR(VLOOKUP(AS102,商品マスター!$B$7:$D$53,2,FALSE),"") ->  | AV102: =IFERROR(VLOOKUP(AS102,商品マスター!$B$7:$D$53,3,FALSE),"") ->  | AW102: 0 | AY102: =IFERROR(VLOOKUP(AX102,商品マスター!$B$7:$D$53,2,FALSE),"") ->  | BA102: =IFERROR(VLOOKUP(AX102,商品マスター!$B$7:$D$53,3,FALSE),"") ->  | BB102: 0 | BD102: =IFERROR(VLOOKUP(BC102,商品マスター!$B$7:$D$53,2,FALSE),"") ->  | BF102: =IFERROR(VLOOKUP(BC102,商品マスター!$B$7:$D$53,3,FALSE),"") ->  | BG102: 0 | BI102: =IFERROR(VLOOKUP(BH102,商品マスター!$B$7:$D$53,2,FALSE),"") ->  | BK102: =IFERROR(VLOOKUP(BH102,商品マスター!$B$7:$D$53,3,FALSE),"") ->  | BL102: 0 | BM102: 0 | BN102: 0.1 | BO102: 0 | BQ102: 0
I103: =IFERROR(VLOOKUP(H103,得意先マスター!$B$7:$H$103,2,FALSE),"") ->  | J103: =IFERROR(VLOOKUP(H103,得意先マスター!$B$7:$H$103,3,FALSE),"") ->  | K103: =IFERROR(VLOOKUP(H103,得意先マスター!$B$7:$H$103,4,FALSE),"") ->  | L103: =IFERROR(VLOOKUP(H103,得意先マスター!$B$7:$H$103,5,FALSE),"") ->  | M103: =IFERROR(VLOOKUP(H103,得意先マスター!$B$7:$H$103,6,FALSE),"") ->  | P103: =IFERROR(VLOOKUP(O103,商品マスター!$B$7:$D$53,2,FALSE),"") ->  | R103: =IFERROR(VLOOKUP(O103,商品マスター!$B$7:$D$53,3,FALSE),"") ->  | S103: 0 | U103: =IFERROR(VLOOKUP(T103,商品マスター!$B$7:$D$53,2,FALSE),"") ->  | W103: =IFERROR(VLOOKUP(T103,商品マスター!$B$7:$D$53,3,FALSE),"") ->  | X103: 0 | Z103: =IFERROR(VLOOKUP(Y103,商品マスター!$B$7:$D$53,2,FALSE),"") ->  | AB103: =IFERROR(VLOOKUP(Y103,商品マスター!$B$7:$D$53,3,FALSE),"") ->  | AC103: 0 | AE103: =IFERROR(VLOOKUP(AD103,商品マスター!$B$7:$D$53,2,FALSE),"") ->  | AG103: =IFERROR(VLOOKUP(AD103,商品マスター!$B$7:$D$53,3,FALSE),"") ->  | AH103: 0 | AJ103: =IFERROR(VLOOKUP(AI103,商品マスター!$B$7:$D$53,2,FALSE),"") ->  | AL103: =IFERROR(VLOOKUP(AI103,商品マスター!$B$7:$D$53,3,FALSE),"") ->  | AM103: 0 | AO103: =IFERROR(VLOOKUP(AN103,商品マスター!$B$7:$D$53,2,FALSE),"") ->  | AQ103: =IFERROR(VLOOKUP(AN103,商品マスター!$B$7:$D$53,3,FALSE),"") ->  | AR103: 0 | AT103: =IFERROR(VLOOKUP(AS103,商品マスター!$B$7:$D$53,2,FALSE),"") ->  | AV103: =IFERROR(VLOOKUP(AS103,商品マスター!$B$7:$D$53,3,FALSE),"") ->  | AW103: 0 | AY103: =IFERROR(VLOOKUP(AX103,商品マスター!$B$7:$D$53,2,FALSE),"") ->  | BA103: =IFERROR(VLOOKUP(AX103,商品マスター!$B$7:$D$53,3,FALSE),"") ->  | BB103: 0 | BD103: =IFERROR(VLOOKUP(BC103,商品マスター!$B$7:$D$53,2,FALSE),"") ->  | BF103: =IFERROR(VLOOKUP(BC103,商品マスター!$B$7:$D$53,3,FALSE),"") ->  | BG103: 0 | BI103: =IFERROR(VLOOKUP(BH103,商品マスター!$B$7:$D$53,2,FALSE),"") ->  | BK103: =IFERROR(VLOOKUP(BH103,商品マスター!$B$7:$D$53,3,FALSE),"") ->  | BL103: 0 | BM103: 0 | BN103: 0.1 | BO103: 0 | BQ103: 0
I104: =IFERROR(VLOOKUP(H104,得意先マスター!$B$7:$H$103,2,FALSE),"") ->  | J104: =IFERROR(VLOOKUP(H104,得意先マスター!$B$7:$H$103,3,FALSE),"") ->  | K104: =IFERROR(VLOOKUP(H104,得意先マスター!$B$7:$H$103,4,FALSE),"") ->  | L104: =IFERROR(VLOOKUP(H104,得意先マスター!$B$7:$H$103,5,FALSE),"") ->  | M104: =IFERROR(VLOOKUP(H104,得意先マスター!$B$7:$H$103,6,FALSE),"") ->  | P104: =IFERROR(VLOOKUP(O104,商品マスター!$B$7:$D$53,2,FALSE),"") ->  | R104: =IFERROR(VLOOKUP(O104,商品マスター!$B$7:$D$53,3,FALSE),"") ->  | S104: 0 | U104: =IFERROR(VLOOKUP(T104,商品マスター!$B$7:$D$53,2,FALSE),"") ->  | W104: =IFERROR(VLOOKUP(T104,商品マスター!$B$7:$D$53,3,FALSE),"") ->  | X104: 0 | Z104: =IFERROR(VLOOKUP(Y104,商品マスター!$B$7:$D$53,2,FALSE),"") ->  | AB104: =IFERROR(VLOOKUP(Y104,商品マスター!$B$7:$D$53,3,FALSE),"") ->  | AC104: 0 | AE104: =IFERROR(VLOOKUP(AD104,商品マスター!$B$7:$D$53,2,FALSE),"") ->  | AG104: =IFERROR(VLOOKUP(AD104,商品マスター!$B$7:$D$53,3,FALSE),"") ->  | AH104: 0 | AJ104: =IFERROR(VLOOKUP(AI104,商品マスター!$B$7:$D$53,2,FALSE),"") ->  | AL104: =IFERROR(VLOOKUP(AI104,商品マスター!$B$7:$D$53,3,FALSE),"") ->  | AM104: 0 | AO104: =IFERROR(VLOOKUP(AN104,商品マスター!$B$7:$D$53,2,FALSE),"") ->  | AQ104: =IFERROR(VLOOKUP(AN104,商品マスター!$B$7:$D$53,3,FALSE),"") ->  | AR104: 0 | AT104: =IFERROR(VLOOKUP(AS104,商品マスター!$B$7:$D$53,2,FALSE),"") ->  | AV104: =IFERROR(VLOOKUP(AS104,商品マスター!$B$7:$D$53,3,FALSE),"") ->  | AW104: 0 | AY104: =IFERROR(VLOOKUP(AX104,商品マスター!$B$7:$D$53,2,FALSE),"") ->  | BA104: =IFERROR(VLOOKUP(AX104,商品マスター!$B$7:$D$53,3,FALSE),"") ->  | BB104: 0 | BD104: =IFERROR(VLOOKUP(BC104,商品マスター!$B$7:$D$53,2,FALSE),"") ->  | BF104: =IFERROR(VLOOKUP(BC104,商品マスター!$B$7:$D$53,3,FALSE),"") ->  | BG104: 0 | BI104: =IFERROR(VLOOKUP(BH104,商品マスター!$B$7:$D$53,2,FALSE),"") ->  | BK104: =IFERROR(VLOOKUP(BH104,商品マスター!$B$7:$D$53,3,FALSE),"") ->  | BL104: 0 | BM104: 0 | BN104: 0.1 | BO104: 0 | BQ104: 0
I105: =IFERROR(VLOOKUP(H105,得意先マスター!$B$7:$H$103,2,FALSE),"") ->  | J105: =IFERROR(VLOOKUP(H105,得意先マスター!$B$7:$H$103,3,FALSE),"") ->  | K105: =IFERROR(VLOOKUP(H105,得意先マスター!$B$7:$H$103,4,FALSE),"") ->  | L105: =IFERROR(VLOOKUP(H105,得意先マスター!$B$7:$H$103,5,FALSE),"") ->  | M105: =IFERROR(VLOOKUP(H105,得意先マスター!$B$7:$H$103,6,FALSE),"") ->  | P105: =IFERROR(VLOOKUP(O105,商品マスター!$B$7:$D$53,2,FALSE),"") ->  | R105: =IFERROR(VLOOKUP(O105,商品マスター!$B$7:$D$53,3,FALSE),"") ->  | S105: 0 | U105: =IFERROR(VLOOKUP(T105,商品マスター!$B$7:$D$53,2,FALSE),"") ->  | W105: =IFERROR(VLOOKUP(T105,商品マスター!$B$7:$D$53,3,FALSE),"") ->  | X105: 0 | Z105: =IFERROR(VLOOKUP(Y105,商品マスター!$B$7:$D$53,2,FALSE),"") ->  | AB105: =IFERROR(VLOOKUP(Y105,商品マスター!$B$7:$D$53,3,FALSE),"") ->  | AC105: 0 | AE105: =IFERROR(VLOOKUP(AD105,商品マスター!$B$7:$D$53,2,FALSE),"") ->  | AG105: =IFERROR(VLOOKUP(AD105,商品マスター!$B$7:$D$53,3,FALSE),"") ->  | AH105: 0 | AJ105: =IFERROR(VLOOKUP(AI105,商品マスター!$B$7:$D$53,2,FALSE),"") ->  | AL105: =IFERROR(VLOOKUP(AI105,商品マスター!$B$7:$D$53,3,FALSE),"") ->  | AM105: 0 | AO105: =IFERROR(VLOOKUP(AN105,商品マスター!$B$7:$D$53,2,FALSE),"") ->  | AQ105: =IFERROR(VLOOKUP(AN105,商品マスター!$B$7:$D$53,3,FALSE),"") ->  | AR105: 0 | AT105: =IFERROR(VLOOKUP(AS105,商品マスター!$B$7:$D$53,2,FALSE),"") ->  | AV105: =IFERROR(VLOOKUP(AS105,商品マスター!$B$7:$D$53,3,FALSE),"") ->  | AW105: 0 | AY105: =IFERROR(VLOOKUP(AX105,商品マスター!$B$7:$D$53,2,FALSE),"") ->  | BA105: =IFERROR(VLOOKUP(AX105,商品マスター!$B$7:$D$53,3,FALSE),"") ->  | BB105: 0 | BD105: =IFERROR(VLOOKUP(BC105,商品マスター!$B$7:$D$53,2,FALSE),"") ->  | BF105: =IFERROR(VLOOKUP(BC105,商品マスター!$B$7:$D$53,3,FALSE),"") ->  | BG105: 0 | BI105: =IFERROR(VLOOKUP(BH105,商品マスター!$B$7:$D$53,2,FALSE),"") ->  | BK105: =IFERROR(VLOOKUP(BH105,商品マスター!$B$7:$D$53,3,FALSE),"") ->  | BL105: 0 | BM105: 0 | BN105: 0.1 | BO105: 0 | BQ105: 0
I106: =IFERROR(VLOOKUP(H106,得意先マスター!$B$7:$H$103,2,FALSE),"") ->  | J106: =IFERROR(VLOOKUP(H106,得意先マスター!$B$7:$H$103,3,FALSE),"") ->  | K106: =IFERROR(VLOOKUP(H106,得意先マスター!$B$7:$H$103,4,FALSE),"") ->  | L106: =IFERROR(VLOOKUP(H106,得意先マスター!$B$7:$H$103,5,FALSE),"") ->  | M106: =IFERROR(VLOOKUP(H106,得意先マスター!$B$7:$H$103,6,FALSE),"") ->  | P106: =IFERROR(VLOOKUP(O106,商品マスター!$B$7:$D$53,2,FALSE),"") ->  | R106: =IFERROR(VLOOKUP(O106,商品マスター!$B$7:$D$53,3,FALSE),"") ->  | S106: 0 | U106: =IFERROR(VLOOKUP(T106,商品マスター!$B$7:$D$53,2,FALSE),"") ->  | W106: =IFERROR(VLOOKUP(T106,商品マスター!$B$7:$D$53,3,FALSE),"") ->  | X106: 0 | Z106: =IFERROR(VLOOKUP(Y106,商品マスター!$B$7:$D$53,2,FALSE),"") ->  | AB106: =IFERROR(VLOOKUP(Y106,商品マスター!$B$7:$D$53,3,FALSE),"") ->  | AC106: 0 | AE106: =IFERROR(VLOOKUP(AD106,商品マスター!$B$7:$D$53,2,FALSE),"") ->  | AG106: =IFERROR(VLOOKUP(AD106,商品マスター!$B$7:$D$53,3,FALSE),"") ->  | AH106: 0 | AJ106: =IFERROR(VLOOKUP(AI106,商品マスター!$B$7:$D$53,2,FALSE),"") ->  | AL106: =IFERROR(VLOOKUP(AI106,商品マスター!$B$7:$D$53,3,FALSE),"") ->  | AM106: 0 | AO106: =IFERROR(VLOOKUP(AN106,商品マスター!$B$7:$D$53,2,FALSE),"") ->  | AQ106: =IFERROR(VLOOKUP(AN106,商品マスター!$B$7:$D$53,3,FALSE),"") ->  | AR106: 0 | AT106: =IFERROR(VLOOKUP(AS106,商品マスター!$B$7:$D$53,2,FALSE),"") ->  | AV106: =IFERROR(VLOOKUP(AS106,商品マスター!$B$7:$D$53,3,FALSE),"") ->  | AW106: 0 | AY106: =IFERROR(VLOOKUP(AX106,商品マスター!$B$7:$D$53,2,FALSE),"") ->  | BA106: =IFERROR(VLOOKUP(AX106,商品マスター!$B$7:$D$53,3,FALSE),"") ->  | BB106: 0 | BD106: =IFERROR(VLOOKUP(BC106,商品マスター!$B$7:$D$53,2,FALSE),"") ->  | BF106: =IFERROR(VLOOKUP(BC106,商品マスター!$B$7:$D$53,3,FALSE),"") ->  | BG106: 0 | BI106: =IFERROR(VLOOKUP(BH106,商品マスター!$B$7:$D$53,2,FALSE),"") ->  | BK106: =IFERROR(VLOOKUP(BH106,商品マスター!$B$7:$D$53,3,FALSE),"") ->  | BL106: 0 | BM106: 0 | BN106: 0.1 | BO106: 0 | BQ106: 0
I107: =IFERROR(VLOOKUP(H107,得意先マスター!$B$7:$H$103,2,FALSE),"") ->  | J107: =IFERROR(VLOOKUP(H107,得意先マスター!$B$7:$H$103,3,FALSE),"") ->  | K107: =IFERROR(VLOOKUP(H107,得意先マスター!$B$7:$H$103,4,FALSE),"") ->  | L107: =IFERROR(VLOOKUP(H107,得意先マスター!$B$7:$H$103,5,FALSE),"") ->  | M107: =IFERROR(VLOOKUP(H107,得意先マスター!$B$7:$H$103,6,FALSE),"") ->  | P107: =IFERROR(VLOOKUP(O107,商品マスター!$B$7:$D$53,2,FALSE),"") ->  | R107: =IFERROR(VLOOKUP(O107,商品マスター!$B$7:$D$53,3,FALSE),"") ->  | S107: 0 | U107: =IFERROR(VLOOKUP(T107,商品マスター!$B$7:$D$53,2,FALSE),"") ->  | W107: =IFERROR(VLOOKUP(T107,商品マスター!$B$7:$D$53,3,FALSE),"") ->  | X107: 0 | Z107: =IFERROR(VLOOKUP(Y107,商品マスター!$B$7:$D$53,2,FALSE),"") ->  | AB107: =IFERROR(VLOOKUP(Y107,商品マスター!$B$7:$D$53,3,FALSE),"") ->  | AC107: 0 | AE107: =IFERROR(VLOOKUP(AD107,商品マスター!$B$7:$D$53,2,FALSE),"") ->  | AG107: =IFERROR(VLOOKUP(AD107,商品マスター!$B$7:$D$53,3,FALSE),"") ->  | AH107: 0 | AJ107: =IFERROR(VLOOKUP(AI107,商品マスター!$B$7:$D$53,2,FALSE),"") ->  | AL107: =IFERROR(VLOOKUP(AI107,商品マスター!$B$7:$D$53,3,FALSE),"") ->  | AM107: 0 | AO107: =IFERROR(VLOOKUP(AN107,商品マスター!$B$7:$D$53,2,FALSE),"") ->  | AQ107: =IFERROR(VLOOKUP(AN107,商品マスター!$B$7:$D$53,3,FALSE),"") ->  | AR107: 0 | AT107: =IFERROR(VLOOKUP(AS107,商品マスター!$B$7:$D$53,2,FALSE),"") ->  | AV107: =IFERROR(VLOOKUP(AS107,商品マスター!$B$7:$D$53,3,FALSE),"") ->  | AW107: 0 | AY107: =IFERROR(VLOOKUP(AX107,商品マスター!$B$7:$D$53,2,FALSE),"") ->  | BA107: =IFERROR(VLOOKUP(AX107,商品マスター!$B$7:$D$53,3,FALSE),"") ->  | BB107: 0 | BD107: =IFERROR(VLOOKUP(BC107,商品マスター!$B$7:$D$53,2,FALSE),"") ->  | BF107: =IFERROR(VLOOKUP(BC107,商品マスター!$B$7:$D$53,3,FALSE),"") ->  | BG107: 0 | BI107: =IFERROR(VLOOKUP(BH107,商品マスター!$B$7:$D$53,2,FALSE),"") ->  | BK107: =IFERROR(VLOOKUP(BH107,商品マスター!$B$7:$D$53,3,FALSE),"") ->  | BL107: 0 | BM107: 0 | BN107: 0.1 | BO107: 0 | BQ107: 0
I108: =IFERROR(VLOOKUP(H108,得意先マスター!$B$7:$H$103,2,FALSE),"") ->  | J108: =IFERROR(VLOOKUP(H108,得意先マスター!$B$7:$H$103,3,FALSE),"") ->  | K108: =IFERROR(VLOOKUP(H108,得意先マスター!$B$7:$H$103,4,FALSE),"") ->  | L108: =IFERROR(VLOOKUP(H108,得意先マスター!$B$7:$H$103,5,FALSE),"") ->  | M108: =IFERROR(VLOOKUP(H108,得意先マスター!$B$7:$H$103,6,FALSE),"") ->  | P108: =IFERROR(VLOOKUP(O108,商品マスター!$B$7:$D$53,2,FALSE),"") ->  | R108: =IFERROR(VLOOKUP(O108,商品マスター!$B$7:$D$53,3,FALSE),"") ->  | S108: 0 | U108: =IFERROR(VLOOKUP(T108,商品マスター!$B$7:$D$53,2,FALSE),"") ->  | W108: =IFERROR(VLOOKUP(T108,商品マスター!$B$7:$D$53,3,FALSE),"") ->  | X108: 0 | Z108: =IFERROR(VLOOKUP(Y108,商品マスター!$B$7:$D$53,2,FALSE),"") ->  | AB108: =IFERROR(VLOOKUP(Y108,商品マスター!$B$7:$D$53,3,FALSE),"") ->  | AC108: 0 | AE108: =IFERROR(VLOOKUP(AD108,商品マスター!$B$7:$D$53,2,FALSE),"") ->  | AG108: =IFERROR(VLOOKUP(AD108,商品マスター!$B$7:$D$53,3,FALSE),"") ->  | AH108: 0 | AJ108: =IFERROR(VLOOKUP(AI108,商品マスター!$B$7:$D$53,2,FALSE),"") ->  | AL108: =IFERROR(VLOOKUP(AI108,商品マスター!$B$7:$D$53,3,FALSE),"") ->  | AM108: 0 | AO108: =IFERROR(VLOOKUP(AN108,商品マスター!$B$7:$D$53,2,FALSE),"") ->  | AQ108: =IFERROR(VLOOKUP(AN108,商品マスター!$B$7:$D$53,3,FALSE),"") ->  | AR108: 0 | AT108: =IFERROR(VLOOKUP(AS108,商品マスター!$B$7:$D$53,2,FALSE),"") ->  | AV108: =IFERROR(VLOOKUP(AS108,商品マスター!$B$7:$D$53,3,FALSE),"") ->  | AW108: 0 | AY108: =IFERROR(VLOOKUP(AX108,商品マスター!$B$7:$D$53,2,FALSE),"") ->  | BA108: =IFERROR(VLOOKUP(AX108,商品マスター!$B$7:$D$53,3,FALSE),"") ->  | BB108: 0 | BD108: =IFERROR(VLOOKUP(BC108,商品マスター!$B$7:$D$53,2,FALSE),"") ->  | BF108: =IFERROR(VLOOKUP(BC108,商品マスター!$B$7:$D$53,3,FALSE),"") ->  | BG108: 0 | BI108: =IFERROR(VLOOKUP(BH108,商品マスター!$B$7:$D$53,2,FALSE),"") ->  | BK108: =IFERROR(VLOOKUP(BH108,商品マスター!$B$7:$D$53,3,FALSE),"") ->  | BL108: 0 | BM108: 0 | BN108: 0.1 | BO108: 0 | BQ108: 0
I109: =IFERROR(VLOOKUP(H109,得意先マスター!$B$7:$H$103,2,FALSE),"") ->  | J109: =IFERROR(VLOOKUP(H109,得意先マスター!$B$7:$H$103,3,FALSE),"") ->  | K109: =IFERROR(VLOOKUP(H109,得意先マスター!$B$7:$H$103,4,FALSE),"") ->  | L109: =IFERROR(VLOOKUP(H109,得意先マスター!$B$7:$H$103,5,FALSE),"") ->  | M109: =IFERROR(VLOOKUP(H109,得意先マスター!$B$7:$H$103,6,FALSE),"") ->  | P109: =IFERROR(VLOOKUP(O109,商品マスター!$B$7:$D$53,2,FALSE),"") ->  | R109: =IFERROR(VLOOKUP(O109,商品マスター!$B$7:$D$53,3,FALSE),"") ->  | S109: 0 | U109: =IFERROR(VLOOKUP(T109,商品マスター!$B$7:$D$53,2,FALSE),"") ->  | W109: =IFERROR(VLOOKUP(T109,商品マスター!$B$7:$D$53,3,FALSE),"") ->  | X109: 0 | Z109: =IFERROR(VLOOKUP(Y109,商品マスター!$B$7:$D$53,2,FALSE),"") ->  | AB109: =IFERROR(VLOOKUP(Y109,商品マスター!$B$7:$D$53,3,FALSE),"") ->  | AC109: 0 | AE109: =IFERROR(VLOOKUP(AD109,商品マスター!$B$7:$D$53,2,FALSE),"") ->  | AG109: =IFERROR(VLOOKUP(AD109,商品マスター!$B$7:$D$53,3,FALSE),"") ->  | AH109: 0 | AJ109: =IFERROR(VLOOKUP(AI109,商品マスター!$B$7:$D$53,2,FALSE),"") ->  | AL109: =IFERROR(VLOOKUP(AI109,商品マスター!$B$7:$D$53,3,FALSE),"") ->  | AM109: 0 | AO109: =IFERROR(VLOOKUP(AN109,商品マスター!$B$7:$D$53,2,FALSE),"") ->  | AQ109: =IFERROR(VLOOKUP(AN109,商品マスター!$B$7:$D$53,3,FALSE),"") ->  | AR109: 0 | AT109: =IFERROR(VLOOKUP(AS109,商品マスター!$B$7:$D$53,2,FALSE),"") ->  | AV109: =IFERROR(VLOOKUP(AS109,商品マスター!$B$7:$D$53,3,FALSE),"") ->  | AW109: 0 | AY109: =IFERROR(VLOOKUP(AX109,商品マスター!$B$7:$D$53,2,FALSE),"") ->  | BA109: =IFERROR(VLOOKUP(AX109,商品マスター!$B$7:$D$53,3,FALSE),"") ->  | BB109: 0 | BD109: =IFERROR(VLOOKUP(BC109,商品マスター!$B$7:$D$53,2,FALSE),"") ->  | BF109: =IFERROR(VLOOKUP(BC109,商品マスター!$B$7:$D$53,3,FALSE),"") ->  | BG109: 0 | BI109: =IFERROR(VLOOKUP(BH109,商品マスター!$B$7:$D$53,2,FALSE),"") ->  | BK109: =IFERROR(VLOOKUP(BH109,商品マスター!$B$7:$D$53,3,FALSE),"") ->  | BL109: 0 | BM109: 0 | BN109: 0.1 | BO109: 0 | BQ109: 0
I110: =IFERROR(VLOOKUP(H110,得意先マスター!$B$7:$H$103,2,FALSE),"") ->  | J110: =IFERROR(VLOOKUP(H110,得意先マスター!$B$7:$H$103,3,FALSE),"") ->  | K110: =IFERROR(VLOOKUP(H110,得意先マスター!$B$7:$H$103,4,FALSE),"") ->  | L110: =IFERROR(VLOOKUP(H110,得意先マスター!$B$7:$H$103,5,FALSE),"") ->  | M110: =IFERROR(VLOOKUP(H110,得意先マスター!$B$7:$H$103,6,FALSE),"") ->  | P110: =IFERROR(VLOOKUP(O110,商品マスター!$B$7:$D$53,2,FALSE),"") ->  | R110: =IFERROR(VLOOKUP(O110,商品マスター!$B$7:$D$53,3,FALSE),"") ->  | S110: 0 | U110: =IFERROR(VLOOKUP(T110,商品マスター!$B$7:$D$53,2,FALSE),"") ->  | W110: =IFERROR(VLOOKUP(T110,商品マスター!$B$7:$D$53,3,FALSE),"") ->  | X110: 0 | Z110: =IFERROR(VLOOKUP(Y110,商品マスター!$B$7:$D$53,2,FALSE),"") ->  | AB110: =IFERROR(VLOOKUP(Y110,商品マスター!$B$7:$D$53,3,FALSE),"") ->  | AC110: 0 | AE110: =IFERROR(VLOOKUP(AD110,商品マスター!$B$7:$D$53,2,FALSE),"") ->  | AG110: =IFERROR(VLOOKUP(AD110,商品マスター!$B$7:$D$53,3,FALSE),"") ->  | AH110: 0 | AJ110: =IFERROR(VLOOKUP(AI110,商品マスター!$B$7:$D$53,2,FALSE),"") ->  | AL110: =IFERROR(VLOOKUP(AI110,商品マスター!$B$7:$D$53,3,FALSE),"") ->  | AM110: 0 | AO110: =IFERROR(VLOOKUP(AN110,商品マスター!$B$7:$D$53,2,FALSE),"") ->  | AQ110: =IFERROR(VLOOKUP(AN110,商品マスター!$B$7:$D$53,3,FALSE),"") ->  | AR110: 0 | AT110: =IFERROR(VLOOKUP(AS110,商品マスター!$B$7:$D$53,2,FALSE),"") ->  | AV110: =IFERROR(VLOOKUP(AS110,商品マスター!$B$7:$D$53,3,FALSE),"") ->  | AW110: 0 | AY110: =IFERROR(VLOOKUP(AX110,商品マスター!$B$7:$D$53,2,FALSE),"") ->  | BA110: =IFERROR(VLOOKUP(AX110,商品マスター!$B$7:$D$53,3,FALSE),"") ->  | BB110: 0 | BD110: =IFERROR(VLOOKUP(BC110,商品マスター!$B$7:$D$53,2,FALSE),"") ->  | BF110: =IFERROR(VLOOKUP(BC110,商品マスター!$B$7:$D$53,3,FALSE),"") ->  | BG110: 0 | BI110: =IFERROR(VLOOKUP(BH110,商品マスター!$B$7:$D$53,2,FALSE),"") ->  | BK110: =IFERROR(VLOOKUP(BH110,商品マスター!$B$7:$D$53,3,FALSE),"") ->  | BL110: 0 | BM110: 0 | BN110: 0.1 | BO110: 0 | BQ110: 0
I111: =IFERROR(VLOOKUP(H111,得意先マスター!$B$7:$H$103,2,FALSE),"") ->  | J111: =IFERROR(VLOOKUP(H111,得意先マスター!$B$7:$H$103,3,FALSE),"") ->  | K111: =IFERROR(VLOOKUP(H111,得意先マスター!$B$7:$H$103,4,FALSE),"") ->  | L111: =IFERROR(VLOOKUP(H111,得意先マスター!$B$7:$H$103,5,FALSE),"") ->  | M111: =IFERROR(VLOOKUP(H111,得意先マスター!$B$7:$H$103,6,FALSE),"") ->  | P111: =IFERROR(VLOOKUP(O111,商品マスター!$B$7:$D$53,2,FALSE),"") ->  | R111: =IFERROR(VLOOKUP(O111,商品マスター!$B$7:$D$53,3,FALSE),"") ->  | S111: 0 | U111: =IFERROR(VLOOKUP(T111,商品マスター!$B$7:$D$53,2,FALSE),"") ->  | W111: =IFERROR(VLOOKUP(T111,商品マスター!$B$7:$D$53,3,FALSE),"") ->  | X111: 0 | Z111: =IFERROR(VLOOKUP(Y111,商品マスター!$B$7:$D$53,2,FALSE),"") ->  | AB111: =IFERROR(VLOOKUP(Y111,商品マスター!$B$7:$D$53,3,FALSE),"") ->  | AC111: 0 | AE111: =IFERROR(VLOOKUP(AD111,商品マスター!$B$7:$D$53,2,FALSE),"") ->  | AG111: =IFERROR(VLOOKUP(AD111,商品マスター!$B$7:$D$53,3,FALSE),"") ->  | AH111: 0 | AJ111: =IFERROR(VLOOKUP(AI111,商品マスター!$B$7:$D$53,2,FALSE),"") ->  | AL111: =IFERROR(VLOOKUP(AI111,商品マスター!$B$7:$D$53,3,FALSE),"") ->  | AM111: 0 | AO111: =IFERROR(VLOOKUP(AN111,商品マスター!$B$7:$D$53,2,FALSE),"") ->  | AQ111: =IFERROR(VLOOKUP(AN111,商品マスター!$B$7:$D$53,3,FALSE),"") ->  | AR111: 0 | AT111: =IFERROR(VLOOKUP(AS111,商品マスター!$B$7:$D$53,2,FALSE),"") ->  | AV111: =IFERROR(VLOOKUP(AS111,商品マスター!$B$7:$D$53,3,FALSE),"") ->  | AW111: 0 | AY111: =IFERROR(VLOOKUP(AX111,商品マスター!$B$7:$D$53,2,FALSE),"") ->  | BA111: =IFERROR(VLOOKUP(AX111,商品マスター!$B$7:$D$53,3,FALSE),"") ->  | BB111: 0 | BD111: =IFERROR(VLOOKUP(BC111,商品マスター!$B$7:$D$53,2,FALSE),"") ->  | BF111: =IFERROR(VLOOKUP(BC111,商品マスター!$B$7:$D$53,3,FALSE),"") ->  | BG111: 0 | BI111: =IFERROR(VLOOKUP(BH111,商品マスター!$B$7:$D$53,2,FALSE),"") ->  | BK111: =IFERROR(VLOOKUP(BH111,商品マスター!$B$7:$D$53,3,FALSE),"") ->  | BL111: 0 | BM111: 0 | BN111: 0.1 | BO111: 0 | BQ111: 0
I112: =IFERROR(VLOOKUP(H112,得意先マスター!$B$7:$H$103,2,FALSE),"") ->  | J112: =IFERROR(VLOOKUP(H112,得意先マスター!$B$7:$H$103,3,FALSE),"") ->  | K112: =IFERROR(VLOOKUP(H112,得意先マスター!$B$7:$H$103,4,FALSE),"") ->  | L112: =IFERROR(VLOOKUP(H112,得意先マスター!$B$7:$H$103,5,FALSE),"") ->  | M112: =IFERROR(VLOOKUP(H112,得意先マスター!$B$7:$H$103,6,FALSE),"") ->  | P112: =IFERROR(VLOOKUP(O112,商品マスター!$B$7:$D$53,2,FALSE),"") ->  | R112: =IFERROR(VLOOKUP(O112,商品マスター!$B$7:$D$53,3,FALSE),"") ->  | S112: 0 | U112: =IFERROR(VLOOKUP(T112,商品マスター!$B$7:$D$53,2,FALSE),"") ->  | W112: =IFERROR(VLOOKUP(T112,商品マスター!$B$7:$D$53,3,FALSE),"") ->  | X112: 0 | Z112: =IFERROR(VLOOKUP(Y112,商品マスター!$B$7:$D$53,2,FALSE),"") ->  | AB112: =IFERROR(VLOOKUP(Y112,商品マスター!$B$7:$D$53,3,FALSE),"") ->  | AC112: 0 | AE112: =IFERROR(VLOOKUP(AD112,商品マスター!$B$7:$D$53,2,FALSE),"") ->  | AG112: =IFERROR(VLOOKUP(AD112,商品マスター!$B$7:$D$53,3,FALSE),"") ->  | AH112: 0 | AJ112: =IFERROR(VLOOKUP(AI112,商品マスター!$B$7:$D$53,2,FALSE),"") ->  | AL112: =IFERROR(VLOOKUP(AI112,商品マスター!$B$7:$D$53,3,FALSE),"") ->  | AM112: 0 | AO112: =IFERROR(VLOOKUP(AN112,商品マスター!$B$7:$D$53,2,FALSE),"") ->  | AQ112: =IFERROR(VLOOKUP(AN112,商品マスター!$B$7:$D$53,3,FALSE),"") ->  | AR112: 0 | AT112: =IFERROR(VLOOKUP(AS112,商品マスター!$B$7:$D$53,2,FALSE),"") ->  | AV112: =IFERROR(VLOOKUP(AS112,商品マスター!$B$7:$D$53,3,FALSE),"") ->  | AW112: 0 | AY112: =IFERROR(VLOOKUP(AX112,商品マスター!$B$7:$D$53,2,FALSE),"") ->  | BA112: =IFERROR(VLOOKUP(AX112,商品マスター!$B$7:$D$53,3,FALSE),"") ->  | BB112: 0 | BD112: =IFERROR(VLOOKUP(BC112,商品マスター!$B$7:$D$53,2,FALSE),"") ->  | BF112: =IFERROR(VLOOKUP(BC112,商品マスター!$B$7:$D$53,3,FALSE),"") ->  | BG112: 0 | BI112: =IFERROR(VLOOKUP(BH112,商品マスター!$B$7:$D$53,2,FALSE),"") ->  | BK112: =IFERROR(VLOOKUP(BH112,商品マスター!$B$7:$D$53,3,FALSE),"") ->  | BL112: 0 | BM112: 0 | BN112: 0.1 | BO112: 0 | BQ112: 0
I113: =IFERROR(VLOOKUP(H113,得意先マスター!$B$7:$H$103,2,FALSE),"") ->  | J113: =IFERROR(VLOOKUP(H113,得意先マスター!$B$7:$H$103,3,FALSE),"") ->  | K113: =IFERROR(VLOOKUP(H113,得意先マスター!$B$7:$H$103,4,FALSE),"") ->  | L113: =IFERROR(VLOOKUP(H113,得意先マスター!$B$7:$H$103,5,FALSE),"") ->  | M113: =IFERROR(VLOOKUP(H113,得意先マスター!$B$7:$H$103,6,FALSE),"") ->  | P113: =IFERROR(VLOOKUP(O113,商品マスター!$B$7:$D$53,2,FALSE),"") ->  | R113: =IFERROR(VLOOKUP(O113,商品マスター!$B$7:$D$53,3,FALSE),"") ->  | S113: 0 | U113: =IFERROR(VLOOKUP(T113,商品マスター!$B$7:$D$53,2,FALSE),"") ->  | W113: =IFERROR(VLOOKUP(T113,商品マスター!$B$7:$D$53,3,FALSE),"") ->  | X113: 0 | Z113: =IFERROR(VLOOKUP(Y113,商品マスター!$B$7:$D$53,2,FALSE),"") ->  | AB113: =IFERROR(VLOOKUP(Y113,商品マスター!$B$7:$D$53,3,FALSE),"") ->  | AC113: 0 | AE113: =IFERROR(VLOOKUP(AD113,商品マスター!$B$7:$D$53,2,FALSE),"") ->  | AG113: =IFERROR(VLOOKUP(AD113,商品マスター!$B$7:$D$53,3,FALSE),"") ->  | AH113: 0 | AJ113: =IFERROR(VLOOKUP(AI113,商品マスター!$B$7:$D$53,2,FALSE),"") ->  | AL113: =IFERROR(VLOOKUP(AI113,商品マスター!$B$7:$D$53,3,FALSE),"") ->  | AM113: 0 | AO113: =IFERROR(VLOOKUP(AN113,商品マスター!$B$7:$D$53,2,FALSE),"") ->  | AQ113: =IFERROR(VLOOKUP(AN113,商品マスター!$B$7:$D$53,3,FALSE),"") ->  | AR113: 0 | AT113: =IFERROR(VLOOKUP(AS113,商品マスター!$B$7:$D$53,2,FALSE),"") ->  | AV113: =IFERROR(VLOOKUP(AS113,商品マスター!$B$7:$D$53,3,FALSE),"") ->  | AW113: 0 | AY113: =IFERROR(VLOOKUP(AX113,商品マスター!$B$7:$D$53,2,FALSE),"") ->  | BA113: =IFERROR(VLOOKUP(AX113,商品マスター!$B$7:$D$53,3,FALSE),"") ->  | BB113: 0 | BD113: =IFERROR(VLOOKUP(BC113,商品マスター!$B$7:$D$53,2,FALSE),"") ->  | BF113: =IFERROR(VLOOKUP(BC113,商品マスター!$B$7:$D$53,3,FALSE),"") ->  | BG113: 0 | BI113: =IFERROR(VLOOKUP(BH113,商品マスター!$B$7:$D$53,2,FALSE),"") ->  | BK113: =IFERROR(VLOOKUP(BH113,商品マスター!$B$7:$D$53,3,FALSE),"") ->  | BL113: 0 | BM113: 0 | BN113: 0.1 | BO113: 0 | BQ113: 0
I114: =IFERROR(VLOOKUP(H114,得意先マスター!$B$7:$H$103,2,FALSE),"") ->  | J114: =IFERROR(VLOOKUP(H114,得意先マスター!$B$7:$H$103,3,FALSE),"") ->  | K114: =IFERROR(VLOOKUP(H114,得意先マスター!$B$7:$H$103,4,FALSE),"") ->  | L114: =IFERROR(VLOOKUP(H114,得意先マスター!$B$7:$H$103,5,FALSE),"") ->  | M114: =IFERROR(VLOOKUP(H114,得意先マスター!$B$7:$H$103,6,FALSE),"") ->  | P114: =IFERROR(VLOOKUP(O114,商品マスター!$B$7:$D$53,2,FALSE),"") ->  | R114: =IFERROR(VLOOKUP(O114,商品マスター!$B$7:$D$53,3,FALSE),"") ->  | S114: 0 | U114: =IFERROR(VLOOKUP(T114,商品マスター!$B$7:$D$53,2,FALSE),"") ->  | W114: =IFERROR(VLOOKUP(T114,商品マスター!$B$7:$D$53,3,FALSE),"") ->  | X114: 0 | Z114: =IFERROR(VLOOKUP(Y114,商品マスター!$B$7:$D$53,2,FALSE),"") ->  | AB114: =IFERROR(VLOOKUP(Y114,商品マスター!$B$7:$D$53,3,FALSE),"") ->  | AC114: 0 | AE114: =IFERROR(VLOOKUP(AD114,商品マスター!$B$7:$D$53,2,FALSE),"") ->  | AG114: =IFERROR(VLOOKUP(AD114,商品マスター!$B$7:$D$53,3,FALSE),"") ->  | AH114: 0 | AJ114: =IFERROR(VLOOKUP(AI114,商品マスター!$B$7:$D$53,2,FALSE),"") ->  | AL114: =IFERROR(VLOOKUP(AI114,商品マスター!$B$7:$D$53,3,FALSE),"") ->  | AM114: 0 | AO114: =IFERROR(VLOOKUP(AN114,商品マスター!$B$7:$D$53,2,FALSE),"") ->  | AQ114: =IFERROR(VLOOKUP(AN114,商品マスター!$B$7:$D$53,3,FALSE),"") ->  | AR114: 0 | AT114: =IFERROR(VLOOKUP(AS114,商品マスター!$B$7:$D$53,2,FALSE),"") ->  | AV114: =IFERROR(VLOOKUP(AS114,商品マスター!$B$7:$D$53,3,FALSE),"") ->  | AW114: 0 | AY114: =IFERROR(VLOOKUP(AX114,商品マスター!$B$7:$D$53,2,FALSE),"") ->  | BA114: =IFERROR(VLOOKUP(AX114,商品マスター!$B$7:$D$53,3,FALSE),"") ->  | BB114: 0 | BD114: =IFERROR(VLOOKUP(BC114,商品マスター!$B$7:$D$53,2,FALSE),"") ->  | BF114: =IFERROR(VLOOKUP(BC114,商品マスター!$B$7:$D$53,3,FALSE),"") ->  | BG114: 0 | BI114: =IFERROR(VLOOKUP(BH114,商品マスター!$B$7:$D$53,2,FALSE),"") ->  | BK114: =IFERROR(VLOOKUP(BH114,商品マスター!$B$7:$D$53,3,FALSE),"") ->  | BL114: 0 | BM114: 0 | BN114: 0.1 | BO114: 0 | BQ114: 0
I115: =IFERROR(VLOOKUP(H115,得意先マスター!$B$7:$H$103,2,FALSE),"") ->  | J115: =IFERROR(VLOOKUP(H115,得意先マスター!$B$7:$H$103,3,FALSE),"") ->  | K115: =IFERROR(VLOOKUP(H115,得意先マスター!$B$7:$H$103,4,FALSE),"") ->  | L115: =IFERROR(VLOOKUP(H115,得意先マスター!$B$7:$H$103,5,FALSE),"") ->  | M115: =IFERROR(VLOOKUP(H115,得意先マスター!$B$7:$H$103,6,FALSE),"") ->  | P115: =IFERROR(VLOOKUP(O115,商品マスター!$B$7:$D$53,2,FALSE),"") ->  | R115: =IFERROR(VLOOKUP(O115,商品マスター!$B$7:$D$53,3,FALSE),"") ->  | S115: 0 | U115: =IFERROR(VLOOKUP(T115,商品マスター!$B$7:$D$53,2,FALSE),"") ->  | W115: =IFERROR(VLOOKUP(T115,商品マスター!$B$7:$D$53,3,FALSE),"") ->  | X115: 0 | Z115: =IFERROR(VLOOKUP(Y115,商品マスター!$B$7:$D$53,2,FALSE),"") ->  | AB115: =IFERROR(VLOOKUP(Y115,商品マスター!$B$7:$D$53,3,FALSE),"") ->  | AC115: 0 | AE115: =IFERROR(VLOOKUP(AD115,商品マスター!$B$7:$D$53,2,FALSE),"") ->  | AG115: =IFERROR(VLOOKUP(AD115,商品マスター!$B$7:$D$53,3,FALSE),"") ->  | AH115: 0 | AJ115: =IFERROR(VLOOKUP(AI115,商品マスター!$B$7:$D$53,2,FALSE),"") ->  | AL115: =IFERROR(VLOOKUP(AI115,商品マスター!$B$7:$D$53,3,FALSE),"") ->  | AM115: 0 | AO115: =IFERROR(VLOOKUP(AN115,商品マスター!$B$7:$D$53,2,FALSE),"") ->  | AQ115: =IFERROR(VLOOKUP(AN115,商品マスター!$B$7:$D$53,3,FALSE),"") ->  | AR115: 0 | AT115: =IFERROR(VLOOKUP(AS115,商品マスター!$B$7:$D$53,2,FALSE),"") ->  | AV115: =IFERROR(VLOOKUP(AS115,商品マスター!$B$7:$D$53,3,FALSE),"") ->  | AW115: 0 | AY115: =IFERROR(VLOOKUP(AX115,商品マスター!$B$7:$D$53,2,FALSE),"") ->  | BA115: =IFERROR(VLOOKUP(AX115,商品マスター!$B$7:$D$53,3,FALSE),"") ->  | BB115: 0 | BD115: =IFERROR(VLOOKUP(BC115,商品マスター!$B$7:$D$53,2,FALSE),"") ->  | BF115: =IFERROR(VLOOKUP(BC115,商品マスター!$B$7:$D$53,3,FALSE),"") ->  | BG115: 0 | BI115: =IFERROR(VLOOKUP(BH115,商品マスター!$B$7:$D$53,2,FALSE),"") ->  | BK115: =IFERROR(VLOOKUP(BH115,商品マスター!$B$7:$D$53,3,FALSE),"") ->  | BL115: 0 | BM115: 0 | BN115: 0.1 | BO115: 0 | BQ115: 0
I116: =IFERROR(VLOOKUP(H116,得意先マスター!$B$7:$H$103,2,FALSE),"") ->  | J116: =IFERROR(VLOOKUP(H116,得意先マスター!$B$7:$H$103,3,FALSE),"") ->  | K116: =IFERROR(VLOOKUP(H116,得意先マスター!$B$7:$H$103,4,FALSE),"") ->  | L116: =IFERROR(VLOOKUP(H116,得意先マスター!$B$7:$H$103,5,FALSE),"") ->  | M116: =IFERROR(VLOOKUP(H116,得意先マスター!$B$7:$H$103,6,FALSE),"") ->  | P116: =IFERROR(VLOOKUP(O116,商品マスター!$B$7:$D$53,2,FALSE),"") ->  | R116: =IFERROR(VLOOKUP(O116,商品マスター!$B$7:$D$53,3,FALSE),"") ->  | S116: 0 | U116: =IFERROR(VLOOKUP(T116,商品マスター!$B$7:$D$53,2,FALSE),"") ->  | W116: =IFERROR(VLOOKUP(T116,商品マスター!$B$7:$D$53,3,FALSE),"") ->  | X116: 0 | Z116: =IFERROR(VLOOKUP(Y116,商品マスター!$B$7:$D$53,2,FALSE),"") ->  | AB116: =IFERROR(VLOOKUP(Y116,商品マスター!$B$7:$D$53,3,FALSE),"") ->  | AC116: 0 | AE116: =IFERROR(VLOOKUP(AD116,商品マスター!$B$7:$D$53,2,FALSE),"") ->  | AG116: =IFERROR(VLOOKUP(AD116,商品マスター!$B$7:$D$53,3,FALSE),"") ->  | AH116: 0 | AJ116: =IFERROR(VLOOKUP(AI116,商品マスター!$B$7:$D$53,2,FALSE),"") ->  | AL116: =IFERROR(VLOOKUP(AI116,商品マスター!$B$7:$D$53,3,FALSE),"") ->  | AM116: 0 | AO116: =IFERROR(VLOOKUP(AN116,商品マスター!$B$7:$D$53,2,FALSE),"") ->  | AQ116: =IFERROR(VLOOKUP(AN116,商品マスター!$B$7:$D$53,3,FALSE),"") ->  | AR116: 0 | AT116: =IFERROR(VLOOKUP(AS116,商品マスター!$B$7:$D$53,2,FALSE),"") ->  | AV116: =IFERROR(VLOOKUP(AS116,商品マスター!$B$7:$D$53,3,FALSE),"") ->  | AW116: 0 | AY116: =IFERROR(VLOOKUP(AX116,商品マスター!$B$7:$D$53,2,FALSE),"") ->  | BA116: =IFERROR(VLOOKUP(AX116,商品マスター!$B$7:$D$53,3,FALSE),"") ->  | BB116: 0 | BD116: =IFERROR(VLOOKUP(BC116,商品マスター!$B$7:$D$53,2,FALSE),"") ->  | BF116: =IFERROR(VLOOKUP(BC116,商品マスター!$B$7:$D$53,3,FALSE),"") ->  | BG116: 0 | BI116: =IFERROR(VLOOKUP(BH116,商品マスター!$B$7:$D$53,2,FALSE),"") ->  | BK116: =IFERROR(VLOOKUP(BH116,商品マスター!$B$7:$D$53,3,FALSE),"") ->  | BL116: 0 | BM116: 0 | BN116: 0.1 | BO116: 0 | BQ116: 0
I117: =IFERROR(VLOOKUP(H117,得意先マスター!$B$7:$H$103,2,FALSE),"") ->  | J117: =IFERROR(VLOOKUP(H117,得意先マスター!$B$7:$H$103,3,FALSE),"") ->  | K117: =IFERROR(VLOOKUP(H117,得意先マスター!$B$7:$H$103,4,FALSE),"") ->  | L117: =IFERROR(VLOOKUP(H117,得意先マスター!$B$7:$H$103,5,FALSE),"") ->  | M117: =IFERROR(VLOOKUP(H117,得意先マスター!$B$7:$H$103,6,FALSE),"") ->  | P117: =IFERROR(VLOOKUP(O117,商品マスター!$B$7:$D$53,2,FALSE),"") ->  | R117: =IFERROR(VLOOKUP(O117,商品マスター!$B$7:$D$53,3,FALSE),"") ->  | S117: 0 | U117: =IFERROR(VLOOKUP(T117,商品マスター!$B$7:$D$53,2,FALSE),"") ->  | W117: =IFERROR(VLOOKUP(T117,商品マスター!$B$7:$D$53,3,FALSE),"") ->  | X117: 0 | Z117: =IFERROR(VLOOKUP(Y117,商品マスター!$B$7:$D$53,2,FALSE),"") ->  | AB117: =IFERROR(VLOOKUP(Y117,商品マスター!$B$7:$D$53,3,FALSE),"") ->  | AC117: 0 | AE117: =IFERROR(VLOOKUP(AD117,商品マスター!$B$7:$D$53,2,FALSE),"") ->  | AG117: =IFERROR(VLOOKUP(AD117,商品マスター!$B$7:$D$53,3,FALSE),"") ->  | AH117: 0 | AJ117: =IFERROR(VLOOKUP(AI117,商品マスター!$B$7:$D$53,2,FALSE),"") ->  | AL117: =IFERROR(VLOOKUP(AI117,商品マスター!$B$7:$D$53,3,FALSE),"") ->  | AM117: 0 | AO117: =IFERROR(VLOOKUP(AN117,商品マスター!$B$7:$D$53,2,FALSE),"") ->  | AQ117: =IFERROR(VLOOKUP(AN117,商品マスター!$B$7:$D$53,3,FALSE),"") ->  | AR117: 0 | AT117: =IFERROR(VLOOKUP(AS117,商品マスター!$B$7:$D$53,2,FALSE),"") ->  | AV117: =IFERROR(VLOOKUP(AS117,商品マスター!$B$7:$D$53,3,FALSE),"") ->  | AW117: 0 | AY117: =IFERROR(VLOOKUP(AX117,商品マスター!$B$7:$D$53,2,FALSE),"") ->  | BA117: =IFERROR(VLOOKUP(AX117,商品マスター!$B$7:$D$53,3,FALSE),"") ->  | BB117: 0 | BD117: =IFERROR(VLOOKUP(BC117,商品マスター!$B$7:$D$53,2,FALSE),"") ->  | BF117: =IFERROR(VLOOKUP(BC117,商品マスター!$B$7:$D$53,3,FALSE),"") ->  | BG117: 0 | BI117: =IFERROR(VLOOKUP(BH117,商品マスター!$B$7:$D$53,2,FALSE),"") ->  | BK117: =IFERROR(VLOOKUP(BH117,商品マスター!$B$7:$D$53,3,FALSE),"") ->  | BL117: 0 | BM117: 0 | BN117: 0.1 | BO117: 0 | BQ117: 0
I118: =IFERROR(VLOOKUP(H118,得意先マスター!$B$7:$H$103,2,FALSE),"") ->  | J118: =IFERROR(VLOOKUP(H118,得意先マスター!$B$7:$H$103,3,FALSE),"") ->  | K118: =IFERROR(VLOOKUP(H118,得意先マスター!$B$7:$H$103,4,FALSE),"") ->  | L118: =IFERROR(VLOOKUP(H118,得意先マスター!$B$7:$H$103,5,FALSE),"") ->  | M118: =IFERROR(VLOOKUP(H118,得意先マスター!$B$7:$H$103,6,FALSE),"") ->  | P118: =IFERROR(VLOOKUP(O118,商品マスター!$B$7:$D$53,2,FALSE),"") ->  | R118: =IFERROR(VLOOKUP(O118,商品マスター!$B$7:$D$53,3,FALSE),"") ->  | S118: 0 | U118: =IFERROR(VLOOKUP(T118,商品マスター!$B$7:$D$53,2,FALSE),"") ->  | W118: =IFERROR(VLOOKUP(T118,商品マスター!$B$7:$D$53,3,FALSE),"") ->  | X118: 0 | Z118: =IFERROR(VLOOKUP(Y118,商品マスター!$B$7:$D$53,2,FALSE),"") ->  | AB118: =IFERROR(VLOOKUP(Y118,商品マスター!$B$7:$D$53,3,FALSE),"") ->  | AC118: 0 | AE118: =IFERROR(VLOOKUP(AD118,商品マスター!$B$7:$D$53,2,FALSE),"") ->  | AG118: =IFERROR(VLOOKUP(AD118,商品マスター!$B$7:$D$53,3,FALSE),"") ->  | AH118: 0 | AJ118: =IFERROR(VLOOKUP(AI118,商品マスター!$B$7:$D$53,2,FALSE),"") ->  | AL118: =IFERROR(VLOOKUP(AI118,商品マスター!$B$7:$D$53,3,FALSE),"") ->  | AM118: 0 | AO118: =IFERROR(VLOOKUP(AN118,商品マスター!$B$7:$D$53,2,FALSE),"") ->  | AQ118: =IFERROR(VLOOKUP(AN118,商品マスター!$B$7:$D$53,3,FALSE),"") ->  | AR118: 0 | AT118: =IFERROR(VLOOKUP(AS118,商品マスター!$B$7:$D$53,2,FALSE),"") ->  | AV118: =IFERROR(VLOOKUP(AS118,商品マスター!$B$7:$D$53,3,FALSE),"") ->  | AW118: 0 | AY118: =IFERROR(VLOOKUP(AX118,商品マスター!$B$7:$D$53,2,FALSE),"") ->  | BA118: =IFERROR(VLOOKUP(AX118,商品マスター!$B$7:$D$53,3,FALSE),"") ->  | BB118: 0 | BD118: =IFERROR(VLOOKUP(BC118,商品マスター!$B$7:$D$53,2,FALSE),"") ->  | BF118: =IFERROR(VLOOKUP(BC118,商品マスター!$B$7:$D$53,3,FALSE),"") ->  | BG118: 0 | BI118: =IFERROR(VLOOKUP(BH118,商品マスター!$B$7:$D$53,2,FALSE),"") ->  | BK118: =IFERROR(VLOOKUP(BH118,商品マスター!$B$7:$D$53,3,FALSE),"") ->  | BL118: 0 | BM118: 0 | BN118: 0.1 | BO118: 0 | BQ118: 0
I119: =IFERROR(VLOOKUP(H119,得意先マスター!$B$7:$H$103,2,FALSE),"") ->  | J119: =IFERROR(VLOOKUP(H119,得意先マスター!$B$7:$H$103,3,FALSE),"") ->  | K119: =IFERROR(VLOOKUP(H119,得意先マスター!$B$7:$H$103,4,FALSE),"") ->  | L119: =IFERROR(VLOOKUP(H119,得意先マスター!$B$7:$H$103,5,FALSE),"") ->  | M119: =IFERROR(VLOOKUP(H119,得意先マスター!$B$7:$H$103,6,FALSE),"") ->  | P119: =IFERROR(VLOOKUP(O119,商品マスター!$B$7:$D$53,2,FALSE),"") ->  | R119: =IFERROR(VLOOKUP(O119,商品マスター!$B$7:$D$53,3,FALSE),"") ->  | S119: 0 | U119: =IFERROR(VLOOKUP(T119,商品マスター!$B$7:$D$53,2,FALSE),"") ->  | W119: =IFERROR(VLOOKUP(T119,商品マスター!$B$7:$D$53,3,FALSE),"") ->  | X119: 0 | Z119: =IFERROR(VLOOKUP(Y119,商品マスター!$B$7:$D$53,2,FALSE),"") ->  | AB119: =IFERROR(VLOOKUP(Y119,商品マスター!$B$7:$D$53,3,FALSE),"") ->  | AC119: 0 | AE119: =IFERROR(VLOOKUP(AD119,商品マスター!$B$7:$D$53,2,FALSE),"") ->  | AG119: =IFERROR(VLOOKUP(AD119,商品マスター!$B$7:$D$53,3,FALSE),"") ->  | AH119: 0 | AJ119: =IFERROR(VLOOKUP(AI119,商品マスター!$B$7:$D$53,2,FALSE),"") ->  | AL119: =IFERROR(VLOOKUP(AI119,商品マスター!$B$7:$D$53,3,FALSE),"") ->  | AM119: 0 | AO119: =IFERROR(VLOOKUP(AN119,商品マスター!$B$7:$D$53,2,FALSE),"") ->  | AQ119: =IFERROR(VLOOKUP(AN119,商品マスター!$B$7:$D$53,3,FALSE),"") ->  | AR119: 0 | AT119: =IFERROR(VLOOKUP(AS119,商品マスター!$B$7:$D$53,2,FALSE),"") ->  | AV119: =IFERROR(VLOOKUP(AS119,商品マスター!$B$7:$D$53,3,FALSE),"") ->  | AW119: 0 | AY119: =IFERROR(VLOOKUP(AX119,商品マスター!$B$7:$D$53,2,FALSE),"") ->  | BA119: =IFERROR(VLOOKUP(AX119,商品マスター!$B$7:$D$53,3,FALSE),"") ->  | BB119: 0 | BD119: =IFERROR(VLOOKUP(BC119,商品マスター!$B$7:$D$53,2,FALSE),"") ->  | BF119: =IFERROR(VLOOKUP(BC119,商品マスター!$B$7:$D$53,3,FALSE),"") ->  | BG119: 0 | BI119: =IFERROR(VLOOKUP(BH119,商品マスター!$B$7:$D$53,2,FALSE),"") ->  | BK119: =IFERROR(VLOOKUP(BH119,商品マスター!$B$7:$D$53,3,FALSE),"") ->  | BL119: 0 | BM119: 0 | BN119: 0.1 | BO119: 0 | BQ119: 0
I120: =IFERROR(VLOOKUP(H120,得意先マスター!$B$7:$H$103,2,FALSE),"") ->  | J120: =IFERROR(VLOOKUP(H120,得意先マスター!$B$7:$H$103,3,FALSE),"") ->  | K120: =IFERROR(VLOOKUP(H120,得意先マスター!$B$7:$H$103,4,FALSE),"") ->  | L120: =IFERROR(VLOOKUP(H120,得意先マスター!$B$7:$H$103,5,FALSE),"") ->  | M120: =IFERROR(VLOOKUP(H120,得意先マスター!$B$7:$H$103,6,FALSE),"") ->  | P120: =IFERROR(VLOOKUP(O120,商品マスター!$B$7:$D$53,2,FALSE),"") ->  | R120: =IFERROR(VLOOKUP(O120,商品マスター!$B$7:$D$53,3,FALSE),"") ->  | S120: 0 | U120: =IFERROR(VLOOKUP(T120,商品マスター!$B$7:$D$53,2,FALSE),"") ->  | W120: =IFERROR(VLOOKUP(T120,商品マスター!$B$7:$D$53,3,FALSE),"") ->  | X120: 0 | Z120: =IFERROR(VLOOKUP(Y120,商品マスター!$B$7:$D$53,2,FALSE),"") ->  | AB120: =IFERROR(VLOOKUP(Y120,商品マスター!$B$7:$D$53,3,FALSE),"") ->  | AC120: 0 | AE120: =IFERROR(VLOOKUP(AD120,商品マスター!$B$7:$D$53,2,FALSE),"") ->  | AG120: =IFERROR(VLOOKUP(AD120,商品マスター!$B$7:$D$53,3,FALSE),"") ->  | AH120: 0 | AJ120: =IFERROR(VLOOKUP(AI120,商品マスター!$B$7:$D$53,2,FALSE),"") ->  | AL120: =IFERROR(VLOOKUP(AI120,商品マスター!$B$7:$D$53,3,FALSE),"") ->  | AM120: 0 | AO120: =IFERROR(VLOOKUP(AN120,商品マスター!$B$7:$D$53,2,FALSE),"") ->  | AQ120: =IFERROR(VLOOKUP(AN120,商品マスター!$B$7:$D$53,3,FALSE),"") ->  | AR120: 0 | AT120: =IFERROR(VLOOKUP(AS120,商品マスター!$B$7:$D$53,2,FALSE),"") ->  | AV120: =IFERROR(VLOOKUP(AS120,商品マスター!$B$7:$D$53,3,FALSE),"") ->  | AW120: 0 | AY120: =IFERROR(VLOOKUP(AX120,商品マスター!$B$7:$D$53,2,FALSE),"") ->  | BA120: =IFERROR(VLOOKUP(AX120,商品マスター!$B$7:$D$53,3,FALSE),"") ->  | BB120: 0 | BD120: =IFERROR(VLOOKUP(BC120,商品マスター!$B$7:$D$53,2,FALSE),"") ->  | BF120: =IFERROR(VLOOKUP(BC120,商品マスター!$B$7:$D$53,3,FALSE),"") ->  | BG120: 0 | BI120: =IFERROR(VLOOKUP(BH120,商品マスター!$B$7:$D$53,2,FALSE),"") ->  | BK120: =IFERROR(VLOOKUP(BH120,商品マスター!$B$7:$D$53,3,FALSE),"") ->  | BL120: 0 | BM120: 0 | BN120: 0.1 | BO120: 0 | BQ120: 0
I121: =IFERROR(VLOOKUP(H121,得意先マスター!$B$7:$H$103,2,FALSE),"") ->  | J121: =IFERROR(VLOOKUP(H121,得意先マスター!$B$7:$H$103,3,FALSE),"") ->  | K121: =IFERROR(VLOOKUP(H121,得意先マスター!$B$7:$H$103,4,FALSE),"") ->  | L121: =IFERROR(VLOOKUP(H121,得意先マスター!$B$7:$H$103,5,FALSE),"") ->  | M121: =IFERROR(VLOOKUP(H121,得意先マスター!$B$7:$H$103,6,FALSE),"") ->  | P121: =IFERROR(VLOOKUP(O121,商品マスター!$B$7:$D$53,2,FALSE),"") ->  | R121: =IFERROR(VLOOKUP(O121,商品マスター!$B$7:$D$53,3,FALSE),"") ->  | S121: 0 | U121: =IFERROR(VLOOKUP(T121,商品マスター!$B$7:$D$53,2,FALSE),"") ->  | W121: =IFERROR(VLOOKUP(T121,商品マスター!$B$7:$D$53,3,FALSE),"") ->  | X121: 0 | Z121: =IFERROR(VLOOKUP(Y121,商品マスター!$B$7:$D$53,2,FALSE),"") ->  | AB121: =IFERROR(VLOOKUP(Y121,商品マスター!$B$7:$D$53,3,FALSE),"") ->  | AC121: 0 | AE121: =IFERROR(VLOOKUP(AD121,商品マスター!$B$7:$D$53,2,FALSE),"") ->  | AG121: =IFERROR(VLOOKUP(AD121,商品マスター!$B$7:$D$53,3,FALSE),"") ->  | AH121: 0 | AJ121: =IFERROR(VLOOKUP(AI121,商品マスター!$B$7:$D$53,2,FALSE),"") ->  | AL121: =IFERROR(VLOOKUP(AI121,商品マスター!$B$7:$D$53,3,FALSE),"") ->  | AM121: 0 | AO121: =IFERROR(VLOOKUP(AN121,商品マスター!$B$7:$D$53,2,FALSE),"") ->  | AQ121: =IFERROR(VLOOKUP(AN121,商品マスター!$B$7:$D$53,3,FALSE),"") ->  | AR121: 0 | AT121: =IFERROR(VLOOKUP(AS121,商品マスター!$B$7:$D$53,2,FALSE),"") ->  | AV121: =IFERROR(VLOOKUP(AS121,商品マスター!$B$7:$D$53,3,FALSE),"") ->  | AW121: 0 | AY121: =IFERROR(VLOOKUP(AX121,商品マスター!$B$7:$D$53,2,FALSE),"") ->  | BA121: =IFERROR(VLOOKUP(AX121,商品マスター!$B$7:$D$53,3,FALSE),"") ->  | BB121: 0 | BD121: =IFERROR(VLOOKUP(BC121,商品マスター!$B$7:$D$53,2,FALSE),"") ->  | BF121: =IFERROR(VLOOKUP(BC121,商品マスター!$B$7:$D$53,3,FALSE),"") ->  | BG121: 0 | BI121: =IFERROR(VLOOKUP(BH121,商品マスター!$B$7:$D$53,2,FALSE),"") ->  | BK121: =IFERROR(VLOOKUP(BH121,商品マスター!$B$7:$D$53,3,FALSE),"") ->  | BL121: 0 | BM121: 0 | BN121: 0.1 | BO121: 0 | BQ121: 0
I122: =IFERROR(VLOOKUP(H122,得意先マスター!$B$7:$H$103,2,FALSE),"") ->  | J122: =IFERROR(VLOOKUP(H122,得意先マスター!$B$7:$H$103,3,FALSE),"") ->  | K122: =IFERROR(VLOOKUP(H122,得意先マスター!$B$7:$H$103,4,FALSE),"") ->  | L122: =IFERROR(VLOOKUP(H122,得意先マスター!$B$7:$H$103,5,FALSE),"") ->  | M122: =IFERROR(VLOOKUP(H122,得意先マスター!$B$7:$H$103,6,FALSE),"") ->  | P122: =IFERROR(VLOOKUP(O122,商品マスター!$B$7:$D$53,2,FALSE),"") ->  | R122: =IFERROR(VLOOKUP(O122,商品マスター!$B$7:$D$53,3,FALSE),"") ->  | S122: 0 | U122: =IFERROR(VLOOKUP(T122,商品マスター!$B$7:$D$53,2,FALSE),"") ->  | W122: =IFERROR(VLOOKUP(T122,商品マスター!$B$7:$D$53,3,FALSE),"") ->  | X122: 0 | Z122: =IFERROR(VLOOKUP(Y122,商品マスター!$B$7:$D$53,2,FALSE),"") ->  | AB122: =IFERROR(VLOOKUP(Y122,商品マスター!$B$7:$D$53,3,FALSE),"") ->  | AC122: 0 | AE122: =IFERROR(VLOOKUP(AD122,商品マスター!$B$7:$D$53,2,FALSE),"") ->  | AG122: =IFERROR(VLOOKUP(AD122,商品マスター!$B$7:$D$53,3,FALSE),"") ->  | AH122: 0 | AJ122: =IFERROR(VLOOKUP(AI122,商品マスター!$B$7:$D$53,2,FALSE),"") ->  | AL122: =IFERROR(VLOOKUP(AI122,商品マスター!$B$7:$D$53,3,FALSE),"") ->  | AM122: 0 | AO122: =IFERROR(VLOOKUP(AN122,商品マスター!$B$7:$D$53,2,FALSE),"") ->  | AQ122: =IFERROR(VLOOKUP(AN122,商品マスター!$B$7:$D$53,3,FALSE),"") ->  | AR122: 0 | AT122: =IFERROR(VLOOKUP(AS122,商品マスター!$B$7:$D$53,2,FALSE),"") ->  | AV122: =IFERROR(VLOOKUP(AS122,商品マスター!$B$7:$D$53,3,FALSE),"") ->  | AW122: 0 | AY122: =IFERROR(VLOOKUP(AX122,商品マスター!$B$7:$D$53,2,FALSE),"") ->  | BA122: =IFERROR(VLOOKUP(AX122,商品マスター!$B$7:$D$53,3,FALSE),"") ->  | BB122: 0 | BD122: =IFERROR(VLOOKUP(BC122,商品マスター!$B$7:$D$53,2,FALSE),"") ->  | BF122: =IFERROR(VLOOKUP(BC122,商品マスター!$B$7:$D$53,3,FALSE),"") ->  | BG122: 0 | BI122: =IFERROR(VLOOKUP(BH122,商品マスター!$B$7:$D$53,2,FALSE),"") ->  | BK122: =IFERROR(VLOOKUP(BH122,商品マスター!$B$7:$D$53,3,FALSE),"") ->  | BL122: 0 | BM122: 0 | BN122: 0.1 | BO122: 0 | BQ122: 0
I123: =IFERROR(VLOOKUP(H123,得意先マスター!$B$7:$H$103,2,FALSE),"") ->  | J123: =IFERROR(VLOOKUP(H123,得意先マスター!$B$7:$H$103,3,FALSE),"") ->  | K123: =IFERROR(VLOOKUP(H123,得意先マスター!$B$7:$H$103,4,FALSE),"") ->  | L123: =IFERROR(VLOOKUP(H123,得意先マスター!$B$7:$H$103,5,FALSE),"") ->  | M123: =IFERROR(VLOOKUP(H123,得意先マスター!$B$7:$H$103,6,FALSE),"") ->  | P123: =IFERROR(VLOOKUP(O123,商品マスター!$B$7:$D$53,2,FALSE),"") ->  | R123: =IFERROR(VLOOKUP(O123,商品マスター!$B$7:$D$53,3,FALSE),"") ->  | S123: 0 | U123: =IFERROR(VLOOKUP(T123,商品マスター!$B$7:$D$53,2,FALSE),"") ->  | W123: =IFERROR(VLOOKUP(T123,商品マスター!$B$7:$D$53,3,FALSE),"") ->  | X123: 0 | Z123: =IFERROR(VLOOKUP(Y123,商品マスター!$B$7:$D$53,2,FALSE),"") ->  | AB123: =IFERROR(VLOOKUP(Y123,商品マスター!$B$7:$D$53,3,FALSE),"") ->  | AC123: 0 | AE123: =IFERROR(VLOOKUP(AD123,商品マスター!$B$7:$D$53,2,FALSE),"") ->  | AG123: =IFERROR(VLOOKUP(AD123,商品マスター!$B$7:$D$53,3,FALSE),"") ->  | AH123: 0 | AJ123: =IFERROR(VLOOKUP(AI123,商品マスター!$B$7:$D$53,2,FALSE),"") ->  | AL123: =IFERROR(VLOOKUP(AI123,商品マスター!$B$7:$D$53,3,FALSE),"") ->  | AM123: 0 | AO123: =IFERROR(VLOOKUP(AN123,商品マスター!$B$7:$D$53,2,FALSE),"") ->  | AQ123: =IFERROR(VLOOKUP(AN123,商品マスター!$B$7:$D$53,3,FALSE),"") ->  | AR123: 0 | AT123: =IFERROR(VLOOKUP(AS123,商品マスター!$B$7:$D$53,2,FALSE),"") ->  | AV123: =IFERROR(VLOOKUP(AS123,商品マスター!$B$7:$D$53,3,FALSE),"") ->  | AW123: 0 | AY123: =IFERROR(VLOOKUP(AX123,商品マスター!$B$7:$D$53,2,FALSE),"") ->  | BA123: =IFERROR(VLOOKUP(AX123,商品マスター!$B$7:$D$53,3,FALSE),"") ->  | BB123: 0 | BD123: =IFERROR(VLOOKUP(BC123,商品マスター!$B$7:$D$53,2,FALSE),"") ->  | BF123: =IFERROR(VLOOKUP(BC123,商品マスター!$B$7:$D$53,3,FALSE),"") ->  | BG123: 0 | BI123: =IFERROR(VLOOKUP(BH123,商品マスター!$B$7:$D$53,2,FALSE),"") ->  | BK123: =IFERROR(VLOOKUP(BH123,商品マスター!$B$7:$D$53,3,FALSE),"") ->  | BL123: 0 | BM123: 0 | BN123: 0.1 | BO123: 0 | BQ123: 0
I124: =IFERROR(VLOOKUP(H124,得意先マスター!$B$7:$H$103,2,FALSE),"") ->  | J124: =IFERROR(VLOOKUP(H124,得意先マスター!$B$7:$H$103,3,FALSE),"") ->  | K124: =IFERROR(VLOOKUP(H124,得意先マスター!$B$7:$H$103,4,FALSE),"") ->  | L124: =IFERROR(VLOOKUP(H124,得意先マスター!$B$7:$H$103,5,FALSE),"") ->  | M124: =IFERROR(VLOOKUP(H124,得意先マスター!$B$7:$H$103,6,FALSE),"") ->  | P124: =IFERROR(VLOOKUP(O124,商品マスター!$B$7:$D$53,2,FALSE),"") ->  | R124: =IFERROR(VLOOKUP(O124,商品マスター!$B$7:$D$53,3,FALSE),"") ->  | S124: 0 | U124: =IFERROR(VLOOKUP(T124,商品マスター!$B$7:$D$53,2,FALSE),"") ->  | W124: =IFERROR(VLOOKUP(T124,商品マスター!$B$7:$D$53,3,FALSE),"") ->  | X124: 0 | Z124: =IFERROR(VLOOKUP(Y124,商品マスター!$B$7:$D$53,2,FALSE),"") ->  | AB124: =IFERROR(VLOOKUP(Y124,商品マスター!$B$7:$D$53,3,FALSE),"") ->  | AC124: 0 | AE124: =IFERROR(VLOOKUP(AD124,商品マスター!$B$7:$D$53,2,FALSE),"") ->  | AG124: =IFERROR(VLOOKUP(AD124,商品マスター!$B$7:$D$53,3,FALSE),"") ->  | AH124: 0 | AJ124: =IFERROR(VLOOKUP(AI124,商品マスター!$B$7:$D$53,2,FALSE),"") ->  | AL124: =IFERROR(VLOOKUP(AI124,商品マスター!$B$7:$D$53,3,FALSE),"") ->  | AM124: 0 | AO124: =IFERROR(VLOOKUP(AN124,商品マスター!$B$7:$D$53,2,FALSE),"") ->  | AQ124: =IFERROR(VLOOKUP(AN124,商品マスター!$B$7:$D$53,3,FALSE),"") ->  | AR124: 0 | AT124: =IFERROR(VLOOKUP(AS124,商品マスター!$B$7:$D$53,2,FALSE),"") ->  | AV124: =IFERROR(VLOOKUP(AS124,商品マスター!$B$7:$D$53,3,FALSE),"") ->  | AW124: 0 | AY124: =IFERROR(VLOOKUP(AX124,商品マスター!$B$7:$D$53,2,FALSE),"") ->  | BA124: =IFERROR(VLOOKUP(AX124,商品マスター!$B$7:$D$53,3,FALSE),"") ->  | BB124: 0 | BD124: =IFERROR(VLOOKUP(BC124,商品マスター!$B$7:$D$53,2,FALSE),"") ->  | BF124: =IFERROR(VLOOKUP(BC124,商品マスター!$B$7:$D$53,3,FALSE),"") ->  | BG124: 0 | BI124: =IFERROR(VLOOKUP(BH124,商品マスター!$B$7:$D$53,2,FALSE),"") ->  | BK124: =IFERROR(VLOOKUP(BH124,商品マスター!$B$7:$D$53,3,FALSE),"") ->  | BL124: 0 | BM124: 0 | BN124: 0.1 | BO124: 0 | BQ124: 0
I125: =IFERROR(VLOOKUP(H125,得意先マスター!$B$7:$H$103,2,FALSE),"") ->  | J125: =IFERROR(VLOOKUP(H125,得意先マスター!$B$7:$H$103,3,FALSE),"") ->  | K125: =IFERROR(VLOOKUP(H125,得意先マスター!$B$7:$H$103,4,FALSE),"") ->  | L125: =IFERROR(VLOOKUP(H125,得意先マスター!$B$7:$H$103,5,FALSE),"") ->  | M125: =IFERROR(VLOOKUP(H125,得意先マスター!$B$7:$H$103,6,FALSE),"") ->  | P125: =IFERROR(VLOOKUP(O125,商品マスター!$B$7:$D$53,2,FALSE),"") ->  | R125: =IFERROR(VLOOKUP(O125,商品マスター!$B$7:$D$53,3,FALSE),"") ->  | S125: 0 | U125: =IFERROR(VLOOKUP(T125,商品マスター!$B$7:$D$53,2,FALSE),"") ->  | W125: =IFERROR(VLOOKUP(T125,商品マスター!$B$7:$D$53,3,FALSE),"") ->  | X125: 0 | Z125: =IFERROR(VLOOKUP(Y125,商品マスター!$B$7:$D$53,2,FALSE),"") ->  | AB125: =IFERROR(VLOOKUP(Y125,商品マスター!$B$7:$D$53,3,FALSE),"") ->  | AC125: 0 | AE125: =IFERROR(VLOOKUP(AD125,商品マスター!$B$7:$D$53,2,FALSE),"") ->  | AG125: =IFERROR(VLOOKUP(AD125,商品マスター!$B$7:$D$53,3,FALSE),"") ->  | AH125: 0 | AJ125: =IFERROR(VLOOKUP(AI125,商品マスター!$B$7:$D$53,2,FALSE),"") ->  | AL125: =IFERROR(VLOOKUP(AI125,商品マスター!$B$7:$D$53,3,FALSE),"") ->  | AM125: 0 | AO125: =IFERROR(VLOOKUP(AN125,商品マスター!$B$7:$D$53,2,FALSE),"") ->  | AQ125: =IFERROR(VLOOKUP(AN125,商品マスター!$B$7:$D$53,3,FALSE),"") ->  | AR125: 0 | AT125: =IFERROR(VLOOKUP(AS125,商品マスター!$B$7:$D$53,2,FALSE),"") ->  | AV125: =IFERROR(VLOOKUP(AS125,商品マスター!$B$7:$D$53,3,FALSE),"") ->  | AW125: 0 | AY125: =IFERROR(VLOOKUP(AX125,商品マスター!$B$7:$D$53,2,FALSE),"") ->  | BA125: =IFERROR(VLOOKUP(AX125,商品マスター!$B$7:$D$53,3,FALSE),"") ->  | BB125: 0 | BD125: =IFERROR(VLOOKUP(BC125,商品マスター!$B$7:$D$53,2,FALSE),"") ->  | BF125: =IFERROR(VLOOKUP(BC125,商品マスター!$B$7:$D$53,3,FALSE),"") ->  | BG125: 0 | BI125: =IFERROR(VLOOKUP(BH125,商品マスター!$B$7:$D$53,2,FALSE),"") ->  | BK125: =IFERROR(VLOOKUP(BH125,商品マスター!$B$7:$D$53,3,FALSE),"") ->  | BL125: 0 | BM125: 0 | BN125: 0.1 | BO125: 0 | BQ125: 0
I126: =IFERROR(VLOOKUP(H126,得意先マスター!$B$7:$H$103,2,FALSE),"") ->  | J126: =IFERROR(VLOOKUP(H126,得意先マスター!$B$7:$H$103,3,FALSE),"") ->  | K126: =IFERROR(VLOOKUP(H126,得意先マスター!$B$7:$H$103,4,FALSE),"") ->  | L126: =IFERROR(VLOOKUP(H126,得意先マスター!$B$7:$H$103,5,FALSE),"") ->  | M126: =IFERROR(VLOOKUP(H126,得意先マスター!$B$7:$H$103,6,FALSE),"") ->  | P126: =IFERROR(VLOOKUP(O126,商品マスター!$B$7:$D$53,2,FALSE),"") ->  | R126: =IFERROR(VLOOKUP(O126,商品マスター!$B$7:$D$53,3,FALSE),"") ->  | S126: 0 | U126: =IFERROR(VLOOKUP(T126,商品マスター!$B$7:$D$53,2,FALSE),"") ->  | W126: =IFERROR(VLOOKUP(T126,商品マスター!$B$7:$D$53,3,FALSE),"") ->  | X126: 0 | Z126: =IFERROR(VLOOKUP(Y126,商品マスター!$B$7:$D$53,2,FALSE),"") ->  | AB126: =IFERROR(VLOOKUP(Y126,商品マスター!$B$7:$D$53,3,FALSE),"") ->  | AC126: 0 | AE126: =IFERROR(VLOOKUP(AD126,商品マスター!$B$7:$D$53,2,FALSE),"") ->  | AG126: =IFERROR(VLOOKUP(AD126,商品マスター!$B$7:$D$53,3,FALSE),"") ->  | AH126: 0 | AJ126: =IFERROR(VLOOKUP(AI126,商品マスター!$B$7:$D$53,2,FALSE),"") ->  | AL126: =IFERROR(VLOOKUP(AI126,商品マスター!$B$7:$D$53,3,FALSE),"") ->  | AM126: 0 | AO126: =IFERROR(VLOOKUP(AN126,商品マスター!$B$7:$D$53,2,FALSE),"") ->  | AQ126: =IFERROR(VLOOKUP(AN126,商品マスター!$B$7:$D$53,3,FALSE),"") ->  | AR126: 0 | AT126: =IFERROR(VLOOKUP(AS126,商品マスター!$B$7:$D$53,2,FALSE),"") ->  | AV126: =IFERROR(VLOOKUP(AS126,商品マスター!$B$7:$D$53,3,FALSE),"") ->  | AW126: 0 | AY126: =IFERROR(VLOOKUP(AX126,商品マスター!$B$7:$D$53,2,FALSE),"") ->  | BA126: =IFERROR(VLOOKUP(AX126,商品マスター!$B$7:$D$53,3,FALSE),"") ->  | BB126: 0 | BD126: =IFERROR(VLOOKUP(BC126,商品マスター!$B$7:$D$53,2,FALSE),"") ->  | BF126: =IFERROR(VLOOKUP(BC126,商品マスター!$B$7:$D$53,3,FALSE),"") ->  | BG126: 0 | BI126: =IFERROR(VLOOKUP(BH126,商品マスター!$B$7:$D$53,2,FALSE),"") ->  | BK126: =IFERROR(VLOOKUP(BH126,商品マスター!$B$7:$D$53,3,FALSE),"") ->  | BL126: 0 | BM126: 0 | BN126: 0.1 | BO126: 0 | BQ126: 0
I127: =IFERROR(VLOOKUP(H127,得意先マスター!$B$7:$H$103,2,FALSE),"") ->  | J127: =IFERROR(VLOOKUP(H127,得意先マスター!$B$7:$H$103,3,FALSE),"") ->  | K127: =IFERROR(VLOOKUP(H127,得意先マスター!$B$7:$H$103,4,FALSE),"") ->  | L127: =IFERROR(VLOOKUP(H127,得意先マスター!$B$7:$H$103,5,FALSE),"") ->  | M127: =IFERROR(VLOOKUP(H127,得意先マスター!$B$7:$H$103,6,FALSE),"") ->  | P127: =IFERROR(VLOOKUP(O127,商品マスター!$B$7:$D$53,2,FALSE),"") ->  | R127: =IFERROR(VLOOKUP(O127,商品マスター!$B$7:$D$53,3,FALSE),"") ->  | S127: 0 | U127: =IFERROR(VLOOKUP(T127,商品マスター!$B$7:$D$53,2,FALSE),"") ->  | W127: =IFERROR(VLOOKUP(T127,商品マスター!$B$7:$D$53,3,FALSE),"") ->  | X127: 0 | Z127: =IFERROR(VLOOKUP(Y127,商品マスター!$B$7:$D$53,2,FALSE),"") ->  | AB127: =IFERROR(VLOOKUP(Y127,商品マスター!$B$7:$D$53,3,FALSE),"") ->  | AC127: 0 | AE127: =IFERROR(VLOOKUP(AD127,商品マスター!$B$7:$D$53,2,FALSE),"") ->  | AG127: =IFERROR(VLOOKUP(AD127,商品マスター!$B$7:$D$53,3,FALSE),"") ->  | AH127: 0 | AJ127: =IFERROR(VLOOKUP(AI127,商品マスター!$B$7:$D$53,2,FALSE),"") ->  | AL127: =IFERROR(VLOOKUP(AI127,商品マスター!$B$7:$D$53,3,FALSE),"") ->  | AM127: 0 | AO127: =IFERROR(VLOOKUP(AN127,商品マスター!$B$7:$D$53,2,FALSE),"") ->  | AQ127: =IFERROR(VLOOKUP(AN127,商品マスター!$B$7:$D$53,3,FALSE),"") ->  | AR127: 0 | AT127: =IFERROR(VLOOKUP(AS127,商品マスター!$B$7:$D$53,2,FALSE),"") ->  | AV127: =IFERROR(VLOOKUP(AS127,商品マスター!$B$7:$D$53,3,FALSE),"") ->  | AW127: 0 | AY127: =IFERROR(VLOOKUP(AX127,商品マスター!$B$7:$D$53,2,FALSE),"") ->  | BA127: =IFERROR(VLOOKUP(AX127,商品マスター!$B$7:$D$53,3,FALSE),"") ->  | BB127: 0 | BD127: =IFERROR(VLOOKUP(BC127,商品マスター!$B$7:$D$53,2,FALSE),"") ->  | BF127: =IFERROR(VLOOKUP(BC127,商品マスター!$B$7:$D$53,3,FALSE),"") ->  | BG127: 0 | BI127: =IFERROR(VLOOKUP(BH127,商品マスター!$B$7:$D$53,2,FALSE),"") ->  | BK127: =IFERROR(VLOOKUP(BH127,商品マスター!$B$7:$D$53,3,FALSE),"") ->  | BL127: 0 | BM127: 0 | BN127: 0.1 | BO127: 0 | BQ127: 0
I128: =IFERROR(VLOOKUP(H128,得意先マスター!$B$7:$H$103,2,FALSE),"") ->  | J128: =IFERROR(VLOOKUP(H128,得意先マスター!$B$7:$H$103,3,FALSE),"") ->  | K128: =IFERROR(VLOOKUP(H128,得意先マスター!$B$7:$H$103,4,FALSE),"") ->  | L128: =IFERROR(VLOOKUP(H128,得意先マスター!$B$7:$H$103,5,FALSE),"") ->  | M128: =IFERROR(VLOOKUP(H128,得意先マスター!$B$7:$H$103,6,FALSE),"") ->  | P128: =IFERROR(VLOOKUP(O128,商品マスター!$B$7:$D$53,2,FALSE),"") ->  | R128: =IFERROR(VLOOKUP(O128,商品マスター!$B$7:$D$53,3,FALSE),"") ->  | S128: 0 | U128: =IFERROR(VLOOKUP(T128,商品マスター!$B$7:$D$53,2,FALSE),"") ->  | W128: =IFERROR(VLOOKUP(T128,商品マスター!$B$7:$D$53,3,FALSE),"") ->  | X128: 0 | Z128: =IFERROR(VLOOKUP(Y128,商品マスター!$B$7:$D$53,2,FALSE),"") ->  | AB128: =IFERROR(VLOOKUP(Y128,商品マスター!$B$7:$D$53,3,FALSE),"") ->  | AC128: 0 | AE128: =IFERROR(VLOOKUP(AD128,商品マスター!$B$7:$D$53,2,FALSE),"") ->  | AG128: =IFERROR(VLOOKUP(AD128,商品マスター!$B$7:$D$53,3,FALSE),"") ->  | AH128: 0 | AJ128: =IFERROR(VLOOKUP(AI128,商品マスター!$B$7:$D$53,2,FALSE),"") ->  | AL128: =IFERROR(VLOOKUP(AI128,商品マスター!$B$7:$D$53,3,FALSE),"") ->  | AM128: 0 | AO128: =IFERROR(VLOOKUP(AN128,商品マスター!$B$7:$D$53,2,FALSE),"") ->  | AQ128: =IFERROR(VLOOKUP(AN128,商品マスター!$B$7:$D$53,3,FALSE),"") ->  | AR128: 0 | AT128: =IFERROR(VLOOKUP(AS128,商品マスター!$B$7:$D$53,2,FALSE),"") ->  | AV128: =IFERROR(VLOOKUP(AS128,商品マスター!$B$7:$D$53,3,FALSE),"") ->  | AW128: 0 | AY128: =IFERROR(VLOOKUP(AX128,商品マスター!$B$7:$D$53,2,FALSE),"") ->  | BA128: =IFERROR(VLOOKUP(AX128,商品マスター!$B$7:$D$53,3,FALSE),"") ->  | BB128: 0 | BD128: =IFERROR(VLOOKUP(BC128,商品マスター!$B$7:$D$53,2,FALSE),"") ->  | BF128: =IFERROR(VLOOKUP(BC128,商品マスター!$B$7:$D$53,3,FALSE),"") ->  | BG128: 0 | BI128: =IFERROR(VLOOKUP(BH128,商品マスター!$B$7:$D$53,2,FALSE),"") ->  | BK128: =IFERROR(VLOOKUP(BH128,商品マスター!$B$7:$D$53,3,FALSE),"") ->  | BL128: 0 | BM128: 0 | BN128: 0.1 | BO128: 0 | BQ128: 0
I129: =IFERROR(VLOOKUP(H129,得意先マスター!$B$7:$H$103,2,FALSE),"") ->  | J129: =IFERROR(VLOOKUP(H129,得意先マスター!$B$7:$H$103,3,FALSE),"") ->  | K129: =IFERROR(VLOOKUP(H129,得意先マスター!$B$7:$H$103,4,FALSE),"") ->  | L129: =IFERROR(VLOOKUP(H129,得意先マスター!$B$7:$H$103,5,FALSE),"") ->  | M129: =IFERROR(VLOOKUP(H129,得意先マスター!$B$7:$H$103,6,FALSE),"") ->  | P129: =IFERROR(VLOOKUP(O129,商品マスター!$B$7:$D$53,2,FALSE),"") ->  | R129: =IFERROR(VLOOKUP(O129,商品マスター!$B$7:$D$53,3,FALSE),"") ->  | S129: 0 | U129: =IFERROR(VLOOKUP(T129,商品マスター!$B$7:$D$53,2,FALSE),"") ->  | W129: =IFERROR(VLOOKUP(T129,商品マスター!$B$7:$D$53,3,FALSE),"") ->  | X129: 0 | Z129: =IFERROR(VLOOKUP(Y129,商品マスター!$B$7:$D$53,2,FALSE),"") ->  | AB129: =IFERROR(VLOOKUP(Y129,商品マスター!$B$7:$D$53,3,FALSE),"") ->  | AC129: 0 | AE129: =IFERROR(VLOOKUP(AD129,商品マスター!$B$7:$D$53,2,FALSE),"") ->  | AG129: =IFERROR(VLOOKUP(AD129,商品マスター!$B$7:$D$53,3,FALSE),"") ->  | AH129: 0 | AJ129: =IFERROR(VLOOKUP(AI129,商品マスター!$B$7:$D$53,2,FALSE),"") ->  | AL129: =IFERROR(VLOOKUP(AI129,商品マスター!$B$7:$D$53,3,FALSE),"") ->  | AM129: 0 | AO129: =IFERROR(VLOOKUP(AN129,商品マスター!$B$7:$D$53,2,FALSE),"") ->  | AQ129: =IFERROR(VLOOKUP(AN129,商品マスター!$B$7:$D$53,3,FALSE),"") ->  | AR129: 0 | AT129: =IFERROR(VLOOKUP(AS129,商品マスター!$B$7:$D$53,2,FALSE),"") ->  | AV129: =IFERROR(VLOOKUP(AS129,商品マスター!$B$7:$D$53,3,FALSE),"") ->  | AW129: 0 | AY129: =IFERROR(VLOOKUP(AX129,商品マスター!$B$7:$D$53,2,FALSE),"") ->  | BA129: =IFERROR(VLOOKUP(AX129,商品マスター!$B$7:$D$53,3,FALSE),"") ->  | BB129: 0 | BD129: =IFERROR(VLOOKUP(BC129,商品マスター!$B$7:$D$53,2,FALSE),"") ->  | BF129: =IFERROR(VLOOKUP(BC129,商品マスター!$B$7:$D$53,3,FALSE),"") ->  | BG129: 0 | BI129: =IFERROR(VLOOKUP(BH129,商品マスター!$B$7:$D$53,2,FALSE),"") ->  | BK129: =IFERROR(VLOOKUP(BH129,商品マスター!$B$7:$D$53,3,FALSE),"") ->  | BL129: 0 | BM129: 0 | BN129: 0.1 | BO129: 0 | BQ129: 0
I130: =IFERROR(VLOOKUP(H130,得意先マスター!$B$7:$H$103,2,FALSE),"") ->  | J130: =IFERROR(VLOOKUP(H130,得意先マスター!$B$7:$H$103,3,FALSE),"") ->  | K130: =IFERROR(VLOOKUP(H130,得意先マスター!$B$7:$H$103,4,FALSE),"") ->  | L130: =IFERROR(VLOOKUP(H130,得意先マスター!$B$7:$H$103,5,FALSE),"") ->  | M130: =IFERROR(VLOOKUP(H130,得意先マスター!$B$7:$H$103,6,FALSE),"") ->  | P130: =IFERROR(VLOOKUP(O130,商品マスター!$B$7:$D$53,2,FALSE),"") ->  | R130: =IFERROR(VLOOKUP(O130,商品マスター!$B$7:$D$53,3,FALSE),"") ->  | S130: 0 | U130: =IFERROR(VLOOKUP(T130,商品マスター!$B$7:$D$53,2,FALSE),"") ->  | W130: =IFERROR(VLOOKUP(T130,商品マスター!$B$7:$D$53,3,FALSE),"") ->  | X130: 0 | Z130: =IFERROR(VLOOKUP(Y130,商品マスター!$B$7:$D$53,2,FALSE),"") ->  | AB130: =IFERROR(VLOOKUP(Y130,商品マスター!$B$7:$D$53,3,FALSE),"") ->  | AC130: 0 | AE130: =IFERROR(VLOOKUP(AD130,商品マスター!$B$7:$D$53,2,FALSE),"") ->  | AG130: =IFERROR(VLOOKUP(AD130,商品マスター!$B$7:$D$53,3,FALSE),"") ->  | AH130: 0 | AJ130: =IFERROR(VLOOKUP(AI130,商品マスター!$B$7:$D$53,2,FALSE),"") ->  | AL130: =IFERROR(VLOOKUP(AI130,商品マスター!$B$7:$D$53,3,FALSE),"") ->  | AM130: 0 | AO130: =IFERROR(VLOOKUP(AN130,商品マスター!$B$7:$D$53,2,FALSE),"") ->  | AQ130: =IFERROR(VLOOKUP(AN130,商品マスター!$B$7:$D$53,3,FALSE),"") ->  | AR130: 0 | AT130: =IFERROR(VLOOKUP(AS130,商品マスター!$B$7:$D$53,2,FALSE),"") ->  | AV130: =IFERROR(VLOOKUP(AS130,商品マスター!$B$7:$D$53,3,FALSE),"") ->  | AW130: 0 | AY130: =IFERROR(VLOOKUP(AX130,商品マスター!$B$7:$D$53,2,FALSE),"") ->  | BA130: =IFERROR(VLOOKUP(AX130,商品マスター!$B$7:$D$53,3,FALSE),"") ->  | BB130: 0 | BD130: =IFERROR(VLOOKUP(BC130,商品マスター!$B$7:$D$53,2,FALSE),"") ->  | BF130: =IFERROR(VLOOKUP(BC130,商品マスター!$B$7:$D$53,3,FALSE),"") ->  | BG130: 0 | BI130: =IFERROR(VLOOKUP(BH130,商品マスター!$B$7:$D$53,2,FALSE),"") ->  | BK130: =IFERROR(VLOOKUP(BH130,商品マスター!$B$7:$D$53,3,FALSE),"") ->  | BL130: 0 | BM130: 0 | BN130: 0.1 | BO130: 0 | BQ130: 0
I131: =IFERROR(VLOOKUP(H131,得意先マスター!$B$7:$H$103,2,FALSE),"") ->  | J131: =IFERROR(VLOOKUP(H131,得意先マスター!$B$7:$H$103,3,FALSE),"") ->  | K131: =IFERROR(VLOOKUP(H131,得意先マスター!$B$7:$H$103,4,FALSE),"") ->  | L131: =IFERROR(VLOOKUP(H131,得意先マスター!$B$7:$H$103,5,FALSE),"") ->  | M131: =IFERROR(VLOOKUP(H131,得意先マスター!$B$7:$H$103,6,FALSE),"") ->  | P131: =IFERROR(VLOOKUP(O131,商品マスター!$B$7:$D$53,2,FALSE),"") ->  | R131: =IFERROR(VLOOKUP(O131,商品マスター!$B$7:$D$53,3,FALSE),"") ->  | S131: 0 | U131: =IFERROR(VLOOKUP(T131,商品マスター!$B$7:$D$53,2,FALSE),"") ->  | W131: =IFERROR(VLOOKUP(T131,商品マスター!$B$7:$D$53,3,FALSE),"") ->  | X131: 0 | Z131: =IFERROR(VLOOKUP(Y131,商品マスター!$B$7:$D$53,2,FALSE),"") ->  | AB131: =IFERROR(VLOOKUP(Y131,商品マスター!$B$7:$D$53,3,FALSE),"") ->  | AC131: 0 | AE131: =IFERROR(VLOOKUP(AD131,商品マスター!$B$7:$D$53,2,FALSE),"") ->  | AG131: =IFERROR(VLOOKUP(AD131,商品マスター!$B$7:$D$53,3,FALSE),"") ->  | AH131: 0 | AJ131: =IFERROR(VLOOKUP(AI131,商品マスター!$B$7:$D$53,2,FALSE),"") ->  | AL131: =IFERROR(VLOOKUP(AI131,商品マスター!$B$7:$D$53,3,FALSE),"") ->  | AM131: 0 | AO131: =IFERROR(VLOOKUP(AN131,商品マスター!$B$7:$D$53,2,FALSE),"") ->  | AQ131: =IFERROR(VLOOKUP(AN131,商品マスター!$B$7:$D$53,3,FALSE),"") ->  | AR131: 0 | AT131: =IFERROR(VLOOKUP(AS131,商品マスター!$B$7:$D$53,2,FALSE),"") ->  | AV131: =IFERROR(VLOOKUP(AS131,商品マスター!$B$7:$D$53,3,FALSE),"") ->  | AW131: 0 | AY131: =IFERROR(VLOOKUP(AX131,商品マスター!$B$7:$D$53,2,FALSE),"") ->  | BA131: =IFERROR(VLOOKUP(AX131,商品マスター!$B$7:$D$53,3,FALSE),"") ->  | BB131: 0 | BD131: =IFERROR(VLOOKUP(BC131,商品マスター!$B$7:$D$53,2,FALSE),"") ->  | BF131: =IFERROR(VLOOKUP(BC131,商品マスター!$B$7:$D$53,3,FALSE),"") ->  | BG131: 0 | BI131: =IFERROR(VLOOKUP(BH131,商品マスター!$B$7:$D$53,2,FALSE),"") ->  | BK131: =IFERROR(VLOOKUP(BH131,商品マスター!$B$7:$D$53,3,FALSE),"") ->  | BL131: 0 | BM131: 0 | BN131: 0.1 | BO131: 0 | BQ131: 0
I132: =IFERROR(VLOOKUP(H132,得意先マスター!$B$7:$H$103,2,FALSE),"") ->  | J132: =IFERROR(VLOOKUP(H132,得意先マスター!$B$7:$H$103,3,FALSE),"") ->  | K132: =IFERROR(VLOOKUP(H132,得意先マスター!$B$7:$H$103,4,FALSE),"") ->  | L132: =IFERROR(VLOOKUP(H132,得意先マスター!$B$7:$H$103,5,FALSE),"") ->  | M132: =IFERROR(VLOOKUP(H132,得意先マスター!$B$7:$H$103,6,FALSE),"") ->  | P132: =IFERROR(VLOOKUP(O132,商品マスター!$B$7:$D$53,2,FALSE),"") ->  | R132: =IFERROR(VLOOKUP(O132,商品マスター!$B$7:$D$53,3,FALSE),"") ->  | S132: 0 | U132: =IFERROR(VLOOKUP(T132,商品マスター!$B$7:$D$53,2,FALSE),"") ->  | W132: =IFERROR(VLOOKUP(T132,商品マスター!$B$7:$D$53,3,FALSE),"") ->  | X132: 0 | Z132: =IFERROR(VLOOKUP(Y132,商品マスター!$B$7:$D$53,2,FALSE),"") ->  | AB132: =IFERROR(VLOOKUP(Y132,商品マスター!$B$7:$D$53,3,FALSE),"") ->  | AC132: 0 | AE132: =IFERROR(VLOOKUP(AD132,商品マスター!$B$7:$D$53,2,FALSE),"") ->  | AG132: =IFERROR(VLOOKUP(AD132,商品マスター!$B$7:$D$53,3,FALSE),"") ->  | AH132: 0 | AJ132: =IFERROR(VLOOKUP(AI132,商品マスター!$B$7:$D$53,2,FALSE),"") ->  | AL132: =IFERROR(VLOOKUP(AI132,商品マスター!$B$7:$D$53,3,FALSE),"") ->  | AM132: 0 | AO132: =IFERROR(VLOOKUP(AN132,商品マスター!$B$7:$D$53,2,FALSE),"") ->  | AQ132: =IFERROR(VLOOKUP(AN132,商品マスター!$B$7:$D$53,3,FALSE),"") ->  | AR132: 0 | AT132: =IFERROR(VLOOKUP(AS132,商品マスター!$B$7:$D$53,2,FALSE),"") ->  | AV132: =IFERROR(VLOOKUP(AS132,商品マスター!$B$7:$D$53,3,FALSE),"") ->  | AW132: 0 | AY132: =IFERROR(VLOOKUP(AX132,商品マスター!$B$7:$D$53,2,FALSE),"") ->  | BA132: =IFERROR(VLOOKUP(AX132,商品マスター!$B$7:$D$53,3,FALSE),"") ->  | BB132: 0 | BD132: =IFERROR(VLOOKUP(BC132,商品マスター!$B$7:$D$53,2,FALSE),"") ->  | BF132: =IFERROR(VLOOKUP(BC132,商品マスター!$B$7:$D$53,3,FALSE),"") ->  | BG132: 0 | BI132: =IFERROR(VLOOKUP(BH132,商品マスター!$B$7:$D$53,2,FALSE),"") ->  | BK132: =IFERROR(VLOOKUP(BH132,商品マスター!$B$7:$D$53,3,FALSE),"") ->  | BL132: 0 | BM132: 0 | BN132: 0.1 | BO132: 0 | BQ132: 0
I133: =IFERROR(VLOOKUP(H133,得意先マスター!$B$7:$H$103,2,FALSE),"") ->  | J133: =IFERROR(VLOOKUP(H133,得意先マスター!$B$7:$H$103,3,FALSE),"") ->  | K133: =IFERROR(VLOOKUP(H133,得意先マスター!$B$7:$H$103,4,FALSE),"") ->  | L133: =IFERROR(VLOOKUP(H133,得意先マスター!$B$7:$H$103,5,FALSE),"") ->  | M133: =IFERROR(VLOOKUP(H133,得意先マスター!$B$7:$H$103,6,FALSE),"") ->  | P133: =IFERROR(VLOOKUP(O133,商品マスター!$B$7:$D$53,2,FALSE),"") ->  | R133: =IFERROR(VLOOKUP(O133,商品マスター!$B$7:$D$53,3,FALSE),"") ->  | S133: 0 | U133: =IFERROR(VLOOKUP(T133,商品マスター!$B$7:$D$53,2,FALSE),"") ->  | W133: =IFERROR(VLOOKUP(T133,商品マスター!$B$7:$D$53,3,FALSE),"") ->  | X133: 0 | Z133: =IFERROR(VLOOKUP(Y133,商品マスター!$B$7:$D$53,2,FALSE),"") ->  | AB133: =IFERROR(VLOOKUP(Y133,商品マスター!$B$7:$D$53,3,FALSE),"") ->  | AC133: 0 | AE133: =IFERROR(VLOOKUP(AD133,商品マスター!$B$7:$D$53,2,FALSE),"") ->  | AG133: =IFERROR(VLOOKUP(AD133,商品マスター!$B$7:$D$53,3,FALSE),"") ->  | AH133: 0 | AJ133: =IFERROR(VLOOKUP(AI133,商品マスター!$B$7:$D$53,2,FALSE),"") ->  | AL133: =IFERROR(VLOOKUP(AI133,商品マスター!$B$7:$D$53,3,FALSE),"") ->  | AM133: 0 | AO133: =IFERROR(VLOOKUP(AN133,商品マスター!$B$7:$D$53,2,FALSE),"") ->  | AQ133: =IFERROR(VLOOKUP(AN133,商品マスター!$B$7:$D$53,3,FALSE),"") ->  | AR133: 0 | AT133: =IFERROR(VLOOKUP(AS133,商品マスター!$B$7:$D$53,2,FALSE),"") ->  | AV133: =IFERROR(VLOOKUP(AS133,商品マスター!$B$7:$D$53,3,FALSE),"") ->  | AW133: 0 | AY133: =IFERROR(VLOOKUP(AX133,商品マスター!$B$7:$D$53,2,FALSE),"") ->  | BA133: =IFERROR(VLOOKUP(AX133,商品マスター!$B$7:$D$53,3,FALSE),"") ->  | BB133: 0 | BD133: =IFERROR(VLOOKUP(BC133,商品マスター!$B$7:$D$53,2,FALSE),"") ->  | BF133: =IFERROR(VLOOKUP(BC133,商品マスター!$B$7:$D$53,3,FALSE),"") ->  | BG133: 0 | BI133: =IFERROR(VLOOKUP(BH133,商品マスター!$B$7:$D$53,2,FALSE),"") ->  | BK133: =IFERROR(VLOOKUP(BH133,商品マスター!$B$7:$D$53,3,FALSE),"") ->  | BL133: 0 | BM133: 0 | BN133: 0.1 | BO133: 0 | BQ133: 0
A134: =IF(ISBLANK(C134),"",MONTH(C134)) ->  | I134: =IFERROR(VLOOKUP(H134,得意先マスター!$B$7:$H$103,2,FALSE),"") ->  | J134: =IFERROR(VLOOKUP(H134,得意先マスター!$B$7:$H$103,3,FALSE),"") ->  | K134: =IFERROR(VLOOKUP(H134,得意先マスター!$B$7:$H$103,4,FALSE),"") ->  | L134: =IFERROR(VLOOKUP(H134,得意先マスター!$B$7:$H$103,5,FALSE),"") ->  | M134: =IFERROR(VLOOKUP(H134,得意先マスター!$B$7:$H$103,6,FALSE),"") ->  | P134: =IFERROR(VLOOKUP(O134,商品マスター!$B$7:$D$53,2,FALSE),"") ->  | R134: =IFERROR(VLOOKUP(O134,商品マスター!$B$7:$D$53,3,FALSE),"") ->  | S134: 0 | U134: =IFERROR(VLOOKUP(T134,商品マスター!$B$7:$D$53,2,FALSE),"") ->  | W134: =IFERROR(VLOOKUP(T134,商品マスター!$B$7:$D$53,3,FALSE),"") ->  | X134: 0 | Z134: =IFERROR(VLOOKUP(Y134,商品マスター!$B$7:$D$53,2,FALSE),"") ->  | AB134: =IFERROR(VLOOKUP(Y134,商品マスター!$B$7:$D$53,3,FALSE),"") ->  | AC134: 0 | AE134: =IFERROR(VLOOKUP(AD134,商品マスター!$B$7:$D$53,2,FALSE),"") ->  | AG134: =IFERROR(VLOOKUP(AD134,商品マスター!$B$7:$D$53,3,FALSE),"") ->  | AH134: 0 | AJ134: =IFERROR(VLOOKUP(AI134,商品マスター!$B$7:$D$53,2,FALSE),"") ->  | AL134: =IFERROR(VLOOKUP(AI134,商品マスター!$B$7:$D$53,3,FALSE),"") ->  | AM134: 0 | AO134: =IFERROR(VLOOKUP(AN134,商品マスター!$B$7:$D$53,2,FALSE),"") ->  | AQ134: =IFERROR(VLOOKUP(AN134,商品マスター!$B$7:$D$53,3,FALSE),"") ->  | AR134: 0 | AT134: =IFERROR(VLOOKUP(AS134,商品マスター!$B$7:$D$53,2,FALSE),"") ->  | AV134: =IFERROR(VLOOKUP(AS134,商品マスター!$B$7:$D$53,3,FALSE),"") ->  | AW134: 0 | AY134: =IFERROR(VLOOKUP(AX134,商品マスター!$B$7:$D$53,2,FALSE),"") ->  | BA134: =IFERROR(VLOOKUP(AX134,商品マスター!$B$7:$D$53,3,FALSE),"") ->  | BB134: 0 | BD134: =IFERROR(VLOOKUP(BC134,商品マスター!$B$7:$D$53,2,FALSE),"") ->  | BF134: =IFERROR(VLOOKUP(BC134,商品マスター!$B$7:$D$53,3,FALSE),"") ->  | BG134: 0 | BI134: =IFERROR(VLOOKUP(BH134,商品マスター!$B$7:$D$53,2,FALSE),"") ->  | BK134: =IFERROR(VLOOKUP(BH134,商品マスター!$B$7:$D$53,3,FALSE),"") ->  | BL134: 0 | BM134: 0 | BN134: 0.1 | BO134: 0 | BQ134: =BM134+BO134-BP134 -> 0
I135: =IFERROR(VLOOKUP(H135,得意先マスター!$B$7:$H$103,2,FALSE),"") ->  | J135: =IFERROR(VLOOKUP(H135,得意先マスター!$B$7:$H$103,3,FALSE),"") ->  | K135: =IFERROR(VLOOKUP(H135,得意先マスター!$B$7:$H$103,4,FALSE),"") ->  | L135: =IFERROR(VLOOKUP(H135,得意先マスター!$B$7:$H$103,5,FALSE),"") ->  | M135: =IFERROR(VLOOKUP(H135,得意先マスター!$B$7:$H$103,6,FALSE),"") ->  | P135: =IFERROR(VLOOKUP(O135,商品マスター!$B$7:$D$53,2,FALSE),"") ->  | R135: =IFERROR(VLOOKUP(O135,商品マスター!$B$7:$D$53,3,FALSE),"") ->  | S135: =IFERROR(Q135*R135,0) -> 0 | U135: =IFERROR(VLOOKUP(T135,商品マスター!$B$7:$D$53,2,FALSE),"") ->  | W135: =IFERROR(VLOOKUP(T135,商品マスター!$B$7:$D$53,3,FALSE),"") ->  | X135: =IFERROR(V135*W135,0) -> 0 | Z135: =IFERROR(VLOOKUP(Y135,商品マスター!$B$7:$D$53,2,FALSE),"") ->  | AB135: =IFERROR(VLOOKUP(Y135,商品マスター!$B$7:$D$53,3,FALSE),"") ->  | AC135: =IFERROR(AA135*AB135,0) -> 0 | AE135: =IFERROR(VLOOKUP(AD135,商品マスター!$B$7:$D$53,2,FALSE),"") ->  | AG135: =IFERROR(VLOOKUP(AD135,商品マスター!$B$7:$D$53,3,FALSE),"") ->  | AH135: =IFERROR(AF135*AG135,0) -> 0 | AJ135: =IFERROR(VLOOKUP(AI135,商品マスター!$B$7:$D$53,2,FALSE),"") ->  | AL135: =IFERROR(VLOOKUP(AI135,商品マスター!$B$7:$D$53,3,FALSE),"") ->  | AM135: =IFERROR(AK135*AL135,0) -> 0 | AO135: =IFERROR(VLOOKUP(AN135,商品マスター!$B$7:$D$53,2,FALSE),"") ->  | AQ135: =IFERROR(VLOOKUP(AN135,商品マスター!$B$7:$D$53,3,FALSE),"") ->  | AR135: =IFERROR(AP135*AQ135,0) -> 0 | AT135: =IFERROR(VLOOKUP(AS135,商品マスター!$B$7:$D$53,2,FALSE),"") ->  | AV135: =IFERROR(VLOOKUP(AS135,商品マスター!$B$7:$D$53,3,FALSE),"") ->  | AW135: =IFERROR(AU135*AV135,0) -> 0 | AY135: =IFERROR(VLOOKUP(AX135,商品マスター!$B$7:$D$53,2,FALSE),"") ->  | BA135: =IFERROR(VLOOKUP(AX135,商品マスター!$B$7:$D$53,3,FALSE),"") ->  | BB135: =IFERROR(AZ135*BA135,0) -> 0 | BD135: =IFERROR(VLOOKUP(BC135,商品マスター!$B$7:$D$53,2,FALSE),"") ->  | BF135: =IFERROR(VLOOKUP(BC135,商品マスター!$B$7:$D$53,3,FALSE),"") ->  | BG135: =IFERROR(BE135*BF135,0) -> 0 | BI135: =IFERROR(VLOOKUP(BH135,商品マスター!$B$7:$D$53,2,FALSE),"") ->  | BK135: =IFERROR(VLOOKUP(BH135,商品マスター!$B$7:$D$53,3,FALSE),"") ->  | BL135: =IFERROR(BJ135*BK135,0) -> 0 | BM135: =IFERROR(S135+X135+AC135+AH135+AM135+AR135+AW135+BB135+BG135+BL135, "") -> 0 | BN135: 0.1 | BO135: =IFERROR(BM135*BN135, "") -> 0 | BQ135: 0
I136: =IFERROR(VLOOKUP(H136,得意先マスター!$B$7:$H$103,2,FALSE),"") ->  | J136: =IFERROR(VLOOKUP(H136,得意先マスター!$B$7:$H$103,3,FALSE),"") ->  | K136: =IFERROR(VLOOKUP(H136,得意先マスター!$B$7:$H$103,4,FALSE),"") ->  | L136: =IFERROR(VLOOKUP(H136,得意先マスター!$B$7:$H$103,5,FALSE),"") ->  | M136: =IFERROR(VLOOKUP(H136,得意先マスター!$B$7:$H$103,6,FALSE),"") ->  | P136: =IFERROR(VLOOKUP(O136,商品マスター!$B$7:$D$53,2,FALSE),"") ->  | R136: =IFERROR(VLOOKUP(O136,商品マスター!$B$7:$D$53,3,FALSE),"") ->  | S136: 0 | U136: =IFERROR(VLOOKUP(T136,商品マスター!$B$7:$D$53,2,FALSE),"") ->  | W136: =IFERROR(VLOOKUP(T136,商品マスター!$B$7:$D$53,3,FALSE),"") ->  | X136: 0 | Z136: =IFERROR(VLOOKUP(Y136,商品マスター!$B$7:$D$53,2,FALSE),"") ->  | AB136: =IFERROR(VLOOKUP(Y136,商品マスター!$B$7:$D$53,3,FALSE),"") ->  | AC136: 0 | AE136: =IFERROR(VLOOKUP(AD136,商品マスター!$B$7:$D$53,2,FALSE),"") ->  | AG136: =IFERROR(VLOOKUP(AD136,商品マスター!$B$7:$D$53,3,FALSE),"") ->  | AH136: 0 | AJ136: =IFERROR(VLOOKUP(AI136,商品マスター!$B$7:$D$53,2,FALSE),"") ->  | AL136: =IFERROR(VLOOKUP(AI136,商品マスター!$B$7:$D$53,3,FALSE),"") ->  | AM136: 0 | AO136: =IFERROR(VLOOKUP(AN136,商品マスター!$B$7:$D$53,2,FALSE),"") ->  | AQ136: =IFERROR(VLOOKUP(AN136,商品マスター!$B$7:$D$53,3,FALSE),"") ->  | AR136: 0 | AT136: =IFERROR(VLOOKUP(AS136,商品マスター!$B$7:$D$53,2,FALSE),"") ->  | AV136: =IFERROR(VLOOKUP(AS136,商品マスター!$B$7:$D$53,3,FALSE),"") ->  | AW136: 0 | AY136: =IFERROR(VLOOKUP(AX136,商品マスター!$B$7:$D$53,2,FALSE),"") ->  | BA136: =IFERROR(VLOOKUP(AX136,商品マスター!$B$7:$D$53,3,FALSE),"") ->  | BB136: 0 | BD136: =IFERROR(VLOOKUP(BC136,商品マスター!$B$7:$D$53,2,FALSE),"") ->  | BF136: =IFERROR(VLOOKUP(BC136,商品マスター!$B$7:$D$53,3,FALSE),"") ->  | BG136: 0 | BI136: =IFERROR(VLOOKUP(BH136,商品マスター!$B$7:$D$53,2,FALSE),"") ->  | BK136: =IFERROR(VLOOKUP(BH136,商品マスター!$B$7:$D$53,3,FALSE),"") ->  | BL136: 0 | BM136: 0 | BN136: 0.1 | BO136: 0 | BQ136: 0
I137: =IFERROR(VLOOKUP(H137,得意先マスター!$B$7:$H$103,2,FALSE),"") ->  | J137: =IFERROR(VLOOKUP(H137,得意先マスター!$B$7:$H$103,3,FALSE),"") ->  | K137: =IFERROR(VLOOKUP(H137,得意先マスター!$B$7:$H$103,4,FALSE),"") ->  | L137: =IFERROR(VLOOKUP(H137,得意先マスター!$B$7:$H$103,5,FALSE),"") ->  | M137: =IFERROR(VLOOKUP(H137,得意先マスター!$B$7:$H$103,6,FALSE),"") ->  | P137: =IFERROR(VLOOKUP(O137,商品マスター!$B$7:$D$53,2,FALSE),"") ->  | R137: =IFERROR(VLOOKUP(O137,商品マスター!$B$7:$D$53,3,FALSE),"") ->  | S137: 0 | U137: =IFERROR(VLOOKUP(T137,商品マスター!$B$7:$D$53,2,FALSE),"") ->  | W137: =IFERROR(VLOOKUP(T137,商品マスター!$B$7:$D$53,3,FALSE),"") ->  | X137: 0 | Z137: =IFERROR(VLOOKUP(Y137,商品マスター!$B$7:$D$53,2,FALSE),"") ->  | AB137: =IFERROR(VLOOKUP(Y137,商品マスター!$B$7:$D$53,3,FALSE),"") ->  | AC137: 0 | AE137: =IFERROR(VLOOKUP(AD137,商品マスター!$B$7:$D$53,2,FALSE),"") ->  | AG137: =IFERROR(VLOOKUP(AD137,商品マスター!$B$7:$D$53,3,FALSE),"") ->  | AH137: 0 | AJ137: =IFERROR(VLOOKUP(AI137,商品マスター!$B$7:$D$53,2,FALSE),"") ->  | AL137: =IFERROR(VLOOKUP(AI137,商品マスター!$B$7:$D$53,3,FALSE),"") ->  | AM137: 0 | AO137: =IFERROR(VLOOKUP(AN137,商品マスター!$B$7:$D$53,2,FALSE),"") ->  | AQ137: =IFERROR(VLOOKUP(AN137,商品マスター!$B$7:$D$53,3,FALSE),"") ->  | AR137: 0 | AT137: =IFERROR(VLOOKUP(AS137,商品マスター!$B$7:$D$53,2,FALSE),"") ->  | AV137: =IFERROR(VLOOKUP(AS137,商品マスター!$B$7:$D$53,3,FALSE),"") ->  | AW137: 0 | AY137: =IFERROR(VLOOKUP(AX137,商品マスター!$B$7:$D$53,2,FALSE),"") ->  | BA137: =IFERROR(VLOOKUP(AX137,商品マスター!$B$7:$D$53,3,FALSE),"") ->  | BB137: 0 | BD137: =IFERROR(VLOOKUP(BC137,商品マスター!$B$7:$D$53,2,FALSE),"") ->  | BF137: =IFERROR(VLOOKUP(BC137,商品マスター!$B$7:$D$53,3,FALSE),"") ->  | BG137: 0 | BI137: =IFERROR(VLOOKUP(BH137,商品マスター!$B$7:$D$53,2,FALSE),"") ->  | BK137: =IFERROR(VLOOKUP(BH137,商品マスター!$B$7:$D$53,3,FALSE),"") ->  | BL137: 0 | BM137: 0 | BN137: 0.1 | BO137: 0 | BQ137: 0
I138: =IFERROR(VLOOKUP(H138,得意先マスター!$B$7:$H$103,2,FALSE),"") ->  | J138: =IFERROR(VLOOKUP(H138,得意先マスター!$B$7:$H$103,3,FALSE),"") ->  | K138: =IFERROR(VLOOKUP(H138,得意先マスター!$B$7:$H$103,4,FALSE),"") ->  | L138: =IFERROR(VLOOKUP(H138,得意先マスター!$B$7:$H$103,5,FALSE),"") ->  | M138: =IFERROR(VLOOKUP(H138,得意先マスター!$B$7:$H$103,6,FALSE),"") ->  | P138: =IFERROR(VLOOKUP(O138,商品マスター!$B$7:$D$53,2,FALSE),"") ->  | R138: =IFERROR(VLOOKUP(O138,商品マスター!$B$7:$D$53,3,FALSE),"") ->  | S138: 0 | U138: =IFERROR(VLOOKUP(T138,商品マスター!$B$7:$D$53,2,FALSE),"") ->  | W138: =IFERROR(VLOOKUP(T138,商品マスター!$B$7:$D$53,3,FALSE),"") ->  | X138: 0 | Z138: =IFERROR(VLOOKUP(Y138,商品マスター!$B$7:$D$53,2,FALSE),"") ->  | AB138: =IFERROR(VLOOKUP(Y138,商品マスター!$B$7:$D$53,3,FALSE),"") ->  | AC138: 0 | AE138: =IFERROR(VLOOKUP(AD138,商品マスター!$B$7:$D$53,2,FALSE),"") ->  | AG138: =IFERROR(VLOOKUP(AD138,商品マスター!$B$7:$D$53,3,FALSE),"") ->  | AH138: 0 | AJ138: =IFERROR(VLOOKUP(AI138,商品マスター!$B$7:$D$53,2,FALSE),"") ->  | AL138: =IFERROR(VLOOKUP(AI138,商品マスター!$B$7:$D$53,3,FALSE),"") ->  | AM138: 0 | AO138: =IFERROR(VLOOKUP(AN138,商品マスター!$B$7:$D$53,2,FALSE),"") ->  | AQ138: =IFERROR(VLOOKUP(AN138,商品マスター!$B$7:$D$53,3,FALSE),"") ->  | AR138: 0 | AT138: =IFERROR(VLOOKUP(AS138,商品マスター!$B$7:$D$53,2,FALSE),"") ->  | AV138: =IFERROR(VLOOKUP(AS138,商品マスター!$B$7:$D$53,3,FALSE),"") ->  | AW138: 0 | AY138: =IFERROR(VLOOKUP(AX138,商品マスター!$B$7:$D$53,2,FALSE),"") ->  | BA138: =IFERROR(VLOOKUP(AX138,商品マスター!$B$7:$D$53,3,FALSE),"") ->  | BB138: 0 | BD138: =IFERROR(VLOOKUP(BC138,商品マスター!$B$7:$D$53,2,FALSE),"") ->  | BF138: =IFERROR(VLOOKUP(BC138,商品マスター!$B$7:$D$53,3,FALSE),"") ->  | BG138: 0 | BI138: =IFERROR(VLOOKUP(BH138,商品マスター!$B$7:$D$53,2,FALSE),"") ->  | BK138: =IFERROR(VLOOKUP(BH138,商品マスター!$B$7:$D$53,3,FALSE),"") ->  | BL138: 0 | BM138: 0 | BN138: 0.1 | BO138: 0 | BQ138: 0
I139: =IFERROR(VLOOKUP(H139,得意先マスター!$B$7:$H$103,2,FALSE),"") ->  | J139: =IFERROR(VLOOKUP(H139,得意先マスター!$B$7:$H$103,3,FALSE),"") ->  | K139: =IFERROR(VLOOKUP(H139,得意先マスター!$B$7:$H$103,4,FALSE),"") ->  | L139: =IFERROR(VLOOKUP(H139,得意先マスター!$B$7:$H$103,5,FALSE),"") ->  | M139: =IFERROR(VLOOKUP(H139,得意先マスター!$B$7:$H$103,6,FALSE),"") ->  | P139: =IFERROR(VLOOKUP(O139,商品マスター!$B$7:$D$53,2,FALSE),"") ->  | R139: =IFERROR(VLOOKUP(O139,商品マスター!$B$7:$D$53,3,FALSE),"") ->  | S139: 0 | U139: =IFERROR(VLOOKUP(T139,商品マスター!$B$7:$D$53,2,FALSE),"") ->  | W139: =IFERROR(VLOOKUP(T139,商品マスター!$B$7:$D$53,3,FALSE),"") ->  | X139: 0 | Z139: =IFERROR(VLOOKUP(Y139,商品マスター!$B$7:$D$53,2,FALSE),"") ->  | AB139: =IFERROR(VLOOKUP(Y139,商品マスター!$B$7:$D$53,3,FALSE),"") ->  | AC139: 0 | AE139: =IFERROR(VLOOKUP(AD139,商品マスター!$B$7:$D$53,2,FALSE),"") ->  | AG139: =IFERROR(VLOOKUP(AD139,商品マスター!$B$7:$D$53,3,FALSE),"") ->  | AH139: 0 | AJ139: =IFERROR(VLOOKUP(AI139,商品マスター!$B$7:$D$53,2,FALSE),"") ->  | AL139: =IFERROR(VLOOKUP(AI139,商品マスター!$B$7:$D$53,3,FALSE),"") ->  | AM139: 0 | AO139: =IFERROR(VLOOKUP(AN139,商品マスター!$B$7:$D$53,2,FALSE),"") ->  | AQ139: =IFERROR(VLOOKUP(AN139,商品マスター!$B$7:$D$53,3,FALSE),"") ->  | AR139: 0 | AT139: =IFERROR(VLOOKUP(AS139,商品マスター!$B$7:$D$53,2,FALSE),"") ->  | AV139: =IFERROR(VLOOKUP(AS139,商品マスター!$B$7:$D$53,3,FALSE),"") ->  | AW139: 0 | AY139: =IFERROR(VLOOKUP(AX139,商品マスター!$B$7:$D$53,2,FALSE),"") ->  | BA139: =IFERROR(VLOOKUP(AX139,商品マスター!$B$7:$D$53,3,FALSE),"") ->  | BB139: 0 | BD139: =IFERROR(VLOOKUP(BC139,商品マスター!$B$7:$D$53,2,FALSE),"") ->  | BF139: =IFERROR(VLOOKUP(BC139,商品マスター!$B$7:$D$53,3,FALSE),"") ->  | BG139: 0 | BI139: =IFERROR(VLOOKUP(BH139,商品マスター!$B$7:$D$53,2,FALSE),"") ->  | BK139: =IFERROR(VLOOKUP(BH139,商品マスター!$B$7:$D$53,3,FALSE),"") ->  | BL139: 0 | BM139: 0 | BN139: 0.1 | BO139: 0 | BQ139: 0
I140: =IFERROR(VLOOKUP(H140,得意先マスター!$B$7:$H$103,2,FALSE),"") ->  | J140: =IFERROR(VLOOKUP(H140,得意先マスター!$B$7:$H$103,3,FALSE),"") ->  | K140: =IFERROR(VLOOKUP(H140,得意先マスター!$B$7:$H$103,4,FALSE),"") ->  | L140: =IFERROR(VLOOKUP(H140,得意先マスター!$B$7:$H$103,5,FALSE),"") ->  | M140: =IFERROR(VLOOKUP(H140,得意先マスター!$B$7:$H$103,6,FALSE),"") ->  | P140: =IFERROR(VLOOKUP(O140,商品マスター!$B$7:$D$53,2,FALSE),"") ->  | R140: =IFERROR(VLOOKUP(O140,商品マスター!$B$7:$D$53,3,FALSE),"") ->  | S140: 0 | U140: =IFERROR(VLOOKUP(T140,商品マスター!$B$7:$D$53,2,FALSE),"") ->  | W140: =IFERROR(VLOOKUP(T140,商品マスター!$B$7:$D$53,3,FALSE),"") ->  | X140: 0 | Z140: =IFERROR(VLOOKUP(Y140,商品マスター!$B$7:$D$53,2,FALSE),"") ->  | AB140: =IFERROR(VLOOKUP(Y140,商品マスター!$B$7:$D$53,3,FALSE),"") ->  | AC140: 0 | AE140: =IFERROR(VLOOKUP(AD140,商品マスター!$B$7:$D$53,2,FALSE),"") ->  | AG140: =IFERROR(VLOOKUP(AD140,商品マスター!$B$7:$D$53,3,FALSE),"") ->  | AH140: 0 | AJ140: =IFERROR(VLOOKUP(AI140,商品マスター!$B$7:$D$53,2,FALSE),"") ->  | AL140: =IFERROR(VLOOKUP(AI140,商品マスター!$B$7:$D$53,3,FALSE),"") ->  | AM140: 0 | AO140: =IFERROR(VLOOKUP(AN140,商品マスター!$B$7:$D$53,2,FALSE),"") ->  | AQ140: =IFERROR(VLOOKUP(AN140,商品マスター!$B$7:$D$53,3,FALSE),"") ->  | AR140: 0 | AT140: =IFERROR(VLOOKUP(AS140,商品マスター!$B$7:$D$53,2,FALSE),"") ->  | AV140: =IFERROR(VLOOKUP(AS140,商品マスター!$B$7:$D$53,3,FALSE),"") ->  | AW140: 0 | AY140: =IFERROR(VLOOKUP(AX140,商品マスター!$B$7:$D$53,2,FALSE),"") ->  | BA140: =IFERROR(VLOOKUP(AX140,商品マスター!$B$7:$D$53,3,FALSE),"") ->  | BB140: 0 | BD140: =IFERROR(VLOOKUP(BC140,商品マスター!$B$7:$D$53,2,FALSE),"") ->  | BF140: =IFERROR(VLOOKUP(BC140,商品マスター!$B$7:$D$53,3,FALSE),"") ->  | BG140: 0 | BI140: =IFERROR(VLOOKUP(BH140,商品マスター!$B$7:$D$53,2,FALSE),"") ->  | BK140: =IFERROR(VLOOKUP(BH140,商品マスター!$B$7:$D$53,3,FALSE),"") ->  | BL140: 0 | BM140: 0 | BN140: 0.1 | BO140: 0 | BQ140: 0
I141: =IFERROR(VLOOKUP(H141,得意先マスター!$B$7:$H$103,2,FALSE),"") ->  | J141: =IFERROR(VLOOKUP(H141,得意先マスター!$B$7:$H$103,3,FALSE),"") ->  | K141: =IFERROR(VLOOKUP(H141,得意先マスター!$B$7:$H$103,4,FALSE),"") ->  | L141: =IFERROR(VLOOKUP(H141,得意先マスター!$B$7:$H$103,5,FALSE),"") ->  | M141: =IFERROR(VLOOKUP(H141,得意先マスター!$B$7:$H$103,6,FALSE),"") ->  | P141: =IFERROR(VLOOKUP(O141,商品マスター!$B$7:$D$53,2,FALSE),"") ->  | R141: =IFERROR(VLOOKUP(O141,商品マスター!$B$7:$D$53,3,FALSE),"") ->  | S141: 0 | U141: =IFERROR(VLOOKUP(T141,商品マスター!$B$7:$D$53,2,FALSE),"") ->  | W141: =IFERROR(VLOOKUP(T141,商品マスター!$B$7:$D$53,3,FALSE),"") ->  | X141: 0 | Z141: =IFERROR(VLOOKUP(Y141,商品マスター!$B$7:$D$53,2,FALSE),"") ->  | AB141: =IFERROR(VLOOKUP(Y141,商品マスター!$B$7:$D$53,3,FALSE),"") ->  | AC141: 0 | AE141: =IFERROR(VLOOKUP(AD141,商品マスター!$B$7:$D$53,2,FALSE),"") ->  | AG141: =IFERROR(VLOOKUP(AD141,商品マスター!$B$7:$D$53,3,FALSE),"") ->  | AH141: 0 | AJ141: =IFERROR(VLOOKUP(AI141,商品マスター!$B$7:$D$53,2,FALSE),"") ->  | AL141: =IFERROR(VLOOKUP(AI141,商品マスター!$B$7:$D$53,3,FALSE),"") ->  | AM141: 0 | AO141: =IFERROR(VLOOKUP(AN141,商品マスター!$B$7:$D$53,2,FALSE),"") ->  | AQ141: =IFERROR(VLOOKUP(AN141,商品マスター!$B$7:$D$53,3,FALSE),"") ->  | AR141: 0 | AT141: =IFERROR(VLOOKUP(AS141,商品マスター!$B$7:$D$53,2,FALSE),"") ->  | AV141: =IFERROR(VLOOKUP(AS141,商品マスター!$B$7:$D$53,3,FALSE),"") ->  | AW141: 0 | AY141: =IFERROR(VLOOKUP(AX141,商品マスター!$B$7:$D$53,2,FALSE),"") ->  | BA141: =IFERROR(VLOOKUP(AX141,商品マスター!$B$7:$D$53,3,FALSE),"") ->  | BB141: 0 | BD141: =IFERROR(VLOOKUP(BC141,商品マスター!$B$7:$D$53,2,FALSE),"") ->  | BF141: =IFERROR(VLOOKUP(BC141,商品マスター!$B$7:$D$53,3,FALSE),"") ->  | BG141: 0 | BI141: =IFERROR(VLOOKUP(BH141,商品マスター!$B$7:$D$53,2,FALSE),"") ->  | BK141: =IFERROR(VLOOKUP(BH141,商品マスター!$B$7:$D$53,3,FALSE),"") ->  | BL141: 0 | BM141: 0 | BN141: 0.1 | BO141: 0 | BQ141: 0
I142: =IFERROR(VLOOKUP(H142,得意先マスター!$B$7:$H$103,2,FALSE),"") ->  | J142: =IFERROR(VLOOKUP(H142,得意先マスター!$B$7:$H$103,3,FALSE),"") ->  | K142: =IFERROR(VLOOKUP(H142,得意先マスター!$B$7:$H$103,4,FALSE),"") ->  | L142: =IFERROR(VLOOKUP(H142,得意先マスター!$B$7:$H$103,5,FALSE),"") ->  | M142: =IFERROR(VLOOKUP(H142,得意先マスター!$B$7:$H$103,6,FALSE),"") ->  | P142: =IFERROR(VLOOKUP(O142,商品マスター!$B$7:$D$53,2,FALSE),"") ->  | R142: =IFERROR(VLOOKUP(O142,商品マスター!$B$7:$D$53,3,FALSE),"") ->  | S142: 0 | U142: =IFERROR(VLOOKUP(T142,商品マスター!$B$7:$D$53,2,FALSE),"") ->  | W142: =IFERROR(VLOOKUP(T142,商品マスター!$B$7:$D$53,3,FALSE),"") ->  | X142: 0 | Z142: =IFERROR(VLOOKUP(Y142,商品マスター!$B$7:$D$53,2,FALSE),"") ->  | AB142: =IFERROR(VLOOKUP(Y142,商品マスター!$B$7:$D$53,3,FALSE),"") ->  | AC142: 0 | AE142: =IFERROR(VLOOKUP(AD142,商品マスター!$B$7:$D$53,2,FALSE),"") ->  | AG142: =IFERROR(VLOOKUP(AD142,商品マスター!$B$7:$D$53,3,FALSE),"") ->  | AH142: 0 | AJ142: =IFERROR(VLOOKUP(AI142,商品マスター!$B$7:$D$53,2,FALSE),"") ->  | AL142: =IFERROR(VLOOKUP(AI142,商品マスター!$B$7:$D$53,3,FALSE),"") ->  | AM142: 0 | AO142: =IFERROR(VLOOKUP(AN142,商品マスター!$B$7:$D$53,2,FALSE),"") ->  | AQ142: =IFERROR(VLOOKUP(AN142,商品マスター!$B$7:$D$53,3,FALSE),"") ->  | AR142: 0 | AT142: =IFERROR(VLOOKUP(AS142,商品マスター!$B$7:$D$53,2,FALSE),"") ->  | AV142: =IFERROR(VLOOKUP(AS142,商品マスター!$B$7:$D$53,3,FALSE),"") ->  | AW142: 0 | AY142: =IFERROR(VLOOKUP(AX142,商品マスター!$B$7:$D$53,2,FALSE),"") ->  | BA142: =IFERROR(VLOOKUP(AX142,商品マスター!$B$7:$D$53,3,FALSE),"") ->  | BB142: 0 | BD142: =IFERROR(VLOOKUP(BC142,商品マスター!$B$7:$D$53,2,FALSE),"") ->  | BF142: =IFERROR(VLOOKUP(BC142,商品マスター!$B$7:$D$53,3,FALSE),"") ->  | BG142: 0 | BI142: =IFERROR(VLOOKUP(BH142,商品マスター!$B$7:$D$53,2,FALSE),"") ->  | BK142: =IFERROR(VLOOKUP(BH142,商品マスター!$B$7:$D$53,3,FALSE),"") ->  | BL142: 0 | BM142: 0 | BN142: 0.1 | BO142: 0 | BQ142: 0
I143: =IFERROR(VLOOKUP(H143,得意先マスター!$B$7:$H$103,2,FALSE),"") ->  | J143: =IFERROR(VLOOKUP(H143,得意先マスター!$B$7:$H$103,3,FALSE),"") ->  | K143: =IFERROR(VLOOKUP(H143,得意先マスター!$B$7:$H$103,4,FALSE),"") ->  | L143: =IFERROR(VLOOKUP(H143,得意先マスター!$B$7:$H$103,5,FALSE),"") ->  | M143: =IFERROR(VLOOKUP(H143,得意先マスター!$B$7:$H$103,6,FALSE),"") ->  | P143: =IFERROR(VLOOKUP(O143,商品マスター!$B$7:$D$53,2,FALSE),"") ->  | R143: =IFERROR(VLOOKUP(O143,商品マスター!$B$7:$D$53,3,FALSE),"") ->  | S143: 0 | U143: =IFERROR(VLOOKUP(T143,商品マスター!$B$7:$D$53,2,FALSE),"") ->  | W143: =IFERROR(VLOOKUP(T143,商品マスター!$B$7:$D$53,3,FALSE),"") ->  | X143: 0 | Z143: =IFERROR(VLOOKUP(Y143,商品マスター!$B$7:$D$53,2,FALSE),"") ->  | AB143: =IFERROR(VLOOKUP(Y143,商品マスター!$B$7:$D$53,3,FALSE),"") ->  | AC143: 0 | AE143: =IFERROR(VLOOKUP(AD143,商品マスター!$B$7:$D$53,2,FALSE),"") ->  | AG143: =IFERROR(VLOOKUP(AD143,商品マスター!$B$7:$D$53,3,FALSE),"") ->  | AH143: 0 | AJ143: =IFERROR(VLOOKUP(AI143,商品マスター!$B$7:$D$53,2,FALSE),"") ->  | AL143: =IFERROR(VLOOKUP(AI143,商品マスター!$B$7:$D$53,3,FALSE),"") ->  | AM143: 0 | AO143: =IFERROR(VLOOKUP(AN143,商品マスター!$B$7:$D$53,2,FALSE),"") ->  | AQ143: =IFERROR(VLOOKUP(AN143,商品マスター!$B$7:$D$53,3,FALSE),"") ->  | AR143: 0 | AT143: =IFERROR(VLOOKUP(AS143,商品マスター!$B$7:$D$53,2,FALSE),"") ->  | AV143: =IFERROR(VLOOKUP(AS143,商品マスター!$B$7:$D$53,3,FALSE),"") ->  | AW143: 0 | AY143: =IFERROR(VLOOKUP(AX143,商品マスター!$B$7:$D$53,2,FALSE),"") ->  | BA143: =IFERROR(VLOOKUP(AX143,商品マスター!$B$7:$D$53,3,FALSE),"") ->  | BB143: 0 | BD143: =IFERROR(VLOOKUP(BC143,商品マスター!$B$7:$D$53,2,FALSE),"") ->  | BF143: =IFERROR(VLOOKUP(BC143,商品マスター!$B$7:$D$53,3,FALSE),"") ->  | BG143: 0 | BI143: =IFERROR(VLOOKUP(BH143,商品マスター!$B$7:$D$53,2,FALSE),"") ->  | BK143: =IFERROR(VLOOKUP(BH143,商品マスター!$B$7:$D$53,3,FALSE),"") ->  | BL143: 0 | BM143: 0 | BN143: 0.1 | BO143: 0 | BQ143: 0
I144: =IFERROR(VLOOKUP(H144,得意先マスター!$B$7:$H$103,2,FALSE),"") ->  | J144: =IFERROR(VLOOKUP(H144,得意先マスター!$B$7:$H$103,3,FALSE),"") ->  | K144: =IFERROR(VLOOKUP(H144,得意先マスター!$B$7:$H$103,4,FALSE),"") ->  | L144: =IFERROR(VLOOKUP(H144,得意先マスター!$B$7:$H$103,5,FALSE),"") ->  | M144: =IFERROR(VLOOKUP(H144,得意先マスター!$B$7:$H$103,6,FALSE),"") ->  | P144: =IFERROR(VLOOKUP(O144,商品マスター!$B$7:$D$53,2,FALSE),"") ->  | R144: =IFERROR(VLOOKUP(O144,商品マスター!$B$7:$D$53,3,FALSE),"") ->  | S144: 0 | U144: =IFERROR(VLOOKUP(T144,商品マスター!$B$7:$D$53,2,FALSE),"") ->  | W144: =IFERROR(VLOOKUP(T144,商品マスター!$B$7:$D$53,3,FALSE),"") ->  | X144: 0 | Z144: =IFERROR(VLOOKUP(Y144,商品マスター!$B$7:$D$53,2,FALSE),"") ->  | AB144: =IFERROR(VLOOKUP(Y144,商品マスター!$B$7:$D$53,3,FALSE),"") ->  | AC144: 0 | AE144: =IFERROR(VLOOKUP(AD144,商品マスター!$B$7:$D$53,2,FALSE),"") ->  | AG144: =IFERROR(VLOOKUP(AD144,商品マスター!$B$7:$D$53,3,FALSE),"") ->  | AH144: 0 | AJ144: =IFERROR(VLOOKUP(AI144,商品マスター!$B$7:$D$53,2,FALSE),"") ->  | AL144: =IFERROR(VLOOKUP(AI144,商品マスター!$B$7:$D$53,3,FALSE),"") ->  | AM144: 0 | AO144: =IFERROR(VLOOKUP(AN144,商品マスター!$B$7:$D$53,2,FALSE),"") ->  | AQ144: =IFERROR(VLOOKUP(AN144,商品マスター!$B$7:$D$53,3,FALSE),"") ->  | AR144: 0 | AT144: =IFERROR(VLOOKUP(AS144,商品マスター!$B$7:$D$53,2,FALSE),"") ->  | AV144: =IFERROR(VLOOKUP(AS144,商品マスター!$B$7:$D$53,3,FALSE),"") ->  | AW144: 0 | AY144: =IFERROR(VLOOKUP(AX144,商品マスター!$B$7:$D$53,2,FALSE),"") ->  | BA144: =IFERROR(VLOOKUP(AX144,商品マスター!$B$7:$D$53,3,FALSE),"") ->  | BB144: 0 | BD144: =IFERROR(VLOOKUP(BC144,商品マスター!$B$7:$D$53,2,FALSE),"") ->  | BF144: =IFERROR(VLOOKUP(BC144,商品マスター!$B$7:$D$53,3,FALSE),"") ->  | BG144: 0 | BI144: =IFERROR(VLOOKUP(BH144,商品マスター!$B$7:$D$53,2,FALSE),"") ->  | BK144: =IFERROR(VLOOKUP(BH144,商品マスター!$B$7:$D$53,3,FALSE),"") ->  | BL144: 0 | BM144: 0 | BN144: 0.1 | BO144: 0 | BQ144: 0
I145: =IFERROR(VLOOKUP(H145,得意先マスター!$B$7:$H$103,2,FALSE),"") ->  | J145: =IFERROR(VLOOKUP(H145,得意先マスター!$B$7:$H$103,3,FALSE),"") ->  | K145: =IFERROR(VLOOKUP(H145,得意先マスター!$B$7:$H$103,4,FALSE),"") ->  | L145: =IFERROR(VLOOKUP(H145,得意先マスター!$B$7:$H$103,5,FALSE),"") ->  | M145: =IFERROR(VLOOKUP(H145,得意先マスター!$B$7:$H$103,6,FALSE),"") ->  | P145: =IFERROR(VLOOKUP(O145,商品マスター!$B$7:$D$53,2,FALSE),"") ->  | R145: =IFERROR(VLOOKUP(O145,商品マスター!$B$7:$D$53,3,FALSE),"") ->  | S145: 0 | U145: =IFERROR(VLOOKUP(T145,商品マスター!$B$7:$D$53,2,FALSE),"") ->  | W145: =IFERROR(VLOOKUP(T145,商品マスター!$B$7:$D$53,3,FALSE),"") ->  | X145: 0 | Z145: =IFERROR(VLOOKUP(Y145,商品マスター!$B$7:$D$53,2,FALSE),"") ->  | AB145: =IFERROR(VLOOKUP(Y145,商品マスター!$B$7:$D$53,3,FALSE),"") ->  | AC145: 0 | AE145: =IFERROR(VLOOKUP(AD145,商品マスター!$B$7:$D$53,2,FALSE),"") ->  | AG145: =IFERROR(VLOOKUP(AD145,商品マスター!$B$7:$D$53,3,FALSE),"") ->  | AH145: 0 | AJ145: =IFERROR(VLOOKUP(AI145,商品マスター!$B$7:$D$53,2,FALSE),"") ->  | AL145: =IFERROR(VLOOKUP(AI145,商品マスター!$B$7:$D$53,3,FALSE),"") ->  | AM145: 0 | AO145: =IFERROR(VLOOKUP(AN145,商品マスター!$B$7:$D$53,2,FALSE),"") ->  | AQ145: =IFERROR(VLOOKUP(AN145,商品マスター!$B$7:$D$53,3,FALSE),"") ->  | AR145: 0 | AT145: =IFERROR(VLOOKUP(AS145,商品マスター!$B$7:$D$53,2,FALSE),"") ->  | AV145: =IFERROR(VLOOKUP(AS145,商品マスター!$B$7:$D$53,3,FALSE),"") ->  | AW145: 0 | AY145: =IFERROR(VLOOKUP(AX145,商品マスター!$B$7:$D$53,2,FALSE),"") ->  | BA145: =IFERROR(VLOOKUP(AX145,商品マスター!$B$7:$D$53,3,FALSE),"") ->  | BB145: 0 | BD145: =IFERROR(VLOOKUP(BC145,商品マスター!$B$7:$D$53,2,FALSE),"") ->  | BF145: =IFERROR(VLOOKUP(BC145,商品マスター!$B$7:$D$53,3,FALSE),"") ->  | BG145: 0 | BI145: =IFERROR(VLOOKUP(BH145,商品マスター!$B$7:$D$53,2,FALSE),"") ->  | BK145: =IFERROR(VLOOKUP(BH145,商品マスター!$B$7:$D$53,3,FALSE),"") ->  | BL145: 0 | BM145: 0 | BN145: 0.1 | BO145: 0 | BQ145: 0
I146: =IFERROR(VLOOKUP(H146,得意先マスター!$B$7:$H$103,2,FALSE),"") ->  | J146: =IFERROR(VLOOKUP(H146,得意先マスター!$B$7:$H$103,3,FALSE),"") ->  | K146: =IFERROR(VLOOKUP(H146,得意先マスター!$B$7:$H$103,4,FALSE),"") ->  | L146: =IFERROR(VLOOKUP(H146,得意先マスター!$B$7:$H$103,5,FALSE),"") ->  | M146: =IFERROR(VLOOKUP(H146,得意先マスター!$B$7:$H$103,6,FALSE),"") ->  | P146: =IFERROR(VLOOKUP(O146,商品マスター!$B$7:$D$53,2,FALSE),"") ->  | R146: =IFERROR(VLOOKUP(O146,商品マスター!$B$7:$D$53,3,FALSE),"") ->  | S146: 0 | U146: =IFERROR(VLOOKUP(T146,商品マスター!$B$7:$D$53,2,FALSE),"") ->  | W146: =IFERROR(VLOOKUP(T146,商品マスター!$B$7:$D$53,3,FALSE),"") ->  | X146: 0 | Z146: =IFERROR(VLOOKUP(Y146,商品マスター!$B$7:$D$53,2,FALSE),"") ->  | AB146: =IFERROR(VLOOKUP(Y146,商品マスター!$B$7:$D$53,3,FALSE),"") ->  | AC146: 0 | AE146: =IFERROR(VLOOKUP(AD146,商品マスター!$B$7:$D$53,2,FALSE),"") ->  | AG146: =IFERROR(VLOOKUP(AD146,商品マスター!$B$7:$D$53,3,FALSE),"") ->  | AH146: 0 | AJ146: =IFERROR(VLOOKUP(AI146,商品マスター!$B$7:$D$53,2,FALSE),"") ->  | AL146: =IFERROR(VLOOKUP(AI146,商品マスター!$B$7:$D$53,3,FALSE),"") ->  | AM146: 0 | AO146: =IFERROR(VLOOKUP(AN146,商品マスター!$B$7:$D$53,2,FALSE),"") ->  | AQ146: =IFERROR(VLOOKUP(AN146,商品マスター!$B$7:$D$53,3,FALSE),"") ->  | AR146: 0 | AT146: =IFERROR(VLOOKUP(AS146,商品マスター!$B$7:$D$53,2,FALSE),"") ->  | AV146: =IFERROR(VLOOKUP(AS146,商品マスター!$B$7:$D$53,3,FALSE),"") ->  | AW146: 0 | AY146: =IFERROR(VLOOKUP(AX146,商品マスター!$B$7:$D$53,2,FALSE),"") ->  | BA146: =IFERROR(VLOOKUP(AX146,商品マスター!$B$7:$D$53,3,FALSE),"") ->  | BB146: 0 | BD146: =IFERROR(VLOOKUP(BC146,商品マスター!$B$7:$D$53,2,FALSE),"") ->  | BF146: =IFERROR(VLOOKUP(BC146,商品マスター!$B$7:$D$53,3,FALSE),"") ->  | BG146: 0 | BI146: =IFERROR(VLOOKUP(BH146,商品マスター!$B$7:$D$53,2,FALSE),"") ->  | BK146: =IFERROR(VLOOKUP(BH146,商品マスター!$B$7:$D$53,3,FALSE),"") ->  | BL146: 0 | BM146: 0 | BN146: 0.1 | BO146: 0 | BQ146: 0
I147: =IFERROR(VLOOKUP(H147,得意先マスター!$B$7:$H$103,2,FALSE),"") ->  | J147: =IFERROR(VLOOKUP(H147,得意先マスター!$B$7:$H$103,3,FALSE),"") ->  | K147: =IFERROR(VLOOKUP(H147,得意先マスター!$B$7:$H$103,4,FALSE),"") ->  | L147: =IFERROR(VLOOKUP(H147,得意先マスター!$B$7:$H$103,5,FALSE),"") ->  | M147: =IFERROR(VLOOKUP(H147,得意先マスター!$B$7:$H$103,6,FALSE),"") ->  | P147: =IFERROR(VLOOKUP(O147,商品マスター!$B$7:$D$53,2,FALSE),"") ->  | R147: =IFERROR(VLOOKUP(O147,商品マスター!$B$7:$D$53,3,FALSE),"") ->  | S147: 0 | U147: =IFERROR(VLOOKUP(T147,商品マスター!$B$7:$D$53,2,FALSE),"") ->  | W147: =IFERROR(VLOOKUP(T147,商品マスター!$B$7:$D$53,3,FALSE),"") ->  | X147: 0 | Z147: =IFERROR(VLOOKUP(Y147,商品マスター!$B$7:$D$53,2,FALSE),"") ->  | AB147: =IFERROR(VLOOKUP(Y147,商品マスター!$B$7:$D$53,3,FALSE),"") ->  | AC147: 0 | AE147: =IFERROR(VLOOKUP(AD147,商品マスター!$B$7:$D$53,2,FALSE),"") ->  | AG147: =IFERROR(VLOOKUP(AD147,商品マスター!$B$7:$D$53,3,FALSE),"") ->  | AH147: 0 | AJ147: =IFERROR(VLOOKUP(AI147,商品マスター!$B$7:$D$53,2,FALSE),"") ->  | AL147: =IFERROR(VLOOKUP(AI147,商品マスター!$B$7:$D$53,3,FALSE),"") ->  | AM147: 0 | AO147: =IFERROR(VLOOKUP(AN147,商品マスター!$B$7:$D$53,2,FALSE),"") ->  | AQ147: =IFERROR(VLOOKUP(AN147,商品マスター!$B$7:$D$53,3,FALSE),"") ->  | AR147: 0 | AT147: =IFERROR(VLOOKUP(AS147,商品マスター!$B$7:$D$53,2,FALSE),"") ->  | AV147: =IFERROR(VLOOKUP(AS147,商品マスター!$B$7:$D$53,3,FALSE),"") ->  | AW147: 0 | AY147: =IFERROR(VLOOKUP(AX147,商品マスター!$B$7:$D$53,2,FALSE),"") ->  | BA147: =IFERROR(VLOOKUP(AX147,商品マスター!$B$7:$D$53,3,FALSE),"") ->  | BB147: 0 | BD147: =IFERROR(VLOOKUP(BC147,商品マスター!$B$7:$D$53,2,FALSE),"") ->  | BF147: =IFERROR(VLOOKUP(BC147,商品マスター!$B$7:$D$53,3,FALSE),"") ->  | BG147: 0 | BI147: =IFERROR(VLOOKUP(BH147,商品マスター!$B$7:$D$53,2,FALSE),"") ->  | BK147: =IFERROR(VLOOKUP(BH147,商品マスター!$B$7:$D$53,3,FALSE),"") ->  | BL147: 0 | BM147: 0 | BN147: 0.1 | BO147: 0 | BQ147: 0
I148: =IFERROR(VLOOKUP(H148,得意先マスター!$B$7:$H$103,2,FALSE),"") ->  | J148: =IFERROR(VLOOKUP(H148,得意先マスター!$B$7:$H$103,3,FALSE),"") ->  | K148: =IFERROR(VLOOKUP(H148,得意先マスター!$B$7:$H$103,4,FALSE),"") ->  | L148: =IFERROR(VLOOKUP(H148,得意先マスター!$B$7:$H$103,5,FALSE),"") ->  | M148: =IFERROR(VLOOKUP(H148,得意先マスター!$B$7:$H$103,6,FALSE),"") ->  | P148: =IFERROR(VLOOKUP(O148,商品マスター!$B$7:$D$53,2,FALSE),"") ->  | R148: =IFERROR(VLOOKUP(O148,商品マスター!$B$7:$D$53,3,FALSE),"") ->  | S148: 0 | U148: =IFERROR(VLOOKUP(T148,商品マスター!$B$7:$D$53,2,FALSE),"") ->  | W148: =IFERROR(VLOOKUP(T148,商品マスター!$B$7:$D$53,3,FALSE),"") ->  | X148: 0 | Z148: =IFERROR(VLOOKUP(Y148,商品マスター!$B$7:$D$53,2,FALSE),"") ->  | AB148: =IFERROR(VLOOKUP(Y148,商品マスター!$B$7:$D$53,3,FALSE),"") ->  | AC148: 0 | AE148: =IFERROR(VLOOKUP(AD148,商品マスター!$B$7:$D$53,2,FALSE),"") ->  | AG148: =IFERROR(VLOOKUP(AD148,商品マスター!$B$7:$D$53,3,FALSE),"") ->  | AH148: 0 | AJ148: =IFERROR(VLOOKUP(AI148,商品マスター!$B$7:$D$53,2,FALSE),"") ->  | AL148: =IFERROR(VLOOKUP(AI148,商品マスター!$B$7:$D$53,3,FALSE),"") ->  | AM148: 0 | AO148: =IFERROR(VLOOKUP(AN148,商品マスター!$B$7:$D$53,2,FALSE),"") ->  | AQ148: =IFERROR(VLOOKUP(AN148,商品マスター!$B$7:$D$53,3,FALSE),"") ->  | AR148: 0 | AT148: =IFERROR(VLOOKUP(AS148,商品マスター!$B$7:$D$53,2,FALSE),"") ->  | AV148: =IFERROR(VLOOKUP(AS148,商品マスター!$B$7:$D$53,3,FALSE),"") ->  | AW148: 0 | AY148: =IFERROR(VLOOKUP(AX148,商品マスター!$B$7:$D$53,2,FALSE),"") ->  | BA148: =IFERROR(VLOOKUP(AX148,商品マスター!$B$7:$D$53,3,FALSE),"") ->  | BB148: 0 | BD148: =IFERROR(VLOOKUP(BC148,商品マスター!$B$7:$D$53,2,FALSE),"") ->  | BF148: =IFERROR(VLOOKUP(BC148,商品マスター!$B$7:$D$53,3,FALSE),"") ->  | BG148: 0 | BI148: =IFERROR(VLOOKUP(BH148,商品マスター!$B$7:$D$53,2,FALSE),"") ->  | BK148: =IFERROR(VLOOKUP(BH148,商品マスター!$B$7:$D$53,3,FALSE),"") ->  | BL148: 0 | BM148: 0 | BN148: 0.1 | BO148: 0 | BQ148: 0
I149: =IFERROR(VLOOKUP(H149,得意先マスター!$B$7:$H$103,2,FALSE),"") ->  | J149: =IFERROR(VLOOKUP(H149,得意先マスター!$B$7:$H$103,3,FALSE),"") ->  | K149: =IFERROR(VLOOKUP(H149,得意先マスター!$B$7:$H$103,4,FALSE),"") ->  | L149: =IFERROR(VLOOKUP(H149,得意先マスター!$B$7:$H$103,5,FALSE),"") ->  | M149: =IFERROR(VLOOKUP(H149,得意先マスター!$B$7:$H$103,6,FALSE),"") ->  | P149: =IFERROR(VLOOKUP(O149,商品マスター!$B$7:$D$53,2,FALSE),"") ->  | R149: =IFERROR(VLOOKUP(O149,商品マスター!$B$7:$D$53,3,FALSE),"") ->  | S149: 0 | U149: =IFERROR(VLOOKUP(T149,商品マスター!$B$7:$D$53,2,FALSE),"") ->  | W149: =IFERROR(VLOOKUP(T149,商品マスター!$B$7:$D$53,3,FALSE),"") ->  | X149: 0 | Z149: =IFERROR(VLOOKUP(Y149,商品マスター!$B$7:$D$53,2,FALSE),"") ->  | AB149: =IFERROR(VLOOKUP(Y149,商品マスター!$B$7:$D$53,3,FALSE),"") ->  | AC149: 0 | AE149: =IFERROR(VLOOKUP(AD149,商品マスター!$B$7:$D$53,2,FALSE),"") ->  | AG149: =IFERROR(VLOOKUP(AD149,商品マスター!$B$7:$D$53,3,FALSE),"") ->  | AH149: 0 | AJ149: =IFERROR(VLOOKUP(AI149,商品マスター!$B$7:$D$53,2,FALSE),"") ->  | AL149: =IFERROR(VLOOKUP(AI149,商品マスター!$B$7:$D$53,3,FALSE),"") ->  | AM149: 0 | AO149: =IFERROR(VLOOKUP(AN149,商品マスター!$B$7:$D$53,2,FALSE),"") ->  | AQ149: =IFERROR(VLOOKUP(AN149,商品マスター!$B$7:$D$53,3,FALSE),"") ->  | AR149: 0 | AT149: =IFERROR(VLOOKUP(AS149,商品マスター!$B$7:$D$53,2,FALSE),"") ->  | AV149: =IFERROR(VLOOKUP(AS149,商品マスター!$B$7:$D$53,3,FALSE),"") ->  | AW149: 0 | AY149: =IFERROR(VLOOKUP(AX149,商品マスター!$B$7:$D$53,2,FALSE),"") ->  | BA149: =IFERROR(VLOOKUP(AX149,商品マスター!$B$7:$D$53,3,FALSE),"") ->  | BB149: 0 | BD149: =IFERROR(VLOOKUP(BC149,商品マスター!$B$7:$D$53,2,FALSE),"") ->  | BF149: =IFERROR(VLOOKUP(BC149,商品マスター!$B$7:$D$53,3,FALSE),"") ->  | BG149: 0 | BI149: =IFERROR(VLOOKUP(BH149,商品マスター!$B$7:$D$53,2,FALSE),"") ->  | BK149: =IFERROR(VLOOKUP(BH149,商品マスター!$B$7:$D$53,3,FALSE),"") ->  | BL149: 0 | BM149: 0 | BN149: 0.1 | BO149: 0 | BQ149: 0
I150: =IFERROR(VLOOKUP(H150,得意先マスター!$B$7:$H$103,2,FALSE),"") ->  | J150: =IFERROR(VLOOKUP(H150,得意先マスター!$B$7:$H$103,3,FALSE),"") ->  | K150: =IFERROR(VLOOKUP(H150,得意先マスター!$B$7:$H$103,4,FALSE),"") ->  | L150: =IFERROR(VLOOKUP(H150,得意先マスター!$B$7:$H$103,5,FALSE),"") ->  | M150: =IFERROR(VLOOKUP(H150,得意先マスター!$B$7:$H$103,6,FALSE),"") ->  | P150: =IFERROR(VLOOKUP(O150,商品マスター!$B$7:$D$53,2,FALSE),"") ->  | R150: =IFERROR(VLOOKUP(O150,商品マスター!$B$7:$D$53,3,FALSE),"") ->  | S150: 0 | U150: =IFERROR(VLOOKUP(T150,商品マスター!$B$7:$D$53,2,FALSE),"") ->  | W150: =IFERROR(VLOOKUP(T150,商品マスター!$B$7:$D$53,3,FALSE),"") ->  | X150: 0 | Z150: =IFERROR(VLOOKUP(Y150,商品マスター!$B$7:$D$53,2,FALSE),"") ->  | AB150: =IFERROR(VLOOKUP(Y150,商品マスター!$B$7:$D$53,3,FALSE),"") ->  | AC150: 0 | AE150: =IFERROR(VLOOKUP(AD150,商品マスター!$B$7:$D$53,2,FALSE),"") ->  | AG150: =IFERROR(VLOOKUP(AD150,商品マスター!$B$7:$D$53,3,FALSE),"") ->  | AH150: 0 | AJ150: =IFERROR(VLOOKUP(AI150,商品マスター!$B$7:$D$53,2,FALSE),"") ->  | AL150: =IFERROR(VLOOKUP(AI150,商品マスター!$B$7:$D$53,3,FALSE),"") ->  | AM150: 0 | AO150: =IFERROR(VLOOKUP(AN150,商品マスター!$B$7:$D$53,2,FALSE),"") ->  | AQ150: =IFERROR(VLOOKUP(AN150,商品マスター!$B$7:$D$53,3,FALSE),"") ->  | AR150: 0 | AT150: =IFERROR(VLOOKUP(AS150,商品マスター!$B$7:$D$53,2,FALSE),"") ->  | AV150: =IFERROR(VLOOKUP(AS150,商品マスター!$B$7:$D$53,3,FALSE),"") ->  | AW150: 0 | AY150: =IFERROR(VLOOKUP(AX150,商品マスター!$B$7:$D$53,2,FALSE),"") ->  | BA150: =IFERROR(VLOOKUP(AX150,商品マスター!$B$7:$D$53,3,FALSE),"") ->  | BB150: 0 | BD150: =IFERROR(VLOOKUP(BC150,商品マスター!$B$7:$D$53,2,FALSE),"") ->  | BF150: =IFERROR(VLOOKUP(BC150,商品マスター!$B$7:$D$53,3,FALSE),"") ->  | BG150: 0 | BI150: =IFERROR(VLOOKUP(BH150,商品マスター!$B$7:$D$53,2,FALSE),"") ->  | BK150: =IFERROR(VLOOKUP(BH150,商品マスター!$B$7:$D$53,3,FALSE),"") ->  | BL150: 0 | BM150: 0 | BN150: 0.1 | BO150: 0 | BQ150: 0
I151: =IFERROR(VLOOKUP(H151,得意先マスター!$B$7:$H$103,2,FALSE),"") ->  | J151: =IFERROR(VLOOKUP(H151,得意先マスター!$B$7:$H$103,3,FALSE),"") ->  | K151: =IFERROR(VLOOKUP(H151,得意先マスター!$B$7:$H$103,4,FALSE),"") ->  | L151: =IFERROR(VLOOKUP(H151,得意先マスター!$B$7:$H$103,5,FALSE),"") ->  | M151: =IFERROR(VLOOKUP(H151,得意先マスター!$B$7:$H$103,6,FALSE),"") ->  | P151: =IFERROR(VLOOKUP(O151,商品マスター!$B$7:$D$53,2,FALSE),"") ->  | R151: =IFERROR(VLOOKUP(O151,商品マスター!$B$7:$D$53,3,FALSE),"") ->  | S151: 0 | U151: =IFERROR(VLOOKUP(T151,商品マスター!$B$7:$D$53,2,FALSE),"") ->  | W151: =IFERROR(VLOOKUP(T151,商品マスター!$B$7:$D$53,3,FALSE),"") ->  | X151: 0 | Z151: =IFERROR(VLOOKUP(Y151,商品マスター!$B$7:$D$53,2,FALSE),"") ->  | AB151: =IFERROR(VLOOKUP(Y151,商品マスター!$B$7:$D$53,3,FALSE),"") ->  | AC151: 0 | AE151: =IFERROR(VLOOKUP(AD151,商品マスター!$B$7:$D$53,2,FALSE),"") ->  | AG151: =IFERROR(VLOOKUP(AD151,商品マスター!$B$7:$D$53,3,FALSE),"") ->  | AH151: 0 | AJ151: =IFERROR(VLOOKUP(AI151,商品マスター!$B$7:$D$53,2,FALSE),"") ->  | AL151: =IFERROR(VLOOKUP(AI151,商品マスター!$B$7:$D$53,3,FALSE),"") ->  | AM151: 0 | AO151: =IFERROR(VLOOKUP(AN151,商品マスター!$B$7:$D$53,2,FALSE),"") ->  | AQ151: =IFERROR(VLOOKUP(AN151,商品マスター!$B$7:$D$53,3,FALSE),"") ->  | AR151: 0 | AT151: =IFERROR(VLOOKUP(AS151,商品マスター!$B$7:$D$53,2,FALSE),"") ->  | AV151: =IFERROR(VLOOKUP(AS151,商品マスター!$B$7:$D$53,3,FALSE),"") ->  | AW151: 0 | AY151: =IFERROR(VLOOKUP(AX151,商品マスター!$B$7:$D$53,2,FALSE),"") ->  | BA151: =IFERROR(VLOOKUP(AX151,商品マスター!$B$7:$D$53,3,FALSE),"") ->  | BB151: 0 | BD151: =IFERROR(VLOOKUP(BC151,商品マスター!$B$7:$D$53,2,FALSE),"") ->  | BF151: =IFERROR(VLOOKUP(BC151,商品マスター!$B$7:$D$53,3,FALSE),"") ->  | BG151: 0 | BI151: =IFERROR(VLOOKUP(BH151,商品マスター!$B$7:$D$53,2,FALSE),"") ->  | BK151: =IFERROR(VLOOKUP(BH151,商品マスター!$B$7:$D$53,3,FALSE),"") ->  | BL151: 0 | BM151: 0 | BN151: 0.1 | BO151: 0 | BQ151: 0
I152: =IFERROR(VLOOKUP(H152,得意先マスター!$B$7:$H$103,2,FALSE),"") ->  | J152: =IFERROR(VLOOKUP(H152,得意先マスター!$B$7:$H$103,3,FALSE),"") ->  | K152: =IFERROR(VLOOKUP(H152,得意先マスター!$B$7:$H$103,4,FALSE),"") ->  | L152: =IFERROR(VLOOKUP(H152,得意先マスター!$B$7:$H$103,5,FALSE),"") ->  | M152: =IFERROR(VLOOKUP(H152,得意先マスター!$B$7:$H$103,6,FALSE),"") ->  | P152: =IFERROR(VLOOKUP(O152,商品マスター!$B$7:$D$53,2,FALSE),"") ->  | R152: =IFERROR(VLOOKUP(O152,商品マスター!$B$7:$D$53,3,FALSE),"") ->  | S152: 0 | U152: =IFERROR(VLOOKUP(T152,商品マスター!$B$7:$D$53,2,FALSE),"") ->  | W152: =IFERROR(VLOOKUP(T152,商品マスター!$B$7:$D$53,3,FALSE),"") ->  | X152: 0 | Z152: =IFERROR(VLOOKUP(Y152,商品マスター!$B$7:$D$53,2,FALSE),"") ->  | AB152: =IFERROR(VLOOKUP(Y152,商品マスター!$B$7:$D$53,3,FALSE),"") ->  | AC152: 0 | AE152: =IFERROR(VLOOKUP(AD152,商品マスター!$B$7:$D$53,2,FALSE),"") ->  | AG152: =IFERROR(VLOOKUP(AD152,商品マスター!$B$7:$D$53,3,FALSE),"") ->  | AH152: 0 | AJ152: =IFERROR(VLOOKUP(AI152,商品マスター!$B$7:$D$53,2,FALSE),"") ->  | AL152: =IFERROR(VLOOKUP(AI152,商品マスター!$B$7:$D$53,3,FALSE),"") ->  | AM152: 0 | AO152: =IFERROR(VLOOKUP(AN152,商品マスター!$B$7:$D$53,2,FALSE),"") ->  | AQ152: =IFERROR(VLOOKUP(AN152,商品マスター!$B$7:$D$53,3,FALSE),"") ->  | AR152: 0 | AT152: =IFERROR(VLOOKUP(AS152,商品マスター!$B$7:$D$53,2,FALSE),"") ->  | AV152: =IFERROR(VLOOKUP(AS152,商品マスター!$B$7:$D$53,3,FALSE),"") ->  | AW152: 0 | AY152: =IFERROR(VLOOKUP(AX152,商品マスター!$B$7:$D$53,2,FALSE),"") ->  | BA152: =IFERROR(VLOOKUP(AX152,商品マスター!$B$7:$D$53,3,FALSE),"") ->  | BB152: 0 | BD152: =IFERROR(VLOOKUP(BC152,商品マスター!$B$7:$D$53,2,FALSE),"") ->  | BF152: =IFERROR(VLOOKUP(BC152,商品マスター!$B$7:$D$53,3,FALSE),"") ->  | BG152: 0 | BI152: =IFERROR(VLOOKUP(BH152,商品マスター!$B$7:$D$53,2,FALSE),"") ->  | BK152: =IFERROR(VLOOKUP(BH152,商品マスター!$B$7:$D$53,3,FALSE),"") ->  | BL152: 0 | BM152: 0 | BN152: 0.1 | BO152: 0 | BQ152: 0
I153: =IFERROR(VLOOKUP(H153,得意先マスター!$B$7:$H$103,2,FALSE),"") ->  | J153: =IFERROR(VLOOKUP(H153,得意先マスター!$B$7:$H$103,3,FALSE),"") ->  | K153: =IFERROR(VLOOKUP(H153,得意先マスター!$B$7:$H$103,4,FALSE),"") ->  | L153: =IFERROR(VLOOKUP(H153,得意先マスター!$B$7:$H$103,5,FALSE),"") ->  | M153: =IFERROR(VLOOKUP(H153,得意先マスター!$B$7:$H$103,6,FALSE),"") ->  | P153: =IFERROR(VLOOKUP(O153,商品マスター!$B$7:$D$53,2,FALSE),"") ->  | R153: =IFERROR(VLOOKUP(O153,商品マスター!$B$7:$D$53,3,FALSE),"") ->  | S153: 0 | U153: =IFERROR(VLOOKUP(T153,商品マスター!$B$7:$D$53,2,FALSE),"") ->  | W153: =IFERROR(VLOOKUP(T153,商品マスター!$B$7:$D$53,3,FALSE),"") ->  | X153: 0 | Z153: =IFERROR(VLOOKUP(Y153,商品マスター!$B$7:$D$53,2,FALSE),"") ->  | AB153: =IFERROR(VLOOKUP(Y153,商品マスター!$B$7:$D$53,3,FALSE),"") ->  | AC153: 0 | AE153: =IFERROR(VLOOKUP(AD153,商品マスター!$B$7:$D$53,2,FALSE),"") ->  | AG153: =IFERROR(VLOOKUP(AD153,商品マスター!$B$7:$D$53,3,FALSE),"") ->  | AH153: 0 | AJ153: =IFERROR(VLOOKUP(AI153,商品マスター!$B$7:$D$53,2,FALSE),"") ->  | AL153: =IFERROR(VLOOKUP(AI153,商品マスター!$B$7:$D$53,3,FALSE),"") ->  | AM153: 0 | AO153: =IFERROR(VLOOKUP(AN153,商品マスター!$B$7:$D$53,2,FALSE),"") ->  | AQ153: =IFERROR(VLOOKUP(AN153,商品マスター!$B$7:$D$53,3,FALSE),"") ->  | AR153: 0 | AT153: =IFERROR(VLOOKUP(AS153,商品マスター!$B$7:$D$53,2,FALSE),"") ->  | AV153: =IFERROR(VLOOKUP(AS153,商品マスター!$B$7:$D$53,3,FALSE),"") ->  | AW153: 0 | AY153: =IFERROR(VLOOKUP(AX153,商品マスター!$B$7:$D$53,2,FALSE),"") ->  | BA153: =IFERROR(VLOOKUP(AX153,商品マスター!$B$7:$D$53,3,FALSE),"") ->  | BB153: 0 | BD153: =IFERROR(VLOOKUP(BC153,商品マスター!$B$7:$D$53,2,FALSE),"") ->  | BF153: =IFERROR(VLOOKUP(BC153,商品マスター!$B$7:$D$53,3,FALSE),"") ->  | BG153: 0 | BI153: =IFERROR(VLOOKUP(BH153,商品マスター!$B$7:$D$53,2,FALSE),"") ->  | BK153: =IFERROR(VLOOKUP(BH153,商品マスター!$B$7:$D$53,3,FALSE),"") ->  | BL153: 0 | BM153: 0 | BN153: 0.1 | BO153: 0 | BQ153: 0
I154: =IFERROR(VLOOKUP(H154,得意先マスター!$B$7:$H$103,2,FALSE),"") ->  | J154: =IFERROR(VLOOKUP(H154,得意先マスター!$B$7:$H$103,3,FALSE),"") ->  | K154: =IFERROR(VLOOKUP(H154,得意先マスター!$B$7:$H$103,4,FALSE),"") ->  | L154: =IFERROR(VLOOKUP(H154,得意先マスター!$B$7:$H$103,5,FALSE),"") ->  | M154: =IFERROR(VLOOKUP(H154,得意先マスター!$B$7:$H$103,6,FALSE),"") ->  | P154: =IFERROR(VLOOKUP(O154,商品マスター!$B$7:$D$53,2,FALSE),"") ->  | R154: =IFERROR(VLOOKUP(O154,商品マスター!$B$7:$D$53,3,FALSE),"") ->  | S154: 0 | U154: =IFERROR(VLOOKUP(T154,商品マスター!$B$7:$D$53,2,FALSE),"") ->  | W154: =IFERROR(VLOOKUP(T154,商品マスター!$B$7:$D$53,3,FALSE),"") ->  | X154: 0 | Z154: =IFERROR(VLOOKUP(Y154,商品マスター!$B$7:$D$53,2,FALSE),"") ->  | AB154: =IFERROR(VLOOKUP(Y154,商品マスター!$B$7:$D$53,3,FALSE),"") ->  | AC154: 0 | AE154: =IFERROR(VLOOKUP(AD154,商品マスター!$B$7:$D$53,2,FALSE),"") ->  | AG154: =IFERROR(VLOOKUP(AD154,商品マスター!$B$7:$D$53,3,FALSE),"") ->  | AH154: 0 | AJ154: =IFERROR(VLOOKUP(AI154,商品マスター!$B$7:$D$53,2,FALSE),"") ->  | AL154: =IFERROR(VLOOKUP(AI154,商品マスター!$B$7:$D$53,3,FALSE),"") ->  | AM154: 0 | AO154: =IFERROR(VLOOKUP(AN154,商品マスター!$B$7:$D$53,2,FALSE),"") ->  | AQ154: =IFERROR(VLOOKUP(AN154,商品マスター!$B$7:$D$53,3,FALSE),"") ->  | AR154: 0 | AT154: =IFERROR(VLOOKUP(AS154,商品マスター!$B$7:$D$53,2,FALSE),"") ->  | AV154: =IFERROR(VLOOKUP(AS154,商品マスター!$B$7:$D$53,3,FALSE),"") ->  | AW154: 0 | AY154: =IFERROR(VLOOKUP(AX154,商品マスター!$B$7:$D$53,2,FALSE),"") ->  | BA154: =IFERROR(VLOOKUP(AX154,商品マスター!$B$7:$D$53,3,FALSE),"") ->  | BB154: 0 | BD154: =IFERROR(VLOOKUP(BC154,商品マスター!$B$7:$D$53,2,FALSE),"") ->  | BF154: =IFERROR(VLOOKUP(BC154,商品マスター!$B$7:$D$53,3,FALSE),"") ->  | BG154: 0 | BI154: =IFERROR(VLOOKUP(BH154,商品マスター!$B$7:$D$53,2,FALSE),"") ->  | BK154: =IFERROR(VLOOKUP(BH154,商品マスター!$B$7:$D$53,3,FALSE),"") ->  | BL154: 0 | BM154: 0 | BN154: 0.1 | BO154: 0 | BQ154: 0
I155: =IFERROR(VLOOKUP(H155,得意先マスター!$B$7:$H$103,2,FALSE),"") ->  | J155: =IFERROR(VLOOKUP(H155,得意先マスター!$B$7:$H$103,3,FALSE),"") ->  | K155: =IFERROR(VLOOKUP(H155,得意先マスター!$B$7:$H$103,4,FALSE),"") ->  | L155: =IFERROR(VLOOKUP(H155,得意先マスター!$B$7:$H$103,5,FALSE),"") ->  | M155: =IFERROR(VLOOKUP(H155,得意先マスター!$B$7:$H$103,6,FALSE),"") ->  | P155: =IFERROR(VLOOKUP(O155,商品マスター!$B$7:$D$53,2,FALSE),"") ->  | R155: =IFERROR(VLOOKUP(O155,商品マスター!$B$7:$D$53,3,FALSE),"") ->  | S155: 0 | U155: =IFERROR(VLOOKUP(T155,商品マスター!$B$7:$D$53,2,FALSE),"") ->  | W155: =IFERROR(VLOOKUP(T155,商品マスター!$B$7:$D$53,3,FALSE),"") ->  | X155: 0 | Z155: =IFERROR(VLOOKUP(Y155,商品マスター!$B$7:$D$53,2,FALSE),"") ->  | AB155: =IFERROR(VLOOKUP(Y155,商品マスター!$B$7:$D$53,3,FALSE),"") ->  | AC155: 0 | AE155: =IFERROR(VLOOKUP(AD155,商品マスター!$B$7:$D$53,2,FALSE),"") ->  | AG155: =IFERROR(VLOOKUP(AD155,商品マスター!$B$7:$D$53,3,FALSE),"") ->  | AH155: 0 | AJ155: =IFERROR(VLOOKUP(AI155,商品マスター!$B$7:$D$53,2,FALSE),"") ->  | AL155: =IFERROR(VLOOKUP(AI155,商品マスター!$B$7:$D$53,3,FALSE),"") ->  | AM155: 0 | AO155: =IFERROR(VLOOKUP(AN155,商品マスター!$B$7:$D$53,2,FALSE),"") ->  | AQ155: =IFERROR(VLOOKUP(AN155,商品マスター!$B$7:$D$53,3,FALSE),"") ->  | AR155: 0 | AT155: =IFERROR(VLOOKUP(AS155,商品マスター!$B$7:$D$53,2,FALSE),"") ->  | AV155: =IFERROR(VLOOKUP(AS155,商品マスター!$B$7:$D$53,3,FALSE),"") ->  | AW155: 0 | AY155: =IFERROR(VLOOKUP(AX155,商品マスター!$B$7:$D$53,2,FALSE),"") ->  | BA155: =IFERROR(VLOOKUP(AX155,商品マスター!$B$7:$D$53,3,FALSE),"") ->  | BB155: 0 | BD155: =IFERROR(VLOOKUP(BC155,商品マスター!$B$7:$D$53,2,FALSE),"") ->  | BF155: =IFERROR(VLOOKUP(BC155,商品マスター!$B$7:$D$53,3,FALSE),"") ->  | BG155: 0 | BI155: =IFERROR(VLOOKUP(BH155,商品マスター!$B$7:$D$53,2,FALSE),"") ->  | BK155: =IFERROR(VLOOKUP(BH155,商品マスター!$B$7:$D$53,3,FALSE),"") ->  | BL155: 0 | BM155: 0 | BN155: 0.1 | BO155: 0 | BQ155: 0
I156: =IFERROR(VLOOKUP(H156,得意先マスター!$B$7:$H$103,2,FALSE),"") ->  | J156: =IFERROR(VLOOKUP(H156,得意先マスター!$B$7:$H$103,3,FALSE),"") ->  | K156: =IFERROR(VLOOKUP(H156,得意先マスター!$B$7:$H$103,4,FALSE),"") ->  | L156: =IFERROR(VLOOKUP(H156,得意先マスター!$B$7:$H$103,5,FALSE),"") ->  | M156: =IFERROR(VLOOKUP(H156,得意先マスター!$B$7:$H$103,6,FALSE),"") ->  | P156: =IFERROR(VLOOKUP(O156,商品マスター!$B$7:$D$53,2,FALSE),"") ->  | R156: =IFERROR(VLOOKUP(O156,商品マスター!$B$7:$D$53,3,FALSE),"") ->  | S156: 0 | U156: =IFERROR(VLOOKUP(T156,商品マスター!$B$7:$D$53,2,FALSE),"") ->  | W156: =IFERROR(VLOOKUP(T156,商品マスター!$B$7:$D$53,3,FALSE),"") ->  | X156: 0 | Z156: =IFERROR(VLOOKUP(Y156,商品マスター!$B$7:$D$53,2,FALSE),"") ->  | AB156: =IFERROR(VLOOKUP(Y156,商品マスター!$B$7:$D$53,3,FALSE),"") ->  | AC156: 0 | AE156: =IFERROR(VLOOKUP(AD156,商品マスター!$B$7:$D$53,2,FALSE),"") ->  | AG156: =IFERROR(VLOOKUP(AD156,商品マスター!$B$7:$D$53,3,FALSE),"") ->  | AH156: 0 | AJ156: =IFERROR(VLOOKUP(AI156,商品マスター!$B$7:$D$53,2,FALSE),"") ->  | AL156: =IFERROR(VLOOKUP(AI156,商品マスター!$B$7:$D$53,3,FALSE),"") ->  | AM156: 0 | AO156: =IFERROR(VLOOKUP(AN156,商品マスター!$B$7:$D$53,2,FALSE),"") ->  | AQ156: =IFERROR(VLOOKUP(AN156,商品マスター!$B$7:$D$53,3,FALSE),"") ->  | AR156: 0 | AT156: =IFERROR(VLOOKUP(AS156,商品マスター!$B$7:$D$53,2,FALSE),"") ->  | AV156: =IFERROR(VLOOKUP(AS156,商品マスター!$B$7:$D$53,3,FALSE),"") ->  | AW156: 0 | AY156: =IFERROR(VLOOKUP(AX156,商品マスター!$B$7:$D$53,2,FALSE),"") ->  | BA156: =IFERROR(VLOOKUP(AX156,商品マスター!$B$7:$D$53,3,FALSE),"") ->  | BB156: 0 | BD156: =IFERROR(VLOOKUP(BC156,商品マスター!$B$7:$D$53,2,FALSE),"") ->  | BF156: =IFERROR(VLOOKUP(BC156,商品マスター!$B$7:$D$53,3,FALSE),"") ->  | BG156: 0 | BI156: =IFERROR(VLOOKUP(BH156,商品マスター!$B$7:$D$53,2,FALSE),"") ->  | BK156: =IFERROR(VLOOKUP(BH156,商品マスター!$B$7:$D$53,3,FALSE),"") ->  | BL156: 0 | BM156: 0 | BN156: 0.1 | BO156: 0 | BQ156: 0
I157: =IFERROR(VLOOKUP(H157,得意先マスター!$B$7:$H$103,2,FALSE),"") ->  | J157: =IFERROR(VLOOKUP(H157,得意先マスター!$B$7:$H$103,3,FALSE),"") ->  | K157: =IFERROR(VLOOKUP(H157,得意先マスター!$B$7:$H$103,4,FALSE),"") ->  | L157: =IFERROR(VLOOKUP(H157,得意先マスター!$B$7:$H$103,5,FALSE),"") ->  | M157: =IFERROR(VLOOKUP(H157,得意先マスター!$B$7:$H$103,6,FALSE),"") ->  | P157: =IFERROR(VLOOKUP(O157,商品マスター!$B$7:$D$53,2,FALSE),"") ->  | R157: =IFERROR(VLOOKUP(O157,商品マスター!$B$7:$D$53,3,FALSE),"") ->  | S157: 0 | U157: =IFERROR(VLOOKUP(T157,商品マスター!$B$7:$D$53,2,FALSE),"") ->  | W157: =IFERROR(VLOOKUP(T157,商品マスター!$B$7:$D$53,3,FALSE),"") ->  | X157: 0 | Z157: =IFERROR(VLOOKUP(Y157,商品マスター!$B$7:$D$53,2,FALSE),"") ->  | AB157: =IFERROR(VLOOKUP(Y157,商品マスター!$B$7:$D$53,3,FALSE),"") ->  | AC157: 0 | AE157: =IFERROR(VLOOKUP(AD157,商品マスター!$B$7:$D$53,2,FALSE),"") ->  | AG157: =IFERROR(VLOOKUP(AD157,商品マスター!$B$7:$D$53,3,FALSE),"") ->  | AH157: 0 | AJ157: =IFERROR(VLOOKUP(AI157,商品マスター!$B$7:$D$53,2,FALSE),"") ->  | AL157: =IFERROR(VLOOKUP(AI157,商品マスター!$B$7:$D$53,3,FALSE),"") ->  | AM157: 0 | AO157: =IFERROR(VLOOKUP(AN157,商品マスター!$B$7:$D$53,2,FALSE),"") ->  | AQ157: =IFERROR(VLOOKUP(AN157,商品マスター!$B$7:$D$53,3,FALSE),"") ->  | AR157: 0 | AT157: =IFERROR(VLOOKUP(AS157,商品マスター!$B$7:$D$53,2,FALSE),"") ->  | AV157: =IFERROR(VLOOKUP(AS157,商品マスター!$B$7:$D$53,3,FALSE),"") ->  | AW157: 0 | AY157: =IFERROR(VLOOKUP(AX157,商品マスター!$B$7:$D$53,2,FALSE),"") ->  | BA157: =IFERROR(VLOOKUP(AX157,商品マスター!$B$7:$D$53,3,FALSE),"") ->  | BB157: 0 | BD157: =IFERROR(VLOOKUP(BC157,商品マスター!$B$7:$D$53,2,FALSE),"") ->  | BF157: =IFERROR(VLOOKUP(BC157,商品マスター!$B$7:$D$53,3,FALSE),"") ->  | BG157: 0 | BI157: =IFERROR(VLOOKUP(BH157,商品マスター!$B$7:$D$53,2,FALSE),"") ->  | BK157: =IFERROR(VLOOKUP(BH157,商品マスター!$B$7:$D$53,3,FALSE),"") ->  | BL157: 0 | BM157: 0 | BN157: 0.1 | BO157: 0 | BQ157: 0
I158: =IFERROR(VLOOKUP(H158,得意先マスター!$B$7:$H$103,2,FALSE),"") ->  | J158: =IFERROR(VLOOKUP(H158,得意先マスター!$B$7:$H$103,3,FALSE),"") ->  | K158: =IFERROR(VLOOKUP(H158,得意先マスター!$B$7:$H$103,4,FALSE),"") ->  | L158: =IFERROR(VLOOKUP(H158,得意先マスター!$B$7:$H$103,5,FALSE),"") ->  | M158: =IFERROR(VLOOKUP(H158,得意先マスター!$B$7:$H$103,6,FALSE),"") ->  | P158: =IFERROR(VLOOKUP(O158,商品マスター!$B$7:$D$53,2,FALSE),"") ->  | R158: =IFERROR(VLOOKUP(O158,商品マスター!$B$7:$D$53,3,FALSE),"") ->  | S158: 0 | U158: =IFERROR(VLOOKUP(T158,商品マスター!$B$7:$D$53,2,FALSE),"") ->  | W158: =IFERROR(VLOOKUP(T158,商品マスター!$B$7:$D$53,3,FALSE),"") ->  | X158: 0 | Z158: =IFERROR(VLOOKUP(Y158,商品マスター!$B$7:$D$53,2,FALSE),"") ->  | AB158: =IFERROR(VLOOKUP(Y158,商品マスター!$B$7:$D$53,3,FALSE),"") ->  | AC158: 0 | AE158: =IFERROR(VLOOKUP(AD158,商品マスター!$B$7:$D$53,2,FALSE),"") ->  | AG158: =IFERROR(VLOOKUP(AD158,商品マスター!$B$7:$D$53,3,FALSE),"") ->  | AH158: 0 | AJ158: =IFERROR(VLOOKUP(AI158,商品マスター!$B$7:$D$53,2,FALSE),"") ->  | AL158: =IFERROR(VLOOKUP(AI158,商品マスター!$B$7:$D$53,3,FALSE),"") ->  | AM158: 0 | AO158: =IFERROR(VLOOKUP(AN158,商品マスター!$B$7:$D$53,2,FALSE),"") ->  | AQ158: =IFERROR(VLOOKUP(AN158,商品マスター!$B$7:$D$53,3,FALSE),"") ->  | AR158: 0 | AT158: =IFERROR(VLOOKUP(AS158,商品マスター!$B$7:$D$53,2,FALSE),"") ->  | AV158: =IFERROR(VLOOKUP(AS158,商品マスター!$B$7:$D$53,3,FALSE),"") ->  | AW158: 0 | AY158: =IFERROR(VLOOKUP(AX158,商品マスター!$B$7:$D$53,2,FALSE),"") ->  | BA158: =IFERROR(VLOOKUP(AX158,商品マスター!$B$7:$D$53,3,FALSE),"") ->  | BB158: 0 | BD158: =IFERROR(VLOOKUP(BC158,商品マスター!$B$7:$D$53,2,FALSE),"") ->  | BF158: =IFERROR(VLOOKUP(BC158,商品マスター!$B$7:$D$53,3,FALSE),"") ->  | BG158: 0 | BI158: =IFERROR(VLOOKUP(BH158,商品マスター!$B$7:$D$53,2,FALSE),"") ->  | BK158: =IFERROR(VLOOKUP(BH158,商品マスター!$B$7:$D$53,3,FALSE),"") ->  | BL158: 0 | BM158: 0 | BN158: 0.1 | BO158: 0 | BQ158: 0
I159: =IFERROR(VLOOKUP(H159,得意先マスター!$B$7:$H$103,2,FALSE),"") ->  | J159: =IFERROR(VLOOKUP(H159,得意先マスター!$B$7:$H$103,3,FALSE),"") ->  | K159: =IFERROR(VLOOKUP(H159,得意先マスター!$B$7:$H$103,4,FALSE),"") ->  | L159: =IFERROR(VLOOKUP(H159,得意先マスター!$B$7:$H$103,5,FALSE),"") ->  | M159: =IFERROR(VLOOKUP(H159,得意先マスター!$B$7:$H$103,6,FALSE),"") ->  | P159: =IFERROR(VLOOKUP(O159,商品マスター!$B$7:$D$53,2,FALSE),"") ->  | R159: =IFERROR(VLOOKUP(O159,商品マスター!$B$7:$D$53,3,FALSE),"") ->  | S159: 0 | U159: =IFERROR(VLOOKUP(T159,商品マスター!$B$7:$D$53,2,FALSE),"") ->  | W159: =IFERROR(VLOOKUP(T159,商品マスター!$B$7:$D$53,3,FALSE),"") ->  | X159: 0 | Z159: =IFERROR(VLOOKUP(Y159,商品マスター!$B$7:$D$53,2,FALSE),"") ->  | AB159: =IFERROR(VLOOKUP(Y159,商品マスター!$B$7:$D$53,3,FALSE),"") ->  | AC159: 0 | AE159: =IFERROR(VLOOKUP(AD159,商品マスター!$B$7:$D$53,2,FALSE),"") ->  | AG159: =IFERROR(VLOOKUP(AD159,商品マスター!$B$7:$D$53,3,FALSE),"") ->  | AH159: 0 | AJ159: =IFERROR(VLOOKUP(AI159,商品マスター!$B$7:$D$53,2,FALSE),"") ->  | AL159: =IFERROR(VLOOKUP(AI159,商品マスター!$B$7:$D$53,3,FALSE),"") ->  | AM159: 0 | AO159: =IFERROR(VLOOKUP(AN159,商品マスター!$B$7:$D$53,2,FALSE),"") ->  | AQ159: =IFERROR(VLOOKUP(AN159,商品マスター!$B$7:$D$53,3,FALSE),"") ->  | AR159: 0 | AT159: =IFERROR(VLOOKUP(AS159,商品マスター!$B$7:$D$53,2,FALSE),"") ->  | AV159: =IFERROR(VLOOKUP(AS159,商品マスター!$B$7:$D$53,3,FALSE),"") ->  | AW159: 0 | AY159: =IFERROR(VLOOKUP(AX159,商品マスター!$B$7:$D$53,2,FALSE),"") ->  | BA159: =IFERROR(VLOOKUP(AX159,商品マスター!$B$7:$D$53,3,FALSE),"") ->  | BB159: 0 | BD159: =IFERROR(VLOOKUP(BC159,商品マスター!$B$7:$D$53,2,FALSE),"") ->  | BF159: =IFERROR(VLOOKUP(BC159,商品マスター!$B$7:$D$53,3,FALSE),"") ->  | BG159: 0 | BI159: =IFERROR(VLOOKUP(BH159,商品マスター!$B$7:$D$53,2,FALSE),"") ->  | BK159: =IFERROR(VLOOKUP(BH159,商品マスター!$B$7:$D$53,3,FALSE),"") ->  | BL159: 0 | BM159: 0 | BN159: 0.1 | BO159: 0 | BQ159: 0
I160: =IFERROR(VLOOKUP(H160,得意先マスター!$B$7:$H$103,2,FALSE),"") ->  | J160: =IFERROR(VLOOKUP(H160,得意先マスター!$B$7:$H$103,3,FALSE),"") ->  | K160: =IFERROR(VLOOKUP(H160,得意先マスター!$B$7:$H$103,4,FALSE),"") ->  | L160: =IFERROR(VLOOKUP(H160,得意先マスター!$B$7:$H$103,5,FALSE),"") ->  | M160: =IFERROR(VLOOKUP(H160,得意先マスター!$B$7:$H$103,6,FALSE),"") ->  | P160: =IFERROR(VLOOKUP(O160,商品マスター!$B$7:$D$53,2,FALSE),"") ->  | R160: =IFERROR(VLOOKUP(O160,商品マスター!$B$7:$D$53,3,FALSE),"") ->  | S160: 0 | U160: =IFERROR(VLOOKUP(T160,商品マスター!$B$7:$D$53,2,FALSE),"") ->  | W160: =IFERROR(VLOOKUP(T160,商品マスター!$B$7:$D$53,3,FALSE),"") ->  | X160: 0 | Z160: =IFERROR(VLOOKUP(Y160,商品マスター!$B$7:$D$53,2,FALSE),"") ->  | AB160: =IFERROR(VLOOKUP(Y160,商品マスター!$B$7:$D$53,3,FALSE),"") ->  | AC160: 0 | AE160: =IFERROR(VLOOKUP(AD160,商品マスター!$B$7:$D$53,2,FALSE),"") ->  | AG160: =IFERROR(VLOOKUP(AD160,商品マスター!$B$7:$D$53,3,FALSE),"") ->  | AH160: 0 | AJ160: =IFERROR(VLOOKUP(AI160,商品マスター!$B$7:$D$53,2,FALSE),"") ->  | AL160: =IFERROR(VLOOKUP(AI160,商品マスター!$B$7:$D$53,3,FALSE),"") ->  | AM160: 0 | AO160: =IFERROR(VLOOKUP(AN160,商品マスター!$B$7:$D$53,2,FALSE),"") ->  | AQ160: =IFERROR(VLOOKUP(AN160,商品マスター!$B$7:$D$53,3,FALSE),"") ->  | AR160: 0 | AT160: =IFERROR(VLOOKUP(AS160,商品マスター!$B$7:$D$53,2,FALSE),"") ->  | AV160: =IFERROR(VLOOKUP(AS160,商品マスター!$B$7:$D$53,3,FALSE),"") ->  | AW160: 0 | AY160: =IFERROR(VLOOKUP(AX160,商品マスター!$B$7:$D$53,2,FALSE),"") ->  | BA160: =IFERROR(VLOOKUP(AX160,商品マスター!$B$7:$D$53,3,FALSE),"") ->  | BB160: 0 | BD160: =IFERROR(VLOOKUP(BC160,商品マスター!$B$7:$D$53,2,FALSE),"") ->  | BF160: =IFERROR(VLOOKUP(BC160,商品マスター!$B$7:$D$53,3,FALSE),"") ->  | BG160: 0 | BI160: =IFERROR(VLOOKUP(BH160,商品マスター!$B$7:$D$53,2,FALSE),"") ->  | BK160: =IFERROR(VLOOKUP(BH160,商品マスター!$B$7:$D$53,3,FALSE),"") ->  | BL160: 0 | BM160: 0 | BN160: 0.1 | BO160: 0 | BQ160: 0
I161: =IFERROR(VLOOKUP(H161,得意先マスター!$B$7:$H$103,2,FALSE),"") ->  | J161: =IFERROR(VLOOKUP(H161,得意先マスター!$B$7:$H$103,3,FALSE),"") ->  | K161: =IFERROR(VLOOKUP(H161,得意先マスター!$B$7:$H$103,4,FALSE),"") ->  | L161: =IFERROR(VLOOKUP(H161,得意先マスター!$B$7:$H$103,5,FALSE),"") ->  | M161: =IFERROR(VLOOKUP(H161,得意先マスター!$B$7:$H$103,6,FALSE),"") ->  | P161: =IFERROR(VLOOKUP(O161,商品マスター!$B$7:$D$53,2,FALSE),"") ->  | R161: =IFERROR(VLOOKUP(O161,商品マスター!$B$7:$D$53,3,FALSE),"") ->  | S161: 0 | U161: =IFERROR(VLOOKUP(T161,商品マスター!$B$7:$D$53,2,FALSE),"") ->  | W161: =IFERROR(VLOOKUP(T161,商品マスター!$B$7:$D$53,3,FALSE),"") ->  | X161: 0 | Z161: =IFERROR(VLOOKUP(Y161,商品マスター!$B$7:$D$53,2,FALSE),"") ->  | AB161: =IFERROR(VLOOKUP(Y161,商品マスター!$B$7:$D$53,3,FALSE),"") ->  | AC161: 0 | AE161: =IFERROR(VLOOKUP(AD161,商品マスター!$B$7:$D$53,2,FALSE),"") ->  | AG161: =IFERROR(VLOOKUP(AD161,商品マスター!$B$7:$D$53,3,FALSE),"") ->  | AH161: 0 | AJ161: =IFERROR(VLOOKUP(AI161,商品マスター!$B$7:$D$53,2,FALSE),"") ->  | AL161: =IFERROR(VLOOKUP(AI161,商品マスター!$B$7:$D$53,3,FALSE),"") ->  | AM161: 0 | AO161: =IFERROR(VLOOKUP(AN161,商品マスター!$B$7:$D$53,2,FALSE),"") ->  | AQ161: =IFERROR(VLOOKUP(AN161,商品マスター!$B$7:$D$53,3,FALSE),"") ->  | AR161: 0 | AT161: =IFERROR(VLOOKUP(AS161,商品マスター!$B$7:$D$53,2,FALSE),"") ->  | AV161: =IFERROR(VLOOKUP(AS161,商品マスター!$B$7:$D$53,3,FALSE),"") ->  | AW161: 0 | AY161: =IFERROR(VLOOKUP(AX161,商品マスター!$B$7:$D$53,2,FALSE),"") ->  | BA161: =IFERROR(VLOOKUP(AX161,商品マスター!$B$7:$D$53,3,FALSE),"") ->  | BB161: 0 | BD161: =IFERROR(VLOOKUP(BC161,商品マスター!$B$7:$D$53,2,FALSE),"") ->  | BF161: =IFERROR(VLOOKUP(BC161,商品マスター!$B$7:$D$53,3,FALSE),"") ->  | BG161: 0 | BI161: =IFERROR(VLOOKUP(BH161,商品マスター!$B$7:$D$53,2,FALSE),"") ->  | BK161: =IFERROR(VLOOKUP(BH161,商品マスター!$B$7:$D$53,3,FALSE),"") ->  | BL161: 0 | BM161: 0 | BN161: 0.1 | BO161: 0 | BQ161: 0
I162: =IFERROR(VLOOKUP(H162,得意先マスター!$B$7:$H$103,2,FALSE),"") ->  | J162: =IFERROR(VLOOKUP(H162,得意先マスター!$B$7:$H$103,3,FALSE),"") ->  | K162: =IFERROR(VLOOKUP(H162,得意先マスター!$B$7:$H$103,4,FALSE),"") ->  | L162: =IFERROR(VLOOKUP(H162,得意先マスター!$B$7:$H$103,5,FALSE),"") ->  | M162: =IFERROR(VLOOKUP(H162,得意先マスター!$B$7:$H$103,6,FALSE),"") ->  | P162: =IFERROR(VLOOKUP(O162,商品マスター!$B$7:$D$53,2,FALSE),"") ->  | R162: =IFERROR(VLOOKUP(O162,商品マスター!$B$7:$D$53,3,FALSE),"") ->  | S162: 0 | U162: =IFERROR(VLOOKUP(T162,商品マスター!$B$7:$D$53,2,FALSE),"") ->  | W162: =IFERROR(VLOOKUP(T162,商品マスター!$B$7:$D$53,3,FALSE),"") ->  | X162: 0 | Z162: =IFERROR(VLOOKUP(Y162,商品マスター!$B$7:$D$53,2,FALSE),"") ->  | AB162: =IFERROR(VLOOKUP(Y162,商品マスター!$B$7:$D$53,3,FALSE),"") ->  | AC162: 0 | AE162: =IFERROR(VLOOKUP(AD162,商品マスター!$B$7:$D$53,2,FALSE),"") ->  | AG162: =IFERROR(VLOOKUP(AD162,商品マスター!$B$7:$D$53,3,FALSE),"") ->  | AH162: 0 | AJ162: =IFERROR(VLOOKUP(AI162,商品マスター!$B$7:$D$53,2,FALSE),"") ->  | AL162: =IFERROR(VLOOKUP(AI162,商品マスター!$B$7:$D$53,3,FALSE),"") ->  | AM162: 0 | AO162: =IFERROR(VLOOKUP(AN162,商品マスター!$B$7:$D$53,2,FALSE),"") ->  | AQ162: =IFERROR(VLOOKUP(AN162,商品マスター!$B$7:$D$53,3,FALSE),"") ->  | AR162: 0 | AT162: =IFERROR(VLOOKUP(AS162,商品マスター!$B$7:$D$53,2,FALSE),"") ->  | AV162: =IFERROR(VLOOKUP(AS162,商品マスター!$B$7:$D$53,3,FALSE),"") ->  | AW162: 0 | AY162: =IFERROR(VLOOKUP(AX162,商品マスター!$B$7:$D$53,2,FALSE),"") ->  | BA162: =IFERROR(VLOOKUP(AX162,商品マスター!$B$7:$D$53,3,FALSE),"") ->  | BB162: 0 | BD162: =IFERROR(VLOOKUP(BC162,商品マスター!$B$7:$D$53,2,FALSE),"") ->  | BF162: =IFERROR(VLOOKUP(BC162,商品マスター!$B$7:$D$53,3,FALSE),"") ->  | BG162: 0 | BI162: =IFERROR(VLOOKUP(BH162,商品マスター!$B$7:$D$53,2,FALSE),"") ->  | BK162: =IFERROR(VLOOKUP(BH162,商品マスター!$B$7:$D$53,3,FALSE),"") ->  | BL162: 0 | BM162: 0 | BN162: 0.1 | BO162: 0 | BQ162: 0
I163: =IFERROR(VLOOKUP(H163,得意先マスター!$B$7:$H$103,2,FALSE),"") ->  | J163: =IFERROR(VLOOKUP(H163,得意先マスター!$B$7:$H$103,3,FALSE),"") ->  | K163: =IFERROR(VLOOKUP(H163,得意先マスター!$B$7:$H$103,4,FALSE),"") ->  | L163: =IFERROR(VLOOKUP(H163,得意先マスター!$B$7:$H$103,5,FALSE),"") ->  | M163: =IFERROR(VLOOKUP(H163,得意先マスター!$B$7:$H$103,6,FALSE),"") ->  | P163: =IFERROR(VLOOKUP(O163,商品マスター!$B$7:$D$53,2,FALSE),"") ->  | R163: =IFERROR(VLOOKUP(O163,商品マスター!$B$7:$D$53,3,FALSE),"") ->  | S163: 0 | U163: =IFERROR(VLOOKUP(T163,商品マスター!$B$7:$D$53,2,FALSE),"") ->  | W163: =IFERROR(VLOOKUP(T163,商品マスター!$B$7:$D$53,3,FALSE),"") ->  | X163: 0 | Z163: =IFERROR(VLOOKUP(Y163,商品マスター!$B$7:$D$53,2,FALSE),"") ->  | AB163: =IFERROR(VLOOKUP(Y163,商品マスター!$B$7:$D$53,3,FALSE),"") ->  | AC163: 0 | AE163: =IFERROR(VLOOKUP(AD163,商品マスター!$B$7:$D$53,2,FALSE),"") ->  | AG163: =IFERROR(VLOOKUP(AD163,商品マスター!$B$7:$D$53,3,FALSE),"") ->  | AH163: 0 | AJ163: =IFERROR(VLOOKUP(AI163,商品マスター!$B$7:$D$53,2,FALSE),"") ->  | AL163: =IFERROR(VLOOKUP(AI163,商品マスター!$B$7:$D$53,3,FALSE),"") ->  | AM163: 0 | AO163: =IFERROR(VLOOKUP(AN163,商品マスター!$B$7:$D$53,2,FALSE),"") ->  | AQ163: =IFERROR(VLOOKUP(AN163,商品マスター!$B$7:$D$53,3,FALSE),"") ->  | AR163: 0 | AT163: =IFERROR(VLOOKUP(AS163,商品マスター!$B$7:$D$53,2,FALSE),"") ->  | AV163: =IFERROR(VLOOKUP(AS163,商品マスター!$B$7:$D$53,3,FALSE),"") ->  | AW163: 0 | AY163: =IFERROR(VLOOKUP(AX163,商品マスター!$B$7:$D$53,2,FALSE),"") ->  | BA163: =IFERROR(VLOOKUP(AX163,商品マスター!$B$7:$D$53,3,FALSE),"") ->  | BB163: 0 | BD163: =IFERROR(VLOOKUP(BC163,商品マスター!$B$7:$D$53,2,FALSE),"") ->  | BF163: =IFERROR(VLOOKUP(BC163,商品マスター!$B$7:$D$53,3,FALSE),"") ->  | BG163: 0 | BI163: =IFERROR(VLOOKUP(BH163,商品マスター!$B$7:$D$53,2,FALSE),"") ->  | BK163: =IFERROR(VLOOKUP(BH163,商品マスター!$B$7:$D$53,3,FALSE),"") ->  | BL163: 0 | BM163: 0 | BN163: 0.1 | BO163: 0 | BQ163: 0
I164: =IFERROR(VLOOKUP(H164,得意先マスター!$B$7:$H$103,2,FALSE),"") ->  | J164: =IFERROR(VLOOKUP(H164,得意先マスター!$B$7:$H$103,3,FALSE),"") ->  | K164: =IFERROR(VLOOKUP(H164,得意先マスター!$B$7:$H$103,4,FALSE),"") ->  | L164: =IFERROR(VLOOKUP(H164,得意先マスター!$B$7:$H$103,5,FALSE),"") ->  | M164: =IFERROR(VLOOKUP(H164,得意先マスター!$B$7:$H$103,6,FALSE),"") ->  | P164: =IFERROR(VLOOKUP(O164,商品マスター!$B$7:$D$53,2,FALSE),"") ->  | R164: =IFERROR(VLOOKUP(O164,商品マスター!$B$7:$D$53,3,FALSE),"") ->  | S164: 0 | U164: =IFERROR(VLOOKUP(T164,商品マスター!$B$7:$D$53,2,FALSE),"") ->  | W164: =IFERROR(VLOOKUP(T164,商品マスター!$B$7:$D$53,3,FALSE),"") ->  | X164: 0 | Z164: =IFERROR(VLOOKUP(Y164,商品マスター!$B$7:$D$53,2,FALSE),"") ->  | AB164: =IFERROR(VLOOKUP(Y164,商品マスター!$B$7:$D$53,3,FALSE),"") ->  | AC164: 0 | AE164: =IFERROR(VLOOKUP(AD164,商品マスター!$B$7:$D$53,2,FALSE),"") ->  | AG164: =IFERROR(VLOOKUP(AD164,商品マスター!$B$7:$D$53,3,FALSE),"") ->  | AH164: 0 | AJ164: =IFERROR(VLOOKUP(AI164,商品マスター!$B$7:$D$53,2,FALSE),"") ->  | AL164: =IFERROR(VLOOKUP(AI164,商品マスター!$B$7:$D$53,3,FALSE),"") ->  | AM164: 0 | AO164: =IFERROR(VLOOKUP(AN164,商品マスター!$B$7:$D$53,2,FALSE),"") ->  | AQ164: =IFERROR(VLOOKUP(AN164,商品マスター!$B$7:$D$53,3,FALSE),"") ->  | AR164: 0 | AT164: =IFERROR(VLOOKUP(AS164,商品マスター!$B$7:$D$53,2,FALSE),"") ->  | AV164: =IFERROR(VLOOKUP(AS164,商品マスター!$B$7:$D$53,3,FALSE),"") ->  | AW164: 0 | AY164: =IFERROR(VLOOKUP(AX164,商品マスター!$B$7:$D$53,2,FALSE),"") ->  | BA164: =IFERROR(VLOOKUP(AX164,商品マスター!$B$7:$D$53,3,FALSE),"") ->  | BB164: 0 | BD164: =IFERROR(VLOOKUP(BC164,商品マスター!$B$7:$D$53,2,FALSE),"") ->  | BF164: =IFERROR(VLOOKUP(BC164,商品マスター!$B$7:$D$53,3,FALSE),"") ->  | BG164: 0 | BI164: =IFERROR(VLOOKUP(BH164,商品マスター!$B$7:$D$53,2,FALSE),"") ->  | BK164: =IFERROR(VLOOKUP(BH164,商品マスター!$B$7:$D$53,3,FALSE),"") ->  | BL164: 0 | BM164: 0 | BN164: 0.1 | BO164: 0 | BQ164: 0
I165: =IFERROR(VLOOKUP(H165,得意先マスター!$B$7:$H$103,2,FALSE),"") ->  | J165: =IFERROR(VLOOKUP(H165,得意先マスター!$B$7:$H$103,3,FALSE),"") ->  | K165: =IFERROR(VLOOKUP(H165,得意先マスター!$B$7:$H$103,4,FALSE),"") ->  | L165: =IFERROR(VLOOKUP(H165,得意先マスター!$B$7:$H$103,5,FALSE),"") ->  | M165: =IFERROR(VLOOKUP(H165,得意先マスター!$B$7:$H$103,6,FALSE),"") ->  | P165: =IFERROR(VLOOKUP(O165,商品マスター!$B$7:$D$53,2,FALSE),"") ->  | R165: =IFERROR(VLOOKUP(O165,商品マスター!$B$7:$D$53,3,FALSE),"") ->  | S165: 0 | U165: =IFERROR(VLOOKUP(T165,商品マスター!$B$7:$D$53,2,FALSE),"") ->  | W165: =IFERROR(VLOOKUP(T165,商品マスター!$B$7:$D$53,3,FALSE),"") ->  | X165: 0 | Z165: =IFERROR(VLOOKUP(Y165,商品マスター!$B$7:$D$53,2,FALSE),"") ->  | AB165: =IFERROR(VLOOKUP(Y165,商品マスター!$B$7:$D$53,3,FALSE),"") ->  | AC165: 0 | AE165: =IFERROR(VLOOKUP(AD165,商品マスター!$B$7:$D$53,2,FALSE),"") ->  | AG165: =IFERROR(VLOOKUP(AD165,商品マスター!$B$7:$D$53,3,FALSE),"") ->  | AH165: 0 | AJ165: =IFERROR(VLOOKUP(AI165,商品マスター!$B$7:$D$53,2,FALSE),"") ->  | AL165: =IFERROR(VLOOKUP(AI165,商品マスター!$B$7:$D$53,3,FALSE),"") ->  | AM165: 0 | AO165: =IFERROR(VLOOKUP(AN165,商品マスター!$B$7:$D$53,2,FALSE),"") ->  | AQ165: =IFERROR(VLOOKUP(AN165,商品マスター!$B$7:$D$53,3,FALSE),"") ->  | AR165: 0 | AT165: =IFERROR(VLOOKUP(AS165,商品マスター!$B$7:$D$53,2,FALSE),"") ->  | AV165: =IFERROR(VLOOKUP(AS165,商品マスター!$B$7:$D$53,3,FALSE),"") ->  | AW165: 0 | AY165: =IFERROR(VLOOKUP(AX165,商品マスター!$B$7:$D$53,2,FALSE),"") ->  | BA165: =IFERROR(VLOOKUP(AX165,商品マスター!$B$7:$D$53,3,FALSE),"") ->  | BB165: 0 | BD165: =IFERROR(VLOOKUP(BC165,商品マスター!$B$7:$D$53,2,FALSE),"") ->  | BF165: =IFERROR(VLOOKUP(BC165,商品マスター!$B$7:$D$53,3,FALSE),"") ->  | BG165: 0 | BI165: =IFERROR(VLOOKUP(BH165,商品マスター!$B$7:$D$53,2,FALSE),"") ->  | BK165: =IFERROR(VLOOKUP(BH165,商品マスター!$B$7:$D$53,3,FALSE),"") ->  | BL165: 0 | BM165: 0 | BN165: 0.1 | BO165: 0 | BQ165: 0
I166: =IFERROR(VLOOKUP(H166,得意先マスター!$B$7:$H$103,2,FALSE),"") ->  | J166: =IFERROR(VLOOKUP(H166,得意先マスター!$B$7:$H$103,3,FALSE),"") ->  | K166: =IFERROR(VLOOKUP(H166,得意先マスター!$B$7:$H$103,4,FALSE),"") ->  | L166: =IFERROR(VLOOKUP(H166,得意先マスター!$B$7:$H$103,5,FALSE),"") ->  | M166: =IFERROR(VLOOKUP(H166,得意先マスター!$B$7:$H$103,6,FALSE),"") ->  | P166: =IFERROR(VLOOKUP(O166,商品マスター!$B$7:$D$53,2,FALSE),"") ->  | R166: =IFERROR(VLOOKUP(O166,商品マスター!$B$7:$D$53,3,FALSE),"") ->  | S166: 0 | U166: =IFERROR(VLOOKUP(T166,商品マスター!$B$7:$D$53,2,FALSE),"") ->  | W166: =IFERROR(VLOOKUP(T166,商品マスター!$B$7:$D$53,3,FALSE),"") ->  | X166: 0 | Z166: =IFERROR(VLOOKUP(Y166,商品マスター!$B$7:$D$53,2,FALSE),"") ->  | AB166: =IFERROR(VLOOKUP(Y166,商品マスター!$B$7:$D$53,3,FALSE),"") ->  | AC166: 0 | AE166: =IFERROR(VLOOKUP(AD166,商品マスター!$B$7:$D$53,2,FALSE),"") ->  | AG166: =IFERROR(VLOOKUP(AD166,商品マスター!$B$7:$D$53,3,FALSE),"") ->  | AH166: 0 | AJ166: =IFERROR(VLOOKUP(AI166,商品マスター!$B$7:$D$53,2,FALSE),"") ->  | AL166: =IFERROR(VLOOKUP(AI166,商品マスター!$B$7:$D$53,3,FALSE),"") ->  | AM166: 0 | AO166: =IFERROR(VLOOKUP(AN166,商品マスター!$B$7:$D$53,2,FALSE),"") ->  | AQ166: =IFERROR(VLOOKUP(AN166,商品マスター!$B$7:$D$53,3,FALSE),"") ->  | AR166: 0 | AT166: =IFERROR(VLOOKUP(AS166,商品マスター!$B$7:$D$53,2,FALSE),"") ->  | AV166: =IFERROR(VLOOKUP(AS166,商品マスター!$B$7:$D$53,3,FALSE),"") ->  | AW166: 0 | AY166: =IFERROR(VLOOKUP(AX166,商品マスター!$B$7:$D$53,2,FALSE),"") ->  | BA166: =IFERROR(VLOOKUP(AX166,商品マスター!$B$7:$D$53,3,FALSE),"") ->  | BB166: 0 | BD166: =IFERROR(VLOOKUP(BC166,商品マスター!$B$7:$D$53,2,FALSE),"") ->  | BF166: =IFERROR(VLOOKUP(BC166,商品マスター!$B$7:$D$53,3,FALSE),"") ->  | BG166: 0 | BI166: =IFERROR(VLOOKUP(BH166,商品マスター!$B$7:$D$53,2,FALSE),"") ->  | BK166: =IFERROR(VLOOKUP(BH166,商品マスター!$B$7:$D$53,3,FALSE),"") ->  | BL166: 0 | BM166: 0 | BN166: 0.1 | BO166: 0 | BQ166: 0
I167: =IFERROR(VLOOKUP(H167,得意先マスター!$B$7:$H$103,2,FALSE),"") ->  | J167: =IFERROR(VLOOKUP(H167,得意先マスター!$B$7:$H$103,3,FALSE),"") ->  | K167: =IFERROR(VLOOKUP(H167,得意先マスター!$B$7:$H$103,4,FALSE),"") ->  | L167: =IFERROR(VLOOKUP(H167,得意先マスター!$B$7:$H$103,5,FALSE),"") ->  | M167: =IFERROR(VLOOKUP(H167,得意先マスター!$B$7:$H$103,6,FALSE),"") ->  | P167: =IFERROR(VLOOKUP(O167,商品マスター!$B$7:$D$53,2,FALSE),"") ->  | R167: =IFERROR(VLOOKUP(O167,商品マスター!$B$7:$D$53,3,FALSE),"") ->  | S167: 0 | U167: =IFERROR(VLOOKUP(T167,商品マスター!$B$7:$D$53,2,FALSE),"") ->  | W167: =IFERROR(VLOOKUP(T167,商品マスター!$B$7:$D$53,3,FALSE),"") ->  | X167: 0 | Z167: =IFERROR(VLOOKUP(Y167,商品マスター!$B$7:$D$53,2,FALSE),"") ->  | AB167: =IFERROR(VLOOKUP(Y167,商品マスター!$B$7:$D$53,3,FALSE),"") ->  | AC167: 0 | AE167: =IFERROR(VLOOKUP(AD167,商品マスター!$B$7:$D$53,2,FALSE),"") ->  | AG167: =IFERROR(VLOOKUP(AD167,商品マスター!$B$7:$D$53,3,FALSE),"") ->  | AH167: 0 | AJ167: =IFERROR(VLOOKUP(AI167,商品マスター!$B$7:$D$53,2,FALSE),"") ->  | AL167: =IFERROR(VLOOKUP(AI167,商品マスター!$B$7:$D$53,3,FALSE),"") ->  | AM167: 0 | AO167: =IFERROR(VLOOKUP(AN167,商品マスター!$B$7:$D$53,2,FALSE),"") ->  | AQ167: =IFERROR(VLOOKUP(AN167,商品マスター!$B$7:$D$53,3,FALSE),"") ->  | AR167: 0 | AT167: =IFERROR(VLOOKUP(AS167,商品マスター!$B$7:$D$53,2,FALSE),"") ->  | AV167: =IFERROR(VLOOKUP(AS167,商品マスター!$B$7:$D$53,3,FALSE),"") ->  | AW167: 0 | AY167: =IFERROR(VLOOKUP(AX167,商品マスター!$B$7:$D$53,2,FALSE),"") ->  | BA167: =IFERROR(VLOOKUP(AX167,商品マスター!$B$7:$D$53,3,FALSE),"") ->  | BB167: 0 | BD167: =IFERROR(VLOOKUP(BC167,商品マスター!$B$7:$D$53,2,FALSE),"") ->  | BF167: =IFERROR(VLOOKUP(BC167,商品マスター!$B$7:$D$53,3,FALSE),"") ->  | BG167: 0 | BI167: =IFERROR(VLOOKUP(BH167,商品マスター!$B$7:$D$53,2,FALSE),"") ->  | BK167: =IFERROR(VLOOKUP(BH167,商品マスター!$B$7:$D$53,3,FALSE),"") ->  | BL167: 0 | BM167: 0 | BN167: 0.1 | BO167: 0 | BQ167: 0
I168: =IFERROR(VLOOKUP(H168,得意先マスター!$B$7:$H$103,2,FALSE),"") ->  | J168: =IFERROR(VLOOKUP(H168,得意先マスター!$B$7:$H$103,3,FALSE),"") ->  | K168: =IFERROR(VLOOKUP(H168,得意先マスター!$B$7:$H$103,4,FALSE),"") ->  | L168: =IFERROR(VLOOKUP(H168,得意先マスター!$B$7:$H$103,5,FALSE),"") ->  | M168: =IFERROR(VLOOKUP(H168,得意先マスター!$B$7:$H$103,6,FALSE),"") ->  | P168: =IFERROR(VLOOKUP(O168,商品マスター!$B$7:$D$53,2,FALSE),"") ->  | R168: =IFERROR(VLOOKUP(O168,商品マスター!$B$7:$D$53,3,FALSE),"") ->  | S168: 0 | U168: =IFERROR(VLOOKUP(T168,商品マスター!$B$7:$D$53,2,FALSE),"") ->  | W168: =IFERROR(VLOOKUP(T168,商品マスター!$B$7:$D$53,3,FALSE),"") ->  | X168: 0 | Z168: =IFERROR(VLOOKUP(Y168,商品マスター!$B$7:$D$53,2,FALSE),"") ->  | AB168: =IFERROR(VLOOKUP(Y168,商品マスター!$B$7:$D$53,3,FALSE),"") ->  | AC168: 0 | AE168: =IFERROR(VLOOKUP(AD168,商品マスター!$B$7:$D$53,2,FALSE),"") ->  | AG168: =IFERROR(VLOOKUP(AD168,商品マスター!$B$7:$D$53,3,FALSE),"") ->  | AH168: 0 | AJ168: =IFERROR(VLOOKUP(AI168,商品マスター!$B$7:$D$53,2,FALSE),"") ->  | AL168: =IFERROR(VLOOKUP(AI168,商品マスター!$B$7:$D$53,3,FALSE),"") ->  | AM168: 0 | AO168: =IFERROR(VLOOKUP(AN168,商品マスター!$B$7:$D$53,2,FALSE),"") ->  | AQ168: =IFERROR(VLOOKUP(AN168,商品マスター!$B$7:$D$53,3,FALSE),"") ->  | AR168: 0 | AT168: =IFERROR(VLOOKUP(AS168,商品マスター!$B$7:$D$53,2,FALSE),"") ->  | AV168: =IFERROR(VLOOKUP(AS168,商品マスター!$B$7:$D$53,3,FALSE),"") ->  | AW168: 0 | AY168: =IFERROR(VLOOKUP(AX168,商品マスター!$B$7:$D$53,2,FALSE),"") ->  | BA168: =IFERROR(VLOOKUP(AX168,商品マスター!$B$7:$D$53,3,FALSE),"") ->  | BB168: 0 | BD168: =IFERROR(VLOOKUP(BC168,商品マスター!$B$7:$D$53,2,FALSE),"") ->  | BF168: =IFERROR(VLOOKUP(BC168,商品マスター!$B$7:$D$53,3,FALSE),"") ->  | BG168: 0 | BI168: =IFERROR(VLOOKUP(BH168,商品マスター!$B$7:$D$53,2,FALSE),"") ->  | BK168: =IFERROR(VLOOKUP(BH168,商品マスター!$B$7:$D$53,3,FALSE),"") ->  | BL168: 0 | BM168: 0 | BN168: 0.1 | BO168: 0 | BQ168: 0
I169: =IFERROR(VLOOKUP(H169,得意先マスター!$B$7:$H$103,2,FALSE),"") ->  | J169: =IFERROR(VLOOKUP(H169,得意先マスター!$B$7:$H$103,3,FALSE),"") ->  | K169: =IFERROR(VLOOKUP(H169,得意先マスター!$B$7:$H$103,4,FALSE),"") ->  | L169: =IFERROR(VLOOKUP(H169,得意先マスター!$B$7:$H$103,5,FALSE),"") ->  | M169: =IFERROR(VLOOKUP(H169,得意先マスター!$B$7:$H$103,6,FALSE),"") ->  | P169: =IFERROR(VLOOKUP(O169,商品マスター!$B$7:$D$53,2,FALSE),"") ->  | R169: =IFERROR(VLOOKUP(O169,商品マスター!$B$7:$D$53,3,FALSE),"") ->  | S169: 0 | U169: =IFERROR(VLOOKUP(T169,商品マスター!$B$7:$D$53,2,FALSE),"") ->  | W169: =IFERROR(VLOOKUP(T169,商品マスター!$B$7:$D$53,3,FALSE),"") ->  | X169: 0 | Z169: =IFERROR(VLOOKUP(Y169,商品マスター!$B$7:$D$53,2,FALSE),"") ->  | AB169: =IFERROR(VLOOKUP(Y169,商品マスター!$B$7:$D$53,3,FALSE),"") ->  | AC169: 0 | AE169: =IFERROR(VLOOKUP(AD169,商品マスター!$B$7:$D$53,2,FALSE),"") ->  | AG169: =IFERROR(VLOOKUP(AD169,商品マスター!$B$7:$D$53,3,FALSE),"") ->  | AH169: 0 | AJ169: =IFERROR(VLOOKUP(AI169,商品マスター!$B$7:$D$53,2,FALSE),"") ->  | AL169: =IFERROR(VLOOKUP(AI169,商品マスター!$B$7:$D$53,3,FALSE),"") ->  | AM169: 0 | AO169: =IFERROR(VLOOKUP(AN169,商品マスター!$B$7:$D$53,2,FALSE),"") ->  | AQ169: =IFERROR(VLOOKUP(AN169,商品マスター!$B$7:$D$53,3,FALSE),"") ->  | AR169: 0 | AT169: =IFERROR(VLOOKUP(AS169,商品マスター!$B$7:$D$53,2,FALSE),"") ->  | AV169: =IFERROR(VLOOKUP(AS169,商品マスター!$B$7:$D$53,3,FALSE),"") ->  | AW169: 0 | AY169: =IFERROR(VLOOKUP(AX169,商品マスター!$B$7:$D$53,2,FALSE),"") ->  | BA169: =IFERROR(VLOOKUP(AX169,商品マスター!$B$7:$D$53,3,FALSE),"") ->  | BB169: 0 | BD169: =IFERROR(VLOOKUP(BC169,商品マスター!$B$7:$D$53,2,FALSE),"") ->  | BF169: =IFERROR(VLOOKUP(BC169,商品マスター!$B$7:$D$53,3,FALSE),"") ->  | BG169: 0 | BI169: =IFERROR(VLOOKUP(BH169,商品マスター!$B$7:$D$53,2,FALSE),"") ->  | BK169: =IFERROR(VLOOKUP(BH169,商品マスター!$B$7:$D$53,3,FALSE),"") ->  | BL169: 0 | BM169: 0 | BN169: 0.1 | BO169: 0 | BQ169: 0
I170: =IFERROR(VLOOKUP(H170,得意先マスター!$B$7:$H$103,2,FALSE),"") ->  | J170: =IFERROR(VLOOKUP(H170,得意先マスター!$B$7:$H$103,3,FALSE),"") ->  | K170: =IFERROR(VLOOKUP(H170,得意先マスター!$B$7:$H$103,4,FALSE),"") ->  | L170: =IFERROR(VLOOKUP(H170,得意先マスター!$B$7:$H$103,5,FALSE),"") ->  | M170: =IFERROR(VLOOKUP(H170,得意先マスター!$B$7:$H$103,6,FALSE),"") ->  | P170: =IFERROR(VLOOKUP(O170,商品マスター!$B$7:$D$53,2,FALSE),"") ->  | R170: =IFERROR(VLOOKUP(O170,商品マスター!$B$7:$D$53,3,FALSE),"") ->  | S170: 0 | U170: =IFERROR(VLOOKUP(T170,商品マスター!$B$7:$D$53,2,FALSE),"") ->  | W170: =IFERROR(VLOOKUP(T170,商品マスター!$B$7:$D$53,3,FALSE),"") ->  | X170: 0 | Z170: =IFERROR(VLOOKUP(Y170,商品マスター!$B$7:$D$53,2,FALSE),"") ->  | AB170: =IFERROR(VLOOKUP(Y170,商品マスター!$B$7:$D$53,3,FALSE),"") ->  | AC170: 0 | AE170: =IFERROR(VLOOKUP(AD170,商品マスター!$B$7:$D$53,2,FALSE),"") ->  | AG170: =IFERROR(VLOOKUP(AD170,商品マスター!$B$7:$D$53,3,FALSE),"") ->  | AH170: 0 | AJ170: =IFERROR(VLOOKUP(AI170,商品マスター!$B$7:$D$53,2,FALSE),"") ->  | AL170: =IFERROR(VLOOKUP(AI170,商品マスター!$B$7:$D$53,3,FALSE),"") ->  | AM170: 0 | AO170: =IFERROR(VLOOKUP(AN170,商品マスター!$B$7:$D$53,2,FALSE),"") ->  | AQ170: =IFERROR(VLOOKUP(AN170,商品マスター!$B$7:$D$53,3,FALSE),"") ->  | AR170: 0 | AT170: =IFERROR(VLOOKUP(AS170,商品マスター!$B$7:$D$53,2,FALSE),"") ->  | AV170: =IFERROR(VLOOKUP(AS170,商品マスター!$B$7:$D$53,3,FALSE),"") ->  | AW170: 0 | AY170: =IFERROR(VLOOKUP(AX170,商品マスター!$B$7:$D$53,2,FALSE),"") ->  | BA170: =IFERROR(VLOOKUP(AX170,商品マスター!$B$7:$D$53,3,FALSE),"") ->  | BB170: 0 | BD170: =IFERROR(VLOOKUP(BC170,商品マスター!$B$7:$D$53,2,FALSE),"") ->  | BF170: =IFERROR(VLOOKUP(BC170,商品マスター!$B$7:$D$53,3,FALSE),"") ->  | BG170: 0 | BI170: =IFERROR(VLOOKUP(BH170,商品マスター!$B$7:$D$53,2,FALSE),"") ->  | BK170: =IFERROR(VLOOKUP(BH170,商品マスター!$B$7:$D$53,3,FALSE),"") ->  | BL170: 0 | BM170: 0 | BN170: 0.1 | BO170: 0 | BQ170: 0
